{"text_format":"1","workbook":"xlsx","n_sheets":4,"sheets":["warning","a","b","studies"],"not_rendered":{"charts":0,"images":0,"macros":1,"external_links":0,"defined_names":0,"comments":0,"pivot_tables":0},"unopened":[],"bounds":{"document_bytes":16777216,"sheet_cells":100000,"rows_first":2000,"rows_last":500,"rows_between":2000,"halvings":0,"cell_chars":16384,"cell_head_chars":4096},"cells_cut":0,"cells_raw":0,"read":"whole","date_system":"1900"}

{"sheet":"warning","index":0,"n_rows":11,"n_cols":2,"rows_kept":11,"cut":false,"hidden":false,"merged":[]}
[]
["TERMS OF USE - PLEASE READ"]
[null,"\"CLINIBORG\" includes without limitation all web content, files, applications, data, and spreadsheet files.  Users acknowledge and agree to comply with the following TERMS OF USE."]
[]
[null,"Not medical advice: This content is intended for use by clinicians, not patients.  Most, but not all, of the content is related to clinical medicine. Users outside the medical profession are welcome to use this website, but no content on the site should be interpreted as medical advice."]
[]
[null,"No guarantee: There is NO GUARANTEE of the accuracy or validity of this content."]
[]
[null,"No warranties: to the extent permitted by applicable law, neither CLINIBORG, nor any person, either expressly or implicitly, warrants any aspect of this content. This content is being provided “as is”, without any warranty of any type or nature, either express or implied."]
[]
[null,"Assumption of risk: the risk of any and all loss, damage, or unsatisfactory performance of this content and application rests with you as the user. To the extent permitted by law, neither CLINIBORG, nor any person either expressly or implicitly, makes any representation or warranty regarding the appropriateness of the content. Nor do they have any obligation to correct errors, make changes, provide support, or provide notification of any error or defect, known or unknown. If you rely upon this content, you do so at your own risk, and you assume the responsibility for the results. Should this content prove defective, you assume the cost of all losses."]

{"sheet":"a","index":1,"n_rows":9,"n_cols":237,"rows_kept":9,"cut":false,"hidden":false,"merged":[]}
["*","Brief Review","Identifier:","DOB:","Age: ","Gender:","Race:","Blood Pressure: ","SBP:","DBP:","Weight:  ","Height:  ","BMI: ","Blood Pressure Treated:","Current Smoker:","Diabetes:","Statin:","Part 1","# Co-managed:  ","# Weight/Diet/Activity:  ","# Cholesterol/ASCVD risk:  ","# Blood pressure/Shortness of breath/Lower extremity swelling:  ","# Dizziness/Lightheadedness/Vertigo/Falls:  ","# COPD/Asthma:  ","# Sleep apnea:  ","# Chronic pain/Arthritis:  ","# Gastroesophageal reflux/Constipation/Melena/Hematochezia:  ","# Urinary symptoms:  ","# Last menstrual period/Pregnancy:  ","# Mood/Depression/Anxiety:  ","# Vision:  ","# Hearing:  ","# Dental:  ","# Surgeries/Procedures/Implants/Metal:  ","# Alcohol:  ","# Tobacco:  ","# Recreational drugs:  ","# Family history:  ","# ADLs/IADLs:  ","# Other active issues:  ","# Other chronic issues:  ","Annual Blurb","Part 2","Lab subblurb A","Lab subblurb B","Lab Blurb","subAbLab A","subAbLab B","AbLab","Sodium","Potassium","Chloride","Bicarbonate","BUN","Creatinine","Calcium","Glucose","BMPD","Cystatin C","CysD","AST","ALT","Alkaline Phosphatase","Bilirubin, Total","Total Protein","Albumin","Globulin","CMPD","Amylase","AmyD","Lipase","LipaD","Magnesium","MagD","Phosphorus","PhosD","Total Cholesterol","Triglycerides","HDL","LDL","LipiD","LDH","LDHD","Uric Acid","UricD","C-Reactive Protein","CRPD","PTH","PTHD","TSH","TSHD","Free T4","FT4D","PSA level","PSAD","Vitamin D, 25-Hydroxy level","VitDD","Iron","TIBC","% Saturation","IronD","Ferritin","FerrD","Vitamin B12 level","VitB12D","Folate level","FolaD","AFP, Tumor Marker","AFPD","WBC","Hemoglobin","MCV","Platelet","CBCD","Erythrocyte Sedimentation Rate","ESRD","Hemoglobin A1c","A1cD","INR","INRD","Homocysteine","HomoD","Methylmalonic Acid","MethD","Thiamine","ThiaD","Zinc","ZincD","Copper","CopD","Digoxin Level","DigD","Total Valproic Acid Level","ValpD","Total Phenytoin Level","PhenD","Tacrolimus Level","TacrD","Hepatitis B Viral Load","HBVD","Hepatitis C Viral Load","HCVD","HIV Viral Load","HIVD","CD4 Count","CD4D","Urine Microalbumin/Creatinine","MACD","other urine testing","OthUD","other lab testing","OthLD","additional lab testing","AddLD","Part 3","Corrected Calcium","APRI","APRI interpretation","APRI Blurb","ANI","Probability of Alcoholic Liver Disease","ANI Blurb","Bili Pts","Albu Pts","INR Pts","Asci Pts","Ence Pts","Child Pugh Score","Child Pugh Class","10-Year ASCVD","Lifetime ASCVD Risk","Statin indicated (LDL>190,10 year ASCVD>7.5%, lifetime ASCVD>39%)","Startin Statin Blurb","Part 4","EKG:  ","EKG Date:  ","Holter Monitor:  ","Holter Date:  ","Echocardiogram:  ","Echocardiogram Date:  ","Cardiac Stress Test:  ","Cardiac Stress Test Date:  ","Chest Xray:  ","CXR Date:  ","Xray:  ","Xray Date","CT:  ","CT Date:  ","MRI:  ","MRI Date:  ","EMG:  ","EMG Date:  ","EEG:  ","EEG Date:  ","Pulmonary Function Testing:  ","Pulmonary Testing Date:  ","Sleep Apnea Testing:  ","Sleep Test Date:  ","Ultrasound:  ","Ultrasound Date:  ","Renal Ultrasound:  ","Renal Ultrasound Date:  ","Liver Ultrasound:  ","Liver Ultrasound Date:  ","AAA screen (male smokers 65+):  ","AAA Date:  ","Colon cancer screening (45+):  ","Colon cancer screening date:  ","Lung cancer screening (55-79):  ","Lung cancer screening date:  ","Prostate cancer screening (50-70):  ","Prostate cancer screening Date:  ","Dental Exam Date:  ","Foot Exam:  ","Foot Exam Date:  ","Fundoscopy:  ","Fundoscopy Date:  ","DEXA bone density:  ","DEXA Date:  ","PPD (mm):  ","PPD Date:  ","Hep B Serology:  ","Hep B serology Date:  ","Hep C Serology:  ","Hep C Serology Date:  ","HIV:  ","HIV Date:","Influenza (annual):  ","Hepatitis B series completion date:  ","MMR series completion date:  ","Tdap (every 10 years):  ","Meningococcal series completion date:  ","Pneumovax 13 (CKD or immune-suppressed):  ","Pneumovax 23 (age 65, CHF, lung disease, DM, liver disease):  ","Recombinant Zoster (age 50 or immune-suppressed):  ","Other Procedure or Test:  ","Preventive Blurb"]
[{"$f":"a[[#Headers],[*]]","v":"*"},null,null,25927,{"$f":"INT(((TODAY())-a[[#This Row],[DOB:]])/365.25)","v":53},"Male","White","134/62",{"$f":"LEFT(a[[#This Row],[Blood Pressure: ]],FIND(\"/\",a[[#This Row],[Blood Pressure: ]])-1)","v":"134"},{"$f":"RIGHT(a[[#This Row],[Blood Pressure: ]],LEN(a[[#This Row],[Blood Pressure: ]])-FIND(\"/\",a[[#This Row],[Blood Pressure: ]]))","v":"62"},190,67,{"$f":"(a[[#This Row],[Weight:  ]]/(a[[#This Row],[Height:  ]]^2))*703","v":29.754956560481176},"No","No","No","No",{"$f":"a[[#Headers],[*]]","v":"*"},null,null,null,null,null,null,null,null,null,null,null,null,null,null,null,null,null,null,null,null,null,null,null,{"$f":"IF(a[[#This Row],['# Co-managed:  ]]<>\"\",a[[#Headers],['# Co-managed:  ]]&a[[#This Row],['# Co-managed:  ]]&CHAR(10),\"\")&IF(a[[#This Row],['# Weight/Diet/Activity:  ]]<>\"\",a[[#Headers],['# Weight/Diet/Activity:  ]]&a[[#This Row],['# Weight/Diet/Activity:  ]]&CHAR(10),\"\")&IF(a[[#This Row],['# Cholesterol/ASCVD risk:  ]]<>\"\",a[[#Headers],['# Cholesterol/ASCVD risk:  ]]&a[[#This Row],['# Cholesterol/ASCVD risk:  ]]&CHAR(10),\"\")&IF(a[[#This Row],['# Blood pressure/Shortness of breath/Lower extremity swelling:  ]]<>\"\",a[[#Headers],['# Blood pressure/Shortness of breath/Lower extremity swelling:  ]]&a[[#This Row],['# Blood pressure/Shortness of breath/Lower extremity swelling:  ]]&CHAR(10),\"\")&IF(a[[#This Row],['# Dizziness/Lightheadedness/Vertigo/Falls:  ]]<>\"\",a[[#Headers],['# Dizziness/Lightheadedness/Vertigo/Falls:  ]]&a[[#This Row],['# Dizziness/Lightheadedness/Vertigo/Falls:  ]]&CHAR(10),\"\")&IF(a[[#This Row],['# COPD/Asthma:  ]]<>\"\",a[[#Headers],['# COPD/Asthma:  ]]&a[[#This Row],['# COPD/Asthma:  ]]&CHAR(10),\"\")&IF(a[[#This Row],['# Sleep apnea:  ]]<>\"\",a[[#Headers],['# Sleep apnea:  ]]&a[[#This Row],['# Sleep apnea:  ]]&CHAR(10),\"\")&IF(a[[#This Row],['# Chronic pain/Arthritis:  ]]<>\"\",a[[#Headers],['# Chronic pain/Arthritis:  ]]&a[[#This Row],['# Chronic pain/Arthritis:  ]]&CHAR(10),\"\")&IF(a[[#This Row],['# Gastroesophageal reflux/Constipation/Melena/Hematochezia:  ]]<>\"\",a[[#Headers],['# Gastroesophageal reflux/Constipation/Melena/Hematochezia:  ]]&a[[#This Row],['# Gastroesophageal reflux/Constipation/Melena/Hematochezia:  ]]&CHAR(10),\"\")&IF(a[[#This Row],['# Urinary symptoms:  ]]<>\"\",a[[#Headers],['# Urinary symptoms:  ]]&a[[#This Row],['# Urinary symptoms:  ]]&CHAR(10),\"\")&IF(a[[#This Row],['# Last menstrual period/Pregnancy:  ]]<>\"\",a[[#Headers],['# Last menstrual period/Pregnancy:  ]]&a[[#This Row],['# Last menstrual period/Pregnancy:  ]]&CHAR(10),\"\")&IF(a[[#This Row],['# Mood/Depression/Anxiety:  ]]<>\"\",a[[#Headers],['# Mood/Depression/Anxiety:  ]]&a[[#This Row],['# Mood/Depression/Anxiety:  ]]&CHAR(10),\"\")&IF(a[[#This Row],['# Vision:  ]]<>\"\",a[[#Headers],['# Vision:  ]]&a[[#This Row],['# Vision:  ]]&CHAR(10),\"\")&IF(a[[#This Row],['# Hearing:  ]]<>\"\",a[[#Headers],['# Hearing:  ]]&a[[#This Row],['# Hearing:  ]]&CHAR(10),\"\")&IF(a[[#This Row],['# Dental:  ]]<>\"\",a[[#Headers],['# Dental:  ]]&a[[#This Row],['# Dental:  ]]&CHAR(10),\"\")&IF(a[[#This Row],['# Surgeries/Procedures/Implants/Metal:  ]]<>\"\",a[[#Headers],['# Surgeries/Procedures/Implants/Metal:  ]]&a[[#This Row],['# Surgeries/Procedures/Implants/Metal:  ]]&CHAR(10),\"\")&IF(a[[#This Row],['# Alcohol:  ]]<>\"\",a[[#Headers],['# Alcohol:  ]]&a[[#This Row],['# Alcohol:  ]]&CHAR(10),\"\")&IF(a[[#This Row],['# Tobacco:  ]]<>\"\",a[[#Headers],['# Tobacco:  ]]&a[[#This Row],['# Tobacco:  ]]&CHAR(10),\"\")&IF(a[[#This Row],['# Recreational drugs:  ]]<>\"\",a[[#Headers],['# Recreational drugs:  ]]&a[[#This Row],['# Recreational drugs:  ]]&CHAR(10),\"\")&IF(a[[#This Row],['# Surgeries/Procedures/Implants/Metal:  ]]<>\"\",a[[#Headers],['# Surgeries/Procedures/Implants/Metal:  ]]&a[[#This Row],['# Surgeries/Procedures/Implants/Metal:  ]]&CHAR(10),\"\")&IF(a[[#This Row],['# Family history:  ]]<>\"\",a[[#Headers],['# Family history:  ]]&a[[#This Row],['# Family history:  ]]&CHAR(10),\"\")&IF(a[[#This Row],['# Tobacco:  ]]<>\"\",a[[#Headers],['# Tobacco:  ]]&a[[#This Row],['# Tobacco:  ]]&CHAR(10),\"\")&IF(a[[#This Row],['# ADLs/IADLs:  ]]<>\"\",a[[#Headers],['# ADLs/IADLs:  ]]&a[[#This Row],['# ADLs/IADLs:  ]]&CHAR(10),\"\")&IF(a[[#This Row],['# Other active issues:  ]]<>\"\",a[[#Headers],['# Other active issues:  ]]&a[[#This Row],['# Other active issues:  ]]&CHAR(10),\"\")&IF(a[[#This Row],['# Other chronic issues:  ]]<>\"\",a[[#Headers],['# Other chronic issues:  ]]&a[[#This Row],['# Other chronic issues:  ]]&CHAR(10),\"\")","v":""},{"$f":"a[[#Headers],[*]]","v":"*"},{"$f":"IF(AND(a[[#This Row],[Sodium]]<>\"\",a[[#This Row],[Potassium]]<>\"\",a[[#This Row],[Chloride]]<>\"\",a[[#This Row],[Bicarbonate]]<>\"\",a[[#This Row],[BUN]]<>\"\",a[[#This Row],[Creatinine]]<>\"\",a[[#This Row],[Calcium]]<>\"\",a[[#This Row],[Glucose]]<>\"\",a[[#This Row],[BMPD]]<>\"\"),\"Basic chemistry panel on \"&TEXT(a[[#This Row],[BMPD]],\"mmmm d, yyyy\")&\" showed \"&a[[#Headers],[Sodium]]&\" \"&a[[#This Row],[Sodium]]&\" \"&b!B$2&\", \"&a[[#Headers],[Potassium]]&\" \"&a[[#This Row],[Potassium]]&\" \"&b!C$2&\", \"&a[[#Headers],[Chloride]]&\" \"&a[[#This Row],[Chloride]]&\" \"&b!D$2&\", \"&a[[#Headers],[Bicarbonate]]&\" \"&a[[#This Row],[Bicarbonate]]&\" \"&b!E$2&\", \"&a[[#Headers],[BUN]]&\" \"&a[[#This Row],[BUN]]&\" \"&b!F$2&\", \"&a[[#Headers],[Creatinine]]&\" \"&a[[#This Row],[Creatinine]]&\" \"&b!G$2&\", \"&a[[#Headers],[Calcium]]&\" \"&a[[#This Row],[Calcium]]&\" \"&b!H$2&\", and \"&a[[#Headers],[Glucose]]&\" \"&a[[#This Row],[Glucose]]&\" \"&b!I$2,\"No BMP found\")&IF(AND(a[[#This Row],[Cystatin C]]<>\"\",a[[#This Row],[CysD]]<>\"\"),\". On \"&TEXT(a[[#This Row],[CysD]],\"mmmm d, yyyy\")&\" \"&a[[#Headers],[Cystatin C]]&\" was \"&a[[#This Row],[Cystatin C]]&\" \"&b!AK$2,\"\")&\".  On \"&TEXT(a[[#This Row],[CMPD]],\"mmmm d, yyyy\")&\" labs included \"&a[[#Headers],[AST]]&\" \"&a[[#This Row],[AST]]&\" \"&b!J$2&\", \"&a[[#Headers],[ALT]]&\" \"&a[[#This Row],[ALT]]&\" \"&b!K$2&\", \"&a[[#Headers],[Alkaline Phosphatase]]&\" \"&a[[#This Row],[Alkaline Phosphatase]]&\" \"&b!L$2&\", \"&a[[#Headers],[Bilirubin, Total]]&\" \"&a[[#This Row],[Bilirubin, Total]]&\" \"&b!M$2&\", \"&a[[#Headers],[Total Protein]]&\" \"&a[[#This Row],[Total Protein]]&\" \"&b!N$2&\", \"&a[[#Headers],[Albumin]]&\" \"&a[[#This Row],[Albumin]]&\" \"&b!O$2&\", and \"&a[[#Headers],[Globulin]]&\" \"&a[[#This Row],[Globulin]]&\" \"&b!P$2&IF(AND(a[[#This Row],[LDH]]<>\"\",a[[#This Row],[LDHD]]<>\"\"),\". On \"&TEXT(a[[#This Row],[LDHD]],\"mmmm d, yyyy\")&\" \"&a[[#Headers],[LDH]]&\" was \"&a[[#This Row],[LDH]]&\" \"&b!BH$2,\"\")&IF(AND(a[[#This Row],[Magnesium]]<>\"\",a[[#This Row],[MagD]]<>\"\"),\". On \"&TEXT(a[[#This Row],[MagD]],\"mmmm d, yyyy\")&\" \"&a[[#Headers],[Magnesium]]&\" was \"&a[[#This Row],[Magnesium]]&\" \"&b!AS$2,\"\")&IF(AND(a[[#This Row],[Phosphorus]]<>\"\",a[[#This Row],[PhosD]]<>\"\"),\". On \"&TEXT(a[[#This Row],[PhosD]],\"mmmm d, yyyy\")&\" \"&a[[#Headers],[Phosphorus]]&\" was \"&a[[#This Row],[Phosphorus]]&\" \"&b!AT$2,\"\")&IF(AND(a[[#This Row],[Vitamin D, 25-Hydroxy level]]<>\"\",a[[#This Row],[VitDD]]<>\"\"),\".  He had a \"&a[[#Headers],[Vitamin D, 25-Hydroxy level]]&\" of \"&a[[#This Row],[Vitamin D, 25-Hydroxy level]]&\" \"&b!AB$2&\" on \"&TEXT(a[[#This Row],[VitDD]],\"mmmm d, yyyy\"),\"\")&IF(AND(a[[#This Row],[PTH]]<>\"\",a[[#This Row],[PTHD]]<>\"\"),\". On \"&TEXT(a[[#This Row],[PTHD]],\"mmmm d, yyyy\")&\" \"&a[[#Headers],[PTH]]&\" was \"&a[[#This Row],[PTH]]&\" \"&b!AU$2,\"\")&IF(AND(a[[#This Row],[Uric Acid]]<>\"\",a[[#This Row],[UricD]]<>\"\"),\". On \"&TEXT(a[[#This Row],[UricD]],\"mmmm d, yyyy\")&\" \"&a[[#Headers],[Uric Acid]]&\" was \"&a[[#This Row],[Uric Acid]]&\" \"&b!AV$2,\"\")&IF(AND(a[[#This Row],[Amylase]]<>\"\",a[[#This Row],[AmyD]]<>\"\"),\". On \"&TEXT(a[[#This Row],[AmyD]],\"mmmm d, yyyy\")&\" \"&a[[#Headers],[Amylase]]&\" was \"&a[[#This Row],[Amylase]]&\" \"&b!AW$2,\"\")&IF(AND(a[[#This Row],[Lipase]]<>\"\",a[[#This Row],[LipaD]]<>\"\"),\". On \"&TEXT(a[[#This Row],[LipaD]],\"mmmm d, yyyy\")&\" \"&BQ$1&\" was \"&a[[#This Row],[Lipase]]&\" \"&b!AX$2,\"\")&IF(AND(a[[#This Row],[AFP, Tumor Marker]]<>\"\",a[[#This Row],[AFPD]]<>\"\"),\". On \"&TEXT(a[[#This Row],[AFPD]],\"mmmm d, yyyy\")&\" \"&a[[#Headers],[AFP, Tumor Marker]]&\" was \"&a[[#This Row],[AFP, Tumor Marker]]&\" \"&b!BJ$2,\"\")&IF(AND(a[[#This Row],[WBC]]<>\"\",a[[#This Row],[Hemoglobin]]<>\"\",a[[#This Row],[MCV]]<>\"\",a[[#This Row],[Platelet]]<>\"\",a[[#This Row],[CBCD]]<>\"\"),\".  On \"&TEXT(a[[#This Row],[CBCD]],\"mmmm d, yyyy\")&\" a complete blood count had \"&a[[#Headers],[WBC]]&\" \"&a[[#This Row],[WBC]]&\" \"&b!Q$2&\", \"&a[[#Headers],[Hemoglobin]]&\" \"&a[[#This Row],[Hemoglobin]]&\" \"&b!R$2&\", \"&a[[#Headers],[MCV]]&\" \"&a[[#This Row],[MCV]]&\" \"&b!S$2&\", \"&a[[#Headers],[Platelet]]&\" \"&a[[#This Row],[Platelet]]&\" \"&b!T$2,\".  No CBC found\")&IF(AND(a[[#This Row],[Erythrocyte Sedimentation Rate]]<>\"\",a[[#This Row],[ESRD]]<>\"\"),\". On \"&TEXT(a[[#This Row],[ESRD]],\"mmmm d, yyyy\")&\" \"&a[[#Headers],[Erythrocyte Sedimentation Rate]]&\" was \"&a[[#This Row],[Erythrocyte Sedimentation Rate]]&\" \"&b!AM$2,\"\")&IF(AND(a[[#This Row],[C-Reactive Protein]]<>\"\",a[[#This Row],[CRPD]]<>\"\"),\". On \"&TEXT(a[[#This Row],[CRPD]],\"mmmm d, yyyy\")&\" \"&a[[#Headers],[C-Reactive Protein]]&\" was \"&a[[#This Row],[C-Reactive Protein]]&\" \"&b!AN$2,\"\")&IF(AND(a[[#This Row],[Hepatitis B Viral Load]]<>\"\",a[[#This Row],[HBVD]]<>\"\"),\". On \"&TEXT(a[[#This Row],[HBVD]],\"mmmm d, yyyy\")&\" \"&a[[#Headers],[Hepatitis B Viral Load]]&\" was \"&a[[#This Row],[Hepatitis B Viral Load]]&\" \"&b!BB$2,\"\")&IF(AND(a[[#This Row],[Hepatitis C Viral Load]]<>\"\",a[[#This Row],[HCVD]]<>\"\"),\". On \"&TEXT(a[[#This Row],[HCVD]],\"mmmm d, yyyy\")&\" \"&a[[#Headers],[Hepatitis C Viral Load]]&\" was \"&a[[#This Row],[Hepatitis C Viral Load]]&\" \"&b!BA$2,\"\")&IF(AND(a[[#This Row],[HIV Viral Load]]<>\"\",a[[#This Row],[HIVD]]<>\"\"),\". On \"&TEXT(a[[#This Row],[HIVD]],\"mmmm d, yyyy\")&\" \"&a[[#Headers],[HIV Viral Load]]&\" was \"&a[[#This Row],[HIV Viral Load]]&\" \"&b!BC$2,\"\")&IF(AND(a[[#This Row],[CD4 Count]]<>\"\",a[[#This Row],[CD4D]]<>\"\"),\". On \"&TEXT(a[[#This Row],[CD4D]],\"mmmm d, yyyy\")&\" \"&a[[#Headers],[CD4 Count]]&\" was \"&a[[#This Row],[CD4 Count]]&\" \"&b!AL$2,\"\")&IF(AND(a[[#This Row],[Iron]]<>\"\",a[[#This Row],[TIBC]]<>\"\",a[[#This Row],[% Saturation]]<>\"\",a[[#This Row],[IronD]]<>\"\"),\". Iron Testing: On \"&TEXT(a[[#This Row],[IronD]],\"mmmm d, yyyy\")&\" \"&a[[#Headers],[Iron]]&\" was \"&a[[#This Row],[Iron]]&\" \"&b!AO$2&\", \"&a[[#Headers],[TIBC]]&\" was \"&a[[#This Row],[TIBC]]&\" \"&b!AP$2&\", \"&a[[#Headers],[% Saturation]]&\" was \"&a[[#This Row],[% Saturation]]&\" \"&b!AQ$2,\"\")&IF(AND(a[[#This Row],[Ferritin]]<>\"\",a[[#This Row],[FerrD]]<>\"\"),\". On \"&TEXT(a[[#This Row],[FerrD]],\"mmmm d, yyyy\")&\" \"&a[[#Headers],[Ferritin]]&\" was \"&a[[#This Row],[Ferritin]]&\" \"&b!AR$2,\"\")&IF(AND(a[[#This Row],[Vitamin B12 level]]<>\"\",a[[#This Row],[VitB12D]]<>\"\"),\". On \"&TEXT(a[[#This Row],[VitB12D]],\"mmmm d, yyyy\")&\" \"&a[[#Headers],[Vitamin B12 level]]&\" was \"&a[[#This Row],[Vitamin B12 level]]&\" \"&b!AC$2,\"\")&IF(AND(a[[#This Row],[Folate level]]<>\"\",a[[#This Row],[FolaD]]<>\"\"),\". On \"&TEXT(a[[#This Row],[FolaD]],\"mmmm d, yyyy\")&\" \"&a[[#Headers],[Folate level]]&\" was \"&a[[#This Row],[Folate level]]&\" \"&b!AD$2,\"\")&IF(AND(a[[#This Row],[Homocysteine]]<>\"\",a[[#This Row],[HomoD]]<>\"\"),\". On \"&TEXT(a[[#This Row],[HomoD]],\"mmmm d, yyyy\")&\" \"&a[[#Headers],[Homocysteine]]&\" was \"&a[[#This Row],[Homocysteine]]&\" \"&b!AE$2,\"\")&IF(AND(a[[#This Row],[Methylmalonic Acid]]<>\"\",a[[#This Row],[MethD]]<>\"\"),\". On \"&TEXT(a[[#This Row],[MethD]],\"mmmm d, yyyy\")&\" \"&a[[#Headers],[Methylmalonic Acid]]&\" was \"&a[[#This Row],[Methylmalonic Acid]]&\" \"&b!AF$2,\"\")&IF(AND(a[[#This Row],[Thiamine]]<>\"\",a[[#This Row],[ThiaD]]<>\"\"),\". On \"&TEXT(a[[#This Row],[ThiaD]],\"mmmm d, yyyy\")&\" \"&a[[#Headers],[Thiamine]]&\" was \"&a[[#This Row],[Thiamine]]&\" \"&b!AG$2,\"\")&IF(AND(a[[#This Row],[Zinc]]<>\"\",a[[#This Row],[ZincD]]<>\"\"),\". On \"&TEXT(a[[#This Row],[ZincD]],\"mmmm d, yyyy\")&\" \"&a[[#Headers],[Zinc]]&\" was \"&a[[#This Row],[Zinc]]&\" \"&b!AH$2,\"\")&IF(AND(a[[#This Row],[Copper]]<>\"\",a[[#This Row],[CopD]]<>\"\"),\". On \"&TEXT(a[[#This Row],[CopD]],\"mmmm d, yyyy\")&\" \"&a[[#Headers],[Copper]]&\" was \"&a[[#This Row],[Copper]]&\" \"&b!AI$2,\"\")&IF(AND(a[[#This Row],[LipiD]]<>\"\",a[[#This Row],[Total Cholesterol]]<>\"\",a[[#This Row],[Triglycerides]]<>\"\",a[[#This Row],[HDL]]<>\"\",a[[#This Row],[LDL]]<>\"\"),\".  On \"&TEXT(a[[#This Row],[LipiD]],\"mmmm d, yyyy\")&\" fasting lipids included \"&a[[#Headers],[Total Cholesterol]]&\" \"&a[[#This Row],[Total Cholesterol]]&\" \"&b!V$2&\", \"&a[[#Headers],[Triglycerides]]&\" \"&a[[#This Row],[Triglycerides]]&\" \"&b!W$2&\", \"&a[[#Headers],[HDL]]&\" \"&a[[#This Row],[HDL]]&\" \"&b!X$2&\", and \"&a[[#Headers],[LDL]]&\" \"&a[[#This Row],[LDL]]&\" \"&b!Y$2,\"\")","v":"No BMP found.  On January 0, 1900 labs included AST 70 (N<=34), ALT 70 (N<=55), Alkaline Phosphatase  (N 40-150), Bilirubin, Total  (N 0.2-1.2), Total Protein  (N 6.0-8.3), Albumin 4 (N 3.5-5.2), and Globulin  (N 2.0-3.7).  No CBC found.  On February 8, 2023 fasting lipids included Total Cholesterol 177 (N <200), Triglycerides 133 (N <150), HDL 40 (N>39), and LDL 110 (N <99)"},{"$f":"IF(AND(a[[#This Row],[A1cD]]<>\"\",a[[#This Row],[Hemoglobin A1c]]<>\"\"),\".  On \"&TEXT(a[[#This Row],[A1cD]],\"mmmm d, yyyy\")&\" \"&a[[#Headers],[Hemoglobin A1c]]&\" was \"&a[[#This Row],[Hemoglobin A1c]]&\" \"&b!U$2,\"\")&IF(AND(a[[#This Row],[TSH]]<>\"\",a[[#This Row],[TSHD]]<>\"\"),\".  Thyroid testing:  \"&a[[#Headers],[TSH]]&\" was \"&a[[#This Row],[TSH]]&\" \"&b!Z$2&\" on \"&TEXT(a[[#This Row],[TSHD]],\"mmmm d, yyyy\"),\"\")&IF(AND(a[[#This Row],[Free T4]]<>\"\",a[[#This Row],[FT4D]]<>\"\"),\".  On \"&TEXT(a[[#This Row],[FT4D]],\"mmmm d, yyyy\")&\" \"&a[[#Headers],[Free T4]]&\" was \"&a[[#This Row],[Free T4]]&\" \"&b!AY$2,\"\")&IF(AND(a[[#This Row],[PSA level]]<>\"\",a[[#This Row],[PSAD]]<>\"\"),\". Prostate: On \"&TEXT(a[[#This Row],[PSAD]],\"mmmm d, yyyy\")&\" \"&a[[#Headers],[PSA level]]&\" was \"&a[[#This Row],[PSA level]]&\" \"&b!AA$2,\"\")&IF(AND(a[[#This Row],[Urine Microalbumin/Creatinine]]<>\"\",a[[#This Row],[MACD]]<>\"\"),\".  On \"&TEXT(a[[#This Row],[MACD]], \"mmmm d, yyyy\")&\" \"&a[[#Headers],[Urine Microalbumin/Creatinine]]&\" was \"&a[[#This Row],[Urine Microalbumin/Creatinine]]&\" \"&b!AJ$2,\"\")&IF(AND(a[[#This Row],[other urine testing]]<>\"\",a[[#This Row],[OthUD]]<>\"\"),\".  On \"&TEXT(a[[#This Row],[OthUD]], \"mmmm d, yyyy\")&\" \"&a[[#Headers],[other urine testing]]&\" was notable for \"&a[[#This Row],[other urine testing]],\"\")&IF(AND(a[[#This Row],[other lab testing]]<>\"\",a[[#This Row],[OthLD]]<>\"\"),\".  On \"&TEXT(a[[#This Row],[OthLD]], \"mmmm d, yyyy\")&\" \"&a[[#Headers],[other lab testing]]&\" was notable for \"&a[[#This Row],[other lab testing]],\"\")&IF(AND(a[[#This Row],[additional lab testing]]<>\"\",a[[#This Row],[AddLD]]<>\"\"),\".  On \"&TEXT(a[[#This Row],[AddLD]], \"mmmm d, yyyy\")&\" \"&a[[#Headers],[additional lab testing]]&\" was notable for \"&a[[#This Row],[additional lab testing]],\"\")&IF(AND(a[[#This Row],[Total Valproic Acid Level]]<>\"\",a[[#This Row],[ValpD]]<>\"\"),\".  On \"&TEXT(a[[#This Row],[ValpD]],\"mmmm d, yyyy\")&\" \"&a[[#Headers],[Total Valproic Acid Level]]&\" was \"&a[[#This Row],[Total Valproic Acid Level]]&\" \"&b!BE$2,\"\")&IF(AND(a[[#This Row],[Total Phenytoin Level]]<>\"\",a[[#This Row],[PhenD]]<>\"\"),\".  On \"&TEXT(a[[#This Row],[PhenD]],\"mmmm d, yyyy\")&\" \"&a[[#Headers],[Total Phenytoin Level]]&\" was \"&a[[#This Row],[Total Phenytoin Level]]&\" \"&b!BF$2,\"\")&IF(AND(a[[#This Row],[Tacrolimus Level]]<>\"\",a[[#This Row],[TacrD]]<>\"\"),\".  On \"&TEXT(a[[#This Row],[TacrD]],\"mmmm d, yyyy\")&\" \"&a[[#Headers],[Tacrolimus Level]]&\" was \"&a[[#This Row],[Tacrolimus Level]]&\" \"&b!BG$2,\"\")&IF(AND(a[[#This Row],[Digoxin Level]]<>\"\",a[[#This Row],[DigD]]<>\"\"),\".  On \"&TEXT(a[[#This Row],[DigD]],\"mmmm d, yyyy\")&\" \"&a[[#Headers],[Digoxin Level]]&\" was \"&a[[#This Row],[Digoxin Level]]&\" \"&b!BI$2,\"\")&\".\"","v":"."},{"$f":"a[[#This Row],[Lab subblurb A]]&a[[#This Row],[Lab subblurb B]]","v":"No BMP found.  On January 0, 1900 labs included AST 70 (N<=34), ALT 70 (N<=55), Alkaline Phosphatase  (N 40-150), Bilirubin, Total  (N 0.2-1.2), Total Protein  (N 6.0-8.3), Albumin 4 (N 3.5-5.2), and Globulin  (N 2.0-3.7).  No CBC found.  On February 8, 2023 fasting lipids included Total Cholesterol 177 (N <200), Triglycerides 133 (N <150), HDL 40 (N>39), and LDL 110 (N <99)."},{"$f":"IF(a[[#This Row],[Sodium]]<>\"\",IF(OR(VALUE(a[[#This Row],[Sodium]])<VALUE(b!B$3),VALUE(a[[#This Row],[Sodium]])>VALUE(b!B$4)),\"Sodium.  \",\"\"),\"\")&IF(a[[#This Row],[Potassium]]<>\"\",IF(OR(VALUE(a[[#This Row],[Potassium]])<VALUE(b!C$3),VALUE(a[[#This Row],[Potassium]])>VALUE(b!C$4)),\"Potassium.  \",\"\"),\"\")&IF(a[[#This Row],[Chloride]]<>\"\",IF(OR(VALUE(a[[#This Row],[Chloride]])<VALUE(b!D$3),VALUE(a[[#This Row],[Chloride]])>VALUE(b!D$4)),\"Chloride.  \",\"\"),\"\")&IF(a[[#This Row],[Bicarbonate]]<>\"\",IF(OR(VALUE(a[[#This Row],[Bicarbonate]])<VALUE(b!E$3),VALUE(a[[#This Row],[Bicarbonate]])>VALUE(b!E$4)),\"Bicarbonate.  \",\"\"),\"\")&IF(a[[#This Row],[BUN]]<>\"\",IF(OR(VALUE(a[[#This Row],[BUN]])<VALUE(b!F$3),VALUE(a[[#This Row],[BUN]])>VALUE(b!F$4)),\"BUN.  \",\"\"),\"\")&IF(a[[#This Row],[Creatinine]]<>\"\",IF(OR(VALUE(a[[#This Row],[Creatinine]])<VALUE(b!G$3),VALUE(a[[#This Row],[Creatinine]])>VALUE(b!G$4)),\"Creatinine.  \",\"\"),\"\")&IF(a[[#This Row],[Calcium]]<>\"\",IF(OR(VALUE(a[[#This Row],[Calcium]])<VALUE(b!H$3),VALUE(a[[#This Row],[Calcium]])>VALUE(b!H$4)),\"Calcium.  \",\"\"),\"\")&IF(a[[#This Row],[Glucose]]<>\"\",IF(OR(VALUE(a[[#This Row],[Glucose]])<VALUE(b!I$3),VALUE(a[[#This Row],[Glucose]])>VALUE(b!I$4)),\"Glucose.  \",\"\"),\"\")&IF(a[[#This Row],[Cystatin C]]<>\"\",IF(OR(VALUE(a[[#This Row],[Cystatin C]])<VALUE(b!AK$3),VALUE(a[[#This Row],[Cystatin C]])>VALUE(b!AK$4)),\"Cystatin C.  \",\"\"),\"\")&IF(a[[#This Row],[AST]]<>\"\",IF(OR(VALUE(a[[#This Row],[AST]])<VALUE(b!J$3),VALUE(a[[#This Row],[AST]])>VALUE(b!J$4)),\"AST.  \",\"\"),\"\")&IF(a[[#This Row],[ALT]]<>\"\",IF(OR(VALUE(a[[#This Row],[ALT]])<VALUE(b!K$3),VALUE(a[[#This Row],[ALT]])>VALUE(b!K$4)),\"ALT.  \",\"\"),\"\")&IF(a[[#This Row],[Alkaline Phosphatase]]<>\"\",IF(OR(VALUE(a[[#This Row],[Alkaline Phosphatase]])<VALUE(b!L$3),VALUE(a[[#This Row],[Alkaline Phosphatase]])>VALUE(b!L$4)),\"Alkaline Phosphatase.  \",\"\"),\"\")&IF(a[[#This Row],[Bilirubin, Total]]<>\"\",IF(OR(VALUE(a[[#This Row],[Bilirubin, Total]])<VALUE(b!M$3),VALUE(a[[#This Row],[Bilirubin, Total]])>VALUE(b!M$4)),\"Bilirubin, Total.  \",\"\"),\"\")&IF(a[[#This Row],[Total Protein]]<>\"\",IF(OR(VALUE(a[[#This Row],[Total Protein]])<VALUE(b!N$3),VALUE(a[[#This Row],[Total Protein]])>VALUE(b!N$4)),\"Total Protein.  \",\"\"),\"\")&IF(a[[#This Row],[Albumin]]<>\"\",IF(OR(VALUE(a[[#This Row],[Albumin]])<VALUE(b!O$3),VALUE(a[[#This Row],[Albumin]])>VALUE(b!O$4)),\"Albumin.  \",\"\"),\"\")&IF(a[[#This Row],[Globulin]]<>\"\",IF(OR(VALUE(a[[#This Row],[Globulin]])<VALUE(b!P$3),VALUE(a[[#This Row],[Globulin]])>VALUE(b!P$4)),\"Globulin.  \",\"\"),\"\")&IF(a[[#This Row],[Amylase]]<>\"\",IF(OR(VALUE(a[[#This Row],[Amylase]])<VALUE(b!AW$3),VALUE(a[[#This Row],[Amylase]])>VALUE(b!AW$4)),\"Amylase.  \",\"\"),\"\")&IF(a[[#This Row],[Lipase]]<>\"\",IF(OR(VALUE(a[[#This Row],[Lipase]])<VALUE(b!AX$3),VALUE(a[[#This Row],[Lipase]])>VALUE(b!AX$4)),\"Lipase.  \",\"\"),\"\")&IF(a[[#This Row],[Magnesium]]<>\"\",IF(OR(VALUE(a[[#This Row],[Magnesium]])<VALUE(b!AS$3),VALUE(a[[#This Row],[Magnesium]])>VALUE(b!AS$4)),\"Magnesium.  \",\"\"),\"\")&IF(a[[#This Row],[Phosphorus]]<>\"\",IF(OR(VALUE(a[[#This Row],[Phosphorus]])<VALUE(b!AT$3),VALUE(a[[#This Row],[Phosphorus]])>VALUE(b!AT$4)),\"Phosphorus.  \",\"\"),\"\")&IF(a[[#This Row],[Total Cholesterol]]<>\"\",IF(OR(VALUE(a[[#This Row],[Total Cholesterol]])<VALUE(b!V$3),VALUE(a[[#This Row],[Total Cholesterol]])>VALUE(b!V$4)),\"Total Cholesterol.  \",\"\"),\"\")&IF(a[[#This Row],[Triglycerides]]<>\"\",IF(OR(VALUE(a[[#This Row],[Triglycerides]])<VALUE(b!W$3),VALUE(a[[#This Row],[Triglycerides]])>VALUE(b!W$4)),\"Triglycerides.  \",\"\"),\"\")&IF(a[[#This Row],[HDL]]<>\"\",IF(OR(VALUE(a[[#This Row],[HDL]])<VALUE(b!X$3),VALUE(a[[#This Row],[HDL]])>VALUE(b!X$4)),\"HDL.  \",\"\"),\"\")&IF(a[[#This Row],[LDL]]<>\"\",IF(OR(VALUE(a[[#This Row],[LDL]])<VALUE(b!Y$3),VALUE(a[[#This Row],[LDL]])>VALUE(b!Y$4)),\"LDL.  \",\"\"),\"\")","v":"AST.  ALT.  LDL.  "},{"$f":"IF(a[[#This Row],[LDH]]<>\"\",IF(OR(VALUE(a[[#This Row],[LDH]])<VALUE(b!BH$3),VALUE(a[[#This Row],[LDH]])>VALUE(b!BH$4)),\"LDH.  \",\"\"),\"\")&IF(a[[#This Row],[Uric Acid]]<>\"\",IF(OR(VALUE(a[[#This Row],[Uric Acid]])<VALUE(b!AV$3),VALUE(a[[#This Row],[Uric Acid]])>VALUE(b!AV$4)),\"Uric Acid.  \",\"\"),\"\")&IF(a[[#This Row],[PTH]]<>\"\",IF(OR(VALUE(a[[#This Row],[PTH]])<VALUE(b!AU$3),VALUE(a[[#This Row],[PTH]])>VALUE(b!AU$4)),\"PTH.  \",\"\"),\"\")&IF(a[[#This Row],[TSH]]<>\"\",IF(OR(VALUE(a[[#This Row],[TSH]])<VALUE(b!Z$3),VALUE(a[[#This Row],[TSH]])>VALUE(b!Z$4)),\"TSH.  \",\"\"),\"\")&IF(a[[#This Row],[Free T4]]<>\"\",IF(OR(VALUE(a[[#This Row],[Free T4]])<VALUE(b!AY$3),VALUE(a[[#This Row],[Free T4]])>VALUE(b!AY$4)),\"Free T4.  \",\"\"),\"\")&IF(a[[#This Row],[PSA level]]<>\"\",IF(OR(VALUE(a[[#This Row],[PSA level]])<VALUE(b!AA$3),VALUE(a[[#This Row],[PSA level]])>VALUE(b!AA$4)),\"PSA level.  \",\"\"),\"\")&IF(a[[#This Row],[Vitamin D, 25-Hydroxy level]]<>\"\",IF(OR(VALUE(a[[#This Row],[Vitamin D, 25-Hydroxy level]])<VALUE(b!AB$3),VALUE(a[[#This Row],[Vitamin D, 25-Hydroxy level]])>VALUE(b!AB$4)),\"Vitamin D, 25-Hydroxy level.  \",\"\"),\"\")&IF(a[[#This Row],[Iron]]<>\"\",IF(OR(VALUE(a[[#This Row],[Iron]])<VALUE(b!AO$3),VALUE(a[[#This Row],[Iron]])>VALUE(b!AO$4)),\"Iron.  \",\"\"),\"\")&IF(a[[#This Row],[TIBC]]<>\"\",IF(OR(VALUE(a[[#This Row],[TIBC]])<VALUE(b!AP$3),VALUE(a[[#This Row],[TIBC]])>VALUE(b!AP$4)),\"TIBC.  \",\"\"),\"\")&IF(a[[#This Row],[% Saturation]]<>\"\",IF(OR(VALUE(a[[#This Row],[% Saturation]])<VALUE(b!AQ$3),VALUE(a[[#This Row],[% Saturation]])>VALUE(b!AQ$4)),\"% Saturation.  \",\"\"),\"\")&IF(a[[#This Row],[Ferritin]]<>\"\",IF(OR(VALUE(a[[#This Row],[Ferritin]])<VALUE(b!AR$3),VALUE(a[[#This Row],[Ferritin]])>VALUE(b!AR$4)),\"Ferritin.  \",\"\"),\"\")&IF(a[[#This Row],[Vitamin B12 level]]<>\"\",IF(OR(VALUE(a[[#This Row],[Vitamin B12 level]])<VALUE(b!AC$3),VALUE(a[[#This Row],[Vitamin B12 level]])>VALUE(b!AC$4)),\"Vitamin B12 level.  \",\"\"),\"\")&IF(a[[#This Row],[Folate level]]<>\"\",IF(OR(VALUE(a[[#This Row],[Folate level]])<VALUE(b!AD$3),VALUE(a[[#This Row],[Folate level]])>VALUE(b!AD$4)),\"Folate level.  \",\"\"),\"\")&IF(a[[#This Row],[WBC]]<>\"\",IF(OR(VALUE(a[[#This Row],[WBC]])<VALUE(b!Q$3),VALUE(a[[#This Row],[WBC]])>VALUE(b!Q$4)),\"WBC.  \",\"\"),\"\")&IF(a[[#This Row],[Hemoglobin]]<>\"\",IF(OR(VALUE(a[[#This Row],[Hemoglobin]])<VALUE(b!R$3),VALUE(a[[#This Row],[Hemoglobin]])>VALUE(b!R$4)),\"Hemoglobin.  \",\"\"),\"\")&IF(a[[#This Row],[MCV]]<>\"\",IF(OR(VALUE(a[[#This Row],[MCV]])<VALUE(b!S$3),VALUE(a[[#This Row],[MCV]])>VALUE(b!S$4)),\"MCV.  \",\"\"),\"\")&IF(a[[#This Row],[Platelet]]<>\"\",IF(OR(VALUE(a[[#This Row],[Platelet]])<VALUE(b!T$3),VALUE(a[[#This Row],[Platelet]])>VALUE(b!T$4)),\"Platelet.  \",\"\"),\"\")&IF(a[[#This Row],[Erythrocyte Sedimentation Rate]]<>\"\",IF(OR(VALUE(a[[#This Row],[Erythrocyte Sedimentation Rate]])<VALUE(b!AM$3),VALUE(a[[#This Row],[Erythrocyte Sedimentation Rate]])>VALUE(b!AM$4)),\"Erythrocyte Sedimentation Rate.  \",\"\"),\"\")&IF(a[[#This Row],[C-Reactive Protein]]<>\"\",IF(OR(VALUE(a[[#This Row],[C-Reactive Protein]])<VALUE(b!AN$3),VALUE(a[[#This Row],[C-Reactive Protein]])>VALUE(b!AN$4)),\"C-Reactive Protein.  \",\"\"),\"\")&IF(a[[#This Row],[Hemoglobin A1c]]<>\"\",IF(OR(VALUE(a[[#This Row],[Hemoglobin A1c]])<VALUE(b!U$3),VALUE(a[[#This Row],[Hemoglobin A1c]])>VALUE(b!U$4)),\"Hemoglobin A1c.  \",\"\"),\"\")&IF(a[[#This Row],[Homocysteine]]<>\"\",IF(OR(VALUE(a[[#This Row],[Homocysteine]])<VALUE(b!AE$3),VALUE(a[[#This Row],[Homocysteine]])>VALUE(b!AE$4)),\"Homocysteine.  \",\"\"),\"\")&IF(a[[#This Row],[Methylmalonic Acid]]<>\"\",IF(OR(VALUE(a[[#This Row],[Methylmalonic Acid]])<VALUE(b!AF$3),VALUE(a[[#This Row],[Methylmalonic Acid]])>VALUE(b!AF$4)),\"Methylmalonic Acid.  \",\"\"),\"\")&IF(a[[#This Row],[AFP, Tumor Marker]]<>\"\",IF(OR(VALUE(a[[#This Row],[AFP, Tumor Marker]])<VALUE(b!BJ$3),VALUE(a[[#This Row],[AFP, Tumor Marker]])>VALUE(b!BJ$4)),\"AFP, Tumor Marker.  \",\"\"),\"\")&IF(a[[#This Row],[Thiamine]]<>\"\",IF(OR(VALUE(a[[#This Row],[Thiamine]])<VALUE(b!AG$3),VALUE(a[[#This Row],[Thiamine]])>VALUE(b!AG$4)),\"Thiamine.  \",\"\"),\"\")&IF(a[[#This Row],[Zinc]]<>\"\",IF(OR(VALUE(a[[#This Row],[Zinc]])<VALUE(b!AH$3),VALUE(a[[#This Row],[Zinc]])>VALUE(b!AH$4)),\"Zinc.  \",\"\"),\"\")&IF(a[[#This Row],[Copper]]<>\"\",IF(OR(VALUE(a[[#This Row],[Copper]])<VALUE(b!AI$3),VALUE(a[[#This Row],[Copper]])>VALUE(b!AI$4)),\"Copper.  \",\"\"),\"\")&IF(a[[#This Row],[Digoxin Level]]<>\"\",IF(OR(VALUE(a[[#This Row],[Digoxin Level]])<VALUE(b!BI$3),VALUE(a[[#This Row],[Digoxin Level]])>VALUE(b!BI$4)),\"Digoxin Level.  \",\"\"),\"\")&IF(a[[#This Row],[Total Valproic Acid Level]]<>\"\",IF(OR(VALUE(a[[#This Row],[Total Valproic Acid Level]])<VALUE(b!BE$3),VALUE(a[[#This Row],[Total Valproic Acid Level]])>VALUE(b!BE$4)),\"Total Valproic Acid Level.  \",\"\"),\"\")&IF(a[[#This Row],[Total Phenytoin Level]]<>\"\",IF(OR(VALUE(a[[#This Row],[Total Phenytoin Level]])<VALUE(b!BF$3),VALUE(a[[#This Row],[Total Phenytoin Level]])>VALUE(b!BF$4)),\"Total Phenytoin Level.  \",\"\"),\"\")&IF(a[[#This Row],[Tacrolimus Level]]<>\"\",IF(OR(VALUE(a[[#This Row],[Tacrolimus Level]])<VALUE(b!BG$3),VALUE(a[[#This Row],[Tacrolimus Level]])>VALUE(b!BG$4)),\"Tacrolimus Level.  \",\"\"),\"\")&IF(a[[#This Row],[CD4 Count]]<>\"\",IF(OR(VALUE(a[[#This Row],[CD4 Count]])<VALUE(b!AL$3),VALUE(a[[#This Row],[CD4 Count]])>VALUE(b!AL$4)),\"CD4 Count.  \",\"\"),\"\")&IF(a[[#This Row],[Urine Microalbumin/Creatinine]]<>\"\",IF(OR(VALUE(a[[#This Row],[Urine Microalbumin/Creatinine]])<VALUE(b!AJ$3),VALUE(a[[#This Row],[Urine Microalbumin/Creatinine]])>VALUE(b!AJ$4)),\"Urine Microalbumin/Creatinine.  \",\"\"),\"\")","v":"Platelet.  "},{"$f":"a[[#This Row],[subAbLab A]]&a[[#This Row],[subAbLab B]]","v":"AST.  ALT.  LDL.  Platelet.  "},null,null,null,null,null,null,8.8000000000000007,null,null,null,null,70,70,null,null,null,4,null,null,null,null,null,null,null,null,null,null,177,133,40,110,44965,null,null,null,null,null,null,null,null,null,null,null,null,null,null,null,null,null,null,null,null,null,null,null,null,null,null,null,null,null,null,90,145,null,null,null,null,null,null,null,null,null,null,null,null,null,null,null,null,null,null,null,null,null,null,null,null,null,null,null,null,null,null,null,null,null,null,null,null,null,null,null,null,null,{"$f":"a[[#Headers],[*]]","v":"*"},{"$f":"a[[#This Row],[Calcium]] + (0.8 * (4-a[[#This Row],[Albumin]]))","v":8.8000000000000007},{"$f":"LIVERAPRI(a[[#This Row],[AST]],a[[#This Row],[Platelet]])","v":1.3},{"$f":"LIVERAPRIINTERPRETATION(\"[@APRI])\")","v":"Likely cirrhosis"},{"$f":"\"APRI liver fibrosis calculation using recent AST \" & a[[#This Row],[AST]] & \" and Platelet count of \" &a[[#This Row],[Platelet]]& \" was calculated to be \" & ROUND(a[[#This Row],[APRI]],2) & \", \" & a[[#This Row],[APRI interpretation]]&\".\"","v":"APRI liver fibrosis calculation using recent AST 70 and Platelet count of 145 was calculated to be 1.3, Likely cirrhosis."},{"$f":"LIVERANI(a[[#This Row],[Gender:]],a[[#This Row],[MCV]],a[[#This Row],[AST]],a[[#This Row],[ALT]],a[[#This Row],[Height:  ]],a[[#This Row],[Weight:  ]])","v":-2.99},{"$f":"LIVERANIPROBABILITY(a[[#This Row],[ANI]])","v":0.05},{"$f":"\"Alcohol-associated liver disease to NAFLD Index (ANI) \" & TEXT(a[[#This Row],[ANI]],\"0.00\") & \" indicates \" & TEXT(a[[#This Row],[Probability of Alcoholic Liver Disease]],\"00%\") & \" probability of alcoholic liver disease (versus non-alcoholic liver disease).  \"","v":"Alcohol-associated liver disease to NAFLD Index (ANI) -2.99 indicates 05% probability of alcoholic liver disease (versus non-alcoholic liver disease).  "},{"$f":"IF(_xlfn.NUMBERVALUE(a[[#This Row],[Bilirubin, Total]])>3,3,IF(_xlfn.NUMBERVALUE(a[[#This Row],[Bilirubin, Total]])>=2,2,IF(_xlfn.NUMBERVALUE(a[[#This Row],[Bilirubin, Total]])>0,1,\"missing\")))","v":"missing"},{"$f":"IF(_xlfn.NUMBERVALUE(a[[#This Row],[Albumin]])>3.5,1,IF(_xlfn.NUMBERVALUE(a[[#This Row],[Albumin]])>=2.8,2,IF(_xlfn.NUMBERVALUE(a[[#This Row],[Albumin]])>0,3,\"missing\")))","v":1},{"$f":"IF(_xlfn.NUMBERVALUE(a[[#This Row],[INR]])>2.2,3,IF(_xlfn.NUMBERVALUE(a[[#This Row],[INR]])>=1.7,2,IF(_xlfn.NUMBERVALUE(a[[#This Row],[INR]])>0,1,\"missing\")))","v":"missing"},null,null,{"$f":"SUM(a[[#This Row],[Bili Pts]:[Ence Pts]])","v":1},{"$f":"IF(_xlfn.NUMBERVALUE(a[[#This Row],[Child Pugh Score]])>9,\"C\",IF(_xlfn.NUMBERVALUE(a[[#This Row],[Child Pugh Score]])>=7,\"B\",IF(_xlfn.NUMBERVALUE(a[[#This Row],[Child Pugh Score]])>0,\"A\",\"missing\")))","v":"A"},{"$f":"TENYEARASCVDRISK(a[[#This Row],[Gender:]],a[[#This Row],[Age: ]],a[[#This Row],[Race:]],a[[#This Row],[Current Smoker:]],a[[#This Row],[Diabetes:]],a[[#This Row],[Blood Pressure Treated:]],a[[#This Row],[Total Cholesterol]],a[[#This Row],[HDL]],a[[#This Row],[SBP:]])","v":5.3298666213742907E-2},{"$f":"LIFETIMEASCVDRISK(a[[#This Row],[Gender:]],a[[#This Row],[Age: ]],a[[#This Row],[Current Smoker:]],a[[#This Row],[Diabetes:]],a[[#This Row],[Total Cholesterol]],a[[#This Row],[SBP:]])","v":"1 or more NOT OPTIMAL risk factors - 36.4%"},{"$f":"IF(OR(_xlfn.NUMBERVALUE(a[[#This Row],[LDL]])>190,a[[#This Row],[10-Year ASCVD]]>7.5%,a[[#This Row],[Lifetime ASCVD Risk]]>39%),\"YES\",\"NO\")","v":"YES"},{"$f":"IF(a[[#This Row],[Statin:]]=\"No\",IF(a[[#This Row],[Statin indicated (LDL>190,10 year ASCVD>7.5%, lifetime ASCVD>39%)]]=\"NO\",\"Statin DOES NOT need to be started because LDL at or below 190 mg/dL, 10 year ASCVD is at or below 7.5%, and lifetime ASCVD is at or below 39%\",\"Statin SHOULD be started because LDL is above 190 mg/dL, 10 year ASCVD is above 7.5%, or lifetime ASCVD is above 39%\"),IF(a[[#This Row],[Statin:]]=\"Yes\",\"Currently on Statin\",\"Error\"))","v":"Statin SHOULD be started because LDL is above 190 mg/dL, 10 year ASCVD is above 7.5%, or lifetime ASCVD is above 39%"},{"$f":"a[[#Headers],[*]]","v":"*"},null,null,null,null,null,null,null,null,null,null,null,null,null,null,null,null,null,null,null,null,null,null,null,null,null,null,null,null,null,null,null,null,null,null,null,null,null,null,null,null,null,null,null,null,null,null,null,null,null,null,null,null,null,null,null,null,null,null,null,null,null,null,{"$f":"\"Noteworthy testing:  \"&CHAR(10)&IF(a[[#This Row],[EKG:  ]]<>\"\",a[[#Headers],[EKG:  ]]&a[[#This Row],[EKG:  ]]&\" (\"&TEXT(a[[#This Row],[EKG Date:  ]],\"mm/dd/yyyy\")&\")\"&CHAR(10),\"\")&IF(a[[#This Row],[Holter Monitor:  ]]<>\"\",a[[#Headers],[Holter Monitor:  ]]&a[[#This Row],[Holter Monitor:  ]]&\" (\"&TEXT(a[[#This Row],[Holter Date:  ]],\"mm/dd/yyyy\")&\")\"&CHAR(10),\"\")&IF(a[[#This Row],[Echocardiogram:  ]]<>\"\",a[[#Headers],[Echocardiogram:  ]]&a[[#This Row],[Echocardiogram:  ]]&\" (\"&TEXT(a[[#This Row],[Echocardiogram Date:  ]],\"mm/dd/yyyy\")&\")\"&CHAR(10),\"\")&IF(a[[#This Row],[Cardiac Stress Test:  ]]<>\"\",a[[#Headers],[Cardiac Stress Test:  ]]&a[[#This Row],[Cardiac Stress Test:  ]]&\" (\"&TEXT(a[[#This Row],[Cardiac Stress Test Date:  ]],\"mm/dd/yyyy\")&\")\"&CHAR(10),\"\")&IF(a[[#This Row],[Chest Xray:  ]]<>\"\",a[[#Headers],[Chest Xray:  ]]&a[[#This Row],[Chest Xray:  ]]&\" (\"&TEXT(a[[#This Row],[CXR Date:  ]],\"mm/dd/yyyy\")&\")\"&CHAR(10),\"\")&IF(a[[#This Row],[Xray:  ]]<>\"\",a[[#Headers],[Xray:  ]]&a[[#This Row],[Xray:  ]]&\" (\"&TEXT(a[[#This Row],[Xray Date]],\"mm/dd/yyyy\")&\")\"&CHAR(10),\"\")&IF(a[[#This Row],[CT:  ]]<>\"\",a[[#Headers],[CT:  ]]&a[[#This Row],[CT:  ]]&\" (\"&TEXT(a[[#This Row],[CT Date:  ]],\"mm/dd/yyyy\")&\")\"&CHAR(10),\"\")&IF(a[[#This Row],[MRI:  ]]<>\"\",a[[#Headers],[MRI:  ]]&a[[#This Row],[MRI:  ]]&\" (\"&TEXT(a[[#This Row],[MRI Date:  ]],\"mm/dd/yyyy\")&\")\"&CHAR(10),\"\")&IF(a[[#This Row],[EMG:  ]]<>\"\",a[[#Headers],[EMG:  ]]&a[[#This Row],[EMG:  ]]&\" (\"&TEXT(a[[#This Row],[EMG Date:  ]],\"mm/dd/yyyy\")&\")\"&CHAR(10),\"\")&IF(a[[#This Row],[EEG:  ]]<>\"\",a[[#Headers],[EEG:  ]]&a[[#This Row],[EEG:  ]]&\" (\"&TEXT(a[[#This Row],[EEG Date:  ]],\"mm/dd/yyyy\")&\")\"&CHAR(10),\"\")&IF(a[[#This Row],[Pulmonary Function Testing:  ]]<>\"\",a[[#Headers],[Pulmonary Function Testing:  ]]&a[[#This Row],[Pulmonary Function Testing:  ]]&\" (\"&TEXT(a[[#This Row],[Pulmonary Testing Date:  ]],\"mm/dd/yyyy\")&\")\"&CHAR(10),\"\")&IF(a[[#This Row],[Sleep Apnea Testing:  ]]<>\"\",a[[#Headers],[Sleep Apnea Testing:  ]]&a[[#This Row],[Sleep Apnea Testing:  ]]&\" (\"&TEXT(a[[#This Row],[Sleep Test Date:  ]],\"mm/dd/yyyy\")&\")\"&CHAR(10),\"\")&IF(a[[#This Row],[Ultrasound:  ]]<>\"\",a[[#Headers],[Ultrasound:  ]]&a[[#This Row],[Ultrasound:  ]]&\" (\"&TEXT(a[[#This Row],[Ultrasound Date:  ]],\"mm/dd/yyyy\")&\")\"&CHAR(10),\"\")&IF(a[[#This Row],[Renal Ultrasound:  ]]<>\"\",a[[#Headers],[Renal Ultrasound:  ]]&a[[#This Row],[Renal Ultrasound:  ]]&\" (\"&TEXT(a[[#This Row],[Renal Ultrasound Date:  ]],\"mm/dd/yyyy\")&\")\"&CHAR(10),\"\")&IF(a[[#This Row],[Liver Ultrasound:  ]]<>\"\",a[[#Headers],[Liver Ultrasound:  ]]&a[[#This Row],[Liver Ultrasound:  ]]&\" (\"&TEXT(a[[#This Row],[Liver Ultrasound Date:  ]],\"mm/dd/yyyy\")&\")\"&CHAR(10),\"\")&IF(a[[#This Row],[AAA screen (male smokers 65+):  ]]<>\"\",a[[#Headers],[AAA screen (male smokers 65+):  ]]&a[[#This Row],[AAA screen (male smokers 65+):  ]]&\" (\"&TEXT(a[[#This Row],[AAA Date:  ]],\"mm/dd/yyyy\")&\")\"&CHAR(10),\"\")&IF(a[[#This Row],[Colon cancer screening (45+):  ]]<>\"\",a[[#Headers],[Colon cancer screening (45+):  ]]&a[[#This Row],[Colon cancer screening (45+):  ]]&\" (\"&TEXT(a[[#This Row],[Colon cancer screening date:  ]],\"mm/dd/yyyy\")&\")\"&CHAR(10),\"\")&IF(a[[#This Row],[Lung cancer screening (55-79):  ]]<>\"\",a[[#Headers],[Lung cancer screening (55-79):  ]]&a[[#This Row],[Lung cancer screening (55-79):  ]]&\" (\"&TEXT(a[[#This Row],[Lung cancer screening date:  ]],\"mm/dd/yyyy\")&\")\"&CHAR(10),\"\")&IF(a[[#This Row],[AAA screen (male smokers 65+):  ]]<>\"\",a[[#Headers],[Prostate cancer screening (50-70):  ]]&a[[#This Row],[Prostate cancer screening (50-70):  ]]&\" (\"&TEXT(a[[#This Row],[Prostate cancer screening Date:  ]],\"mm/dd/yyyy\")&\")\"&CHAR(10),\"\")&IF(a[[#This Row],[Dental Exam Date:  ]]<>\"\",a[[#This Row],[Dental Exam Date:  ]]&TEXT(a[[#This Row],[Dental Exam Date:  ]],\"mm/dd/yyyy\")&\")\"&CHAR(10),\"\")&IF(a[[#This Row],[Foot Exam:  ]]<>\"\",a[[#Headers],[Foot Exam:  ]]&a[[#This Row],[Foot Exam:  ]]&\" (\"&TEXT(a[[#This Row],[Foot Exam Date:  ]],\"mm/dd/yyyy\")&\")\"&CHAR(10),\"\")&IF(a[[#This Row],[Fundoscopy:  ]]<>\"\",a[[#Headers],[Fundoscopy:  ]]&a[[#This Row],[Fundoscopy:  ]]&\" (\"&TEXT(a[[#This Row],[Fundoscopy Date:  ]],\"mm/dd/yyyy\")&\")\"&CHAR(10),\"\")&IF(a[[#This Row],[DEXA bone density:  ]]<>\"\",a[[#Headers],[DEXA bone density:  ]]&a[[#This Row],[DEXA bone density:  ]]&\" (\"&TEXT(a[[#This Row],[DEXA Date:  ]],\"mm/dd/yyyy\")&\")\"&CHAR(10),\"\")&IF(a[[#This Row],[PPD (mm):  ]]<>\"\",a[[#Headers],[PPD (mm):  ]]&a[[#This Row],[PPD (mm):  ]]&\" (\"&TEXT(a[[#This Row],[PPD Date:  ]],\"mm/dd/yyyy\")&\")\"&CHAR(10),\"\")&IF(a[[#This Row],[Hep B Serology:  ]]<>\"\",a[[#Headers],[Hep B Serology:  ]]&a[[#This Row],[Hep B Serology:  ]]&\" \"&b!BD193&\" (\"&TEXT(a[[#This Row],[Hep B serology Date:  ]],\"mm/dd/yyyy\")&\")\"&CHAR(10),\"\")&IF(a[[#This Row],[Hep C Serology:  ]]<>\"\",a[[#Headers],[Hep C Serology:  ]]&a[[#This Row],[Hep C Serology:  ]]&\" \"&b!AZ193&\" (\"&TEXT(a[[#This Row],[Hep C Serology Date:  ]],\"mm/dd/yyyy\")&\")\"&CHAR(10),\"\")&IF(a[[#This Row],[HIV:  ]]<>\"\",a[[#Headers],[HIV:  ]]&a[[#This Row],[HIV:  ]]&\" (\"&TEXT(a[[#This Row],[HIV Date:]],\"mm/dd/yyyy\")&\")\"&CHAR(10),\"\")&IF(a[[#This Row],[Meningococcal series completion date:  ]]<>\"\",a[[#Headers],[Meningococcal series completion date:  ]]&TEXT(a[[#This Row],[Meningococcal series completion date:  ]],\"mm/dd/yyyy\")&\")\"&CHAR(10),\"\")&IF(a[[#This Row],[Influenza (annual):  ]]<>\"\",a[[#Headers],[Influenza (annual):  ]]&TEXT(a[[#This Row],[Influenza (annual):  ]],\"mm/dd/yyyy\")&\")\"&CHAR(10),\"\")&IF(a[[#This Row],[Hepatitis B series completion date:  ]]<>\"\",a[[#Headers],[Hepatitis B series completion date:  ]]&TEXT(a[[#This Row],[Hepatitis B series completion date:  ]],\"mm/dd/yyyy\")&\")\"&CHAR(10),\"\")&IF(a[[#This Row],[MMR series completion date:  ]]<>\"\",a[[#Headers],[MMR series completion date:  ]]&TEXT(a[[#This Row],[MMR series completion date:  ]],\"mm/dd/yyyy\")&\")\"&CHAR(10),\"\")&IF(a[[#This Row],[Tdap (every 10 years):  ]]<>\"\",a[[#Headers],[Tdap (every 10 years):  ]]&TEXT(a[[#This Row],[Tdap (every 10 years):  ]],\"mm/dd/yyyy\")&\")\"&CHAR(10),\"\")&IF(a[[#This Row],[Pneumovax 13 (CKD or immune-suppressed):  ]]<>\"\",a[[#Headers],[Pneumovax 13 (CKD or immune-suppressed):  ]]&TEXT(a[[#This Row],[Pneumovax 13 (CKD or immune-suppressed):  ]],\"mm/dd/yyyy\")&\")\"&CHAR(10),\"\")&IF(a[[#This Row],[Pneumovax 23 (age 65, CHF, lung disease, DM, liver disease):  ]]<>\"\",a[[#Headers],[Pneumovax 23 (age 65, CHF, lung disease, DM, liver disease):  ]]&TEXT(a[[#This Row],[Pneumovax 23 (age 65, CHF, lung disease, DM, liver disease):  ]],\"mm/dd/yyyy\")&\")\"&CHAR(10),\"\")&IF(a[[#This Row],[Recombinant Zoster (age 50 or immune-suppressed):  ]]<>\"\",a[[#Headers],[Recombinant Zoster (age 50 or immune-suppressed):  ]]&TEXT(a[[#This Row],[Recombinant Zoster (age 50 or immune-suppressed):  ]],\"mm/dd/yyyy\")&\")\"&CHAR(10),\"\")&IF(a[[#This Row],[Other Procedure or Test:  ]]<>\"\",a[[#Headers],[Other Procedure or Test:  ]]&a[[#This Row],[Other Procedure or Test:  ]]&CHAR(10),\"\")","v":"Noteworthy testing:  \n"}]
[{"$f":"a[[#Headers],[*]]","v":"*"},null,null,null,{"$f":"INT(((TODAY())-a[[#This Row],[DOB:]])/365.25)","v":124},"Male","White","115/72",{"$f":"LEFT(a[[#This Row],[Blood Pressure: ]],FIND(\"/\",a[[#This Row],[Blood Pressure: ]])-1)","v":"115"},{"$f":"RIGHT(a[[#This Row],[Blood Pressure: ]],LEN(a[[#This Row],[Blood Pressure: ]])-FIND(\"/\",a[[#This Row],[Blood Pressure: ]]))","v":"72"},null,null,{"$f":"(a[[#This Row],[Weight:  ]]/(a[[#This Row],[Height:  ]]^2))*703","v":{"$error":"#DIV/0!"}},"Yes","No","No","Yes",{"$f":"a[[#Headers],[*]]","v":"*"},null,null,null,null,null,null,null,null,null,null,null,null,null,null,null,null,null,null,null,null,null,null,null,{"$f":"IF(a[[#This Row],['# Co-managed:  ]]<>\"\",a[[#Headers],['# Co-managed:  ]]&a[[#This Row],['# Co-managed:  ]]&CHAR(10),\"\")&IF(a[[#This Row],['# Weight/Diet/Activity:  ]]<>\"\",a[[#Headers],['# Weight/Diet/Activity:  ]]&a[[#This Row],['# Weight/Diet/Activity:  ]]&CHAR(10),\"\")&IF(a[[#This Row],['# Cholesterol/ASCVD risk:  ]]<>\"\",a[[#Headers],['# Cholesterol/ASCVD risk:  ]]&a[[#This Row],['# Cholesterol/ASCVD risk:  ]]&CHAR(10),\"\")&IF(a[[#This Row],['# Blood pressure/Shortness of breath/Lower extremity swelling:  ]]<>\"\",a[[#Headers],['# Blood pressure/Shortness of breath/Lower extremity swelling:  ]]&a[[#This Row],['# Blood pressure/Shortness of breath/Lower extremity swelling:  ]]&CHAR(10),\"\")&IF(a[[#This Row],['# Dizziness/Lightheadedness/Vertigo/Falls:  ]]<>\"\",a[[#Headers],['# Dizziness/Lightheadedness/Vertigo/Falls:  ]]&a[[#This Row],['# Dizziness/Lightheadedness/Vertigo/Falls:  ]]&CHAR(10),\"\")&IF(a[[#This Row],['# COPD/Asthma:  ]]<>\"\",a[[#Headers],['# COPD/Asthma:  ]]&a[[#This Row],['# COPD/Asthma:  ]]&CHAR(10),\"\")&IF(a[[#This Row],['# Sleep apnea:  ]]<>\"\",a[[#Headers],['# Sleep apnea:  ]]&a[[#This Row],['# Sleep apnea:  ]]&CHAR(10),\"\")&IF(a[[#This Row],['# Chronic pain/Arthritis:  ]]<>\"\",a[[#Headers],['# Chronic pain/Arthritis:  ]]&a[[#This Row],['# Chronic pain/Arthritis:  ]]&CHAR(10),\"\")&IF(a[[#This Row],['# Gastroesophageal reflux/Constipation/Melena/Hematochezia:  ]]<>\"\",a[[#Headers],['# Gastroesophageal reflux/Constipation/Melena/Hematochezia:  ]]&a[[#This Row],['# Gastroesophageal reflux/Constipation/Melena/Hematochezia:  ]]&CHAR(10),\"\")&IF(a[[#This Row],['# Urinary symptoms:  ]]<>\"\",a[[#Headers],['# Urinary symptoms:  ]]&a[[#This Row],['# Urinary symptoms:  ]]&CHAR(10),\"\")&IF(a[[#This Row],['# Last menstrual period/Pregnancy:  ]]<>\"\",a[[#Headers],['# Last menstrual period/Pregnancy:  ]]&a[[#This Row],['# Last menstrual period/Pregnancy:  ]]&CHAR(10),\"\")&IF(a[[#This Row],['# Mood/Depression/Anxiety:  ]]<>\"\",a[[#Headers],['# Mood/Depression/Anxiety:  ]]&a[[#This Row],['# Mood/Depression/Anxiety:  ]]&CHAR(10),\"\")&IF(a[[#This Row],['# Vision:  ]]<>\"\",a[[#Headers],['# Vision:  ]]&a[[#This Row],['# Vision:  ]]&CHAR(10),\"\")&IF(a[[#This Row],['# Hearing:  ]]<>\"\",a[[#Headers],['# Hearing:  ]]&a[[#This Row],['# Hearing:  ]]&CHAR(10),\"\")&IF(a[[#This Row],['# Dental:  ]]<>\"\",a[[#Headers],['# Dental:  ]]&a[[#This Row],['# Dental:  ]]&CHAR(10),\"\")&IF(a[[#This Row],['# Surgeries/Procedures/Implants/Metal:  ]]<>\"\",a[[#Headers],['# Surgeries/Procedures/Implants/Metal:  ]]&a[[#This Row],['# Surgeries/Procedures/Implants/Metal:  ]]&CHAR(10),\"\")&IF(a[[#This Row],['# Alcohol:  ]]<>\"\",a[[#Headers],['# Alcohol:  ]]&a[[#This Row],['# Alcohol:  ]]&CHAR(10),\"\")&IF(a[[#This Row],['# Tobacco:  ]]<>\"\",a[[#Headers],['# Tobacco:  ]]&a[[#This Row],['# Tobacco:  ]]&CHAR(10),\"\")&IF(a[[#This Row],['# Recreational drugs:  ]]<>\"\",a[[#Headers],['# Recreational drugs:  ]]&a[[#This Row],['# Recreational drugs:  ]]&CHAR(10),\"\")&IF(a[[#This Row],['# Surgeries/Procedures/Implants/Metal:  ]]<>\"\",a[[#Headers],['# Surgeries/Procedures/Implants/Metal:  ]]&a[[#This Row],['# Surgeries/Procedures/Implants/Metal:  ]]&CHAR(10),\"\")&IF(a[[#This Row],['# Family history:  ]]<>\"\",a[[#Headers],['# Family history:  ]]&a[[#This Row],['# Family history:  ]]&CHAR(10),\"\")&IF(a[[#This Row],['# Tobacco:  ]]<>\"\",a[[#Headers],['# Tobacco:  ]]&a[[#This Row],['# Tobacco:  ]]&CHAR(10),\"\")&IF(a[[#This Row],['# ADLs/IADLs:  ]]<>\"\",a[[#Headers],['# ADLs/IADLs:  ]]&a[[#This Row],['# ADLs/IADLs:  ]]&CHAR(10),\"\")&IF(a[[#This Row],['# Other active issues:  ]]<>\"\",a[[#Headers],['# Other active issues:  ]]&a[[#This Row],['# Other active issues:  ]]&CHAR(10),\"\")&IF(a[[#This Row],['# Other chronic issues:  ]]<>\"\",a[[#Headers],['# Other chronic issues:  ]]&a[[#This Row],['# Other chronic issues:  ]]&CHAR(10),\"\")","v":""},{"$f":"a[[#Headers],[*]]","v":"*"},{"$f":"IF(AND(a[[#This Row],[Sodium]]<>\"\",a[[#This Row],[Potassium]]<>\"\",a[[#This Row],[Chloride]]<>\"\",a[[#This Row],[Bicarbonate]]<>\"\",a[[#This Row],[BUN]]<>\"\",a[[#This Row],[Creatinine]]<>\"\",a[[#This Row],[Calcium]]<>\"\",a[[#This Row],[Glucose]]<>\"\",a[[#This Row],[BMPD]]<>\"\"),\"Basic chemistry panel on \"&TEXT(a[[#This Row],[BMPD]],\"mmmm d, yyyy\")&\" showed \"&a[[#Headers],[Sodium]]&\" \"&a[[#This Row],[Sodium]]&\" \"&b!B$2&\", \"&a[[#Headers],[Potassium]]&\" \"&a[[#This Row],[Potassium]]&\" \"&b!C$2&\", \"&a[[#Headers],[Chloride]]&\" \"&a[[#This Row],[Chloride]]&\" \"&b!D$2&\", \"&a[[#Headers],[Bicarbonate]]&\" \"&a[[#This Row],[Bicarbonate]]&\" \"&b!E$2&\", \"&a[[#Headers],[BUN]]&\" \"&a[[#This Row],[BUN]]&\" \"&b!F$2&\", \"&a[[#Headers],[Creatinine]]&\" \"&a[[#This Row],[Creatinine]]&\" \"&b!G$2&\", \"&a[[#Headers],[Calcium]]&\" \"&a[[#This Row],[Calcium]]&\" \"&b!H$2&\", and \"&a[[#Headers],[Glucose]]&\" \"&a[[#This Row],[Glucose]]&\" \"&b!I$2,\"No BMP found\")&IF(AND(a[[#This Row],[Cystatin C]]<>\"\",a[[#This Row],[CysD]]<>\"\"),\". On \"&TEXT(a[[#This Row],[CysD]],\"mmmm d, yyyy\")&\" \"&a[[#Headers],[Cystatin C]]&\" was \"&a[[#This Row],[Cystatin C]]&\" \"&b!AK$2,\"\")&\".  On \"&TEXT(a[[#This Row],[CMPD]],\"mmmm d, yyyy\")&\" labs included \"&a[[#Headers],[AST]]&\" \"&a[[#This Row],[AST]]&\" \"&b!J$2&\", \"&a[[#Headers],[ALT]]&\" \"&a[[#This Row],[ALT]]&\" \"&b!K$2&\", \"&a[[#Headers],[Alkaline Phosphatase]]&\" \"&a[[#This Row],[Alkaline Phosphatase]]&\" \"&b!L$2&\", \"&a[[#Headers],[Bilirubin, Total]]&\" \"&a[[#This Row],[Bilirubin, Total]]&\" \"&b!M$2&\", \"&a[[#Headers],[Total Protein]]&\" \"&a[[#This Row],[Total Protein]]&\" \"&b!N$2&\", \"&a[[#Headers],[Albumin]]&\" \"&a[[#This Row],[Albumin]]&\" \"&b!O$2&\", and \"&a[[#Headers],[Globulin]]&\" \"&a[[#This Row],[Globulin]]&\" \"&b!P$2&IF(AND(a[[#This Row],[LDH]]<>\"\",a[[#This Row],[LDHD]]<>\"\"),\". On \"&TEXT(a[[#This Row],[LDHD]],\"mmmm d, yyyy\")&\" \"&a[[#Headers],[LDH]]&\" was \"&a[[#This Row],[LDH]]&\" \"&b!BH$2,\"\")&IF(AND(a[[#This Row],[Magnesium]]<>\"\",a[[#This Row],[MagD]]<>\"\"),\". On \"&TEXT(a[[#This Row],[MagD]],\"mmmm d, yyyy\")&\" \"&a[[#Headers],[Magnesium]]&\" was \"&a[[#This Row],[Magnesium]]&\" \"&b!AS$2,\"\")&IF(AND(a[[#This Row],[Phosphorus]]<>\"\",a[[#This Row],[PhosD]]<>\"\"),\". On \"&TEXT(a[[#This Row],[PhosD]],\"mmmm d, yyyy\")&\" \"&a[[#Headers],[Phosphorus]]&\" was \"&a[[#This Row],[Phosphorus]]&\" \"&b!AT$2,\"\")&IF(AND(a[[#This Row],[Vitamin D, 25-Hydroxy level]]<>\"\",a[[#This Row],[VitDD]]<>\"\"),\".  He had a \"&a[[#Headers],[Vitamin D, 25-Hydroxy level]]&\" of \"&a[[#This Row],[Vitamin D, 25-Hydroxy level]]&\" \"&b!AB$2&\" on \"&TEXT(a[[#This Row],[VitDD]],\"mmmm d, yyyy\"),\"\")&IF(AND(a[[#This Row],[PTH]]<>\"\",a[[#This Row],[PTHD]]<>\"\"),\". On \"&TEXT(a[[#This Row],[PTHD]],\"mmmm d, yyyy\")&\" \"&a[[#Headers],[PTH]]&\" was \"&a[[#This Row],[PTH]]&\" \"&b!AU$2,\"\")&IF(AND(a[[#This Row],[Uric Acid]]<>\"\",a[[#This Row],[UricD]]<>\"\"),\". On \"&TEXT(a[[#This Row],[UricD]],\"mmmm d, yyyy\")&\" \"&a[[#Headers],[Uric Acid]]&\" was \"&a[[#This Row],[Uric Acid]]&\" \"&b!AV$2,\"\")&IF(AND(a[[#This Row],[Amylase]]<>\"\",a[[#This Row],[AmyD]]<>\"\"),\". On \"&TEXT(a[[#This Row],[AmyD]],\"mmmm d, yyyy\")&\" \"&a[[#Headers],[Amylase]]&\" was \"&a[[#This Row],[Amylase]]&\" \"&b!AW$2,\"\")&IF(AND(a[[#This Row],[Lipase]]<>\"\",a[[#This Row],[LipaD]]<>\"\"),\". On \"&TEXT(a[[#This Row],[LipaD]],\"mmmm d, yyyy\")&\" \"&BQ$1&\" was \"&a[[#This Row],[Lipase]]&\" \"&b!AX$2,\"\")&IF(AND(a[[#This Row],[AFP, Tumor Marker]]<>\"\",a[[#This Row],[AFPD]]<>\"\"),\". On \"&TEXT(a[[#This Row],[AFPD]],\"mmmm d, yyyy\")&\" \"&a[[#Headers],[AFP, Tumor Marker]]&\" was \"&a[[#This Row],[AFP, Tumor Marker]]&\" \"&b!BJ$2,\"\")&IF(AND(a[[#This Row],[WBC]]<>\"\",a[[#This Row],[Hemoglobin]]<>\"\",a[[#This Row],[MCV]]<>\"\",a[[#This Row],[Platelet]]<>\"\",a[[#This Row],[CBCD]]<>\"\"),\".  On \"&TEXT(a[[#This Row],[CBCD]],\"mmmm d, yyyy\")&\" a complete blood count had \"&a[[#Headers],[WBC]]&\" \"&a[[#This Row],[WBC]]&\" \"&b!Q$2&\", \"&a[[#Headers],[Hemoglobin]]&\" \"&a[[#This Row],[Hemoglobin]]&\" \"&b!R$2&\", \"&a[[#Headers],[MCV]]&\" \"&a[[#This Row],[MCV]]&\" \"&b!S$2&\", \"&a[[#Headers],[Platelet]]&\" \"&a[[#This Row],[Platelet]]&\" \"&b!T$2,\".  No CBC found\")&IF(AND(a[[#This Row],[Erythrocyte Sedimentation Rate]]<>\"\",a[[#This Row],[ESRD]]<>\"\"),\". On \"&TEXT(a[[#This Row],[ESRD]],\"mmmm d, yyyy\")&\" \"&a[[#Headers],[Erythrocyte Sedimentation Rate]]&\" was \"&a[[#This Row],[Erythrocyte Sedimentation Rate]]&\" \"&b!AM$2,\"\")&IF(AND(a[[#This Row],[C-Reactive Protein]]<>\"\",a[[#This Row],[CRPD]]<>\"\"),\". On \"&TEXT(a[[#This Row],[CRPD]],\"mmmm d, yyyy\")&\" \"&a[[#Headers],[C-Reactive Protein]]&\" was \"&a[[#This Row],[C-Reactive Protein]]&\" \"&b!AN$2,\"\")&IF(AND(a[[#This Row],[Hepatitis B Viral Load]]<>\"\",a[[#This Row],[HBVD]]<>\"\"),\". On \"&TEXT(a[[#This Row],[HBVD]],\"mmmm d, yyyy\")&\" \"&a[[#Headers],[Hepatitis B Viral Load]]&\" was \"&a[[#This Row],[Hepatitis B Viral Load]]&\" \"&b!BB$2,\"\")&IF(AND(a[[#This Row],[Hepatitis C Viral Load]]<>\"\",a[[#This Row],[HCVD]]<>\"\"),\". On \"&TEXT(a[[#This Row],[HCVD]],\"mmmm d, yyyy\")&\" \"&a[[#Headers],[Hepatitis C Viral Load]]&\" was \"&a[[#This Row],[Hepatitis C Viral Load]]&\" \"&b!BA$2,\"\")&IF(AND(a[[#This Row],[HIV Viral Load]]<>\"\",a[[#This Row],[HIVD]]<>\"\"),\". On \"&TEXT(a[[#This Row],[HIVD]],\"mmmm d, yyyy\")&\" \"&a[[#Headers],[HIV Viral Load]]&\" was \"&a[[#This Row],[HIV Viral Load]]&\" \"&b!BC$2,\"\")&IF(AND(a[[#This Row],[CD4 Count]]<>\"\",a[[#This Row],[CD4D]]<>\"\"),\". On \"&TEXT(a[[#This Row],[CD4D]],\"mmmm d, yyyy\")&\" \"&a[[#Headers],[CD4 Count]]&\" was \"&a[[#This Row],[CD4 Count]]&\" \"&b!AL$2,\"\")&IF(AND(a[[#This Row],[Iron]]<>\"\",a[[#This Row],[TIBC]]<>\"\",a[[#This Row],[% Saturation]]<>\"\",a[[#This Row],[IronD]]<>\"\"),\". Iron Testing: On \"&TEXT(a[[#This Row],[IronD]],\"mmmm d, yyyy\")&\" \"&a[[#Headers],[Iron]]&\" was \"&a[[#This Row],[Iron]]&\" \"&b!AO$2&\", \"&a[[#Headers],[TIBC]]&\" was \"&a[[#This Row],[TIBC]]&\" \"&b!AP$2&\", \"&a[[#Headers],[% Saturation]]&\" was \"&a[[#This Row],[% Saturation]]&\" \"&b!AQ$2,\"\")&IF(AND(a[[#This Row],[Ferritin]]<>\"\",a[[#This Row],[FerrD]]<>\"\"),\". On \"&TEXT(a[[#This Row],[FerrD]],\"mmmm d, yyyy\")&\" \"&a[[#Headers],[Ferritin]]&\" was \"&a[[#This Row],[Ferritin]]&\" \"&b!AR$2,\"\")&IF(AND(a[[#This Row],[Vitamin B12 level]]<>\"\",a[[#This Row],[VitB12D]]<>\"\"),\". On \"&TEXT(a[[#This Row],[VitB12D]],\"mmmm d, yyyy\")&\" \"&a[[#Headers],[Vitamin B12 level]]&\" was \"&a[[#This Row],[Vitamin B12 level]]&\" \"&b!AC$2,\"\")&IF(AND(a[[#This Row],[Folate level]]<>\"\",a[[#This Row],[FolaD]]<>\"\"),\". On \"&TEXT(a[[#This Row],[FolaD]],\"mmmm d, yyyy\")&\" \"&a[[#Headers],[Folate level]]&\" was \"&a[[#This Row],[Folate level]]&\" \"&b!AD$2,\"\")&IF(AND(a[[#This Row],[Homocysteine]]<>\"\",a[[#This Row],[HomoD]]<>\"\"),\". On \"&TEXT(a[[#This Row],[HomoD]],\"mmmm d, yyyy\")&\" \"&a[[#Headers],[Homocysteine]]&\" was \"&a[[#This Row],[Homocysteine]]&\" \"&b!AE$2,\"\")&IF(AND(a[[#This Row],[Methylmalonic Acid]]<>\"\",a[[#This Row],[MethD]]<>\"\"),\". On \"&TEXT(a[[#This Row],[MethD]],\"mmmm d, yyyy\")&\" \"&a[[#Headers],[Methylmalonic Acid]]&\" was \"&a[[#This Row],[Methylmalonic Acid]]&\" \"&b!AF$2,\"\")&IF(AND(a[[#This Row],[Thiamine]]<>\"\",a[[#This Row],[ThiaD]]<>\"\"),\". On \"&TEXT(a[[#This Row],[ThiaD]],\"mmmm d, yyyy\")&\" \"&a[[#Headers],[Thiamine]]&\" was \"&a[[#This Row],[Thiamine]]&\" \"&b!AG$2,\"\")&IF(AND(a[[#This Row],[Zinc]]<>\"\",a[[#This Row],[ZincD]]<>\"\"),\". On \"&TEXT(a[[#This Row],[ZincD]],\"mmmm d, yyyy\")&\" \"&a[[#Headers],[Zinc]]&\" was \"&a[[#This Row],[Zinc]]&\" \"&b!AH$2,\"\")&IF(AND(a[[#This Row],[Copper]]<>\"\",a[[#This Row],[CopD]]<>\"\"),\". On \"&TEXT(a[[#This Row],[CopD]],\"mmmm d, yyyy\")&\" \"&a[[#Headers],[Copper]]&\" was \"&a[[#This Row],[Copper]]&\" \"&b!AI$2,\"\")&IF(AND(a[[#This Row],[LipiD]]<>\"\",a[[#This Row],[Total Cholesterol]]<>\"\",a[[#This Row],[Triglycerides]]<>\"\",a[[#This Row],[HDL]]<>\"\",a[[#This Row],[LDL]]<>\"\"),\".  On \"&TEXT(a[[#This Row],[LipiD]],\"mmmm d, yyyy\")&\" fasting lipids included \"&a[[#Headers],[Total Cholesterol]]&\" \"&a[[#This Row],[Total Cholesterol]]&\" \"&b!V$2&\", \"&a[[#Headers],[Triglycerides]]&\" \"&a[[#This Row],[Triglycerides]]&\" \"&b!W$2&\", \"&a[[#Headers],[HDL]]&\" \"&a[[#This Row],[HDL]]&\" \"&b!X$2&\", and \"&a[[#Headers],[LDL]]&\" \"&a[[#This Row],[LDL]]&\" \"&b!Y$2,\"\")","v":"No BMP found.  On January 0, 1900 labs included AST  (N<=34), ALT  (N<=55), Alkaline Phosphatase  (N 40-150), Bilirubin, Total  (N 0.2-1.2), Total Protein  (N 6.0-8.3), Albumin  (N 3.5-5.2), and Globulin  (N 2.0-3.7).  No CBC found.  On February 14, 2023 fasting lipids included Total Cholesterol 206 (N <200), Triglycerides 215 (N <150), HDL 75 (N>39), and LDL 88 (N <99)"},{"$f":"IF(AND(a[[#This Row],[A1cD]]<>\"\",a[[#This Row],[Hemoglobin A1c]]<>\"\"),\".  On \"&TEXT(a[[#This Row],[A1cD]],\"mmmm d, yyyy\")&\" \"&a[[#Headers],[Hemoglobin A1c]]&\" was \"&a[[#This Row],[Hemoglobin A1c]]&\" \"&b!U$2,\"\")&IF(AND(a[[#This Row],[TSH]]<>\"\",a[[#This Row],[TSHD]]<>\"\"),\".  Thyroid testing:  \"&a[[#Headers],[TSH]]&\" was \"&a[[#This Row],[TSH]]&\" \"&b!Z$2&\" on \"&TEXT(a[[#This Row],[TSHD]],\"mmmm d, yyyy\"),\"\")&IF(AND(a[[#This Row],[Free T4]]<>\"\",a[[#This Row],[FT4D]]<>\"\"),\".  On \"&TEXT(a[[#This Row],[FT4D]],\"mmmm d, yyyy\")&\" \"&a[[#Headers],[Free T4]]&\" was \"&a[[#This Row],[Free T4]]&\" \"&b!AY$2,\"\")&IF(AND(a[[#This Row],[PSA level]]<>\"\",a[[#This Row],[PSAD]]<>\"\"),\". Prostate: On \"&TEXT(a[[#This Row],[PSAD]],\"mmmm d, yyyy\")&\" \"&a[[#Headers],[PSA level]]&\" was \"&a[[#This Row],[PSA level]]&\" \"&b!AA$2,\"\")&IF(AND(a[[#This Row],[Urine Microalbumin/Creatinine]]<>\"\",a[[#This Row],[MACD]]<>\"\"),\".  On \"&TEXT(a[[#This Row],[MACD]], \"mmmm d, yyyy\")&\" \"&a[[#Headers],[Urine Microalbumin/Creatinine]]&\" was \"&a[[#This Row],[Urine Microalbumin/Creatinine]]&\" \"&b!AJ$2,\"\")&IF(AND(a[[#This Row],[other urine testing]]<>\"\",a[[#This Row],[OthUD]]<>\"\"),\".  On \"&TEXT(a[[#This Row],[OthUD]], \"mmmm d, yyyy\")&\" \"&a[[#Headers],[other urine testing]]&\" was notable for \"&a[[#This Row],[other urine testing]],\"\")&IF(AND(a[[#This Row],[other lab testing]]<>\"\",a[[#This Row],[OthLD]]<>\"\"),\".  On \"&TEXT(a[[#This Row],[OthLD]], \"mmmm d, yyyy\")&\" \"&a[[#Headers],[other lab testing]]&\" was notable for \"&a[[#This Row],[other lab testing]],\"\")&IF(AND(a[[#This Row],[additional lab testing]]<>\"\",a[[#This Row],[AddLD]]<>\"\"),\".  On \"&TEXT(a[[#This Row],[AddLD]], \"mmmm d, yyyy\")&\" \"&a[[#Headers],[additional lab testing]]&\" was notable for \"&a[[#This Row],[additional lab testing]],\"\")&IF(AND(a[[#This Row],[Total Valproic Acid Level]]<>\"\",a[[#This Row],[ValpD]]<>\"\"),\".  On \"&TEXT(a[[#This Row],[ValpD]],\"mmmm d, yyyy\")&\" \"&a[[#Headers],[Total Valproic Acid Level]]&\" was \"&a[[#This Row],[Total Valproic Acid Level]]&\" \"&b!BE$2,\"\")&IF(AND(a[[#This Row],[Total Phenytoin Level]]<>\"\",a[[#This Row],[PhenD]]<>\"\"),\".  On \"&TEXT(a[[#This Row],[PhenD]],\"mmmm d, yyyy\")&\" \"&a[[#Headers],[Total Phenytoin Level]]&\" was \"&a[[#This Row],[Total Phenytoin Level]]&\" \"&b!BF$2,\"\")&IF(AND(a[[#This Row],[Tacrolimus Level]]<>\"\",a[[#This Row],[TacrD]]<>\"\"),\".  On \"&TEXT(a[[#This Row],[TacrD]],\"mmmm d, yyyy\")&\" \"&a[[#Headers],[Tacrolimus Level]]&\" was \"&a[[#This Row],[Tacrolimus Level]]&\" \"&b!BG$2,\"\")&IF(AND(a[[#This Row],[Digoxin Level]]<>\"\",a[[#This Row],[DigD]]<>\"\"),\".  On \"&TEXT(a[[#This Row],[DigD]],\"mmmm d, yyyy\")&\" \"&a[[#Headers],[Digoxin Level]]&\" was \"&a[[#This Row],[Digoxin Level]]&\" \"&b!BI$2,\"\")&\".\"","v":"."},{"$f":"a[[#This Row],[Lab subblurb A]]&a[[#This Row],[Lab subblurb B]]","v":"No BMP found.  On January 0, 1900 labs included AST  (N<=34), ALT  (N<=55), Alkaline Phosphatase  (N 40-150), Bilirubin, Total  (N 0.2-1.2), Total Protein  (N 6.0-8.3), Albumin  (N 3.5-5.2), and Globulin  (N 2.0-3.7).  No CBC found.  On February 14, 2023 fasting lipids included Total Cholesterol 206 (N <200), Triglycerides 215 (N <150), HDL 75 (N>39), and LDL 88 (N <99)."},{"$f":"IF(a[[#This Row],[Sodium]]<>\"\",IF(OR(VALUE(a[[#This Row],[Sodium]])<VALUE(b!B$3),VALUE(a[[#This Row],[Sodium]])>VALUE(b!B$4)),\"Sodium.  \",\"\"),\"\")&IF(a[[#This Row],[Potassium]]<>\"\",IF(OR(VALUE(a[[#This Row],[Potassium]])<VALUE(b!C$3),VALUE(a[[#This Row],[Potassium]])>VALUE(b!C$4)),\"Potassium.  \",\"\"),\"\")&IF(a[[#This Row],[Chloride]]<>\"\",IF(OR(VALUE(a[[#This Row],[Chloride]])<VALUE(b!D$3),VALUE(a[[#This Row],[Chloride]])>VALUE(b!D$4)),\"Chloride.  \",\"\"),\"\")&IF(a[[#This Row],[Bicarbonate]]<>\"\",IF(OR(VALUE(a[[#This Row],[Bicarbonate]])<VALUE(b!E$3),VALUE(a[[#This Row],[Bicarbonate]])>VALUE(b!E$4)),\"Bicarbonate.  \",\"\"),\"\")&IF(a[[#This Row],[BUN]]<>\"\",IF(OR(VALUE(a[[#This Row],[BUN]])<VALUE(b!F$3),VALUE(a[[#This Row],[BUN]])>VALUE(b!F$4)),\"BUN.  \",\"\"),\"\")&IF(a[[#This Row],[Creatinine]]<>\"\",IF(OR(VALUE(a[[#This Row],[Creatinine]])<VALUE(b!G$3),VALUE(a[[#This Row],[Creatinine]])>VALUE(b!G$4)),\"Creatinine.  \",\"\"),\"\")&IF(a[[#This Row],[Calcium]]<>\"\",IF(OR(VALUE(a[[#This Row],[Calcium]])<VALUE(b!H$3),VALUE(a[[#This Row],[Calcium]])>VALUE(b!H$4)),\"Calcium.  \",\"\"),\"\")&IF(a[[#This Row],[Glucose]]<>\"\",IF(OR(VALUE(a[[#This Row],[Glucose]])<VALUE(b!I$3),VALUE(a[[#This Row],[Glucose]])>VALUE(b!I$4)),\"Glucose.  \",\"\"),\"\")&IF(a[[#This Row],[Cystatin C]]<>\"\",IF(OR(VALUE(a[[#This Row],[Cystatin C]])<VALUE(b!AK$3),VALUE(a[[#This Row],[Cystatin C]])>VALUE(b!AK$4)),\"Cystatin C.  \",\"\"),\"\")&IF(a[[#This Row],[AST]]<>\"\",IF(OR(VALUE(a[[#This Row],[AST]])<VALUE(b!J$3),VALUE(a[[#This Row],[AST]])>VALUE(b!J$4)),\"AST.  \",\"\"),\"\")&IF(a[[#This Row],[ALT]]<>\"\",IF(OR(VALUE(a[[#This Row],[ALT]])<VALUE(b!K$3),VALUE(a[[#This Row],[ALT]])>VALUE(b!K$4)),\"ALT.  \",\"\"),\"\")&IF(a[[#This Row],[Alkaline Phosphatase]]<>\"\",IF(OR(VALUE(a[[#This Row],[Alkaline Phosphatase]])<VALUE(b!L$3),VALUE(a[[#This Row],[Alkaline Phosphatase]])>VALUE(b!L$4)),\"Alkaline Phosphatase.  \",\"\"),\"\")&IF(a[[#This Row],[Bilirubin, Total]]<>\"\",IF(OR(VALUE(a[[#This Row],[Bilirubin, Total]])<VALUE(b!M$3),VALUE(a[[#This Row],[Bilirubin, Total]])>VALUE(b!M$4)),\"Bilirubin, Total.  \",\"\"),\"\")&IF(a[[#This Row],[Total Protein]]<>\"\",IF(OR(VALUE(a[[#This Row],[Total Protein]])<VALUE(b!N$3),VALUE(a[[#This Row],[Total Protein]])>VALUE(b!N$4)),\"Total Protein.  \",\"\"),\"\")&IF(a[[#This Row],[Albumin]]<>\"\",IF(OR(VALUE(a[[#This Row],[Albumin]])<VALUE(b!O$3),VALUE(a[[#This Row],[Albumin]])>VALUE(b!O$4)),\"Albumin.  \",\"\"),\"\")&IF(a[[#This Row],[Globulin]]<>\"\",IF(OR(VALUE(a[[#This Row],[Globulin]])<VALUE(b!P$3),VALUE(a[[#This Row],[Globulin]])>VALUE(b!P$4)),\"Globulin.  \",\"\"),\"\")&IF(a[[#This Row],[Amylase]]<>\"\",IF(OR(VALUE(a[[#This Row],[Amylase]])<VALUE(b!AW$3),VALUE(a[[#This Row],[Amylase]])>VALUE(b!AW$4)),\"Amylase.  \",\"\"),\"\")&IF(a[[#This Row],[Lipase]]<>\"\",IF(OR(VALUE(a[[#This Row],[Lipase]])<VALUE(b!AX$3),VALUE(a[[#This Row],[Lipase]])>VALUE(b!AX$4)),\"Lipase.  \",\"\"),\"\")&IF(a[[#This Row],[Magnesium]]<>\"\",IF(OR(VALUE(a[[#This Row],[Magnesium]])<VALUE(b!AS$3),VALUE(a[[#This Row],[Magnesium]])>VALUE(b!AS$4)),\"Magnesium.  \",\"\"),\"\")&IF(a[[#This Row],[Phosphorus]]<>\"\",IF(OR(VALUE(a[[#This Row],[Phosphorus]])<VALUE(b!AT$3),VALUE(a[[#This Row],[Phosphorus]])>VALUE(b!AT$4)),\"Phosphorus.  \",\"\"),\"\")&IF(a[[#This Row],[Total Cholesterol]]<>\"\",IF(OR(VALUE(a[[#This Row],[Total Cholesterol]])<VALUE(b!V$3),VALUE(a[[#This Row],[Total Cholesterol]])>VALUE(b!V$4)),\"Total Cholesterol.  \",\"\"),\"\")&IF(a[[#This Row],[Triglycerides]]<>\"\",IF(OR(VALUE(a[[#This Row],[Triglycerides]])<VALUE(b!W$3),VALUE(a[[#This Row],[Triglycerides]])>VALUE(b!W$4)),\"Triglycerides.  \",\"\"),\"\")&IF(a[[#This Row],[HDL]]<>\"\",IF(OR(VALUE(a[[#This Row],[HDL]])<VALUE(b!X$3),VALUE(a[[#This Row],[HDL]])>VALUE(b!X$4)),\"HDL.  \",\"\"),\"\")&IF(a[[#This Row],[LDL]]<>\"\",IF(OR(VALUE(a[[#This Row],[LDL]])<VALUE(b!Y$3),VALUE(a[[#This Row],[LDL]])>VALUE(b!Y$4)),\"LDL.  \",\"\"),\"\")","v":"Total Cholesterol.  Triglycerides.  "},{"$f":"IF(a[[#This Row],[LDH]]<>\"\",IF(OR(VALUE(a[[#This Row],[LDH]])<VALUE(b!BH$3),VALUE(a[[#This Row],[LDH]])>VALUE(b!BH$4)),\"LDH.  \",\"\"),\"\")&IF(a[[#This Row],[Uric Acid]]<>\"\",IF(OR(VALUE(a[[#This Row],[Uric Acid]])<VALUE(b!AV$3),VALUE(a[[#This Row],[Uric Acid]])>VALUE(b!AV$4)),\"Uric Acid.  \",\"\"),\"\")&IF(a[[#This Row],[PTH]]<>\"\",IF(OR(VALUE(a[[#This Row],[PTH]])<VALUE(b!AU$3),VALUE(a[[#This Row],[PTH]])>VALUE(b!AU$4)),\"PTH.  \",\"\"),\"\")&IF(a[[#This Row],[TSH]]<>\"\",IF(OR(VALUE(a[[#This Row],[TSH]])<VALUE(b!Z$3),VALUE(a[[#This Row],[TSH]])>VALUE(b!Z$4)),\"TSH.  \",\"\"),\"\")&IF(a[[#This Row],[Free T4]]<>\"\",IF(OR(VALUE(a[[#This Row],[Free T4]])<VALUE(b!AY$3),VALUE(a[[#This Row],[Free T4]])>VALUE(b!AY$4)),\"Free T4.  \",\"\"),\"\")&IF(a[[#This Row],[PSA level]]<>\"\",IF(OR(VALUE(a[[#This Row],[PSA level]])<VALUE(b!AA$3),VALUE(a[[#This Row],[PSA level]])>VALUE(b!AA$4)),\"PSA level.  \",\"\"),\"\")&IF(a[[#This Row],[Vitamin D, 25-Hydroxy level]]<>\"\",IF(OR(VALUE(a[[#This Row],[Vitamin D, 25-Hydroxy level]])<VALUE(b!AB$3),VALUE(a[[#This Row],[Vitamin D, 25-Hydroxy level]])>VALUE(b!AB$4)),\"Vitamin D, 25-Hydroxy level.  \",\"\"),\"\")&IF(a[[#This Row],[Iron]]<>\"\",IF(OR(VALUE(a[[#This Row],[Iron]])<VALUE(b!AO$3),VALUE(a[[#This Row],[Iron]])>VALUE(b!AO$4)),\"Iron.  \",\"\"),\"\")&IF(a[[#This Row],[TIBC]]<>\"\",IF(OR(VALUE(a[[#This Row],[TIBC]])<VALUE(b!AP$3),VALUE(a[[#This Row],[TIBC]])>VALUE(b!AP$4)),\"TIBC.  \",\"\"),\"\")&IF(a[[#This Row],[% Saturation]]<>\"\",IF(OR(VALUE(a[[#This Row],[% Saturation]])<VALUE(b!AQ$3),VALUE(a[[#This Row],[% Saturation]])>VALUE(b!AQ$4)),\"% Saturation.  \",\"\"),\"\")&IF(a[[#This Row],[Ferritin]]<>\"\",IF(OR(VALUE(a[[#This Row],[Ferritin]])<VALUE(b!AR$3),VALUE(a[[#This Row],[Ferritin]])>VALUE(b!AR$4)),\"Ferritin.  \",\"\"),\"\")&IF(a[[#This Row],[Vitamin B12 level]]<>\"\",IF(OR(VALUE(a[[#This Row],[Vitamin B12 level]])<VALUE(b!AC$3),VALUE(a[[#This Row],[Vitamin B12 level]])>VALUE(b!AC$4)),\"Vitamin B12 level.  \",\"\"),\"\")&IF(a[[#This Row],[Folate level]]<>\"\",IF(OR(VALUE(a[[#This Row],[Folate level]])<VALUE(b!AD$3),VALUE(a[[#This Row],[Folate level]])>VALUE(b!AD$4)),\"Folate level.  \",\"\"),\"\")&IF(a[[#This Row],[WBC]]<>\"\",IF(OR(VALUE(a[[#This Row],[WBC]])<VALUE(b!Q$3),VALUE(a[[#This Row],[WBC]])>VALUE(b!Q$4)),\"WBC.  \",\"\"),\"\")&IF(a[[#This Row],[Hemoglobin]]<>\"\",IF(OR(VALUE(a[[#This Row],[Hemoglobin]])<VALUE(b!R$3),VALUE(a[[#This Row],[Hemoglobin]])>VALUE(b!R$4)),\"Hemoglobin.  \",\"\"),\"\")&IF(a[[#This Row],[MCV]]<>\"\",IF(OR(VALUE(a[[#This Row],[MCV]])<VALUE(b!S$3),VALUE(a[[#This Row],[MCV]])>VALUE(b!S$4)),\"MCV.  \",\"\"),\"\")&IF(a[[#This Row],[Platelet]]<>\"\",IF(OR(VALUE(a[[#This Row],[Platelet]])<VALUE(b!T$3),VALUE(a[[#This Row],[Platelet]])>VALUE(b!T$4)),\"Platelet.  \",\"\"),\"\")&IF(a[[#This Row],[Erythrocyte Sedimentation Rate]]<>\"\",IF(OR(VALUE(a[[#This Row],[Erythrocyte Sedimentation Rate]])<VALUE(b!AM$3),VALUE(a[[#This Row],[Erythrocyte Sedimentation Rate]])>VALUE(b!AM$4)),\"Erythrocyte Sedimentation Rate.  \",\"\"),\"\")&IF(a[[#This Row],[C-Reactive Protein]]<>\"\",IF(OR(VALUE(a[[#This Row],[C-Reactive Protein]])<VALUE(b!AN$3),VALUE(a[[#This Row],[C-Reactive Protein]])>VALUE(b!AN$4)),\"C-Reactive Protein.  \",\"\"),\"\")&IF(a[[#This Row],[Hemoglobin A1c]]<>\"\",IF(OR(VALUE(a[[#This Row],[Hemoglobin A1c]])<VALUE(b!U$3),VALUE(a[[#This Row],[Hemoglobin A1c]])>VALUE(b!U$4)),\"Hemoglobin A1c.  \",\"\"),\"\")&IF(a[[#This Row],[Homocysteine]]<>\"\",IF(OR(VALUE(a[[#This Row],[Homocysteine]])<VALUE(b!AE$3),VALUE(a[[#This Row],[Homocysteine]])>VALUE(b!AE$4)),\"Homocysteine.  \",\"\"),\"\")&IF(a[[#This Row],[Methylmalonic Acid]]<>\"\",IF(OR(VALUE(a[[#This Row],[Methylmalonic Acid]])<VALUE(b!AF$3),VALUE(a[[#This Row],[Methylmalonic Acid]])>VALUE(b!AF$4)),\"Methylmalonic Acid.  \",\"\"),\"\")&IF(a[[#This Row],[AFP, Tumor Marker]]<>\"\",IF(OR(VALUE(a[[#This Row],[AFP, Tumor Marker]])<VALUE(b!BJ$3),VALUE(a[[#This Row],[AFP, Tumor Marker]])>VALUE(b!BJ$4)),\"AFP, Tumor Marker.  \",\"\"),\"\")&IF(a[[#This Row],[Thiamine]]<>\"\",IF(OR(VALUE(a[[#This Row],[Thiamine]])<VALUE(b!AG$3),VALUE(a[[#This Row],[Thiamine]])>VALUE(b!AG$4)),\"Thiamine.  \",\"\"),\"\")&IF(a[[#This Row],[Zinc]]<>\"\",IF(OR(VALUE(a[[#This Row],[Zinc]])<VALUE(b!AH$3),VALUE(a[[#This Row],[Zinc]])>VALUE(b!AH$4)),\"Zinc.  \",\"\"),\"\")&IF(a[[#This Row],[Copper]]<>\"\",IF(OR(VALUE(a[[#This Row],[Copper]])<VALUE(b!AI$3),VALUE(a[[#This Row],[Copper]])>VALUE(b!AI$4)),\"Copper.  \",\"\"),\"\")&IF(a[[#This Row],[Digoxin Level]]<>\"\",IF(OR(VALUE(a[[#This Row],[Digoxin Level]])<VALUE(b!BI$3),VALUE(a[[#This Row],[Digoxin Level]])>VALUE(b!BI$4)),\"Digoxin Level.  \",\"\"),\"\")&IF(a[[#This Row],[Total Valproic Acid Level]]<>\"\",IF(OR(VALUE(a[[#This Row],[Total Valproic Acid Level]])<VALUE(b!BE$3),VALUE(a[[#This Row],[Total Valproic Acid Level]])>VALUE(b!BE$4)),\"Total Valproic Acid Level.  \",\"\"),\"\")&IF(a[[#This Row],[Total Phenytoin Level]]<>\"\",IF(OR(VALUE(a[[#This Row],[Total Phenytoin Level]])<VALUE(b!BF$3),VALUE(a[[#This Row],[Total Phenytoin Level]])>VALUE(b!BF$4)),\"Total Phenytoin Level.  \",\"\"),\"\")&IF(a[[#This Row],[Tacrolimus Level]]<>\"\",IF(OR(VALUE(a[[#This Row],[Tacrolimus Level]])<VALUE(b!BG$3),VALUE(a[[#This Row],[Tacrolimus Level]])>VALUE(b!BG$4)),\"Tacrolimus Level.  \",\"\"),\"\")&IF(a[[#This Row],[CD4 Count]]<>\"\",IF(OR(VALUE(a[[#This Row],[CD4 Count]])<VALUE(b!AL$3),VALUE(a[[#This Row],[CD4 Count]])>VALUE(b!AL$4)),\"CD4 Count.  \",\"\"),\"\")&IF(a[[#This Row],[Urine Microalbumin/Creatinine]]<>\"\",IF(OR(VALUE(a[[#This Row],[Urine Microalbumin/Creatinine]])<VALUE(b!AJ$3),VALUE(a[[#This Row],[Urine Microalbumin/Creatinine]])>VALUE(b!AJ$4)),\"Urine Microalbumin/Creatinine.  \",\"\"),\"\")","v":""},{"$f":"a[[#This Row],[subAbLab A]]&a[[#This Row],[subAbLab B]]","v":"Total Cholesterol.  Triglycerides.  "},null,null,null,null,null,null,null,null,null,null,null,null,null,null,null,null,null,null,null,null,null,null,null,null,null,null,null,206,215,75,88,44971,null,null,null,null,null,null,null,null,null,null,null,null,null,null,null,null,null,null,null,null,null,null,null,null,null,null,null,null,null,null,null,null,null,null,null,null,null,null,null,null,null,null,null,null,null,null,null,null,null,null,null,null,null,null,null,null,null,null,null,null,null,null,null,null,null,null,null,null,null,null,null,null,null,{"$f":"a[[#Headers],[*]]","v":"*"},{"$f":"a[[#This Row],[Calcium]] + (0.8 * (4-a[[#This Row],[Albumin]]))","v":3.2},{"$f":"LIVERAPRI(a[[#This Row],[AST]],a[[#This Row],[Platelet]])","v":0},{"$f":"LIVERAPRIINTERPRETATION(\"[@APRI])\")","v":"Likely cirrhosis"},{"$f":"\"APRI liver fibrosis calculation using recent AST \" & a[[#This Row],[AST]] & \" and Platelet count of \" &a[[#This Row],[Platelet]]& \" was calculated to be \" & ROUND(a[[#This Row],[APRI]],2) & \", \" & a[[#This Row],[APRI interpretation]]&\".\"","v":"APRI liver fibrosis calculation using recent AST  and Platelet count of  was calculated to be 0, Likely cirrhosis."},{"$f":"LIVERANI(a[[#This Row],[Gender:]],a[[#This Row],[MCV]],a[[#This Row],[AST]],a[[#This Row],[ALT]],a[[#This Row],[Height:  ]],a[[#This Row],[Weight:  ]])","v":{"$error":"#VALUE!"}},{"$f":"LIVERANIPROBABILITY(a[[#This Row],[ANI]])","v":{"$error":"#VALUE!"}},{"$f":"\"Alcohol-associated liver disease to NAFLD Index (ANI) \" & TEXT(a[[#This Row],[ANI]],\"0.00\") & \" indicates \" & TEXT(a[[#This Row],[Probability of Alcoholic Liver Disease]],\"00%\") & \" probability of alcoholic liver disease (versus non-alcoholic liver disease).  \"","v":{"$error":"#VALUE!"}},{"$f":"IF(_xlfn.NUMBERVALUE(a[[#This Row],[Bilirubin, Total]])>3,3,IF(_xlfn.NUMBERVALUE(a[[#This Row],[Bilirubin, Total]])>=2,2,IF(_xlfn.NUMBERVALUE(a[[#This Row],[Bilirubin, Total]])>0,1,\"missing\")))","v":"missing"},{"$f":"IF(_xlfn.NUMBERVALUE(a[[#This Row],[Albumin]])>3.5,1,IF(_xlfn.NUMBERVALUE(a[[#This Row],[Albumin]])>=2.8,2,IF(_xlfn.NUMBERVALUE(a[[#This Row],[Albumin]])>0,3,\"missing\")))","v":"missing"},{"$f":"IF(_xlfn.NUMBERVALUE(a[[#This Row],[INR]])>2.2,3,IF(_xlfn.NUMBERVALUE(a[[#This Row],[INR]])>=1.7,2,IF(_xlfn.NUMBERVALUE(a[[#This Row],[INR]])>0,1,\"missing\")))","v":"missing"},null,null,{"$f":"SUM(a[[#This Row],[Bili Pts]:[Ence Pts]])","v":0},{"$f":"IF(_xlfn.NUMBERVALUE(a[[#This Row],[Child Pugh Score]])>9,\"C\",IF(_xlfn.NUMBERVALUE(a[[#This Row],[Child Pugh Score]])>=7,\"B\",IF(_xlfn.NUMBERVALUE(a[[#This Row],[Child Pugh Score]])>0,\"A\",\"missing\")))","v":"missing"},{"$f":"TENYEARASCVDRISK(a[[#This Row],[Gender:]],a[[#This Row],[Age: ]],a[[#This Row],[Race:]],a[[#This Row],[Current Smoker:]],a[[#This Row],[Diabetes:]],a[[#This Row],[Blood Pressure Treated:]],a[[#This Row],[Total Cholesterol]],a[[#This Row],[HDL]],a[[#This Row],[SBP:]])","v":0},{"$f":"LIFETIMEASCVDRISK(a[[#This Row],[Gender:]],a[[#This Row],[Age: ]],a[[#This Row],[Current Smoker:]],a[[#This Row],[Diabetes:]],a[[#This Row],[Total Cholesterol]],a[[#This Row],[SBP:]])","v":0},{"$f":"IF(OR(_xlfn.NUMBERVALUE(a[[#This Row],[LDL]])>190,a[[#This Row],[10-Year ASCVD]]>7.5%,a[[#This Row],[Lifetime ASCVD Risk]]>39%),\"YES\",\"NO\")","v":"NO"},{"$f":"IF(a[[#This Row],[Statin:]]=\"No\",IF(a[[#This Row],[Statin indicated (LDL>190,10 year ASCVD>7.5%, lifetime ASCVD>39%)]]=\"NO\",\"Statin DOES NOT need to be started because LDL at or below 190 mg/dL, 10 year ASCVD is at or below 7.5%, and lifetime ASCVD is at or below 39%\",\"Statin SHOULD be started because LDL is above 190 mg/dL, 10 year ASCVD is above 7.5%, or lifetime ASCVD is above 39%\"),IF(a[[#This Row],[Statin:]]=\"Yes\",\"Currently on Statin\",\"Error\"))","v":"Currently on Statin"},{"$f":"a[[#Headers],[*]]","v":"*"},null,null,null,null,null,null,null,null,null,null,null,null,null,null,null,null,null,null,null,null,null,null,null,null,null,null,null,null,null,null,null,null,null,null,null,null,null,null,null,null,null,null,null,null,null,null,null,null,null,null,null,null,null,null,null,null,null,null,null,null,null,null,{"$f":"\"Noteworthy testing:  \"&CHAR(10)&IF(a[[#This Row],[EKG:  ]]<>\"\",a[[#Headers],[EKG:  ]]&a[[#This Row],[EKG:  ]]&\" (\"&TEXT(a[[#This Row],[EKG Date:  ]],\"mm/dd/yyyy\")&\")\"&CHAR(10),\"\")&IF(a[[#This Row],[Holter Monitor:  ]]<>\"\",a[[#Headers],[Holter Monitor:  ]]&a[[#This Row],[Holter Monitor:  ]]&\" (\"&TEXT(a[[#This Row],[Holter Date:  ]],\"mm/dd/yyyy\")&\")\"&CHAR(10),\"\")&IF(a[[#This Row],[Echocardiogram:  ]]<>\"\",a[[#Headers],[Echocardiogram:  ]]&a[[#This Row],[Echocardiogram:  ]]&\" (\"&TEXT(a[[#This Row],[Echocardiogram Date:  ]],\"mm/dd/yyyy\")&\")\"&CHAR(10),\"\")&IF(a[[#This Row],[Cardiac Stress Test:  ]]<>\"\",a[[#Headers],[Cardiac Stress Test:  ]]&a[[#This Row],[Cardiac Stress Test:  ]]&\" (\"&TEXT(a[[#This Row],[Cardiac Stress Test Date:  ]],\"mm/dd/yyyy\")&\")\"&CHAR(10),\"\")&IF(a[[#This Row],[Chest Xray:  ]]<>\"\",a[[#Headers],[Chest Xray:  ]]&a[[#This Row],[Chest Xray:  ]]&\" (\"&TEXT(a[[#This Row],[CXR Date:  ]],\"mm/dd/yyyy\")&\")\"&CHAR(10),\"\")&IF(a[[#This Row],[Xray:  ]]<>\"\",a[[#Headers],[Xray:  ]]&a[[#This Row],[Xray:  ]]&\" (\"&TEXT(a[[#This Row],[Xray Date]],\"mm/dd/yyyy\")&\")\"&CHAR(10),\"\")&IF(a[[#This Row],[CT:  ]]<>\"\",a[[#Headers],[CT:  ]]&a[[#This Row],[CT:  ]]&\" (\"&TEXT(a[[#This Row],[CT Date:  ]],\"mm/dd/yyyy\")&\")\"&CHAR(10),\"\")&IF(a[[#This Row],[MRI:  ]]<>\"\",a[[#Headers],[MRI:  ]]&a[[#This Row],[MRI:  ]]&\" (\"&TEXT(a[[#This Row],[MRI Date:  ]],\"mm/dd/yyyy\")&\")\"&CHAR(10),\"\")&IF(a[[#This Row],[EMG:  ]]<>\"\",a[[#Headers],[EMG:  ]]&a[[#This Row],[EMG:  ]]&\" (\"&TEXT(a[[#This Row],[EMG Date:  ]],\"mm/dd/yyyy\")&\")\"&CHAR(10),\"\")&IF(a[[#This Row],[EEG:  ]]<>\"\",a[[#Headers],[EEG:  ]]&a[[#This Row],[EEG:  ]]&\" (\"&TEXT(a[[#This Row],[EEG Date:  ]],\"mm/dd/yyyy\")&\")\"&CHAR(10),\"\")&IF(a[[#This Row],[Pulmonary Function Testing:  ]]<>\"\",a[[#Headers],[Pulmonary Function Testing:  ]]&a[[#This Row],[Pulmonary Function Testing:  ]]&\" (\"&TEXT(a[[#This Row],[Pulmonary Testing Date:  ]],\"mm/dd/yyyy\")&\")\"&CHAR(10),\"\")&IF(a[[#This Row],[Sleep Apnea Testing:  ]]<>\"\",a[[#Headers],[Sleep Apnea Testing:  ]]&a[[#This Row],[Sleep Apnea Testing:  ]]&\" (\"&TEXT(a[[#This Row],[Sleep Test Date:  ]],\"mm/dd/yyyy\")&\")\"&CHAR(10),\"\")&IF(a[[#This Row],[Ultrasound:  ]]<>\"\",a[[#Headers],[Ultrasound:  ]]&a[[#This Row],[Ultrasound:  ]]&\" (\"&TEXT(a[[#This Row],[Ultrasound Date:  ]],\"mm/dd/yyyy\")&\")\"&CHAR(10),\"\")&IF(a[[#This Row],[Renal Ultrasound:  ]]<>\"\",a[[#Headers],[Renal Ultrasound:  ]]&a[[#This Row],[Renal Ultrasound:  ]]&\" (\"&TEXT(a[[#This Row],[Renal Ultrasound Date:  ]],\"mm/dd/yyyy\")&\")\"&CHAR(10),\"\")&IF(a[[#This Row],[Liver Ultrasound:  ]]<>\"\",a[[#Headers],[Liver Ultrasound:  ]]&a[[#This Row],[Liver Ultrasound:  ]]&\" (\"&TEXT(a[[#This Row],[Liver Ultrasound Date:  ]],\"mm/dd/yyyy\")&\")\"&CHAR(10),\"\")&IF(a[[#This Row],[AAA screen (male smokers 65+):  ]]<>\"\",a[[#Headers],[AAA screen (male smokers 65+):  ]]&a[[#This Row],[AAA screen (male smokers 65+):  ]]&\" (\"&TEXT(a[[#This Row],[AAA Date:  ]],\"mm/dd/yyyy\")&\")\"&CHAR(10),\"\")&IF(a[[#This Row],[Colon cancer screening (45+):  ]]<>\"\",a[[#Headers],[Colon cancer screening (45+):  ]]&a[[#This Row],[Colon cancer screening (45+):  ]]&\" (\"&TEXT(a[[#This Row],[Colon cancer screening date:  ]],\"mm/dd/yyyy\")&\")\"&CHAR(10),\"\")&IF(a[[#This Row],[Lung cancer screening (55-79):  ]]<>\"\",a[[#Headers],[Lung cancer screening (55-79):  ]]&a[[#This Row],[Lung cancer screening (55-79):  ]]&\" (\"&TEXT(a[[#This Row],[Lung cancer screening date:  ]],\"mm/dd/yyyy\")&\")\"&CHAR(10),\"\")&IF(a[[#This Row],[Dental Exam Date:  ]]<>\"\",a[[#This Row],[Dental Exam Date:  ]]&TEXT(a[[#This Row],[Dental Exam Date:  ]],\"mm/dd/yyyy\")&\")\"&CHAR(10),\"\")&IF(a[[#This Row],[Foot Exam:  ]]<>\"\",a[[#Headers],[Foot Exam:  ]]&a[[#This Row],[Foot Exam:  ]]&\" (\"&TEXT(a[[#This Row],[Foot Exam Date:  ]],\"mm/dd/yyyy\")&\")\"&CHAR(10),\"\")&IF(a[[#This Row],[Fundoscopy:  ]]<>\"\",a[[#Headers],[Fundoscopy:  ]]&a[[#This Row],[Fundoscopy:  ]]&\" (\"&TEXT(a[[#This Row],[Fundoscopy Date:  ]],\"mm/dd/yyyy\")&\")\"&CHAR(10),\"\")&IF(a[[#This Row],[DEXA bone density:  ]]<>\"\",a[[#Headers],[DEXA bone density:  ]]&a[[#This Row],[DEXA bone density:  ]]&\" (\"&TEXT(a[[#This Row],[DEXA Date:  ]],\"mm/dd/yyyy\")&\")\"&CHAR(10),\"\")&IF(a[[#This Row],[PPD (mm):  ]]<>\"\",a[[#Headers],[PPD (mm):  ]]&a[[#This Row],[PPD (mm):  ]]&\" (\"&TEXT(a[[#This Row],[PPD Date:  ]],\"mm/dd/yyyy\")&\")\"&CHAR(10),\"\")&IF(a[[#This Row],[Hep B Serology:  ]]<>\"\",a[[#Headers],[Hep B Serology:  ]]&a[[#This Row],[Hep B Serology:  ]]&\" \"&b!BD194&\" (\"&TEXT(a[[#This Row],[Hep B serology Date:  ]],\"mm/dd/yyyy\")&\")\"&CHAR(10),\"\")&IF(a[[#This Row],[Hep C Serology:  ]]<>\"\",a[[#Headers],[Hep C Serology:  ]]&a[[#This Row],[Hep C Serology:  ]]&\" \"&b!AZ194&\" (\"&TEXT(a[[#This Row],[Hep C Serology Date:  ]],\"mm/dd/yyyy\")&\")\"&CHAR(10),\"\")&IF(a[[#This Row],[HIV:  ]]<>\"\",a[[#Headers],[HIV:  ]]&a[[#This Row],[HIV:  ]]&\" (\"&TEXT(a[[#This Row],[HIV Date:]],\"mm/dd/yyyy\")&\")\"&CHAR(10),\"\")&IF(a[[#This Row],[Meningococcal series completion date:  ]]<>\"\",a[[#Headers],[Meningococcal series completion date:  ]]&TEXT(a[[#This Row],[Meningococcal series completion date:  ]],\"mm/dd/yyyy\")&\")\"&CHAR(10),\"\")&IF(a[[#This Row],[Influenza (annual):  ]]<>\"\",a[[#Headers],[Influenza (annual):  ]]&TEXT(a[[#This Row],[Influenza (annual):  ]],\"mm/dd/yyyy\")&\")\"&CHAR(10),\"\")&IF(a[[#This Row],[Hepatitis B series completion date:  ]]<>\"\",a[[#Headers],[Hepatitis B series completion date:  ]]&TEXT(a[[#This Row],[Hepatitis B series completion date:  ]],\"mm/dd/yyyy\")&\")\"&CHAR(10),\"\")&IF(a[[#This Row],[MMR series completion date:  ]]<>\"\",a[[#Headers],[MMR series completion date:  ]]&TEXT(a[[#This Row],[MMR series completion date:  ]],\"mm/dd/yyyy\")&\")\"&CHAR(10),\"\")&IF(a[[#This Row],[Tdap (every 10 years):  ]]<>\"\",a[[#Headers],[Tdap (every 10 years):  ]]&TEXT(a[[#This Row],[Tdap (every 10 years):  ]],\"mm/dd/yyyy\")&\")\"&CHAR(10),\"\")&IF(a[[#This Row],[Pneumovax 13 (CKD or immune-suppressed):  ]]<>\"\",a[[#Headers],[Pneumovax 13 (CKD or immune-suppressed):  ]]&TEXT(a[[#This Row],[Pneumovax 13 (CKD or immune-suppressed):  ]],\"mm/dd/yyyy\")&\")\"&CHAR(10),\"\")&IF(a[[#This Row],[Pneumovax 23 (age 65, CHF, lung disease, DM, liver disease):  ]]<>\"\",a[[#Headers],[Pneumovax 23 (age 65, CHF, lung disease, DM, liver disease):  ]]&TEXT(a[[#This Row],[Pneumovax 23 (age 65, CHF, lung disease, DM, liver disease):  ]],\"mm/dd/yyyy\")&\")\"&CHAR(10),\"\")&IF(a[[#This Row],[Recombinant Zoster (age 50 or immune-suppressed):  ]]<>\"\",a[[#Headers],[Recombinant Zoster (age 50 or immune-suppressed):  ]]&TEXT(a[[#This Row],[Recombinant Zoster (age 50 or immune-suppressed):  ]],\"mm/dd/yyyy\")&\")\"&CHAR(10),\"\")&IF(a[[#This Row],[Other Procedure or Test:  ]]<>\"\",a[[#Headers],[Other Procedure or Test:  ]]&a[[#This Row],[Other Procedure or Test:  ]]&CHAR(10),\"\")","v":"Noteworthy testing:  \n"}]
[{"$f":"a[[#Headers],[*]]","v":"*"},null,null,null,{"$f":"INT(((TODAY())-a[[#This Row],[DOB:]])/365.25)","v":124},"Male","White","126/71",{"$f":"LEFT(a[[#This Row],[Blood Pressure: ]],FIND(\"/\",a[[#This Row],[Blood Pressure: ]])-1)","v":"126"},{"$f":"RIGHT(a[[#This Row],[Blood Pressure: ]],LEN(a[[#This Row],[Blood Pressure: ]])-FIND(\"/\",a[[#This Row],[Blood Pressure: ]]))","v":"71"},null,null,{"$f":"(a[[#This Row],[Weight:  ]]/(a[[#This Row],[Height:  ]]^2))*703","v":{"$error":"#DIV/0!"}},"No","Yes","No","No",{"$f":"a[[#Headers],[*]]","v":"*"},null,null,null,null,null,null,null,null,null,null,null,null,null,null,null,null,null,null,null,null,null,null,null,{"$f":"IF(a[[#This Row],['# Co-managed:  ]]<>\"\",a[[#Headers],['# Co-managed:  ]]&a[[#This Row],['# Co-managed:  ]]&CHAR(10),\"\")&IF(a[[#This Row],['# Weight/Diet/Activity:  ]]<>\"\",a[[#Headers],['# Weight/Diet/Activity:  ]]&a[[#This Row],['# Weight/Diet/Activity:  ]]&CHAR(10),\"\")&IF(a[[#This Row],['# Cholesterol/ASCVD risk:  ]]<>\"\",a[[#Headers],['# Cholesterol/ASCVD risk:  ]]&a[[#This Row],['# Cholesterol/ASCVD risk:  ]]&CHAR(10),\"\")&IF(a[[#This Row],['# Blood pressure/Shortness of breath/Lower extremity swelling:  ]]<>\"\",a[[#Headers],['# Blood pressure/Shortness of breath/Lower extremity swelling:  ]]&a[[#This Row],['# Blood pressure/Shortness of breath/Lower extremity swelling:  ]]&CHAR(10),\"\")&IF(a[[#This Row],['# Dizziness/Lightheadedness/Vertigo/Falls:  ]]<>\"\",a[[#Headers],['# Dizziness/Lightheadedness/Vertigo/Falls:  ]]&a[[#This Row],['# Dizziness/Lightheadedness/Vertigo/Falls:  ]]&CHAR(10),\"\")&IF(a[[#This Row],['# COPD/Asthma:  ]]<>\"\",a[[#Headers],['# COPD/Asthma:  ]]&a[[#This Row],['# COPD/Asthma:  ]]&CHAR(10),\"\")&IF(a[[#This Row],['# Sleep apnea:  ]]<>\"\",a[[#Headers],['# Sleep apnea:  ]]&a[[#This Row],['# Sleep apnea:  ]]&CHAR(10),\"\")&IF(a[[#This Row],['# Chronic pain/Arthritis:  ]]<>\"\",a[[#Headers],['# Chronic pain/Arthritis:  ]]&a[[#This Row],['# Chronic pain/Arthritis:  ]]&CHAR(10),\"\")&IF(a[[#This Row],['# Gastroesophageal reflux/Constipation/Melena/Hematochezia:  ]]<>\"\",a[[#Headers],['# Gastroesophageal reflux/Constipation/Melena/Hematochezia:  ]]&a[[#This Row],['# Gastroesophageal reflux/Constipation/Melena/Hematochezia:  ]]&CHAR(10),\"\")&IF(a[[#This Row],['# Urinary symptoms:  ]]<>\"\",a[[#Headers],['# Urinary symptoms:  ]]&a[[#This Row],['# Urinary symptoms:  ]]&CHAR(10),\"\")&IF(a[[#This Row],['# Last menstrual period/Pregnancy:  ]]<>\"\",a[[#Headers],['# Last menstrual period/Pregnancy:  ]]&a[[#This Row],['# Last menstrual period/Pregnancy:  ]]&CHAR(10),\"\")&IF(a[[#This Row],['# Mood/Depression/Anxiety:  ]]<>\"\",a[[#Headers],['# Mood/Depression/Anxiety:  ]]&a[[#This Row],['# Mood/Depression/Anxiety:  ]]&CHAR(10),\"\")&IF(a[[#This Row],['# Vision:  ]]<>\"\",a[[#Headers],['# Vision:  ]]&a[[#This Row],['# Vision:  ]]&CHAR(10),\"\")&IF(a[[#This Row],['# Hearing:  ]]<>\"\",a[[#Headers],['# Hearing:  ]]&a[[#This Row],['# Hearing:  ]]&CHAR(10),\"\")&IF(a[[#This Row],['# Dental:  ]]<>\"\",a[[#Headers],['# Dental:  ]]&a[[#This Row],['# Dental:  ]]&CHAR(10),\"\")&IF(a[[#This Row],['# Surgeries/Procedures/Implants/Metal:  ]]<>\"\",a[[#Headers],['# Surgeries/Procedures/Implants/Metal:  ]]&a[[#This Row],['# Surgeries/Procedures/Implants/Metal:  ]]&CHAR(10),\"\")&IF(a[[#This Row],['# Alcohol:  ]]<>\"\",a[[#Headers],['# Alcohol:  ]]&a[[#This Row],['# Alcohol:  ]]&CHAR(10),\"\")&IF(a[[#This Row],['# Tobacco:  ]]<>\"\",a[[#Headers],['# Tobacco:  ]]&a[[#This Row],['# Tobacco:  ]]&CHAR(10),\"\")&IF(a[[#This Row],['# Recreational drugs:  ]]<>\"\",a[[#Headers],['# Recreational drugs:  ]]&a[[#This Row],['# Recreational drugs:  ]]&CHAR(10),\"\")&IF(a[[#This Row],['# Surgeries/Procedures/Implants/Metal:  ]]<>\"\",a[[#Headers],['# Surgeries/Procedures/Implants/Metal:  ]]&a[[#This Row],['# Surgeries/Procedures/Implants/Metal:  ]]&CHAR(10),\"\")&IF(a[[#This Row],['# Family history:  ]]<>\"\",a[[#Headers],['# Family history:  ]]&a[[#This Row],['# Family history:  ]]&CHAR(10),\"\")&IF(a[[#This Row],['# Tobacco:  ]]<>\"\",a[[#Headers],['# Tobacco:  ]]&a[[#This Row],['# Tobacco:  ]]&CHAR(10),\"\")&IF(a[[#This Row],['# ADLs/IADLs:  ]]<>\"\",a[[#Headers],['# ADLs/IADLs:  ]]&a[[#This Row],['# ADLs/IADLs:  ]]&CHAR(10),\"\")&IF(a[[#This Row],['# Other active issues:  ]]<>\"\",a[[#Headers],['# Other active issues:  ]]&a[[#This Row],['# Other active issues:  ]]&CHAR(10),\"\")&IF(a[[#This Row],['# Other chronic issues:  ]]<>\"\",a[[#Headers],['# Other chronic issues:  ]]&a[[#This Row],['# Other chronic issues:  ]]&CHAR(10),\"\")","v":""},{"$f":"a[[#Headers],[*]]","v":"*"},{"$f":"IF(AND(a[[#This Row],[Sodium]]<>\"\",a[[#This Row],[Potassium]]<>\"\",a[[#This Row],[Chloride]]<>\"\",a[[#This Row],[Bicarbonate]]<>\"\",a[[#This Row],[BUN]]<>\"\",a[[#This Row],[Creatinine]]<>\"\",a[[#This Row],[Calcium]]<>\"\",a[[#This Row],[Glucose]]<>\"\",a[[#This Row],[BMPD]]<>\"\"),\"Basic chemistry panel on \"&TEXT(a[[#This Row],[BMPD]],\"mmmm d, yyyy\")&\" showed \"&a[[#Headers],[Sodium]]&\" \"&a[[#This Row],[Sodium]]&\" \"&b!B$2&\", \"&a[[#Headers],[Potassium]]&\" \"&a[[#This Row],[Potassium]]&\" \"&b!C$2&\", \"&a[[#Headers],[Chloride]]&\" \"&a[[#This Row],[Chloride]]&\" \"&b!D$2&\", \"&a[[#Headers],[Bicarbonate]]&\" \"&a[[#This Row],[Bicarbonate]]&\" \"&b!E$2&\", \"&a[[#Headers],[BUN]]&\" \"&a[[#This Row],[BUN]]&\" \"&b!F$2&\", \"&a[[#Headers],[Creatinine]]&\" \"&a[[#This Row],[Creatinine]]&\" \"&b!G$2&\", \"&a[[#Headers],[Calcium]]&\" \"&a[[#This Row],[Calcium]]&\" \"&b!H$2&\", and \"&a[[#Headers],[Glucose]]&\" \"&a[[#This Row],[Glucose]]&\" \"&b!I$2,\"No BMP found\")&IF(AND(a[[#This Row],[Cystatin C]]<>\"\",a[[#This Row],[CysD]]<>\"\"),\". On \"&TEXT(a[[#This Row],[CysD]],\"mmmm d, yyyy\")&\" \"&a[[#Headers],[Cystatin C]]&\" was \"&a[[#This Row],[Cystatin C]]&\" \"&b!AK$2,\"\")&\".  On \"&TEXT(a[[#This Row],[CMPD]],\"mmmm d, yyyy\")&\" labs included \"&a[[#Headers],[AST]]&\" \"&a[[#This Row],[AST]]&\" \"&b!J$2&\", \"&a[[#Headers],[ALT]]&\" \"&a[[#This Row],[ALT]]&\" \"&b!K$2&\", \"&a[[#Headers],[Alkaline Phosphatase]]&\" \"&a[[#This Row],[Alkaline Phosphatase]]&\" \"&b!L$2&\", \"&a[[#Headers],[Bilirubin, Total]]&\" \"&a[[#This Row],[Bilirubin, Total]]&\" \"&b!M$2&\", \"&a[[#Headers],[Total Protein]]&\" \"&a[[#This Row],[Total Protein]]&\" \"&b!N$2&\", \"&a[[#Headers],[Albumin]]&\" \"&a[[#This Row],[Albumin]]&\" \"&b!O$2&\", and \"&a[[#Headers],[Globulin]]&\" \"&a[[#This Row],[Globulin]]&\" \"&b!P$2&IF(AND(a[[#This Row],[LDH]]<>\"\",a[[#This Row],[LDHD]]<>\"\"),\". On \"&TEXT(a[[#This Row],[LDHD]],\"mmmm d, yyyy\")&\" \"&a[[#Headers],[LDH]]&\" was \"&a[[#This Row],[LDH]]&\" \"&b!BH$2,\"\")&IF(AND(a[[#This Row],[Magnesium]]<>\"\",a[[#This Row],[MagD]]<>\"\"),\". On \"&TEXT(a[[#This Row],[MagD]],\"mmmm d, yyyy\")&\" \"&a[[#Headers],[Magnesium]]&\" was \"&a[[#This Row],[Magnesium]]&\" \"&b!AS$2,\"\")&IF(AND(a[[#This Row],[Phosphorus]]<>\"\",a[[#This Row],[PhosD]]<>\"\"),\". On \"&TEXT(a[[#This Row],[PhosD]],\"mmmm d, yyyy\")&\" \"&a[[#Headers],[Phosphorus]]&\" was \"&a[[#This Row],[Phosphorus]]&\" \"&b!AT$2,\"\")&IF(AND(a[[#This Row],[Vitamin D, 25-Hydroxy level]]<>\"\",a[[#This Row],[VitDD]]<>\"\"),\".  He had a \"&a[[#Headers],[Vitamin D, 25-Hydroxy level]]&\" of \"&a[[#This Row],[Vitamin D, 25-Hydroxy level]]&\" \"&b!AB$2&\" on \"&TEXT(a[[#This Row],[VitDD]],\"mmmm d, yyyy\"),\"\")&IF(AND(a[[#This Row],[PTH]]<>\"\",a[[#This Row],[PTHD]]<>\"\"),\". On \"&TEXT(a[[#This Row],[PTHD]],\"mmmm d, yyyy\")&\" \"&a[[#Headers],[PTH]]&\" was \"&a[[#This Row],[PTH]]&\" \"&b!AU$2,\"\")&IF(AND(a[[#This Row],[Uric Acid]]<>\"\",a[[#This Row],[UricD]]<>\"\"),\". On \"&TEXT(a[[#This Row],[UricD]],\"mmmm d, yyyy\")&\" \"&a[[#Headers],[Uric Acid]]&\" was \"&a[[#This Row],[Uric Acid]]&\" \"&b!AV$2,\"\")&IF(AND(a[[#This Row],[Amylase]]<>\"\",a[[#This Row],[AmyD]]<>\"\"),\". On \"&TEXT(a[[#This Row],[AmyD]],\"mmmm d, yyyy\")&\" \"&a[[#Headers],[Amylase]]&\" was \"&a[[#This Row],[Amylase]]&\" \"&b!AW$2,\"\")&IF(AND(a[[#This Row],[Lipase]]<>\"\",a[[#This Row],[LipaD]]<>\"\"),\". On \"&TEXT(a[[#This Row],[LipaD]],\"mmmm d, yyyy\")&\" \"&BQ$1&\" was \"&a[[#This Row],[Lipase]]&\" \"&b!AX$2,\"\")&IF(AND(a[[#This Row],[AFP, Tumor Marker]]<>\"\",a[[#This Row],[AFPD]]<>\"\"),\". On \"&TEXT(a[[#This Row],[AFPD]],\"mmmm d, yyyy\")&\" \"&a[[#Headers],[AFP, Tumor Marker]]&\" was \"&a[[#This Row],[AFP, Tumor Marker]]&\" \"&b!BJ$2,\"\")&IF(AND(a[[#This Row],[WBC]]<>\"\",a[[#This Row],[Hemoglobin]]<>\"\",a[[#This Row],[MCV]]<>\"\",a[[#This Row],[Platelet]]<>\"\",a[[#This Row],[CBCD]]<>\"\"),\".  On \"&TEXT(a[[#This Row],[CBCD]],\"mmmm d, yyyy\")&\" a complete blood count had \"&a[[#Headers],[WBC]]&\" \"&a[[#This Row],[WBC]]&\" \"&b!Q$2&\", \"&a[[#Headers],[Hemoglobin]]&\" \"&a[[#This Row],[Hemoglobin]]&\" \"&b!R$2&\", \"&a[[#Headers],[MCV]]&\" \"&a[[#This Row],[MCV]]&\" \"&b!S$2&\", \"&a[[#Headers],[Platelet]]&\" \"&a[[#This Row],[Platelet]]&\" \"&b!T$2,\".  No CBC found\")&IF(AND(a[[#This Row],[Erythrocyte Sedimentation Rate]]<>\"\",a[[#This Row],[ESRD]]<>\"\"),\". On \"&TEXT(a[[#This Row],[ESRD]],\"mmmm d, yyyy\")&\" \"&a[[#Headers],[Erythrocyte Sedimentation Rate]]&\" was \"&a[[#This Row],[Erythrocyte Sedimentation Rate]]&\" \"&b!AM$2,\"\")&IF(AND(a[[#This Row],[C-Reactive Protein]]<>\"\",a[[#This Row],[CRPD]]<>\"\"),\". On \"&TEXT(a[[#This Row],[CRPD]],\"mmmm d, yyyy\")&\" \"&a[[#Headers],[C-Reactive Protein]]&\" was \"&a[[#This Row],[C-Reactive Protein]]&\" \"&b!AN$2,\"\")&IF(AND(a[[#This Row],[Hepatitis B Viral Load]]<>\"\",a[[#This Row],[HBVD]]<>\"\"),\". On \"&TEXT(a[[#This Row],[HBVD]],\"mmmm d, yyyy\")&\" \"&a[[#Headers],[Hepatitis B Viral Load]]&\" was \"&a[[#This Row],[Hepatitis B Viral Load]]&\" \"&b!BB$2,\"\")&IF(AND(a[[#This Row],[Hepatitis C Viral Load]]<>\"\",a[[#This Row],[HCVD]]<>\"\"),\". On \"&TEXT(a[[#This Row],[HCVD]],\"mmmm d, yyyy\")&\" \"&a[[#Headers],[Hepatitis C Viral Load]]&\" was \"&a[[#This Row],[Hepatitis C Viral Load]]&\" \"&b!BA$2,\"\")&IF(AND(a[[#This Row],[HIV Viral Load]]<>\"\",a[[#This Row],[HIVD]]<>\"\"),\". On \"&TEXT(a[[#This Row],[HIVD]],\"mmmm d, yyyy\")&\" \"&a[[#Headers],[HIV Viral Load]]&\" was \"&a[[#This Row],[HIV Viral Load]]&\" \"&b!BC$2,\"\")&IF(AND(a[[#This Row],[CD4 Count]]<>\"\",a[[#This Row],[CD4D]]<>\"\"),\". On \"&TEXT(a[[#This Row],[CD4D]],\"mmmm d, yyyy\")&\" \"&a[[#Headers],[CD4 Count]]&\" was \"&a[[#This Row],[CD4 Count]]&\" \"&b!AL$2,\"\")&IF(AND(a[[#This Row],[Iron]]<>\"\",a[[#This Row],[TIBC]]<>\"\",a[[#This Row],[% Saturation]]<>\"\",a[[#This Row],[IronD]]<>\"\"),\". Iron Testing: On \"&TEXT(a[[#This Row],[IronD]],\"mmmm d, yyyy\")&\" \"&a[[#Headers],[Iron]]&\" was \"&a[[#This Row],[Iron]]&\" \"&b!AO$2&\", \"&a[[#Headers],[TIBC]]&\" was \"&a[[#This Row],[TIBC]]&\" \"&b!AP$2&\", \"&a[[#Headers],[% Saturation]]&\" was \"&a[[#This Row],[% Saturation]]&\" \"&b!AQ$2,\"\")&IF(AND(a[[#This Row],[Ferritin]]<>\"\",a[[#This Row],[FerrD]]<>\"\"),\". On \"&TEXT(a[[#This Row],[FerrD]],\"mmmm d, yyyy\")&\" \"&a[[#Headers],[Ferritin]]&\" was \"&a[[#This Row],[Ferritin]]&\" \"&b!AR$2,\"\")&IF(AND(a[[#This Row],[Vitamin B12 level]]<>\"\",a[[#This Row],[VitB12D]]<>\"\"),\". On \"&TEXT(a[[#This Row],[VitB12D]],\"mmmm d, yyyy\")&\" \"&a[[#Headers],[Vitamin B12 level]]&\" was \"&a[[#This Row],[Vitamin B12 level]]&\" \"&b!AC$2,\"\")&IF(AND(a[[#This Row],[Folate level]]<>\"\",a[[#This Row],[FolaD]]<>\"\"),\". On \"&TEXT(a[[#This Row],[FolaD]],\"mmmm d, yyyy\")&\" \"&a[[#Headers],[Folate level]]&\" was \"&a[[#This Row],[Folate level]]&\" \"&b!AD$2,\"\")&IF(AND(a[[#This Row],[Homocysteine]]<>\"\",a[[#This Row],[HomoD]]<>\"\"),\". On \"&TEXT(a[[#This Row],[HomoD]],\"mmmm d, yyyy\")&\" \"&a[[#Headers],[Homocysteine]]&\" was \"&a[[#This Row],[Homocysteine]]&\" \"&b!AE$2,\"\")&IF(AND(a[[#This Row],[Methylmalonic Acid]]<>\"\",a[[#This Row],[MethD]]<>\"\"),\". On \"&TEXT(a[[#This Row],[MethD]],\"mmmm d, yyyy\")&\" \"&a[[#Headers],[Methylmalonic Acid]]&\" was \"&a[[#This Row],[Methylmalonic Acid]]&\" \"&b!AF$2,\"\")&IF(AND(a[[#This Row],[Thiamine]]<>\"\",a[[#This Row],[ThiaD]]<>\"\"),\". On \"&TEXT(a[[#This Row],[ThiaD]],\"mmmm d, yyyy\")&\" \"&a[[#Headers],[Thiamine]]&\" was \"&a[[#This Row],[Thiamine]]&\" \"&b!AG$2,\"\")&IF(AND(a[[#This Row],[Zinc]]<>\"\",a[[#This Row],[ZincD]]<>\"\"),\". On \"&TEXT(a[[#This Row],[ZincD]],\"mmmm d, yyyy\")&\" \"&a[[#Headers],[Zinc]]&\" was \"&a[[#This Row],[Zinc]]&\" \"&b!AH$2,\"\")&IF(AND(a[[#This Row],[Copper]]<>\"\",a[[#This Row],[CopD]]<>\"\"),\". On \"&TEXT(a[[#This Row],[CopD]],\"mmmm d, yyyy\")&\" \"&a[[#Headers],[Copper]]&\" was \"&a[[#This Row],[Copper]]&\" \"&b!AI$2,\"\")&IF(AND(a[[#This Row],[LipiD]]<>\"\",a[[#This Row],[Total Cholesterol]]<>\"\",a[[#This Row],[Triglycerides]]<>\"\",a[[#This Row],[HDL]]<>\"\",a[[#This Row],[LDL]]<>\"\"),\".  On \"&TEXT(a[[#This Row],[LipiD]],\"mmmm d, yyyy\")&\" fasting lipids included \"&a[[#Headers],[Total Cholesterol]]&\" \"&a[[#This Row],[Total Cholesterol]]&\" \"&b!V$2&\", \"&a[[#Headers],[Triglycerides]]&\" \"&a[[#This Row],[Triglycerides]]&\" \"&b!W$2&\", \"&a[[#Headers],[HDL]]&\" \"&a[[#This Row],[HDL]]&\" \"&b!X$2&\", and \"&a[[#Headers],[LDL]]&\" \"&a[[#This Row],[LDL]]&\" \"&b!Y$2,\"\")","v":"No BMP found.  On January 0, 1900 labs included AST  (N<=34), ALT  (N<=55), Alkaline Phosphatase  (N 40-150), Bilirubin, Total  (N 0.2-1.2), Total Protein  (N 6.0-8.3), Albumin  (N 3.5-5.2), and Globulin  (N 2.0-3.7).  No CBC found.  On February 13, 2023 fasting lipids included Total Cholesterol 182 (N <200), Triglycerides 94 (N <150), HDL 50 (N>39), and LDL 113 (N <99)"},{"$f":"IF(AND(a[[#This Row],[A1cD]]<>\"\",a[[#This Row],[Hemoglobin A1c]]<>\"\"),\".  On \"&TEXT(a[[#This Row],[A1cD]],\"mmmm d, yyyy\")&\" \"&a[[#Headers],[Hemoglobin A1c]]&\" was \"&a[[#This Row],[Hemoglobin A1c]]&\" \"&b!U$2,\"\")&IF(AND(a[[#This Row],[TSH]]<>\"\",a[[#This Row],[TSHD]]<>\"\"),\".  Thyroid testing:  \"&a[[#Headers],[TSH]]&\" was \"&a[[#This Row],[TSH]]&\" \"&b!Z$2&\" on \"&TEXT(a[[#This Row],[TSHD]],\"mmmm d, yyyy\"),\"\")&IF(AND(a[[#This Row],[Free T4]]<>\"\",a[[#This Row],[FT4D]]<>\"\"),\".  On \"&TEXT(a[[#This Row],[FT4D]],\"mmmm d, yyyy\")&\" \"&a[[#Headers],[Free T4]]&\" was \"&a[[#This Row],[Free T4]]&\" \"&b!AY$2,\"\")&IF(AND(a[[#This Row],[PSA level]]<>\"\",a[[#This Row],[PSAD]]<>\"\"),\". Prostate: On \"&TEXT(a[[#This Row],[PSAD]],\"mmmm d, yyyy\")&\" \"&a[[#Headers],[PSA level]]&\" was \"&a[[#This Row],[PSA level]]&\" \"&b!AA$2,\"\")&IF(AND(a[[#This Row],[Urine Microalbumin/Creatinine]]<>\"\",a[[#This Row],[MACD]]<>\"\"),\".  On \"&TEXT(a[[#This Row],[MACD]], \"mmmm d, yyyy\")&\" \"&a[[#Headers],[Urine Microalbumin/Creatinine]]&\" was \"&a[[#This Row],[Urine Microalbumin/Creatinine]]&\" \"&b!AJ$2,\"\")&IF(AND(a[[#This Row],[other urine testing]]<>\"\",a[[#This Row],[OthUD]]<>\"\"),\".  On \"&TEXT(a[[#This Row],[OthUD]], \"mmmm d, yyyy\")&\" \"&a[[#Headers],[other urine testing]]&\" was notable for \"&a[[#This Row],[other urine testing]],\"\")&IF(AND(a[[#This Row],[other lab testing]]<>\"\",a[[#This Row],[OthLD]]<>\"\"),\".  On \"&TEXT(a[[#This Row],[OthLD]], \"mmmm d, yyyy\")&\" \"&a[[#Headers],[other lab testing]]&\" was notable for \"&a[[#This Row],[other lab testing]],\"\")&IF(AND(a[[#This Row],[additional lab testing]]<>\"\",a[[#This Row],[AddLD]]<>\"\"),\".  On \"&TEXT(a[[#This Row],[AddLD]], \"mmmm d, yyyy\")&\" \"&a[[#Headers],[additional lab testing]]&\" was notable for \"&a[[#This Row],[additional lab testing]],\"\")&IF(AND(a[[#This Row],[Total Valproic Acid Level]]<>\"\",a[[#This Row],[ValpD]]<>\"\"),\".  On \"&TEXT(a[[#This Row],[ValpD]],\"mmmm d, yyyy\")&\" \"&a[[#Headers],[Total Valproic Acid Level]]&\" was \"&a[[#This Row],[Total Valproic Acid Level]]&\" \"&b!BE$2,\"\")&IF(AND(a[[#This Row],[Total Phenytoin Level]]<>\"\",a[[#This Row],[PhenD]]<>\"\"),\".  On \"&TEXT(a[[#This Row],[PhenD]],\"mmmm d, yyyy\")&\" \"&a[[#Headers],[Total Phenytoin Level]]&\" was \"&a[[#This Row],[Total Phenytoin Level]]&\" \"&b!BF$2,\"\")&IF(AND(a[[#This Row],[Tacrolimus Level]]<>\"\",a[[#This Row],[TacrD]]<>\"\"),\".  On \"&TEXT(a[[#This Row],[TacrD]],\"mmmm d, yyyy\")&\" \"&a[[#Headers],[Tacrolimus Level]]&\" was \"&a[[#This Row],[Tacrolimus Level]]&\" \"&b!BG$2,\"\")&IF(AND(a[[#This Row],[Digoxin Level]]<>\"\",a[[#This Row],[DigD]]<>\"\"),\".  On \"&TEXT(a[[#This Row],[DigD]],\"mmmm d, yyyy\")&\" \"&a[[#Headers],[Digoxin Level]]&\" was \"&a[[#This Row],[Digoxin Level]]&\" \"&b!BI$2,\"\")&\".\"","v":"."},{"$f":"a[[#This Row],[Lab subblurb A]]&a[[#This Row],[Lab subblurb B]]","v":"No BMP found.  On January 0, 1900 labs included AST  (N<=34), ALT  (N<=55), Alkaline Phosphatase  (N 40-150), Bilirubin, Total  (N 0.2-1.2), Total Protein  (N 6.0-8.3), Albumin  (N 3.5-5.2), and Globulin  (N 2.0-3.7).  No CBC found.  On February 13, 2023 fasting lipids included Total Cholesterol 182 (N <200), Triglycerides 94 (N <150), HDL 50 (N>39), and LDL 113 (N <99)."},{"$f":"IF(a[[#This Row],[Sodium]]<>\"\",IF(OR(VALUE(a[[#This Row],[Sodium]])<VALUE(b!B$3),VALUE(a[[#This Row],[Sodium]])>VALUE(b!B$4)),\"Sodium.  \",\"\"),\"\")&IF(a[[#This Row],[Potassium]]<>\"\",IF(OR(VALUE(a[[#This Row],[Potassium]])<VALUE(b!C$3),VALUE(a[[#This Row],[Potassium]])>VALUE(b!C$4)),\"Potassium.  \",\"\"),\"\")&IF(a[[#This Row],[Chloride]]<>\"\",IF(OR(VALUE(a[[#This Row],[Chloride]])<VALUE(b!D$3),VALUE(a[[#This Row],[Chloride]])>VALUE(b!D$4)),\"Chloride.  \",\"\"),\"\")&IF(a[[#This Row],[Bicarbonate]]<>\"\",IF(OR(VALUE(a[[#This Row],[Bicarbonate]])<VALUE(b!E$3),VALUE(a[[#This Row],[Bicarbonate]])>VALUE(b!E$4)),\"Bicarbonate.  \",\"\"),\"\")&IF(a[[#This Row],[BUN]]<>\"\",IF(OR(VALUE(a[[#This Row],[BUN]])<VALUE(b!F$3),VALUE(a[[#This Row],[BUN]])>VALUE(b!F$4)),\"BUN.  \",\"\"),\"\")&IF(a[[#This Row],[Creatinine]]<>\"\",IF(OR(VALUE(a[[#This Row],[Creatinine]])<VALUE(b!G$3),VALUE(a[[#This Row],[Creatinine]])>VALUE(b!G$4)),\"Creatinine.  \",\"\"),\"\")&IF(a[[#This Row],[Calcium]]<>\"\",IF(OR(VALUE(a[[#This Row],[Calcium]])<VALUE(b!H$3),VALUE(a[[#This Row],[Calcium]])>VALUE(b!H$4)),\"Calcium.  \",\"\"),\"\")&IF(a[[#This Row],[Glucose]]<>\"\",IF(OR(VALUE(a[[#This Row],[Glucose]])<VALUE(b!I$3),VALUE(a[[#This Row],[Glucose]])>VALUE(b!I$4)),\"Glucose.  \",\"\"),\"\")&IF(a[[#This Row],[Cystatin C]]<>\"\",IF(OR(VALUE(a[[#This Row],[Cystatin C]])<VALUE(b!AK$3),VALUE(a[[#This Row],[Cystatin C]])>VALUE(b!AK$4)),\"Cystatin C.  \",\"\"),\"\")&IF(a[[#This Row],[AST]]<>\"\",IF(OR(VALUE(a[[#This Row],[AST]])<VALUE(b!J$3),VALUE(a[[#This Row],[AST]])>VALUE(b!J$4)),\"AST.  \",\"\"),\"\")&IF(a[[#This Row],[ALT]]<>\"\",IF(OR(VALUE(a[[#This Row],[ALT]])<VALUE(b!K$3),VALUE(a[[#This Row],[ALT]])>VALUE(b!K$4)),\"ALT.  \",\"\"),\"\")&IF(a[[#This Row],[Alkaline Phosphatase]]<>\"\",IF(OR(VALUE(a[[#This Row],[Alkaline Phosphatase]])<VALUE(b!L$3),VALUE(a[[#This Row],[Alkaline Phosphatase]])>VALUE(b!L$4)),\"Alkaline Phosphatase.  \",\"\"),\"\")&IF(a[[#This Row],[Bilirubin, Total]]<>\"\",IF(OR(VALUE(a[[#This Row],[Bilirubin, Total]])<VALUE(b!M$3),VALUE(a[[#This Row],[Bilirubin, Total]])>VALUE(b!M$4)),\"Bilirubin, Total.  \",\"\"),\"\")&IF(a[[#This Row],[Total Protein]]<>\"\",IF(OR(VALUE(a[[#This Row],[Total Protein]])<VALUE(b!N$3),VALUE(a[[#This Row],[Total Protein]])>VALUE(b!N$4)),\"Total Protein.  \",\"\"),\"\")&IF(a[[#This Row],[Albumin]]<>\"\",IF(OR(VALUE(a[[#This Row],[Albumin]])<VALUE(b!O$3),VALUE(a[[#This Row],[Albumin]])>VALUE(b!O$4)),\"Albumin.  \",\"\"),\"\")&IF(a[[#This Row],[Globulin]]<>\"\",IF(OR(VALUE(a[[#This Row],[Globulin]])<VALUE(b!P$3),VALUE(a[[#This Row],[Globulin]])>VALUE(b!P$4)),\"Globulin.  \",\"\"),\"\")&IF(a[[#This Row],[Amylase]]<>\"\",IF(OR(VALUE(a[[#This Row],[Amylase]])<VALUE(b!AW$3),VALUE(a[[#This Row],[Amylase]])>VALUE(b!AW$4)),\"Amylase.  \",\"\"),\"\")&IF(a[[#This Row],[Lipase]]<>\"\",IF(OR(VALUE(a[[#This Row],[Lipase]])<VALUE(b!AX$3),VALUE(a[[#This Row],[Lipase]])>VALUE(b!AX$4)),\"Lipase.  \",\"\"),\"\")&IF(a[[#This Row],[Magnesium]]<>\"\",IF(OR(VALUE(a[[#This Row],[Magnesium]])<VALUE(b!AS$3),VALUE(a[[#This Row],[Magnesium]])>VALUE(b!AS$4)),\"Magnesium.  \",\"\"),\"\")&IF(a[[#This Row],[Phosphorus]]<>\"\",IF(OR(VALUE(a[[#This Row],[Phosphorus]])<VALUE(b!AT$3),VALUE(a[[#This Row],[Phosphorus]])>VALUE(b!AT$4)),\"Phosphorus.  \",\"\"),\"\")&IF(a[[#This Row],[Total Cholesterol]]<>\"\",IF(OR(VALUE(a[[#This Row],[Total Cholesterol]])<VALUE(b!V$3),VALUE(a[[#This Row],[Total Cholesterol]])>VALUE(b!V$4)),\"Total Cholesterol.  \",\"\"),\"\")&IF(a[[#This Row],[Triglycerides]]<>\"\",IF(OR(VALUE(a[[#This Row],[Triglycerides]])<VALUE(b!W$3),VALUE(a[[#This Row],[Triglycerides]])>VALUE(b!W$4)),\"Triglycerides.  \",\"\"),\"\")&IF(a[[#This Row],[HDL]]<>\"\",IF(OR(VALUE(a[[#This Row],[HDL]])<VALUE(b!X$3),VALUE(a[[#This Row],[HDL]])>VALUE(b!X$4)),\"HDL.  \",\"\"),\"\")&IF(a[[#This Row],[LDL]]<>\"\",IF(OR(VALUE(a[[#This Row],[LDL]])<VALUE(b!Y$3),VALUE(a[[#This Row],[LDL]])>VALUE(b!Y$4)),\"LDL.  \",\"\"),\"\")","v":"LDL.  "},{"$f":"IF(a[[#This Row],[LDH]]<>\"\",IF(OR(VALUE(a[[#This Row],[LDH]])<VALUE(b!BH$3),VALUE(a[[#This Row],[LDH]])>VALUE(b!BH$4)),\"LDH.  \",\"\"),\"\")&IF(a[[#This Row],[Uric Acid]]<>\"\",IF(OR(VALUE(a[[#This Row],[Uric Acid]])<VALUE(b!AV$3),VALUE(a[[#This Row],[Uric Acid]])>VALUE(b!AV$4)),\"Uric Acid.  \",\"\"),\"\")&IF(a[[#This Row],[PTH]]<>\"\",IF(OR(VALUE(a[[#This Row],[PTH]])<VALUE(b!AU$3),VALUE(a[[#This Row],[PTH]])>VALUE(b!AU$4)),\"PTH.  \",\"\"),\"\")&IF(a[[#This Row],[TSH]]<>\"\",IF(OR(VALUE(a[[#This Row],[TSH]])<VALUE(b!Z$3),VALUE(a[[#This Row],[TSH]])>VALUE(b!Z$4)),\"TSH.  \",\"\"),\"\")&IF(a[[#This Row],[Free T4]]<>\"\",IF(OR(VALUE(a[[#This Row],[Free T4]])<VALUE(b!AY$3),VALUE(a[[#This Row],[Free T4]])>VALUE(b!AY$4)),\"Free T4.  \",\"\"),\"\")&IF(a[[#This Row],[PSA level]]<>\"\",IF(OR(VALUE(a[[#This Row],[PSA level]])<VALUE(b!AA$3),VALUE(a[[#This Row],[PSA level]])>VALUE(b!AA$4)),\"PSA level.  \",\"\"),\"\")&IF(a[[#This Row],[Vitamin D, 25-Hydroxy level]]<>\"\",IF(OR(VALUE(a[[#This Row],[Vitamin D, 25-Hydroxy level]])<VALUE(b!AB$3),VALUE(a[[#This Row],[Vitamin D, 25-Hydroxy level]])>VALUE(b!AB$4)),\"Vitamin D, 25-Hydroxy level.  \",\"\"),\"\")&IF(a[[#This Row],[Iron]]<>\"\",IF(OR(VALUE(a[[#This Row],[Iron]])<VALUE(b!AO$3),VALUE(a[[#This Row],[Iron]])>VALUE(b!AO$4)),\"Iron.  \",\"\"),\"\")&IF(a[[#This Row],[TIBC]]<>\"\",IF(OR(VALUE(a[[#This Row],[TIBC]])<VALUE(b!AP$3),VALUE(a[[#This Row],[TIBC]])>VALUE(b!AP$4)),\"TIBC.  \",\"\"),\"\")&IF(a[[#This Row],[% Saturation]]<>\"\",IF(OR(VALUE(a[[#This Row],[% Saturation]])<VALUE(b!AQ$3),VALUE(a[[#This Row],[% Saturation]])>VALUE(b!AQ$4)),\"% Saturation.  \",\"\"),\"\")&IF(a[[#This Row],[Ferritin]]<>\"\",IF(OR(VALUE(a[[#This Row],[Ferritin]])<VALUE(b!AR$3),VALUE(a[[#This Row],[Ferritin]])>VALUE(b!AR$4)),\"Ferritin.  \",\"\"),\"\")&IF(a[[#This Row],[Vitamin B12 level]]<>\"\",IF(OR(VALUE(a[[#This Row],[Vitamin B12 level]])<VALUE(b!AC$3),VALUE(a[[#This Row],[Vitamin B12 level]])>VALUE(b!AC$4)),\"Vitamin B12 level.  \",\"\"),\"\")&IF(a[[#This Row],[Folate level]]<>\"\",IF(OR(VALUE(a[[#This Row],[Folate level]])<VALUE(b!AD$3),VALUE(a[[#This Row],[Folate level]])>VALUE(b!AD$4)),\"Folate level.  \",\"\"),\"\")&IF(a[[#This Row],[WBC]]<>\"\",IF(OR(VALUE(a[[#This Row],[WBC]])<VALUE(b!Q$3),VALUE(a[[#This Row],[WBC]])>VALUE(b!Q$4)),\"WBC.  \",\"\"),\"\")&IF(a[[#This Row],[Hemoglobin]]<>\"\",IF(OR(VALUE(a[[#This Row],[Hemoglobin]])<VALUE(b!R$3),VALUE(a[[#This Row],[Hemoglobin]])>VALUE(b!R$4)),\"Hemoglobin.  \",\"\"),\"\")&IF(a[[#This Row],[MCV]]<>\"\",IF(OR(VALUE(a[[#This Row],[MCV]])<VALUE(b!S$3),VALUE(a[[#This Row],[MCV]])>VALUE(b!S$4)),\"MCV.  \",\"\"),\"\")&IF(a[[#This Row],[Platelet]]<>\"\",IF(OR(VALUE(a[[#This Row],[Platelet]])<VALUE(b!T$3),VALUE(a[[#This Row],[Platelet]])>VALUE(b!T$4)),\"Platelet.  \",\"\"),\"\")&IF(a[[#This Row],[Erythrocyte Sedimentation Rate]]<>\"\",IF(OR(VALUE(a[[#This Row],[Erythrocyte Sedimentation Rate]])<VALUE(b!AM$3),VALUE(a[[#This Row],[Erythrocyte Sedimentation Rate]])>VALUE(b!AM$4)),\"Erythrocyte Sedimentation Rate.  \",\"\"),\"\")&IF(a[[#This Row],[C-Reactive Protein]]<>\"\",IF(OR(VALUE(a[[#This Row],[C-Reactive Protein]])<VALUE(b!AN$3),VALUE(a[[#This Row],[C-Reactive Protein]])>VALUE(b!AN$4)),\"C-Reactive Protein.  \",\"\"),\"\")&IF(a[[#This Row],[Hemoglobin A1c]]<>\"\",IF(OR(VALUE(a[[#This Row],[Hemoglobin A1c]])<VALUE(b!U$3),VALUE(a[[#This Row],[Hemoglobin A1c]])>VALUE(b!U$4)),\"Hemoglobin A1c.  \",\"\"),\"\")&IF(a[[#This Row],[Homocysteine]]<>\"\",IF(OR(VALUE(a[[#This Row],[Homocysteine]])<VALUE(b!AE$3),VALUE(a[[#This Row],[Homocysteine]])>VALUE(b!AE$4)),\"Homocysteine.  \",\"\"),\"\")&IF(a[[#This Row],[Methylmalonic Acid]]<>\"\",IF(OR(VALUE(a[[#This Row],[Methylmalonic Acid]])<VALUE(b!AF$3),VALUE(a[[#This Row],[Methylmalonic Acid]])>VALUE(b!AF$4)),\"Methylmalonic Acid.  \",\"\"),\"\")&IF(a[[#This Row],[AFP, Tumor Marker]]<>\"\",IF(OR(VALUE(a[[#This Row],[AFP, Tumor Marker]])<VALUE(b!BJ$3),VALUE(a[[#This Row],[AFP, Tumor Marker]])>VALUE(b!BJ$4)),\"AFP, Tumor Marker.  \",\"\"),\"\")&IF(a[[#This Row],[Thiamine]]<>\"\",IF(OR(VALUE(a[[#This Row],[Thiamine]])<VALUE(b!AG$3),VALUE(a[[#This Row],[Thiamine]])>VALUE(b!AG$4)),\"Thiamine.  \",\"\"),\"\")&IF(a[[#This Row],[Zinc]]<>\"\",IF(OR(VALUE(a[[#This Row],[Zinc]])<VALUE(b!AH$3),VALUE(a[[#This Row],[Zinc]])>VALUE(b!AH$4)),\"Zinc.  \",\"\"),\"\")&IF(a[[#This Row],[Copper]]<>\"\",IF(OR(VALUE(a[[#This Row],[Copper]])<VALUE(b!AI$3),VALUE(a[[#This Row],[Copper]])>VALUE(b!AI$4)),\"Copper.  \",\"\"),\"\")&IF(a[[#This Row],[Digoxin Level]]<>\"\",IF(OR(VALUE(a[[#This Row],[Digoxin Level]])<VALUE(b!BI$3),VALUE(a[[#This Row],[Digoxin Level]])>VALUE(b!BI$4)),\"Digoxin Level.  \",\"\"),\"\")&IF(a[[#This Row],[Total Valproic Acid Level]]<>\"\",IF(OR(VALUE(a[[#This Row],[Total Valproic Acid Level]])<VALUE(b!BE$3),VALUE(a[[#This Row],[Total Valproic Acid Level]])>VALUE(b!BE$4)),\"Total Valproic Acid Level.  \",\"\"),\"\")&IF(a[[#This Row],[Total Phenytoin Level]]<>\"\",IF(OR(VALUE(a[[#This Row],[Total Phenytoin Level]])<VALUE(b!BF$3),VALUE(a[[#This Row],[Total Phenytoin Level]])>VALUE(b!BF$4)),\"Total Phenytoin Level.  \",\"\"),\"\")&IF(a[[#This Row],[Tacrolimus Level]]<>\"\",IF(OR(VALUE(a[[#This Row],[Tacrolimus Level]])<VALUE(b!BG$3),VALUE(a[[#This Row],[Tacrolimus Level]])>VALUE(b!BG$4)),\"Tacrolimus Level.  \",\"\"),\"\")&IF(a[[#This Row],[CD4 Count]]<>\"\",IF(OR(VALUE(a[[#This Row],[CD4 Count]])<VALUE(b!AL$3),VALUE(a[[#This Row],[CD4 Count]])>VALUE(b!AL$4)),\"CD4 Count.  \",\"\"),\"\")&IF(a[[#This Row],[Urine Microalbumin/Creatinine]]<>\"\",IF(OR(VALUE(a[[#This Row],[Urine Microalbumin/Creatinine]])<VALUE(b!AJ$3),VALUE(a[[#This Row],[Urine Microalbumin/Creatinine]])>VALUE(b!AJ$4)),\"Urine Microalbumin/Creatinine.  \",\"\"),\"\")","v":""},{"$f":"a[[#This Row],[subAbLab A]]&a[[#This Row],[subAbLab B]]","v":"LDL.  "},null,null,null,null,null,null,null,null,null,null,null,null,null,null,null,null,null,null,null,null,null,null,null,null,null,null,null,182,94,50,113,44970,null,null,null,null,null,null,null,null,null,null,null,null,null,null,null,null,null,null,null,null,null,null,null,null,null,null,null,null,null,null,null,null,null,null,null,null,null,null,null,null,null,null,null,null,null,null,null,null,null,null,null,null,null,null,null,null,null,null,null,null,null,null,null,null,null,null,null,null,null,null,null,null,null,{"$f":"a[[#Headers],[*]]","v":"*"},{"$f":"a[[#This Row],[Calcium]] + (0.8 * (4-a[[#This Row],[Albumin]]))","v":3.2},{"$f":"LIVERAPRI(a[[#This Row],[AST]],a[[#This Row],[Platelet]])","v":0},{"$f":"LIVERAPRIINTERPRETATION(\"[@APRI])\")","v":"Likely cirrhosis"},{"$f":"\"APRI liver fibrosis calculation using recent AST \" & a[[#This Row],[AST]] & \" and Platelet count of \" &a[[#This Row],[Platelet]]& \" was calculated to be \" & ROUND(a[[#This Row],[APRI]],2) & \", \" & a[[#This Row],[APRI interpretation]]&\".\"","v":"APRI liver fibrosis calculation using recent AST  and Platelet count of  was calculated to be 0, Likely cirrhosis."},{"$f":"LIVERANI(a[[#This Row],[Gender:]],a[[#This Row],[MCV]],a[[#This Row],[AST]],a[[#This Row],[ALT]],a[[#This Row],[Height:  ]],a[[#This Row],[Weight:  ]])","v":{"$error":"#VALUE!"}},{"$f":"LIVERANIPROBABILITY(a[[#This Row],[ANI]])","v":{"$error":"#VALUE!"}},{"$f":"\"Alcohol-associated liver disease to NAFLD Index (ANI) \" & TEXT(a[[#This Row],[ANI]],\"0.00\") & \" indicates \" & TEXT(a[[#This Row],[Probability of Alcoholic Liver Disease]],\"00%\") & \" probability of alcoholic liver disease (versus non-alcoholic liver disease).  \"","v":{"$error":"#VALUE!"}},{"$f":"IF(_xlfn.NUMBERVALUE(a[[#This Row],[Bilirubin, Total]])>3,3,IF(_xlfn.NUMBERVALUE(a[[#This Row],[Bilirubin, Total]])>=2,2,IF(_xlfn.NUMBERVALUE(a[[#This Row],[Bilirubin, Total]])>0,1,\"missing\")))","v":"missing"},{"$f":"IF(_xlfn.NUMBERVALUE(a[[#This Row],[Albumin]])>3.5,1,IF(_xlfn.NUMBERVALUE(a[[#This Row],[Albumin]])>=2.8,2,IF(_xlfn.NUMBERVALUE(a[[#This Row],[Albumin]])>0,3,\"missing\")))","v":"missing"},{"$f":"IF(_xlfn.NUMBERVALUE(a[[#This Row],[INR]])>2.2,3,IF(_xlfn.NUMBERVALUE(a[[#This Row],[INR]])>=1.7,2,IF(_xlfn.NUMBERVALUE(a[[#This Row],[INR]])>0,1,\"missing\")))","v":"missing"},null,null,{"$f":"SUM(a[[#This Row],[Bili Pts]:[Ence Pts]])","v":0},{"$f":"IF(_xlfn.NUMBERVALUE(a[[#This Row],[Child Pugh Score]])>9,\"C\",IF(_xlfn.NUMBERVALUE(a[[#This Row],[Child Pugh Score]])>=7,\"B\",IF(_xlfn.NUMBERVALUE(a[[#This Row],[Child Pugh Score]])>0,\"A\",\"missing\")))","v":"missing"},{"$f":"TENYEARASCVDRISK(a[[#This Row],[Gender:]],a[[#This Row],[Age: ]],a[[#This Row],[Race:]],a[[#This Row],[Current Smoker:]],a[[#This Row],[Diabetes:]],a[[#This Row],[Blood Pressure Treated:]],a[[#This Row],[Total Cholesterol]],a[[#This Row],[HDL]],a[[#This Row],[SBP:]])","v":0},{"$f":"LIFETIMEASCVDRISK(a[[#This Row],[Gender:]],a[[#This Row],[Age: ]],a[[#This Row],[Current Smoker:]],a[[#This Row],[Diabetes:]],a[[#This Row],[Total Cholesterol]],a[[#This Row],[SBP:]])","v":0},{"$f":"IF(OR(_xlfn.NUMBERVALUE(a[[#This Row],[LDL]])>190,a[[#This Row],[10-Year ASCVD]]>7.5%,a[[#This Row],[Lifetime ASCVD Risk]]>39%),\"YES\",\"NO\")","v":"NO"},{"$f":"IF(a[[#This Row],[Statin:]]=\"No\",IF(a[[#This Row],[Statin indicated (LDL>190,10 year ASCVD>7.5%, lifetime ASCVD>39%)]]=\"NO\",\"Statin DOES NOT need to be started because LDL at or below 190 mg/dL, 10 year ASCVD is at or below 7.5%, and lifetime ASCVD is at or below 39%\",\"Statin SHOULD be started because LDL is above 190 mg/dL, 10 year ASCVD is above 7.5%, or lifetime ASCVD is above 39%\"),IF(a[[#This Row],[Statin:]]=\"Yes\",\"Currently on Statin\",\"Error\"))","v":"Statin DOES NOT need to be started because LDL at or below 190 mg/dL, 10 year ASCVD is at or below 7.5%, and lifetime ASCVD is at or below 39%"},{"$f":"a[[#Headers],[*]]","v":"*"},null,null,null,null,null,null,null,null,null,null,null,null,null,null,null,null,null,null,null,null,null,null,null,null,null,null,null,null,null,null,null,null,null,null,null,null,null,null,null,null,null,null,null,null,null,null,null,null,null,null,null,null,null,null,null,null,null,null,null,null,null,null,{"$f":"\"Noteworthy testing:  \"&CHAR(10)&IF(a[[#This Row],[EKG:  ]]<>\"\",a[[#Headers],[EKG:  ]]&a[[#This Row],[EKG:  ]]&\" (\"&TEXT(a[[#This Row],[EKG Date:  ]],\"mm/dd/yyyy\")&\")\"&CHAR(10),\"\")&IF(a[[#This Row],[Holter Monitor:  ]]<>\"\",a[[#Headers],[Holter Monitor:  ]]&a[[#This Row],[Holter Monitor:  ]]&\" (\"&TEXT(a[[#This Row],[Holter Date:  ]],\"mm/dd/yyyy\")&\")\"&CHAR(10),\"\")&IF(a[[#This Row],[Echocardiogram:  ]]<>\"\",a[[#Headers],[Echocardiogram:  ]]&a[[#This Row],[Echocardiogram:  ]]&\" (\"&TEXT(a[[#This Row],[Echocardiogram Date:  ]],\"mm/dd/yyyy\")&\")\"&CHAR(10),\"\")&IF(a[[#This Row],[Cardiac Stress Test:  ]]<>\"\",a[[#Headers],[Cardiac Stress Test:  ]]&a[[#This Row],[Cardiac Stress Test:  ]]&\" (\"&TEXT(a[[#This Row],[Cardiac Stress Test Date:  ]],\"mm/dd/yyyy\")&\")\"&CHAR(10),\"\")&IF(a[[#This Row],[Chest Xray:  ]]<>\"\",a[[#Headers],[Chest Xray:  ]]&a[[#This Row],[Chest Xray:  ]]&\" (\"&TEXT(a[[#This Row],[CXR Date:  ]],\"mm/dd/yyyy\")&\")\"&CHAR(10),\"\")&IF(a[[#This Row],[Xray:  ]]<>\"\",a[[#Headers],[Xray:  ]]&a[[#This Row],[Xray:  ]]&\" (\"&TEXT(a[[#This Row],[Xray Date]],\"mm/dd/yyyy\")&\")\"&CHAR(10),\"\")&IF(a[[#This Row],[CT:  ]]<>\"\",a[[#Headers],[CT:  ]]&a[[#This Row],[CT:  ]]&\" (\"&TEXT(a[[#This Row],[CT Date:  ]],\"mm/dd/yyyy\")&\")\"&CHAR(10),\"\")&IF(a[[#This Row],[MRI:  ]]<>\"\",a[[#Headers],[MRI:  ]]&a[[#This Row],[MRI:  ]]&\" (\"&TEXT(a[[#This Row],[MRI Date:  ]],\"mm/dd/yyyy\")&\")\"&CHAR(10),\"\")&IF(a[[#This Row],[EMG:  ]]<>\"\",a[[#Headers],[EMG:  ]]&a[[#This Row],[EMG:  ]]&\" (\"&TEXT(a[[#This Row],[EMG Date:  ]],\"mm/dd/yyyy\")&\")\"&CHAR(10),\"\")&IF(a[[#This Row],[EEG:  ]]<>\"\",a[[#Headers],[EEG:  ]]&a[[#This Row],[EEG:  ]]&\" (\"&TEXT(a[[#This Row],[EEG Date:  ]],\"mm/dd/yyyy\")&\")\"&CHAR(10),\"\")&IF(a[[#This Row],[Pulmonary Function Testing:  ]]<>\"\",a[[#Headers],[Pulmonary Function Testing:  ]]&a[[#This Row],[Pulmonary Function Testing:  ]]&\" (\"&TEXT(a[[#This Row],[Pulmonary Testing Date:  ]],\"mm/dd/yyyy\")&\")\"&CHAR(10),\"\")&IF(a[[#This Row],[Sleep Apnea Testing:  ]]<>\"\",a[[#Headers],[Sleep Apnea Testing:  ]]&a[[#This Row],[Sleep Apnea Testing:  ]]&\" (\"&TEXT(a[[#This Row],[Sleep Test Date:  ]],\"mm/dd/yyyy\")&\")\"&CHAR(10),\"\")&IF(a[[#This Row],[Ultrasound:  ]]<>\"\",a[[#Headers],[Ultrasound:  ]]&a[[#This Row],[Ultrasound:  ]]&\" (\"&TEXT(a[[#This Row],[Ultrasound Date:  ]],\"mm/dd/yyyy\")&\")\"&CHAR(10),\"\")&IF(a[[#This Row],[Renal Ultrasound:  ]]<>\"\",a[[#Headers],[Renal Ultrasound:  ]]&a[[#This Row],[Renal Ultrasound:  ]]&\" (\"&TEXT(a[[#This Row],[Renal Ultrasound Date:  ]],\"mm/dd/yyyy\")&\")\"&CHAR(10),\"\")&IF(a[[#This Row],[Liver Ultrasound:  ]]<>\"\",a[[#Headers],[Liver Ultrasound:  ]]&a[[#This Row],[Liver Ultrasound:  ]]&\" (\"&TEXT(a[[#This Row],[Liver Ultrasound Date:  ]],\"mm/dd/yyyy\")&\")\"&CHAR(10),\"\")&IF(a[[#This Row],[AAA screen (male smokers 65+):  ]]<>\"\",a[[#Headers],[AAA screen (male smokers 65+):  ]]&a[[#This Row],[AAA screen (male smokers 65+):  ]]&\" (\"&TEXT(a[[#This Row],[AAA Date:  ]],\"mm/dd/yyyy\")&\")\"&CHAR(10),\"\")&IF(a[[#This Row],[Colon cancer screening (45+):  ]]<>\"\",a[[#Headers],[Colon cancer screening (45+):  ]]&a[[#This Row],[Colon cancer screening (45+):  ]]&\" (\"&TEXT(a[[#This Row],[Colon cancer screening date:  ]],\"mm/dd/yyyy\")&\")\"&CHAR(10),\"\")&IF(a[[#This Row],[Lung cancer screening (55-79):  ]]<>\"\",a[[#Headers],[Lung cancer screening (55-79):  ]]&a[[#This Row],[Lung cancer screening (55-79):  ]]&\" (\"&TEXT(a[[#This Row],[Lung cancer screening date:  ]],\"mm/dd/yyyy\")&\")\"&CHAR(10),\"\")&IF(a[[#This Row],[Dental Exam Date:  ]]<>\"\",a[[#This Row],[Dental Exam Date:  ]]&TEXT(a[[#This Row],[Dental Exam Date:  ]],\"mm/dd/yyyy\")&\")\"&CHAR(10),\"\")&IF(a[[#This Row],[Foot Exam:  ]]<>\"\",a[[#Headers],[Foot Exam:  ]]&a[[#This Row],[Foot Exam:  ]]&\" (\"&TEXT(a[[#This Row],[Foot Exam Date:  ]],\"mm/dd/yyyy\")&\")\"&CHAR(10),\"\")&IF(a[[#This Row],[Fundoscopy:  ]]<>\"\",a[[#Headers],[Fundoscopy:  ]]&a[[#This Row],[Fundoscopy:  ]]&\" (\"&TEXT(a[[#This Row],[Fundoscopy Date:  ]],\"mm/dd/yyyy\")&\")\"&CHAR(10),\"\")&IF(a[[#This Row],[DEXA bone density:  ]]<>\"\",a[[#Headers],[DEXA bone density:  ]]&a[[#This Row],[DEXA bone density:  ]]&\" (\"&TEXT(a[[#This Row],[DEXA Date:  ]],\"mm/dd/yyyy\")&\")\"&CHAR(10),\"\")&IF(a[[#This Row],[PPD (mm):  ]]<>\"\",a[[#Headers],[PPD (mm):  ]]&a[[#This Row],[PPD (mm):  ]]&\" (\"&TEXT(a[[#This Row],[PPD Date:  ]],\"mm/dd/yyyy\")&\")\"&CHAR(10),\"\")&IF(a[[#This Row],[Hep B Serology:  ]]<>\"\",a[[#Headers],[Hep B Serology:  ]]&a[[#This Row],[Hep B Serology:  ]]&\" \"&b!BD195&\" (\"&TEXT(a[[#This Row],[Hep B serology Date:  ]],\"mm/dd/yyyy\")&\")\"&CHAR(10),\"\")&IF(a[[#This Row],[Hep C Serology:  ]]<>\"\",a[[#Headers],[Hep C Serology:  ]]&a[[#This Row],[Hep C Serology:  ]]&\" \"&b!AZ195&\" (\"&TEXT(a[[#This Row],[Hep C Serology Date:  ]],\"mm/dd/yyyy\")&\")\"&CHAR(10),\"\")&IF(a[[#This Row],[HIV:  ]]<>\"\",a[[#Headers],[HIV:  ]]&a[[#This Row],[HIV:  ]]&\" (\"&TEXT(a[[#This Row],[HIV Date:]],\"mm/dd/yyyy\")&\")\"&CHAR(10),\"\")&IF(a[[#This Row],[Meningococcal series completion date:  ]]<>\"\",a[[#Headers],[Meningococcal series completion date:  ]]&TEXT(a[[#This Row],[Meningococcal series completion date:  ]],\"mm/dd/yyyy\")&\")\"&CHAR(10),\"\")&IF(a[[#This Row],[Influenza (annual):  ]]<>\"\",a[[#Headers],[Influenza (annual):  ]]&TEXT(a[[#This Row],[Influenza (annual):  ]],\"mm/dd/yyyy\")&\")\"&CHAR(10),\"\")&IF(a[[#This Row],[Hepatitis B series completion date:  ]]<>\"\",a[[#Headers],[Hepatitis B series completion date:  ]]&TEXT(a[[#This Row],[Hepatitis B series completion date:  ]],\"mm/dd/yyyy\")&\")\"&CHAR(10),\"\")&IF(a[[#This Row],[MMR series completion date:  ]]<>\"\",a[[#Headers],[MMR series completion date:  ]]&TEXT(a[[#This Row],[MMR series completion date:  ]],\"mm/dd/yyyy\")&\")\"&CHAR(10),\"\")&IF(a[[#This Row],[Tdap (every 10 years):  ]]<>\"\",a[[#Headers],[Tdap (every 10 years):  ]]&TEXT(a[[#This Row],[Tdap (every 10 years):  ]],\"mm/dd/yyyy\")&\")\"&CHAR(10),\"\")&IF(a[[#This Row],[Pneumovax 13 (CKD or immune-suppressed):  ]]<>\"\",a[[#Headers],[Pneumovax 13 (CKD or immune-suppressed):  ]]&TEXT(a[[#This Row],[Pneumovax 13 (CKD or immune-suppressed):  ]],\"mm/dd/yyyy\")&\")\"&CHAR(10),\"\")&IF(a[[#This Row],[Pneumovax 23 (age 65, CHF, lung disease, DM, liver disease):  ]]<>\"\",a[[#Headers],[Pneumovax 23 (age 65, CHF, lung disease, DM, liver disease):  ]]&TEXT(a[[#This Row],[Pneumovax 23 (age 65, CHF, lung disease, DM, liver disease):  ]],\"mm/dd/yyyy\")&\")\"&CHAR(10),\"\")&IF(a[[#This Row],[Recombinant Zoster (age 50 or immune-suppressed):  ]]<>\"\",a[[#Headers],[Recombinant Zoster (age 50 or immune-suppressed):  ]]&TEXT(a[[#This Row],[Recombinant Zoster (age 50 or immune-suppressed):  ]],\"mm/dd/yyyy\")&\")\"&CHAR(10),\"\")&IF(a[[#This Row],[Other Procedure or Test:  ]]<>\"\",a[[#Headers],[Other Procedure or Test:  ]]&a[[#This Row],[Other Procedure or Test:  ]]&CHAR(10),\"\")","v":"Noteworthy testing:  \n"}]
[{"$f":"a[[#Headers],[*]]","v":"*"},null,null,null,{"$f":"INT(((TODAY())-a[[#This Row],[DOB:]])/365.25)","v":124},null,null,null,{"$f":"LEFT(a[[#This Row],[Blood Pressure: ]],FIND(\"/\",a[[#This Row],[Blood Pressure: ]])-1)","v":{"$error":"#VALUE!"}},{"$f":"RIGHT(a[[#This Row],[Blood Pressure: ]],LEN(a[[#This Row],[Blood Pressure: ]])-FIND(\"/\",a[[#This Row],[Blood Pressure: ]]))","v":{"$error":"#VALUE!"}},null,null,{"$f":"(a[[#This Row],[Weight:  ]]/(a[[#This Row],[Height:  ]]^2))*703","v":{"$error":"#DIV/0!"}},null,null,null,null,{"$f":"a[[#Headers],[*]]","v":"*"},null,null,null,null,null,null,null,null,null,null,null,null,null,null,null,null,null,null,null,null,null,null,null,{"$f":"IF(a[[#This Row],['# Co-managed:  ]]<>\"\",a[[#Headers],['# Co-managed:  ]]&a[[#This Row],['# Co-managed:  ]]&CHAR(10),\"\")&IF(a[[#This Row],['# Weight/Diet/Activity:  ]]<>\"\",a[[#Headers],['# Weight/Diet/Activity:  ]]&a[[#This Row],['# Weight/Diet/Activity:  ]]&CHAR(10),\"\")&IF(a[[#This Row],['# Cholesterol/ASCVD risk:  ]]<>\"\",a[[#Headers],['# Cholesterol/ASCVD risk:  ]]&a[[#This Row],['# Cholesterol/ASCVD risk:  ]]&CHAR(10),\"\")&IF(a[[#This Row],['# Blood pressure/Shortness of breath/Lower extremity swelling:  ]]<>\"\",a[[#Headers],['# Blood pressure/Shortness of breath/Lower extremity swelling:  ]]&a[[#This Row],['# Blood pressure/Shortness of breath/Lower extremity swelling:  ]]&CHAR(10),\"\")&IF(a[[#This Row],['# Dizziness/Lightheadedness/Vertigo/Falls:  ]]<>\"\",a[[#Headers],['# Dizziness/Lightheadedness/Vertigo/Falls:  ]]&a[[#This Row],['# Dizziness/Lightheadedness/Vertigo/Falls:  ]]&CHAR(10),\"\")&IF(a[[#This Row],['# COPD/Asthma:  ]]<>\"\",a[[#Headers],['# COPD/Asthma:  ]]&a[[#This Row],['# COPD/Asthma:  ]]&CHAR(10),\"\")&IF(a[[#This Row],['# Sleep apnea:  ]]<>\"\",a[[#Headers],['# Sleep apnea:  ]]&a[[#This Row],['# Sleep apnea:  ]]&CHAR(10),\"\")&IF(a[[#This Row],['# Chronic pain/Arthritis:  ]]<>\"\",a[[#Headers],['# Chronic pain/Arthritis:  ]]&a[[#This Row],['# Chronic pain/Arthritis:  ]]&CHAR(10),\"\")&IF(a[[#This Row],['# Gastroesophageal reflux/Constipation/Melena/Hematochezia:  ]]<>\"\",a[[#Headers],['# Gastroesophageal reflux/Constipation/Melena/Hematochezia:  ]]&a[[#This Row],['# Gastroesophageal reflux/Constipation/Melena/Hematochezia:  ]]&CHAR(10),\"\")&IF(a[[#This Row],['# Urinary symptoms:  ]]<>\"\",a[[#Headers],['# Urinary symptoms:  ]]&a[[#This Row],['# Urinary symptoms:  ]]&CHAR(10),\"\")&IF(a[[#This Row],['# Last menstrual period/Pregnancy:  ]]<>\"\",a[[#Headers],['# Last menstrual period/Pregnancy:  ]]&a[[#This Row],['# Last menstrual period/Pregnancy:  ]]&CHAR(10),\"\")&IF(a[[#This Row],['# Mood/Depression/Anxiety:  ]]<>\"\",a[[#Headers],['# Mood/Depression/Anxiety:  ]]&a[[#This Row],['# Mood/Depression/Anxiety:  ]]&CHAR(10),\"\")&IF(a[[#This Row],['# Vision:  ]]<>\"\",a[[#Headers],['# Vision:  ]]&a[[#This Row],['# Vision:  ]]&CHAR(10),\"\")&IF(a[[#This Row],['# Hearing:  ]]<>\"\",a[[#Headers],['# Hearing:  ]]&a[[#This Row],['# Hearing:  ]]&CHAR(10),\"\")&IF(a[[#This Row],['# Dental:  ]]<>\"\",a[[#Headers],['# Dental:  ]]&a[[#This Row],['# Dental:  ]]&CHAR(10),\"\")&IF(a[[#This Row],['# Surgeries/Procedures/Implants/Metal:  ]]<>\"\",a[[#Headers],['# Surgeries/Procedures/Implants/Metal:  ]]&a[[#This Row],['# Surgeries/Procedures/Implants/Metal:  ]]&CHAR(10),\"\")&IF(a[[#This Row],['# Alcohol:  ]]<>\"\",a[[#Headers],['# Alcohol:  ]]&a[[#This Row],['# Alcohol:  ]]&CHAR(10),\"\")&IF(a[[#This Row],['# Tobacco:  ]]<>\"\",a[[#Headers],['# Tobacco:  ]]&a[[#This Row],['# Tobacco:  ]]&CHAR(10),\"\")&IF(a[[#This Row],['# Recreational drugs:  ]]<>\"\",a[[#Headers],['# Recreational drugs:  ]]&a[[#This Row],['# Recreational drugs:  ]]&CHAR(10),\"\")&IF(a[[#This Row],['# Surgeries/Procedures/Implants/Metal:  ]]<>\"\",a[[#Headers],['# Surgeries/Procedures/Implants/Metal:  ]]&a[[#This Row],['# Surgeries/Procedures/Implants/Metal:  ]]&CHAR(10),\"\")&IF(a[[#This Row],['# Family history:  ]]<>\"\",a[[#Headers],['# Family history:  ]]&a[[#This Row],['# Family history:  ]]&CHAR(10),\"\")&IF(a[[#This Row],['# Tobacco:  ]]<>\"\",a[[#Headers],['# Tobacco:  ]]&a[[#This Row],['# Tobacco:  ]]&CHAR(10),\"\")&IF(a[[#This Row],['# ADLs/IADLs:  ]]<>\"\",a[[#Headers],['# ADLs/IADLs:  ]]&a[[#This Row],['# ADLs/IADLs:  ]]&CHAR(10),\"\")&IF(a[[#This Row],['# Other active issues:  ]]<>\"\",a[[#Headers],['# Other active issues:  ]]&a[[#This Row],['# Other active issues:  ]]&CHAR(10),\"\")&IF(a[[#This Row],['# Other chronic issues:  ]]<>\"\",a[[#Headers],['# Other chronic issues:  ]]&a[[#This Row],['# Other chronic issues:  ]]&CHAR(10),\"\")","v":""},{"$f":"a[[#Headers],[*]]","v":"*"},{"$f":"IF(AND(a[[#This Row],[Sodium]]<>\"\",a[[#This Row],[Potassium]]<>\"\",a[[#This Row],[Chloride]]<>\"\",a[[#This Row],[Bicarbonate]]<>\"\",a[[#This Row],[BUN]]<>\"\",a[[#This Row],[Creatinine]]<>\"\",a[[#This Row],[Calcium]]<>\"\",a[[#This Row],[Glucose]]<>\"\",a[[#This Row],[BMPD]]<>\"\"),\"Basic chemistry panel on \"&TEXT(a[[#This Row],[BMPD]],\"mmmm d, yyyy\")&\" showed \"&a[[#Headers],[Sodium]]&\" \"&a[[#This Row],[Sodium]]&\" \"&b!B$2&\", \"&a[[#Headers],[Potassium]]&\" \"&a[[#This Row],[Potassium]]&\" \"&b!C$2&\", \"&a[[#Headers],[Chloride]]&\" \"&a[[#This Row],[Chloride]]&\" \"&b!D$2&\", \"&a[[#Headers],[Bicarbonate]]&\" \"&a[[#This Row],[Bicarbonate]]&\" \"&b!E$2&\", \"&a[[#Headers],[BUN]]&\" \"&a[[#This Row],[BUN]]&\" \"&b!F$2&\", \"&a[[#Headers],[Creatinine]]&\" \"&a[[#This Row],[Creatinine]]&\" \"&b!G$2&\", \"&a[[#Headers],[Calcium]]&\" \"&a[[#This Row],[Calcium]]&\" \"&b!H$2&\", and \"&a[[#Headers],[Glucose]]&\" \"&a[[#This Row],[Glucose]]&\" \"&b!I$2,\"No BMP found\")&IF(AND(a[[#This Row],[Cystatin C]]<>\"\",a[[#This Row],[CysD]]<>\"\"),\". On \"&TEXT(a[[#This Row],[CysD]],\"mmmm d, yyyy\")&\" \"&a[[#Headers],[Cystatin C]]&\" was \"&a[[#This Row],[Cystatin C]]&\" \"&b!AK$2,\"\")&\".  On \"&TEXT(a[[#This Row],[CMPD]],\"mmmm d, yyyy\")&\" labs included \"&a[[#Headers],[AST]]&\" \"&a[[#This Row],[AST]]&\" \"&b!J$2&\", \"&a[[#Headers],[ALT]]&\" \"&a[[#This Row],[ALT]]&\" \"&b!K$2&\", \"&a[[#Headers],[Alkaline Phosphatase]]&\" \"&a[[#This Row],[Alkaline Phosphatase]]&\" \"&b!L$2&\", \"&a[[#Headers],[Bilirubin, Total]]&\" \"&a[[#This Row],[Bilirubin, Total]]&\" \"&b!M$2&\", \"&a[[#Headers],[Total Protein]]&\" \"&a[[#This Row],[Total Protein]]&\" \"&b!N$2&\", \"&a[[#Headers],[Albumin]]&\" \"&a[[#This Row],[Albumin]]&\" \"&b!O$2&\", and \"&a[[#Headers],[Globulin]]&\" \"&a[[#This Row],[Globulin]]&\" \"&b!P$2&IF(AND(a[[#This Row],[LDH]]<>\"\",a[[#This Row],[LDHD]]<>\"\"),\". On \"&TEXT(a[[#This Row],[LDHD]],\"mmmm d, yyyy\")&\" \"&a[[#Headers],[LDH]]&\" was \"&a[[#This Row],[LDH]]&\" \"&b!BH$2,\"\")&IF(AND(a[[#This Row],[Magnesium]]<>\"\",a[[#This Row],[MagD]]<>\"\"),\". On \"&TEXT(a[[#This Row],[MagD]],\"mmmm d, yyyy\")&\" \"&a[[#Headers],[Magnesium]]&\" was \"&a[[#This Row],[Magnesium]]&\" \"&b!AS$2,\"\")&IF(AND(a[[#This Row],[Phosphorus]]<>\"\",a[[#This Row],[PhosD]]<>\"\"),\". On \"&TEXT(a[[#This Row],[PhosD]],\"mmmm d, yyyy\")&\" \"&a[[#Headers],[Phosphorus]]&\" was \"&a[[#This Row],[Phosphorus]]&\" \"&b!AT$2,\"\")&IF(AND(a[[#This Row],[Vitamin D, 25-Hydroxy level]]<>\"\",a[[#This Row],[VitDD]]<>\"\"),\".  He had a \"&a[[#Headers],[Vitamin D, 25-Hydroxy level]]&\" of \"&a[[#This Row],[Vitamin D, 25-Hydroxy level]]&\" \"&b!AB$2&\" on \"&TEXT(a[[#This Row],[VitDD]],\"mmmm d, yyyy\"),\"\")&IF(AND(a[[#This Row],[PTH]]<>\"\",a[[#This Row],[PTHD]]<>\"\"),\". On \"&TEXT(a[[#This Row],[PTHD]],\"mmmm d, yyyy\")&\" \"&a[[#Headers],[PTH]]&\" was \"&a[[#This Row],[PTH]]&\" \"&b!AU$2,\"\")&IF(AND(a[[#This Row],[Uric Acid]]<>\"\",a[[#This Row],[UricD]]<>\"\"),\". On \"&TEXT(a[[#This Row],[UricD]],\"mmmm d, yyyy\")&\" \"&a[[#Headers],[Uric Acid]]&\" was \"&a[[#This Row],[Uric Acid]]&\" \"&b!AV$2,\"\")&IF(AND(a[[#This Row],[Amylase]]<>\"\",a[[#This Row],[AmyD]]<>\"\"),\". On \"&TEXT(a[[#This Row],[AmyD]],\"mmmm d, yyyy\")&\" \"&a[[#Headers],[Amylase]]&\" was \"&a[[#This Row],[Amylase]]&\" \"&b!AW$2,\"\")&IF(AND(a[[#This Row],[Lipase]]<>\"\",a[[#This Row],[LipaD]]<>\"\"),\". On \"&TEXT(a[[#This Row],[LipaD]],\"mmmm d, yyyy\")&\" \"&BQ$1&\" was \"&a[[#This Row],[Lipase]]&\" \"&b!AX$2,\"\")&IF(AND(a[[#This Row],[AFP, Tumor Marker]]<>\"\",a[[#This Row],[AFPD]]<>\"\"),\". On \"&TEXT(a[[#This Row],[AFPD]],\"mmmm d, yyyy\")&\" \"&a[[#Headers],[AFP, Tumor Marker]]&\" was \"&a[[#This Row],[AFP, Tumor Marker]]&\" \"&b!BJ$2,\"\")&IF(AND(a[[#This Row],[WBC]]<>\"\",a[[#This Row],[Hemoglobin]]<>\"\",a[[#This Row],[MCV]]<>\"\",a[[#This Row],[Platelet]]<>\"\",a[[#This Row],[CBCD]]<>\"\"),\".  On \"&TEXT(a[[#This Row],[CBCD]],\"mmmm d, yyyy\")&\" a complete blood count had \"&a[[#Headers],[WBC]]&\" \"&a[[#This Row],[WBC]]&\" \"&b!Q$2&\", \"&a[[#Headers],[Hemoglobin]]&\" \"&a[[#This Row],[Hemoglobin]]&\" \"&b!R$2&\", \"&a[[#Headers],[MCV]]&\" \"&a[[#This Row],[MCV]]&\" \"&b!S$2&\", \"&a[[#Headers],[Platelet]]&\" \"&a[[#This Row],[Platelet]]&\" \"&b!T$2,\".  No CBC found\")&IF(AND(a[[#This Row],[Erythrocyte Sedimentation Rate]]<>\"\",a[[#This Row],[ESRD]]<>\"\"),\". On \"&TEXT(a[[#This Row],[ESRD]],\"mmmm d, yyyy\")&\" \"&a[[#Headers],[Erythrocyte Sedimentation Rate]]&\" was \"&a[[#This Row],[Erythrocyte Sedimentation Rate]]&\" \"&b!AM$2,\"\")&IF(AND(a[[#This Row],[C-Reactive Protein]]<>\"\",a[[#This Row],[CRPD]]<>\"\"),\". On \"&TEXT(a[[#This Row],[CRPD]],\"mmmm d, yyyy\")&\" \"&a[[#Headers],[C-Reactive Protein]]&\" was \"&a[[#This Row],[C-Reactive Protein]]&\" \"&b!AN$2,\"\")&IF(AND(a[[#This Row],[Hepatitis B Viral Load]]<>\"\",a[[#This Row],[HBVD]]<>\"\"),\". On \"&TEXT(a[[#This Row],[HBVD]],\"mmmm d, yyyy\")&\" \"&a[[#Headers],[Hepatitis B Viral Load]]&\" was \"&a[[#This Row],[Hepatitis B Viral Load]]&\" \"&b!BB$2,\"\")&IF(AND(a[[#This Row],[Hepatitis C Viral Load]]<>\"\",a[[#This Row],[HCVD]]<>\"\"),\". On \"&TEXT(a[[#This Row],[HCVD]],\"mmmm d, yyyy\")&\" \"&a[[#Headers],[Hepatitis C Viral Load]]&\" was \"&a[[#This Row],[Hepatitis C Viral Load]]&\" \"&b!BA$2,\"\")&IF(AND(a[[#This Row],[HIV Viral Load]]<>\"\",a[[#This Row],[HIVD]]<>\"\"),\". On \"&TEXT(a[[#This Row],[HIVD]],\"mmmm d, yyyy\")&\" \"&a[[#Headers],[HIV Viral Load]]&\" was \"&a[[#This Row],[HIV Viral Load]]&\" \"&b!BC$2,\"\")&IF(AND(a[[#This Row],[CD4 Count]]<>\"\",a[[#This Row],[CD4D]]<>\"\"),\". On \"&TEXT(a[[#This Row],[CD4D]],\"mmmm d, yyyy\")&\" \"&a[[#Headers],[CD4 Count]]&\" was \"&a[[#This Row],[CD4 Count]]&\" \"&b!AL$2,\"\")&IF(AND(a[[#This Row],[Iron]]<>\"\",a[[#This Row],[TIBC]]<>\"\",a[[#This Row],[% Saturation]]<>\"\",a[[#This Row],[IronD]]<>\"\"),\". Iron Testing: On \"&TEXT(a[[#This Row],[IronD]],\"mmmm d, yyyy\")&\" \"&a[[#Headers],[Iron]]&\" was \"&a[[#This Row],[Iron]]&\" \"&b!AO$2&\", \"&a[[#Headers],[TIBC]]&\" was \"&a[[#This Row],[TIBC]]&\" \"&b!AP$2&\", \"&a[[#Headers],[% Saturation]]&\" was \"&a[[#This Row],[% Saturation]]&\" \"&b!AQ$2,\"\")&IF(AND(a[[#This Row],[Ferritin]]<>\"\",a[[#This Row],[FerrD]]<>\"\"),\". On \"&TEXT(a[[#This Row],[FerrD]],\"mmmm d, yyyy\")&\" \"&a[[#Headers],[Ferritin]]&\" was \"&a[[#This Row],[Ferritin]]&\" \"&b!AR$2,\"\")&IF(AND(a[[#This Row],[Vitamin B12 level]]<>\"\",a[[#This Row],[VitB12D]]<>\"\"),\". On \"&TEXT(a[[#This Row],[VitB12D]],\"mmmm d, yyyy\")&\" \"&a[[#Headers],[Vitamin B12 level]]&\" was \"&a[[#This Row],[Vitamin B12 level]]&\" \"&b!AC$2,\"\")&IF(AND(a[[#This Row],[Folate level]]<>\"\",a[[#This Row],[FolaD]]<>\"\"),\". On \"&TEXT(a[[#This Row],[FolaD]],\"mmmm d, yyyy\")&\" \"&a[[#Headers],[Folate level]]&\" was \"&a[[#This Row],[Folate level]]&\" \"&b!AD$2,\"\")&IF(AND(a[[#This Row],[Homocysteine]]<>\"\",a[[#This Row],[HomoD]]<>\"\"),\". On \"&TEXT(a[[#This Row],[HomoD]],\"mmmm d, yyyy\")&\" \"&a[[#Headers],[Homocysteine]]&\" was \"&a[[#This Row],[Homocysteine]]&\" \"&b!AE$2,\"\")&IF(AND(a[[#This Row],[Methylmalonic Acid]]<>\"\",a[[#This Row],[MethD]]<>\"\"),\". On \"&TEXT(a[[#This Row],[MethD]],\"mmmm d, yyyy\")&\" \"&a[[#Headers],[Methylmalonic Acid]]&\" was \"&a[[#This Row],[Methylmalonic Acid]]&\" \"&b!AF$2,\"\")&IF(AND(a[[#This Row],[Thiamine]]<>\"\",a[[#This Row],[ThiaD]]<>\"\"),\". On \"&TEXT(a[[#This Row],[ThiaD]],\"mmmm d, yyyy\")&\" \"&a[[#Headers],[Thiamine]]&\" was \"&a[[#This Row],[Thiamine]]&\" \"&b!AG$2,\"\")&IF(AND(a[[#This Row],[Zinc]]<>\"\",a[[#This Row],[ZincD]]<>\"\"),\". On \"&TEXT(a[[#This Row],[ZincD]],\"mmmm d, yyyy\")&\" \"&a[[#Headers],[Zinc]]&\" was \"&a[[#This Row],[Zinc]]&\" \"&b!AH$2,\"\")&IF(AND(a[[#This Row],[Copper]]<>\"\",a[[#This Row],[CopD]]<>\"\"),\". On \"&TEXT(a[[#This Row],[CopD]],\"mmmm d, yyyy\")&\" \"&a[[#Headers],[Copper]]&\" was \"&a[[#This Row],[Copper]]&\" \"&b!AI$2,\"\")&IF(AND(a[[#This Row],[LipiD]]<>\"\",a[[#This Row],[Total Cholesterol]]<>\"\",a[[#This Row],[Triglycerides]]<>\"\",a[[#This Row],[HDL]]<>\"\",a[[#This Row],[LDL]]<>\"\"),\".  On \"&TEXT(a[[#This Row],[LipiD]],\"mmmm d, yyyy\")&\" fasting lipids included \"&a[[#Headers],[Total Cholesterol]]&\" \"&a[[#This Row],[Total Cholesterol]]&\" \"&b!V$2&\", \"&a[[#Headers],[Triglycerides]]&\" \"&a[[#This Row],[Triglycerides]]&\" \"&b!W$2&\", \"&a[[#Headers],[HDL]]&\" \"&a[[#This Row],[HDL]]&\" \"&b!X$2&\", and \"&a[[#Headers],[LDL]]&\" \"&a[[#This Row],[LDL]]&\" \"&b!Y$2,\"\")","v":"No BMP found.  On January 0, 1900 labs included AST  (N<=34), ALT  (N<=55), Alkaline Phosphatase  (N 40-150), Bilirubin, Total  (N 0.2-1.2), Total Protein  (N 6.0-8.3), Albumin  (N 3.5-5.2), and Globulin  (N 2.0-3.7).  No CBC found"},{"$f":"IF(AND(a[[#This Row],[A1cD]]<>\"\",a[[#This Row],[Hemoglobin A1c]]<>\"\"),\".  On \"&TEXT(a[[#This Row],[A1cD]],\"mmmm d, yyyy\")&\" \"&a[[#Headers],[Hemoglobin A1c]]&\" was \"&a[[#This Row],[Hemoglobin A1c]]&\" \"&b!U$2,\"\")&IF(AND(a[[#This Row],[TSH]]<>\"\",a[[#This Row],[TSHD]]<>\"\"),\".  Thyroid testing:  \"&a[[#Headers],[TSH]]&\" was \"&a[[#This Row],[TSH]]&\" \"&b!Z$2&\" on \"&TEXT(a[[#This Row],[TSHD]],\"mmmm d, yyyy\"),\"\")&IF(AND(a[[#This Row],[Free T4]]<>\"\",a[[#This Row],[FT4D]]<>\"\"),\".  On \"&TEXT(a[[#This Row],[FT4D]],\"mmmm d, yyyy\")&\" \"&a[[#Headers],[Free T4]]&\" was \"&a[[#This Row],[Free T4]]&\" \"&b!AY$2,\"\")&IF(AND(a[[#This Row],[PSA level]]<>\"\",a[[#This Row],[PSAD]]<>\"\"),\". Prostate: On \"&TEXT(a[[#This Row],[PSAD]],\"mmmm d, yyyy\")&\" \"&a[[#Headers],[PSA level]]&\" was \"&a[[#This Row],[PSA level]]&\" \"&b!AA$2,\"\")&IF(AND(a[[#This Row],[Urine Microalbumin/Creatinine]]<>\"\",a[[#This Row],[MACD]]<>\"\"),\".  On \"&TEXT(a[[#This Row],[MACD]], \"mmmm d, yyyy\")&\" \"&a[[#Headers],[Urine Microalbumin/Creatinine]]&\" was \"&a[[#This Row],[Urine Microalbumin/Creatinine]]&\" \"&b!AJ$2,\"\")&IF(AND(a[[#This Row],[other urine testing]]<>\"\",a[[#This Row],[OthUD]]<>\"\"),\".  On \"&TEXT(a[[#This Row],[OthUD]], \"mmmm d, yyyy\")&\" \"&a[[#Headers],[other urine testing]]&\" was notable for \"&a[[#This Row],[other urine testing]],\"\")&IF(AND(a[[#This Row],[other lab testing]]<>\"\",a[[#This Row],[OthLD]]<>\"\"),\".  On \"&TEXT(a[[#This Row],[OthLD]], \"mmmm d, yyyy\")&\" \"&a[[#Headers],[other lab testing]]&\" was notable for \"&a[[#This Row],[other lab testing]],\"\")&IF(AND(a[[#This Row],[additional lab testing]]<>\"\",a[[#This Row],[AddLD]]<>\"\"),\".  On \"&TEXT(a[[#This Row],[AddLD]], \"mmmm d, yyyy\")&\" \"&a[[#Headers],[additional lab testing]]&\" was notable for \"&a[[#This Row],[additional lab testing]],\"\")&IF(AND(a[[#This Row],[Total Valproic Acid Level]]<>\"\",a[[#This Row],[ValpD]]<>\"\"),\".  On \"&TEXT(a[[#This Row],[ValpD]],\"mmmm d, yyyy\")&\" \"&a[[#Headers],[Total Valproic Acid Level]]&\" was \"&a[[#This Row],[Total Valproic Acid Level]]&\" \"&b!BE$2,\"\")&IF(AND(a[[#This Row],[Total Phenytoin Level]]<>\"\",a[[#This Row],[PhenD]]<>\"\"),\".  On \"&TEXT(a[[#This Row],[PhenD]],\"mmmm d, yyyy\")&\" \"&a[[#Headers],[Total Phenytoin Level]]&\" was \"&a[[#This Row],[Total Phenytoin Level]]&\" \"&b!BF$2,\"\")&IF(AND(a[[#This Row],[Tacrolimus Level]]<>\"\",a[[#This Row],[TacrD]]<>\"\"),\".  On \"&TEXT(a[[#This Row],[TacrD]],\"mmmm d, yyyy\")&\" \"&a[[#Headers],[Tacrolimus Level]]&\" was \"&a[[#This Row],[Tacrolimus Level]]&\" \"&b!BG$2,\"\")&IF(AND(a[[#This Row],[Digoxin Level]]<>\"\",a[[#This Row],[DigD]]<>\"\"),\".  On \"&TEXT(a[[#This Row],[DigD]],\"mmmm d, yyyy\")&\" \"&a[[#Headers],[Digoxin Level]]&\" was \"&a[[#This Row],[Digoxin Level]]&\" \"&b!BI$2,\"\")&\".\"","v":"."},{"$f":"a[[#This Row],[Lab subblurb A]]&a[[#This Row],[Lab subblurb B]]","v":"No BMP found.  On January 0, 1900 labs included AST  (N<=34), ALT  (N<=55), Alkaline Phosphatase  (N 40-150), Bilirubin, Total  (N 0.2-1.2), Total Protein  (N 6.0-8.3), Albumin  (N 3.5-5.2), and Globulin  (N 2.0-3.7).  No CBC found."},{"$f":"IF(a[[#This Row],[Sodium]]<>\"\",IF(OR(VALUE(a[[#This Row],[Sodium]])<VALUE(b!B$3),VALUE(a[[#This Row],[Sodium]])>VALUE(b!B$4)),\"Sodium.  \",\"\"),\"\")&IF(a[[#This Row],[Potassium]]<>\"\",IF(OR(VALUE(a[[#This Row],[Potassium]])<VALUE(b!C$3),VALUE(a[[#This Row],[Potassium]])>VALUE(b!C$4)),\"Potassium.  \",\"\"),\"\")&IF(a[[#This Row],[Chloride]]<>\"\",IF(OR(VALUE(a[[#This Row],[Chloride]])<VALUE(b!D$3),VALUE(a[[#This Row],[Chloride]])>VALUE(b!D$4)),\"Chloride.  \",\"\"),\"\")&IF(a[[#This Row],[Bicarbonate]]<>\"\",IF(OR(VALUE(a[[#This Row],[Bicarbonate]])<VALUE(b!E$3),VALUE(a[[#This Row],[Bicarbonate]])>VALUE(b!E$4)),\"Bicarbonate.  \",\"\"),\"\")&IF(a[[#This Row],[BUN]]<>\"\",IF(OR(VALUE(a[[#This Row],[BUN]])<VALUE(b!F$3),VALUE(a[[#This Row],[BUN]])>VALUE(b!F$4)),\"BUN.  \",\"\"),\"\")&IF(a[[#This Row],[Creatinine]]<>\"\",IF(OR(VALUE(a[[#This Row],[Creatinine]])<VALUE(b!G$3),VALUE(a[[#This Row],[Creatinine]])>VALUE(b!G$4)),\"Creatinine.  \",\"\"),\"\")&IF(a[[#This Row],[Calcium]]<>\"\",IF(OR(VALUE(a[[#This Row],[Calcium]])<VALUE(b!H$3),VALUE(a[[#This Row],[Calcium]])>VALUE(b!H$4)),\"Calcium.  \",\"\"),\"\")&IF(a[[#This Row],[Glucose]]<>\"\",IF(OR(VALUE(a[[#This Row],[Glucose]])<VALUE(b!I$3),VALUE(a[[#This Row],[Glucose]])>VALUE(b!I$4)),\"Glucose.  \",\"\"),\"\")&IF(a[[#This Row],[Cystatin C]]<>\"\",IF(OR(VALUE(a[[#This Row],[Cystatin C]])<VALUE(b!AK$3),VALUE(a[[#This Row],[Cystatin C]])>VALUE(b!AK$4)),\"Cystatin C.  \",\"\"),\"\")&IF(a[[#This Row],[AST]]<>\"\",IF(OR(VALUE(a[[#This Row],[AST]])<VALUE(b!J$3),VALUE(a[[#This Row],[AST]])>VALUE(b!J$4)),\"AST.  \",\"\"),\"\")&IF(a[[#This Row],[ALT]]<>\"\",IF(OR(VALUE(a[[#This Row],[ALT]])<VALUE(b!K$3),VALUE(a[[#This Row],[ALT]])>VALUE(b!K$4)),\"ALT.  \",\"\"),\"\")&IF(a[[#This Row],[Alkaline Phosphatase]]<>\"\",IF(OR(VALUE(a[[#This Row],[Alkaline Phosphatase]])<VALUE(b!L$3),VALUE(a[[#This Row],[Alkaline Phosphatase]])>VALUE(b!L$4)),\"Alkaline Phosphatase.  \",\"\"),\"\")&IF(a[[#This Row],[Bilirubin, Total]]<>\"\",IF(OR(VALUE(a[[#This Row],[Bilirubin, Total]])<VALUE(b!M$3),VALUE(a[[#This Row],[Bilirubin, Total]])>VALUE(b!M$4)),\"Bilirubin, Total.  \",\"\"),\"\")&IF(a[[#This Row],[Total Protein]]<>\"\",IF(OR(VALUE(a[[#This Row],[Total Protein]])<VALUE(b!N$3),VALUE(a[[#This Row],[Total Protein]])>VALUE(b!N$4)),\"Total Protein.  \",\"\"),\"\")&IF(a[[#This Row],[Albumin]]<>\"\",IF(OR(VALUE(a[[#This Row],[Albumin]])<VALUE(b!O$3),VALUE(a[[#This Row],[Albumin]])>VALUE(b!O$4)),\"Albumin.  \",\"\"),\"\")&IF(a[[#This Row],[Globulin]]<>\"\",IF(OR(VALUE(a[[#This Row],[Globulin]])<VALUE(b!P$3),VALUE(a[[#This Row],[Globulin]])>VALUE(b!P$4)),\"Globulin.  \",\"\"),\"\")&IF(a[[#This Row],[Amylase]]<>\"\",IF(OR(VALUE(a[[#This Row],[Amylase]])<VALUE(b!AW$3),VALUE(a[[#This Row],[Amylase]])>VALUE(b!AW$4)),\"Amylase.  \",\"\"),\"\")&IF(a[[#This Row],[Lipase]]<>\"\",IF(OR(VALUE(a[[#This Row],[Lipase]])<VALUE(b!AX$3),VALUE(a[[#This Row],[Lipase]])>VALUE(b!AX$4)),\"Lipase.  \",\"\"),\"\")&IF(a[[#This Row],[Magnesium]]<>\"\",IF(OR(VALUE(a[[#This Row],[Magnesium]])<VALUE(b!AS$3),VALUE(a[[#This Row],[Magnesium]])>VALUE(b!AS$4)),\"Magnesium.  \",\"\"),\"\")&IF(a[[#This Row],[Phosphorus]]<>\"\",IF(OR(VALUE(a[[#This Row],[Phosphorus]])<VALUE(b!AT$3),VALUE(a[[#This Row],[Phosphorus]])>VALUE(b!AT$4)),\"Phosphorus.  \",\"\"),\"\")&IF(a[[#This Row],[Total Cholesterol]]<>\"\",IF(OR(VALUE(a[[#This Row],[Total Cholesterol]])<VALUE(b!V$3),VALUE(a[[#This Row],[Total Cholesterol]])>VALUE(b!V$4)),\"Total Cholesterol.  \",\"\"),\"\")&IF(a[[#This Row],[Triglycerides]]<>\"\",IF(OR(VALUE(a[[#This Row],[Triglycerides]])<VALUE(b!W$3),VALUE(a[[#This Row],[Triglycerides]])>VALUE(b!W$4)),\"Triglycerides.  \",\"\"),\"\")&IF(a[[#This Row],[HDL]]<>\"\",IF(OR(VALUE(a[[#This Row],[HDL]])<VALUE(b!X$3),VALUE(a[[#This Row],[HDL]])>VALUE(b!X$4)),\"HDL.  \",\"\"),\"\")&IF(a[[#This Row],[LDL]]<>\"\",IF(OR(VALUE(a[[#This Row],[LDL]])<VALUE(b!Y$3),VALUE(a[[#This Row],[LDL]])>VALUE(b!Y$4)),\"LDL.  \",\"\"),\"\")","v":""},{"$f":"IF(a[[#This Row],[LDH]]<>\"\",IF(OR(VALUE(a[[#This Row],[LDH]])<VALUE(b!BH$3),VALUE(a[[#This Row],[LDH]])>VALUE(b!BH$4)),\"LDH.  \",\"\"),\"\")&IF(a[[#This Row],[Uric Acid]]<>\"\",IF(OR(VALUE(a[[#This Row],[Uric Acid]])<VALUE(b!AV$3),VALUE(a[[#This Row],[Uric Acid]])>VALUE(b!AV$4)),\"Uric Acid.  \",\"\"),\"\")&IF(a[[#This Row],[PTH]]<>\"\",IF(OR(VALUE(a[[#This Row],[PTH]])<VALUE(b!AU$3),VALUE(a[[#This Row],[PTH]])>VALUE(b!AU$4)),\"PTH.  \",\"\"),\"\")&IF(a[[#This Row],[TSH]]<>\"\",IF(OR(VALUE(a[[#This Row],[TSH]])<VALUE(b!Z$3),VALUE(a[[#This Row],[TSH]])>VALUE(b!Z$4)),\"TSH.  \",\"\"),\"\")&IF(a[[#This Row],[Free T4]]<>\"\",IF(OR(VALUE(a[[#This Row],[Free T4]])<VALUE(b!AY$3),VALUE(a[[#This Row],[Free T4]])>VALUE(b!AY$4)),\"Free T4.  \",\"\"),\"\")&IF(a[[#This Row],[PSA level]]<>\"\",IF(OR(VALUE(a[[#This Row],[PSA level]])<VALUE(b!AA$3),VALUE(a[[#This Row],[PSA level]])>VALUE(b!AA$4)),\"PSA level.  \",\"\"),\"\")&IF(a[[#This Row],[Vitamin D, 25-Hydroxy level]]<>\"\",IF(OR(VALUE(a[[#This Row],[Vitamin D, 25-Hydroxy level]])<VALUE(b!AB$3),VALUE(a[[#This Row],[Vitamin D, 25-Hydroxy level]])>VALUE(b!AB$4)),\"Vitamin D, 25-Hydroxy level.  \",\"\"),\"\")&IF(a[[#This Row],[Iron]]<>\"\",IF(OR(VALUE(a[[#This Row],[Iron]])<VALUE(b!AO$3),VALUE(a[[#This Row],[Iron]])>VALUE(b!AO$4)),\"Iron.  \",\"\"),\"\")&IF(a[[#This Row],[TIBC]]<>\"\",IF(OR(VALUE(a[[#This Row],[TIBC]])<VALUE(b!AP$3),VALUE(a[[#This Row],[TIBC]])>VALUE(b!AP$4)),\"TIBC.  \",\"\"),\"\")&IF(a[[#This Row],[% Saturation]]<>\"\",IF(OR(VALUE(a[[#This Row],[% Saturation]])<VALUE(b!AQ$3),VALUE(a[[#This Row],[% Saturation]])>VALUE(b!AQ$4)),\"% Saturation.  \",\"\"),\"\")&IF(a[[#This Row],[Ferritin]]<>\"\",IF(OR(VALUE(a[[#This Row],[Ferritin]])<VALUE(b!AR$3),VALUE(a[[#This Row],[Ferritin]])>VALUE(b!AR$4)),\"Ferritin.  \",\"\"),\"\")&IF(a[[#This Row],[Vitamin B12 level]]<>\"\",IF(OR(VALUE(a[[#This Row],[Vitamin B12 level]])<VALUE(b!AC$3),VALUE(a[[#This Row],[Vitamin B12 level]])>VALUE(b!AC$4)),\"Vitamin B12 level.  \",\"\"),\"\")&IF(a[[#This Row],[Folate level]]<>\"\",IF(OR(VALUE(a[[#This Row],[Folate level]])<VALUE(b!AD$3),VALUE(a[[#This Row],[Folate level]])>VALUE(b!AD$4)),\"Folate level.  \",\"\"),\"\")&IF(a[[#This Row],[WBC]]<>\"\",IF(OR(VALUE(a[[#This Row],[WBC]])<VALUE(b!Q$3),VALUE(a[[#This Row],[WBC]])>VALUE(b!Q$4)),\"WBC.  \",\"\"),\"\")&IF(a[[#This Row],[Hemoglobin]]<>\"\",IF(OR(VALUE(a[[#This Row],[Hemoglobin]])<VALUE(b!R$3),VALUE(a[[#This Row],[Hemoglobin]])>VALUE(b!R$4)),\"Hemoglobin.  \",\"\"),\"\")&IF(a[[#This Row],[MCV]]<>\"\",IF(OR(VALUE(a[[#This Row],[MCV]])<VALUE(b!S$3),VALUE(a[[#This Row],[MCV]])>VALUE(b!S$4)),\"MCV.  \",\"\"),\"\")&IF(a[[#This Row],[Platelet]]<>\"\",IF(OR(VALUE(a[[#This Row],[Platelet]])<VALUE(b!T$3),VALUE(a[[#This Row],[Platelet]])>VALUE(b!T$4)),\"Platelet.  \",\"\"),\"\")&IF(a[[#This Row],[Erythrocyte Sedimentation Rate]]<>\"\",IF(OR(VALUE(a[[#This Row],[Erythrocyte Sedimentation Rate]])<VALUE(b!AM$3),VALUE(a[[#This Row],[Erythrocyte Sedimentation Rate]])>VALUE(b!AM$4)),\"Erythrocyte Sedimentation Rate.  \",\"\"),\"\")&IF(a[[#This Row],[C-Reactive Protein]]<>\"\",IF(OR(VALUE(a[[#This Row],[C-Reactive Protein]])<VALUE(b!AN$3),VALUE(a[[#This Row],[C-Reactive Protein]])>VALUE(b!AN$4)),\"C-Reactive Protein.  \",\"\"),\"\")&IF(a[[#This Row],[Hemoglobin A1c]]<>\"\",IF(OR(VALUE(a[[#This Row],[Hemoglobin A1c]])<VALUE(b!U$3),VALUE(a[[#This Row],[Hemoglobin A1c]])>VALUE(b!U$4)),\"Hemoglobin A1c.  \",\"\"),\"\")&IF(a[[#This Row],[Homocysteine]]<>\"\",IF(OR(VALUE(a[[#This Row],[Homocysteine]])<VALUE(b!AE$3),VALUE(a[[#This Row],[Homocysteine]])>VALUE(b!AE$4)),\"Homocysteine.  \",\"\"),\"\")&IF(a[[#This Row],[Methylmalonic Acid]]<>\"\",IF(OR(VALUE(a[[#This Row],[Methylmalonic Acid]])<VALUE(b!AF$3),VALUE(a[[#This Row],[Methylmalonic Acid]])>VALUE(b!AF$4)),\"Methylmalonic Acid.  \",\"\"),\"\")&IF(a[[#This Row],[AFP, Tumor Marker]]<>\"\",IF(OR(VALUE(a[[#This Row],[AFP, Tumor Marker]])<VALUE(b!BJ$3),VALUE(a[[#This Row],[AFP, Tumor Marker]])>VALUE(b!BJ$4)),\"AFP, Tumor Marker.  \",\"\"),\"\")&IF(a[[#This Row],[Thiamine]]<>\"\",IF(OR(VALUE(a[[#This Row],[Thiamine]])<VALUE(b!AG$3),VALUE(a[[#This Row],[Thiamine]])>VALUE(b!AG$4)),\"Thiamine.  \",\"\"),\"\")&IF(a[[#This Row],[Zinc]]<>\"\",IF(OR(VALUE(a[[#This Row],[Zinc]])<VALUE(b!AH$3),VALUE(a[[#This Row],[Zinc]])>VALUE(b!AH$4)),\"Zinc.  \",\"\"),\"\")&IF(a[[#This Row],[Copper]]<>\"\",IF(OR(VALUE(a[[#This Row],[Copper]])<VALUE(b!AI$3),VALUE(a[[#This Row],[Copper]])>VALUE(b!AI$4)),\"Copper.  \",\"\"),\"\")&IF(a[[#This Row],[Digoxin Level]]<>\"\",IF(OR(VALUE(a[[#This Row],[Digoxin Level]])<VALUE(b!BI$3),VALUE(a[[#This Row],[Digoxin Level]])>VALUE(b!BI$4)),\"Digoxin Level.  \",\"\"),\"\")&IF(a[[#This Row],[Total Valproic Acid Level]]<>\"\",IF(OR(VALUE(a[[#This Row],[Total Valproic Acid Level]])<VALUE(b!BE$3),VALUE(a[[#This Row],[Total Valproic Acid Level]])>VALUE(b!BE$4)),\"Total Valproic Acid Level.  \",\"\"),\"\")&IF(a[[#This Row],[Total Phenytoin Level]]<>\"\",IF(OR(VALUE(a[[#This Row],[Total Phenytoin Level]])<VALUE(b!BF$3),VALUE(a[[#This Row],[Total Phenytoin Level]])>VALUE(b!BF$4)),\"Total Phenytoin Level.  \",\"\"),\"\")&IF(a[[#This Row],[Tacrolimus Level]]<>\"\",IF(OR(VALUE(a[[#This Row],[Tacrolimus Level]])<VALUE(b!BG$3),VALUE(a[[#This Row],[Tacrolimus Level]])>VALUE(b!BG$4)),\"Tacrolimus Level.  \",\"\"),\"\")&IF(a[[#This Row],[CD4 Count]]<>\"\",IF(OR(VALUE(a[[#This Row],[CD4 Count]])<VALUE(b!AL$3),VALUE(a[[#This Row],[CD4 Count]])>VALUE(b!AL$4)),\"CD4 Count.  \",\"\"),\"\")&IF(a[[#This Row],[Urine Microalbumin/Creatinine]]<>\"\",IF(OR(VALUE(a[[#This Row],[Urine Microalbumin/Creatinine]])<VALUE(b!AJ$3),VALUE(a[[#This Row],[Urine Microalbumin/Creatinine]])>VALUE(b!AJ$4)),\"Urine Microalbumin/Creatinine.  \",\"\"),\"\")","v":""},{"$f":"a[[#This Row],[subAbLab A]]&a[[#This Row],[subAbLab B]]","v":""},null,null,null,null,null,null,null,null,null,null,null,null,null,null,null,null,null,null,null,null,null,null,null,null,null,null,null,null,null,null,null,null,null,null,null,null,null,null,null,null,null,null,null,null,null,null,null,null,null,null,null,null,null,null,null,null,null,null,null,null,null,null,null,null,null,null,null,null,null,null,null,null,null,null,null,null,null,null,null,null,null,null,null,null,null,null,null,null,null,null,null,null,null,null,null,null,null,null,null,null,null,null,null,null,null,{"$f":"a[[#Headers],[*]]","v":"*"},{"$f":"a[[#This Row],[Calcium]] + (0.8 * (4-a[[#This Row],[Albumin]]))","v":3.2},{"$f":"LIVERAPRI(a[[#This Row],[AST]],a[[#This Row],[Platelet]])","v":0},{"$f":"LIVERAPRIINTERPRETATION(\"[@APRI])\")","v":"Likely cirrhosis"},{"$f":"\"APRI liver fibrosis calculation using recent AST \" & a[[#This Row],[AST]] & \" and Platelet count of \" &a[[#This Row],[Platelet]]& \" was calculated to be \" & ROUND(a[[#This Row],[APRI]],2) & \", \" & a[[#This Row],[APRI interpretation]]&\".\"","v":"APRI liver fibrosis calculation using recent AST  and Platelet count of  was calculated to be 0, Likely cirrhosis."},{"$f":"LIVERANI(a[[#This Row],[Gender:]],a[[#This Row],[MCV]],a[[#This Row],[AST]],a[[#This Row],[ALT]],a[[#This Row],[Height:  ]],a[[#This Row],[Weight:  ]])","v":{"$error":"#VALUE!"}},{"$f":"LIVERANIPROBABILITY(a[[#This Row],[ANI]])","v":{"$error":"#VALUE!"}},{"$f":"\"Alcohol-associated liver disease to NAFLD Index (ANI) \" & TEXT(a[[#This Row],[ANI]],\"0.00\") & \" indicates \" & TEXT(a[[#This Row],[Probability of Alcoholic Liver Disease]],\"00%\") & \" probability of alcoholic liver disease (versus non-alcoholic liver disease).  \"","v":{"$error":"#VALUE!"}},{"$f":"IF(_xlfn.NUMBERVALUE(a[[#This Row],[Bilirubin, Total]])>3,3,IF(_xlfn.NUMBERVALUE(a[[#This Row],[Bilirubin, Total]])>=2,2,IF(_xlfn.NUMBERVALUE(a[[#This Row],[Bilirubin, Total]])>0,1,\"missing\")))","v":"missing"},{"$f":"IF(_xlfn.NUMBERVALUE(a[[#This Row],[Albumin]])>3.5,1,IF(_xlfn.NUMBERVALUE(a[[#This Row],[Albumin]])>=2.8,2,IF(_xlfn.NUMBERVALUE(a[[#This Row],[Albumin]])>0,3,\"missing\")))","v":"missing"},{"$f":"IF(_xlfn.NUMBERVALUE(a[[#This Row],[INR]])>2.2,3,IF(_xlfn.NUMBERVALUE(a[[#This Row],[INR]])>=1.7,2,IF(_xlfn.NUMBERVALUE(a[[#This Row],[INR]])>0,1,\"missing\")))","v":"missing"},null,null,{"$f":"SUM(a[[#This Row],[Bili Pts]:[Ence Pts]])","v":0},{"$f":"IF(_xlfn.NUMBERVALUE(a[[#This Row],[Child Pugh Score]])>9,\"C\",IF(_xlfn.NUMBERVALUE(a[[#This Row],[Child Pugh Score]])>=7,\"B\",IF(_xlfn.NUMBERVALUE(a[[#This Row],[Child Pugh Score]])>0,\"A\",\"missing\")))","v":"missing"},{"$f":"TENYEARASCVDRISK(a[[#This Row],[Gender:]],a[[#This Row],[Age: ]],a[[#This Row],[Race:]],a[[#This Row],[Current Smoker:]],a[[#This Row],[Diabetes:]],a[[#This Row],[Blood Pressure Treated:]],a[[#This Row],[Total Cholesterol]],a[[#This Row],[HDL]],a[[#This Row],[SBP:]])","v":0},{"$f":"LIFETIMEASCVDRISK(a[[#This Row],[Gender:]],a[[#This Row],[Age: ]],a[[#This Row],[Current Smoker:]],a[[#This Row],[Diabetes:]],a[[#This Row],[Total Cholesterol]],a[[#This Row],[SBP:]])","v":0},{"$f":"IF(OR(_xlfn.NUMBERVALUE(a[[#This Row],[LDL]])>190,a[[#This Row],[10-Year ASCVD]]>7.5%,a[[#This Row],[Lifetime ASCVD Risk]]>39%),\"YES\",\"NO\")","v":"NO"},{"$f":"IF(a[[#This Row],[Statin:]]=\"No\",IF(a[[#This Row],[Statin indicated (LDL>190,10 year ASCVD>7.5%, lifetime ASCVD>39%)]]=\"NO\",\"Statin DOES NOT need to be started because LDL at or below 190 mg/dL, 10 year ASCVD is at or below 7.5%, and lifetime ASCVD is at or below 39%\",\"Statin SHOULD be started because LDL is above 190 mg/dL, 10 year ASCVD is above 7.5%, or lifetime ASCVD is above 39%\"),IF(a[[#This Row],[Statin:]]=\"Yes\",\"Currently on Statin\",\"Error\"))","v":"Error"},{"$f":"a[[#Headers],[*]]","v":"*"},null,null,null,null,null,null,null,null,null,null,null,null,null,null,null,null,null,null,null,null,null,null,null,null,null,null,null,null,null,null,null,null,null,null,null,null,null,null,null,null,null,null,null,null,null,null,null,null,null,null,null,null,null,null,null,null,null,null,null,null,null,null,{"$f":"\"Noteworthy testing:  \"&CHAR(10)&IF(a[[#This Row],[EKG:  ]]<>\"\",a[[#Headers],[EKG:  ]]&a[[#This Row],[EKG:  ]]&\" (\"&TEXT(a[[#This Row],[EKG Date:  ]],\"mm/dd/yyyy\")&\")\"&CHAR(10),\"\")&IF(a[[#This Row],[Holter Monitor:  ]]<>\"\",a[[#Headers],[Holter Monitor:  ]]&a[[#This Row],[Holter Monitor:  ]]&\" (\"&TEXT(a[[#This Row],[Holter Date:  ]],\"mm/dd/yyyy\")&\")\"&CHAR(10),\"\")&IF(a[[#This Row],[Echocardiogram:  ]]<>\"\",a[[#Headers],[Echocardiogram:  ]]&a[[#This Row],[Echocardiogram:  ]]&\" (\"&TEXT(a[[#This Row],[Echocardiogram Date:  ]],\"mm/dd/yyyy\")&\")\"&CHAR(10),\"\")&IF(a[[#This Row],[Cardiac Stress Test:  ]]<>\"\",a[[#Headers],[Cardiac Stress Test:  ]]&a[[#This Row],[Cardiac Stress Test:  ]]&\" (\"&TEXT(a[[#This Row],[Cardiac Stress Test Date:  ]],\"mm/dd/yyyy\")&\")\"&CHAR(10),\"\")&IF(a[[#This Row],[Chest Xray:  ]]<>\"\",a[[#Headers],[Chest Xray:  ]]&a[[#This Row],[Chest Xray:  ]]&\" (\"&TEXT(a[[#This Row],[CXR Date:  ]],\"mm/dd/yyyy\")&\")\"&CHAR(10),\"\")&IF(a[[#This Row],[Xray:  ]]<>\"\",a[[#Headers],[Xray:  ]]&a[[#This Row],[Xray:  ]]&\" (\"&TEXT(a[[#This Row],[Xray Date]],\"mm/dd/yyyy\")&\")\"&CHAR(10),\"\")&IF(a[[#This Row],[CT:  ]]<>\"\",a[[#Headers],[CT:  ]]&a[[#This Row],[CT:  ]]&\" (\"&TEXT(a[[#This Row],[CT Date:  ]],\"mm/dd/yyyy\")&\")\"&CHAR(10),\"\")&IF(a[[#This Row],[MRI:  ]]<>\"\",a[[#Headers],[MRI:  ]]&a[[#This Row],[MRI:  ]]&\" (\"&TEXT(a[[#This Row],[MRI Date:  ]],\"mm/dd/yyyy\")&\")\"&CHAR(10),\"\")&IF(a[[#This Row],[EMG:  ]]<>\"\",a[[#Headers],[EMG:  ]]&a[[#This Row],[EMG:  ]]&\" (\"&TEXT(a[[#This Row],[EMG Date:  ]],\"mm/dd/yyyy\")&\")\"&CHAR(10),\"\")&IF(a[[#This Row],[EEG:  ]]<>\"\",a[[#Headers],[EEG:  ]]&a[[#This Row],[EEG:  ]]&\" (\"&TEXT(a[[#This Row],[EEG Date:  ]],\"mm/dd/yyyy\")&\")\"&CHAR(10),\"\")&IF(a[[#This Row],[Pulmonary Function Testing:  ]]<>\"\",a[[#Headers],[Pulmonary Function Testing:  ]]&a[[#This Row],[Pulmonary Function Testing:  ]]&\" (\"&TEXT(a[[#This Row],[Pulmonary Testing Date:  ]],\"mm/dd/yyyy\")&\")\"&CHAR(10),\"\")&IF(a[[#This Row],[Sleep Apnea Testing:  ]]<>\"\",a[[#Headers],[Sleep Apnea Testing:  ]]&a[[#This Row],[Sleep Apnea Testing:  ]]&\" (\"&TEXT(a[[#This Row],[Sleep Test Date:  ]],\"mm/dd/yyyy\")&\")\"&CHAR(10),\"\")&IF(a[[#This Row],[Ultrasound:  ]]<>\"\",a[[#Headers],[Ultrasound:  ]]&a[[#This Row],[Ultrasound:  ]]&\" (\"&TEXT(a[[#This Row],[Ultrasound Date:  ]],\"mm/dd/yyyy\")&\")\"&CHAR(10),\"\")&IF(a[[#This Row],[Renal Ultrasound:  ]]<>\"\",a[[#Headers],[Renal Ultrasound:  ]]&a[[#This Row],[Renal Ultrasound:  ]]&\" (\"&TEXT(a[[#This Row],[Renal Ultrasound Date:  ]],\"mm/dd/yyyy\")&\")\"&CHAR(10),\"\")&IF(a[[#This Row],[Liver Ultrasound:  ]]<>\"\",a[[#Headers],[Liver Ultrasound:  ]]&a[[#This Row],[Liver Ultrasound:  ]]&\" (\"&TEXT(a[[#This Row],[Liver Ultrasound Date:  ]],\"mm/dd/yyyy\")&\")\"&CHAR(10),\"\")&IF(a[[#This Row],[AAA screen (male smokers 65+):  ]]<>\"\",a[[#Headers],[AAA screen (male smokers 65+):  ]]&a[[#This Row],[AAA screen (male smokers 65+):  ]]&\" (\"&TEXT(a[[#This Row],[AAA Date:  ]],\"mm/dd/yyyy\")&\")\"&CHAR(10),\"\")&IF(a[[#This Row],[Colon cancer screening (45+):  ]]<>\"\",a[[#Headers],[Colon cancer screening (45+):  ]]&a[[#This Row],[Colon cancer screening (45+):  ]]&\" (\"&TEXT(a[[#This Row],[Colon cancer screening date:  ]],\"mm/dd/yyyy\")&\")\"&CHAR(10),\"\")&IF(a[[#This Row],[Lung cancer screening (55-79):  ]]<>\"\",a[[#Headers],[Lung cancer screening (55-79):  ]]&a[[#This Row],[Lung cancer screening (55-79):  ]]&\" (\"&TEXT(a[[#This Row],[Lung cancer screening date:  ]],\"mm/dd/yyyy\")&\")\"&CHAR(10),\"\")&IF(a[[#This Row],[Dental Exam Date:  ]]<>\"\",a[[#This Row],[Dental Exam Date:  ]]&TEXT(a[[#This Row],[Dental Exam Date:  ]],\"mm/dd/yyyy\")&\")\"&CHAR(10),\"\")&IF(a[[#This Row],[Foot Exam:  ]]<>\"\",a[[#Headers],[Foot Exam:  ]]&a[[#This Row],[Foot Exam:  ]]&\" (\"&TEXT(a[[#This Row],[Foot Exam Date:  ]],\"mm/dd/yyyy\")&\")\"&CHAR(10),\"\")&IF(a[[#This Row],[Fundoscopy:  ]]<>\"\",a[[#Headers],[Fundoscopy:  ]]&a[[#This Row],[Fundoscopy:  ]]&\" (\"&TEXT(a[[#This Row],[Fundoscopy Date:  ]],\"mm/dd/yyyy\")&\")\"&CHAR(10),\"\")&IF(a[[#This Row],[DEXA bone density:  ]]<>\"\",a[[#Headers],[DEXA bone density:  ]]&a[[#This Row],[DEXA bone density:  ]]&\" (\"&TEXT(a[[#This Row],[DEXA Date:  ]],\"mm/dd/yyyy\")&\")\"&CHAR(10),\"\")&IF(a[[#This Row],[PPD (mm):  ]]<>\"\",a[[#Headers],[PPD (mm):  ]]&a[[#This Row],[PPD (mm):  ]]&\" (\"&TEXT(a[[#This Row],[PPD Date:  ]],\"mm/dd/yyyy\")&\")\"&CHAR(10),\"\")&IF(a[[#This Row],[Hep B Serology:  ]]<>\"\",a[[#Headers],[Hep B Serology:  ]]&a[[#This Row],[Hep B Serology:  ]]&\" \"&b!BD192&\" (\"&TEXT(a[[#This Row],[Hep B serology Date:  ]],\"mm/dd/yyyy\")&\")\"&CHAR(10),\"\")&IF(a[[#This Row],[Hep C Serology:  ]]<>\"\",a[[#Headers],[Hep C Serology:  ]]&a[[#This Row],[Hep C Serology:  ]]&\" \"&b!AZ192&\" (\"&TEXT(a[[#This Row],[Hep C Serology Date:  ]],\"mm/dd/yyyy\")&\")\"&CHAR(10),\"\")&IF(a[[#This Row],[HIV:  ]]<>\"\",a[[#Headers],[HIV:  ]]&a[[#This Row],[HIV:  ]]&\" (\"&TEXT(a[[#This Row],[HIV Date:]],\"mm/dd/yyyy\")&\")\"&CHAR(10),\"\")&IF(a[[#This Row],[Meningococcal series completion date:  ]]<>\"\",a[[#Headers],[Meningococcal series completion date:  ]]&TEXT(a[[#This Row],[Meningococcal series completion date:  ]],\"mm/dd/yyyy\")&\")\"&CHAR(10),\"\")&IF(a[[#This Row],[Influenza (annual):  ]]<>\"\",a[[#Headers],[Influenza (annual):  ]]&TEXT(a[[#This Row],[Influenza (annual):  ]],\"mm/dd/yyyy\")&\")\"&CHAR(10),\"\")&IF(a[[#This Row],[Hepatitis B series completion date:  ]]<>\"\",a[[#Headers],[Hepatitis B series completion date:  ]]&TEXT(a[[#This Row],[Hepatitis B series completion date:  ]],\"mm/dd/yyyy\")&\")\"&CHAR(10),\"\")&IF(a[[#This Row],[MMR series completion date:  ]]<>\"\",a[[#Headers],[MMR series completion date:  ]]&TEXT(a[[#This Row],[MMR series completion date:  ]],\"mm/dd/yyyy\")&\")\"&CHAR(10),\"\")&IF(a[[#This Row],[Tdap (every 10 years):  ]]<>\"\",a[[#Headers],[Tdap (every 10 years):  ]]&TEXT(a[[#This Row],[Tdap (every 10 years):  ]],\"mm/dd/yyyy\")&\")\"&CHAR(10),\"\")&IF(a[[#This Row],[Pneumovax 13 (CKD or immune-suppressed):  ]]<>\"\",a[[#Headers],[Pneumovax 13 (CKD or immune-suppressed):  ]]&TEXT(a[[#This Row],[Pneumovax 13 (CKD or immune-suppressed):  ]],\"mm/dd/yyyy\")&\")\"&CHAR(10),\"\")&IF(a[[#This Row],[Pneumovax 23 (age 65, CHF, lung disease, DM, liver disease):  ]]<>\"\",a[[#Headers],[Pneumovax 23 (age 65, CHF, lung disease, DM, liver disease):  ]]&TEXT(a[[#This Row],[Pneumovax 23 (age 65, CHF, lung disease, DM, liver disease):  ]],\"mm/dd/yyyy\")&\")\"&CHAR(10),\"\")&IF(a[[#This Row],[Recombinant Zoster (age 50 or immune-suppressed):  ]]<>\"\",a[[#Headers],[Recombinant Zoster (age 50 or immune-suppressed):  ]]&TEXT(a[[#This Row],[Recombinant Zoster (age 50 or immune-suppressed):  ]],\"mm/dd/yyyy\")&\")\"&CHAR(10),\"\")&IF(a[[#This Row],[Other Procedure or Test:  ]]<>\"\",a[[#Headers],[Other Procedure or Test:  ]]&a[[#This Row],[Other Procedure or Test:  ]]&CHAR(10),\"\")","v":"Noteworthy testing:  \n"}]
[{"$f":"a[[#Headers],[*]]","v":"*"},null,null,null,{"$f":"INT(((TODAY())-a[[#This Row],[DOB:]])/365.25)","v":124},null,null,null,{"$f":"LEFT(a[[#This Row],[Blood Pressure: ]],FIND(\"/\",a[[#This Row],[Blood Pressure: ]])-1)","v":{"$error":"#VALUE!"}},{"$f":"RIGHT(a[[#This Row],[Blood Pressure: ]],LEN(a[[#This Row],[Blood Pressure: ]])-FIND(\"/\",a[[#This Row],[Blood Pressure: ]]))","v":{"$error":"#VALUE!"}},null,null,{"$f":"(a[[#This Row],[Weight:  ]]/(a[[#This Row],[Height:  ]]^2))*703","v":{"$error":"#DIV/0!"}},null,null,null,null,{"$f":"a[[#Headers],[*]]","v":"*"},null,null,null,null,null,null,null,null,null,null,null,null,null,null,null,null,null,null,null,null,null,null,null,{"$f":"IF(a[[#This Row],['# Co-managed:  ]]<>\"\",a[[#Headers],['# Co-managed:  ]]&a[[#This Row],['# Co-managed:  ]]&CHAR(10),\"\")&IF(a[[#This Row],['# Weight/Diet/Activity:  ]]<>\"\",a[[#Headers],['# Weight/Diet/Activity:  ]]&a[[#This Row],['# Weight/Diet/Activity:  ]]&CHAR(10),\"\")&IF(a[[#This Row],['# Cholesterol/ASCVD risk:  ]]<>\"\",a[[#Headers],['# Cholesterol/ASCVD risk:  ]]&a[[#This Row],['# Cholesterol/ASCVD risk:  ]]&CHAR(10),\"\")&IF(a[[#This Row],['# Blood pressure/Shortness of breath/Lower extremity swelling:  ]]<>\"\",a[[#Headers],['# Blood pressure/Shortness of breath/Lower extremity swelling:  ]]&a[[#This Row],['# Blood pressure/Shortness of breath/Lower extremity swelling:  ]]&CHAR(10),\"\")&IF(a[[#This Row],['# Dizziness/Lightheadedness/Vertigo/Falls:  ]]<>\"\",a[[#Headers],['# Dizziness/Lightheadedness/Vertigo/Falls:  ]]&a[[#This Row],['# Dizziness/Lightheadedness/Vertigo/Falls:  ]]&CHAR(10),\"\")&IF(a[[#This Row],['# COPD/Asthma:  ]]<>\"\",a[[#Headers],['# COPD/Asthma:  ]]&a[[#This Row],['# COPD/Asthma:  ]]&CHAR(10),\"\")&IF(a[[#This Row],['# Sleep apnea:  ]]<>\"\",a[[#Headers],['# Sleep apnea:  ]]&a[[#This Row],['# Sleep apnea:  ]]&CHAR(10),\"\")&IF(a[[#This Row],['# Chronic pain/Arthritis:  ]]<>\"\",a[[#Headers],['# Chronic pain/Arthritis:  ]]&a[[#This Row],['# Chronic pain/Arthritis:  ]]&CHAR(10),\"\")&IF(a[[#This Row],['# Gastroesophageal reflux/Constipation/Melena/Hematochezia:  ]]<>\"\",a[[#Headers],['# Gastroesophageal reflux/Constipation/Melena/Hematochezia:  ]]&a[[#This Row],['# Gastroesophageal reflux/Constipation/Melena/Hematochezia:  ]]&CHAR(10),\"\")&IF(a[[#This Row],['# Urinary symptoms:  ]]<>\"\",a[[#Headers],['# Urinary symptoms:  ]]&a[[#This Row],['# Urinary symptoms:  ]]&CHAR(10),\"\")&IF(a[[#This Row],['# Last menstrual period/Pregnancy:  ]]<>\"\",a[[#Headers],['# Last menstrual period/Pregnancy:  ]]&a[[#This Row],['# Last menstrual period/Pregnancy:  ]]&CHAR(10),\"\")&IF(a[[#This Row],['# Mood/Depression/Anxiety:  ]]<>\"\",a[[#Headers],['# Mood/Depression/Anxiety:  ]]&a[[#This Row],['# Mood/Depression/Anxiety:  ]]&CHAR(10),\"\")&IF(a[[#This Row],['# Vision:  ]]<>\"\",a[[#Headers],['# Vision:  ]]&a[[#This Row],['# Vision:  ]]&CHAR(10),\"\")&IF(a[[#This Row],['# Hearing:  ]]<>\"\",a[[#Headers],['# Hearing:  ]]&a[[#This Row],['# Hearing:  ]]&CHAR(10),\"\")&IF(a[[#This Row],['# Dental:  ]]<>\"\",a[[#Headers],['# Dental:  ]]&a[[#This Row],['# Dental:  ]]&CHAR(10),\"\")&IF(a[[#This Row],['# Surgeries/Procedures/Implants/Metal:  ]]<>\"\",a[[#Headers],['# Surgeries/Procedures/Implants/Metal:  ]]&a[[#This Row],['# Surgeries/Procedures/Implants/Metal:  ]]&CHAR(10),\"\")&IF(a[[#This Row],['# Alcohol:  ]]<>\"\",a[[#Headers],['# Alcohol:  ]]&a[[#This Row],['# Alcohol:  ]]&CHAR(10),\"\")&IF(a[[#This Row],['# Tobacco:  ]]<>\"\",a[[#Headers],['# Tobacco:  ]]&a[[#This Row],['# Tobacco:  ]]&CHAR(10),\"\")&IF(a[[#This Row],['# Recreational drugs:  ]]<>\"\",a[[#Headers],['# Recreational drugs:  ]]&a[[#This Row],['# Recreational drugs:  ]]&CHAR(10),\"\")&IF(a[[#This Row],['# Surgeries/Procedures/Implants/Metal:  ]]<>\"\",a[[#Headers],['# Surgeries/Procedures/Implants/Metal:  ]]&a[[#This Row],['# Surgeries/Procedures/Implants/Metal:  ]]&CHAR(10),\"\")&IF(a[[#This Row],['# Family history:  ]]<>\"\",a[[#Headers],['# Family history:  ]]&a[[#This Row],['# Family history:  ]]&CHAR(10),\"\")&IF(a[[#This Row],['# Tobacco:  ]]<>\"\",a[[#Headers],['# Tobacco:  ]]&a[[#This Row],['# Tobacco:  ]]&CHAR(10),\"\")&IF(a[[#This Row],['# ADLs/IADLs:  ]]<>\"\",a[[#Headers],['# ADLs/IADLs:  ]]&a[[#This Row],['# ADLs/IADLs:  ]]&CHAR(10),\"\")&IF(a[[#This Row],['# Other active issues:  ]]<>\"\",a[[#Headers],['# Other active issues:  ]]&a[[#This Row],['# Other active issues:  ]]&CHAR(10),\"\")&IF(a[[#This Row],['# Other chronic issues:  ]]<>\"\",a[[#Headers],['# Other chronic issues:  ]]&a[[#This Row],['# Other chronic issues:  ]]&CHAR(10),\"\")","v":""},{"$f":"a[[#Headers],[*]]","v":"*"},{"$f":"IF(AND(a[[#This Row],[Sodium]]<>\"\",a[[#This Row],[Potassium]]<>\"\",a[[#This Row],[Chloride]]<>\"\",a[[#This Row],[Bicarbonate]]<>\"\",a[[#This Row],[BUN]]<>\"\",a[[#This Row],[Creatinine]]<>\"\",a[[#This Row],[Calcium]]<>\"\",a[[#This Row],[Glucose]]<>\"\",a[[#This Row],[BMPD]]<>\"\"),\"Basic chemistry panel on \"&TEXT(a[[#This Row],[BMPD]],\"mmmm d, yyyy\")&\" showed \"&a[[#Headers],[Sodium]]&\" \"&a[[#This Row],[Sodium]]&\" \"&b!B$2&\", \"&a[[#Headers],[Potassium]]&\" \"&a[[#This Row],[Potassium]]&\" \"&b!C$2&\", \"&a[[#Headers],[Chloride]]&\" \"&a[[#This Row],[Chloride]]&\" \"&b!D$2&\", \"&a[[#Headers],[Bicarbonate]]&\" \"&a[[#This Row],[Bicarbonate]]&\" \"&b!E$2&\", \"&a[[#Headers],[BUN]]&\" \"&a[[#This Row],[BUN]]&\" \"&b!F$2&\", \"&a[[#Headers],[Creatinine]]&\" \"&a[[#This Row],[Creatinine]]&\" \"&b!G$2&\", \"&a[[#Headers],[Calcium]]&\" \"&a[[#This Row],[Calcium]]&\" \"&b!H$2&\", and \"&a[[#Headers],[Glucose]]&\" \"&a[[#This Row],[Glucose]]&\" \"&b!I$2,\"No BMP found\")&IF(AND(a[[#This Row],[Cystatin C]]<>\"\",a[[#This Row],[CysD]]<>\"\"),\". On \"&TEXT(a[[#This Row],[CysD]],\"mmmm d, yyyy\")&\" \"&a[[#Headers],[Cystatin C]]&\" was \"&a[[#This Row],[Cystatin C]]&\" \"&b!AK$2,\"\")&\".  On \"&TEXT(a[[#This Row],[CMPD]],\"mmmm d, yyyy\")&\" labs included \"&a[[#Headers],[AST]]&\" \"&a[[#This Row],[AST]]&\" \"&b!J$2&\", \"&a[[#Headers],[ALT]]&\" \"&a[[#This Row],[ALT]]&\" \"&b!K$2&\", \"&a[[#Headers],[Alkaline Phosphatase]]&\" \"&a[[#This Row],[Alkaline Phosphatase]]&\" \"&b!L$2&\", \"&a[[#Headers],[Bilirubin, Total]]&\" \"&a[[#This Row],[Bilirubin, Total]]&\" \"&b!M$2&\", \"&a[[#Headers],[Total Protein]]&\" \"&a[[#This Row],[Total Protein]]&\" \"&b!N$2&\", \"&a[[#Headers],[Albumin]]&\" \"&a[[#This Row],[Albumin]]&\" \"&b!O$2&\", and \"&a[[#Headers],[Globulin]]&\" \"&a[[#This Row],[Globulin]]&\" \"&b!P$2&IF(AND(a[[#This Row],[LDH]]<>\"\",a[[#This Row],[LDHD]]<>\"\"),\". On \"&TEXT(a[[#This Row],[LDHD]],\"mmmm d, yyyy\")&\" \"&a[[#Headers],[LDH]]&\" was \"&a[[#This Row],[LDH]]&\" \"&b!BH$2,\"\")&IF(AND(a[[#This Row],[Magnesium]]<>\"\",a[[#This Row],[MagD]]<>\"\"),\". On \"&TEXT(a[[#This Row],[MagD]],\"mmmm d, yyyy\")&\" \"&a[[#Headers],[Magnesium]]&\" was \"&a[[#This Row],[Magnesium]]&\" \"&b!AS$2,\"\")&IF(AND(a[[#This Row],[Phosphorus]]<>\"\",a[[#This Row],[PhosD]]<>\"\"),\". On \"&TEXT(a[[#This Row],[PhosD]],\"mmmm d, yyyy\")&\" \"&a[[#Headers],[Phosphorus]]&\" was \"&a[[#This Row],[Phosphorus]]&\" \"&b!AT$2,\"\")&IF(AND(a[[#This Row],[Vitamin D, 25-Hydroxy level]]<>\"\",a[[#This Row],[VitDD]]<>\"\"),\".  He had a \"&a[[#Headers],[Vitamin D, 25-Hydroxy level]]&\" of \"&a[[#This Row],[Vitamin D, 25-Hydroxy level]]&\" \"&b!AB$2&\" on \"&TEXT(a[[#This Row],[VitDD]],\"mmmm d, yyyy\"),\"\")&IF(AND(a[[#This Row],[PTH]]<>\"\",a[[#This Row],[PTHD]]<>\"\"),\". On \"&TEXT(a[[#This Row],[PTHD]],\"mmmm d, yyyy\")&\" \"&a[[#Headers],[PTH]]&\" was \"&a[[#This Row],[PTH]]&\" \"&b!AU$2,\"\")&IF(AND(a[[#This Row],[Uric Acid]]<>\"\",a[[#This Row],[UricD]]<>\"\"),\". On \"&TEXT(a[[#This Row],[UricD]],\"mmmm d, yyyy\")&\" \"&a[[#Headers],[Uric Acid]]&\" was \"&a[[#This Row],[Uric Acid]]&\" \"&b!AV$2,\"\")&IF(AND(a[[#This Row],[Amylase]]<>\"\",a[[#This Row],[AmyD]]<>\"\"),\". On \"&TEXT(a[[#This Row],[AmyD]],\"mmmm d, yyyy\")&\" \"&a[[#Headers],[Amylase]]&\" was \"&a[[#This Row],[Amylase]]&\" \"&b!AW$2,\"\")&IF(AND(a[[#This Row],[Lipase]]<>\"\",a[[#This Row],[LipaD]]<>\"\"),\". On \"&TEXT(a[[#This Row],[LipaD]],\"mmmm d, yyyy\")&\" \"&BQ$1&\" was \"&a[[#This Row],[Lipase]]&\" \"&b!AX$2,\"\")&IF(AND(a[[#This Row],[AFP, Tumor Marker]]<>\"\",a[[#This Row],[AFPD]]<>\"\"),\". On \"&TEXT(a[[#This Row],[AFPD]],\"mmmm d, yyyy\")&\" \"&a[[#Headers],[AFP, Tumor Marker]]&\" was \"&a[[#This Row],[AFP, Tumor Marker]]&\" \"&b!BJ$2,\"\")&IF(AND(a[[#This Row],[WBC]]<>\"\",a[[#This Row],[Hemoglobin]]<>\"\",a[[#This Row],[MCV]]<>\"\",a[[#This Row],[Platelet]]<>\"\",a[[#This Row],[CBCD]]<>\"\"),\".  On \"&TEXT(a[[#This Row],[CBCD]],\"mmmm d, yyyy\")&\" a complete blood count had \"&a[[#Headers],[WBC]]&\" \"&a[[#This Row],[WBC]]&\" \"&b!Q$2&\", \"&a[[#Headers],[Hemoglobin]]&\" \"&a[[#This Row],[Hemoglobin]]&\" \"&b!R$2&\", \"&a[[#Headers],[MCV]]&\" \"&a[[#This Row],[MCV]]&\" \"&b!S$2&\", \"&a[[#Headers],[Platelet]]&\" \"&a[[#This Row],[Platelet]]&\" \"&b!T$2,\".  No CBC found\")&IF(AND(a[[#This Row],[Erythrocyte Sedimentation Rate]]<>\"\",a[[#This Row],[ESRD]]<>\"\"),\". On \"&TEXT(a[[#This Row],[ESRD]],\"mmmm d, yyyy\")&\" \"&a[[#Headers],[Erythrocyte Sedimentation Rate]]&\" was \"&a[[#This Row],[Erythrocyte Sedimentation Rate]]&\" \"&b!AM$2,\"\")&IF(AND(a[[#This Row],[C-Reactive Protein]]<>\"\",a[[#This Row],[CRPD]]<>\"\"),\". On \"&TEXT(a[[#This Row],[CRPD]],\"mmmm d, yyyy\")&\" \"&a[[#Headers],[C-Reactive Protein]]&\" was \"&a[[#This Row],[C-Reactive Protein]]&\" \"&b!AN$2,\"\")&IF(AND(a[[#This Row],[Hepatitis B Viral Load]]<>\"\",a[[#This Row],[HBVD]]<>\"\"),\". On \"&TEXT(a[[#This Row],[HBVD]],\"mmmm d, yyyy\")&\" \"&a[[#Headers],[Hepatitis B Viral Load]]&\" was \"&a[[#This Row],[Hepatitis B Viral Load]]&\" \"&b!BB$2,\"\")&IF(AND(a[[#This Row],[Hepatitis C Viral Load]]<>\"\",a[[#This Row],[HCVD]]<>\"\"),\". On \"&TEXT(a[[#This Row],[HCVD]],\"mmmm d, yyyy\")&\" \"&a[[#Headers],[Hepatitis C Viral Load]]&\" was \"&a[[#This Row],[Hepatitis C Viral Load]]&\" \"&b!BA$2,\"\")&IF(AND(a[[#This Row],[HIV Viral Load]]<>\"\",a[[#This Row],[HIVD]]<>\"\"),\". On \"&TEXT(a[[#This Row],[HIVD]],\"mmmm d, yyyy\")&\" \"&a[[#Headers],[HIV Viral Load]]&\" was \"&a[[#This Row],[HIV Viral Load]]&\" \"&b!BC$2,\"\")&IF(AND(a[[#This Row],[CD4 Count]]<>\"\",a[[#This Row],[CD4D]]<>\"\"),\". On \"&TEXT(a[[#This Row],[CD4D]],\"mmmm d, yyyy\")&\" \"&a[[#Headers],[CD4 Count]]&\" was \"&a[[#This Row],[CD4 Count]]&\" \"&b!AL$2,\"\")&IF(AND(a[[#This Row],[Iron]]<>\"\",a[[#This Row],[TIBC]]<>\"\",a[[#This Row],[% Saturation]]<>\"\",a[[#This Row],[IronD]]<>\"\"),\". Iron Testing: On \"&TEXT(a[[#This Row],[IronD]],\"mmmm d, yyyy\")&\" \"&a[[#Headers],[Iron]]&\" was \"&a[[#This Row],[Iron]]&\" \"&b!AO$2&\", \"&a[[#Headers],[TIBC]]&\" was \"&a[[#This Row],[TIBC]]&\" \"&b!AP$2&\", \"&a[[#Headers],[% Saturation]]&\" was \"&a[[#This Row],[% Saturation]]&\" \"&b!AQ$2,\"\")&IF(AND(a[[#This Row],[Ferritin]]<>\"\",a[[#This Row],[FerrD]]<>\"\"),\". On \"&TEXT(a[[#This Row],[FerrD]],\"mmmm d, yyyy\")&\" \"&a[[#Headers],[Ferritin]]&\" was \"&a[[#This Row],[Ferritin]]&\" \"&b!AR$2,\"\")&IF(AND(a[[#This Row],[Vitamin B12 level]]<>\"\",a[[#This Row],[VitB12D]]<>\"\"),\". On \"&TEXT(a[[#This Row],[VitB12D]],\"mmmm d, yyyy\")&\" \"&a[[#Headers],[Vitamin B12 level]]&\" was \"&a[[#This Row],[Vitamin B12 level]]&\" \"&b!AC$2,\"\")&IF(AND(a[[#This Row],[Folate level]]<>\"\",a[[#This Row],[FolaD]]<>\"\"),\". On \"&TEXT(a[[#This Row],[FolaD]],\"mmmm d, yyyy\")&\" \"&a[[#Headers],[Folate level]]&\" was \"&a[[#This Row],[Folate level]]&\" \"&b!AD$2,\"\")&IF(AND(a[[#This Row],[Homocysteine]]<>\"\",a[[#This Row],[HomoD]]<>\"\"),\". On \"&TEXT(a[[#This Row],[HomoD]],\"mmmm d, yyyy\")&\" \"&a[[#Headers],[Homocysteine]]&\" was \"&a[[#This Row],[Homocysteine]]&\" \"&b!AE$2,\"\")&IF(AND(a[[#This Row],[Methylmalonic Acid]]<>\"\",a[[#This Row],[MethD]]<>\"\"),\". On \"&TEXT(a[[#This Row],[MethD]],\"mmmm d, yyyy\")&\" \"&a[[#Headers],[Methylmalonic Acid]]&\" was \"&a[[#This Row],[Methylmalonic Acid]]&\" \"&b!AF$2,\"\")&IF(AND(a[[#This Row],[Thiamine]]<>\"\",a[[#This Row],[ThiaD]]<>\"\"),\". On \"&TEXT(a[[#This Row],[ThiaD]],\"mmmm d, yyyy\")&\" \"&a[[#Headers],[Thiamine]]&\" was \"&a[[#This Row],[Thiamine]]&\" \"&b!AG$2,\"\")&IF(AND(a[[#This Row],[Zinc]]<>\"\",a[[#This Row],[ZincD]]<>\"\"),\". On \"&TEXT(a[[#This Row],[ZincD]],\"mmmm d, yyyy\")&\" \"&a[[#Headers],[Zinc]]&\" was \"&a[[#This Row],[Zinc]]&\" \"&b!AH$2,\"\")&IF(AND(a[[#This Row],[Copper]]<>\"\",a[[#This Row],[CopD]]<>\"\"),\". On \"&TEXT(a[[#This Row],[CopD]],\"mmmm d, yyyy\")&\" \"&a[[#Headers],[Copper]]&\" was \"&a[[#This Row],[Copper]]&\" \"&b!AI$2,\"\")&IF(AND(a[[#This Row],[LipiD]]<>\"\",a[[#This Row],[Total Cholesterol]]<>\"\",a[[#This Row],[Triglycerides]]<>\"\",a[[#This Row],[HDL]]<>\"\",a[[#This Row],[LDL]]<>\"\"),\".  On \"&TEXT(a[[#This Row],[LipiD]],\"mmmm d, yyyy\")&\" fasting lipids included \"&a[[#Headers],[Total Cholesterol]]&\" \"&a[[#This Row],[Total Cholesterol]]&\" \"&b!V$2&\", \"&a[[#Headers],[Triglycerides]]&\" \"&a[[#This Row],[Triglycerides]]&\" \"&b!W$2&\", \"&a[[#Headers],[HDL]]&\" \"&a[[#This Row],[HDL]]&\" \"&b!X$2&\", and \"&a[[#Headers],[LDL]]&\" \"&a[[#This Row],[LDL]]&\" \"&b!Y$2,\"\")","v":"No BMP found.  On January 0, 1900 labs included AST  (N<=34), ALT  (N<=55), Alkaline Phosphatase  (N 40-150), Bilirubin, Total  (N 0.2-1.2), Total Protein  (N 6.0-8.3), Albumin  (N 3.5-5.2), and Globulin  (N 2.0-3.7).  No CBC found"},{"$f":"IF(AND(a[[#This Row],[A1cD]]<>\"\",a[[#This Row],[Hemoglobin A1c]]<>\"\"),\".  On \"&TEXT(a[[#This Row],[A1cD]],\"mmmm d, yyyy\")&\" \"&a[[#Headers],[Hemoglobin A1c]]&\" was \"&a[[#This Row],[Hemoglobin A1c]]&\" \"&b!U$2,\"\")&IF(AND(a[[#This Row],[TSH]]<>\"\",a[[#This Row],[TSHD]]<>\"\"),\".  Thyroid testing:  \"&a[[#Headers],[TSH]]&\" was \"&a[[#This Row],[TSH]]&\" \"&b!Z$2&\" on \"&TEXT(a[[#This Row],[TSHD]],\"mmmm d, yyyy\"),\"\")&IF(AND(a[[#This Row],[Free T4]]<>\"\",a[[#This Row],[FT4D]]<>\"\"),\".  On \"&TEXT(a[[#This Row],[FT4D]],\"mmmm d, yyyy\")&\" \"&a[[#Headers],[Free T4]]&\" was \"&a[[#This Row],[Free T4]]&\" \"&b!AY$2,\"\")&IF(AND(a[[#This Row],[PSA level]]<>\"\",a[[#This Row],[PSAD]]<>\"\"),\". Prostate: On \"&TEXT(a[[#This Row],[PSAD]],\"mmmm d, yyyy\")&\" \"&a[[#Headers],[PSA level]]&\" was \"&a[[#This Row],[PSA level]]&\" \"&b!AA$2,\"\")&IF(AND(a[[#This Row],[Urine Microalbumin/Creatinine]]<>\"\",a[[#This Row],[MACD]]<>\"\"),\".  On \"&TEXT(a[[#This Row],[MACD]], \"mmmm d, yyyy\")&\" \"&a[[#Headers],[Urine Microalbumin/Creatinine]]&\" was \"&a[[#This Row],[Urine Microalbumin/Creatinine]]&\" \"&b!AJ$2,\"\")&IF(AND(a[[#This Row],[other urine testing]]<>\"\",a[[#This Row],[OthUD]]<>\"\"),\".  On \"&TEXT(a[[#This Row],[OthUD]], \"mmmm d, yyyy\")&\" \"&a[[#Headers],[other urine testing]]&\" was notable for \"&a[[#This Row],[other urine testing]],\"\")&IF(AND(a[[#This Row],[other lab testing]]<>\"\",a[[#This Row],[OthLD]]<>\"\"),\".  On \"&TEXT(a[[#This Row],[OthLD]], \"mmmm d, yyyy\")&\" \"&a[[#Headers],[other lab testing]]&\" was notable for \"&a[[#This Row],[other lab testing]],\"\")&IF(AND(a[[#This Row],[additional lab testing]]<>\"\",a[[#This Row],[AddLD]]<>\"\"),\".  On \"&TEXT(a[[#This Row],[AddLD]], \"mmmm d, yyyy\")&\" \"&a[[#Headers],[additional lab testing]]&\" was notable for \"&a[[#This Row],[additional lab testing]],\"\")&IF(AND(a[[#This Row],[Total Valproic Acid Level]]<>\"\",a[[#This Row],[ValpD]]<>\"\"),\".  On \"&TEXT(a[[#This Row],[ValpD]],\"mmmm d, yyyy\")&\" \"&a[[#Headers],[Total Valproic Acid Level]]&\" was \"&a[[#This Row],[Total Valproic Acid Level]]&\" \"&b!BE$2,\"\")&IF(AND(a[[#This Row],[Total Phenytoin Level]]<>\"\",a[[#This Row],[PhenD]]<>\"\"),\".  On \"&TEXT(a[[#This Row],[PhenD]],\"mmmm d, yyyy\")&\" \"&a[[#Headers],[Total Phenytoin Level]]&\" was \"&a[[#This Row],[Total Phenytoin Level]]&\" \"&b!BF$2,\"\")&IF(AND(a[[#This Row],[Tacrolimus Level]]<>\"\",a[[#This Row],[TacrD]]<>\"\"),\".  On \"&TEXT(a[[#This Row],[TacrD]],\"mmmm d, yyyy\")&\" \"&a[[#Headers],[Tacrolimus Level]]&\" was \"&a[[#This Row],[Tacrolimus Level]]&\" \"&b!BG$2,\"\")&IF(AND(a[[#This Row],[Digoxin Level]]<>\"\",a[[#This Row],[DigD]]<>\"\"),\".  On \"&TEXT(a[[#This Row],[DigD]],\"mmmm d, yyyy\")&\" \"&a[[#Headers],[Digoxin Level]]&\" was \"&a[[#This Row],[Digoxin Level]]&\" \"&b!BI$2,\"\")&\".\"","v":"."},{"$f":"a[[#This Row],[Lab subblurb A]]&a[[#This Row],[Lab subblurb B]]","v":"No BMP found.  On January 0, 1900 labs included AST  (N<=34), ALT  (N<=55), Alkaline Phosphatase  (N 40-150), Bilirubin, Total  (N 0.2-1.2), Total Protein  (N 6.0-8.3), Albumin  (N 3.5-5.2), and Globulin  (N 2.0-3.7).  No CBC found."},{"$f":"IF(a[[#This Row],[Sodium]]<>\"\",IF(OR(VALUE(a[[#This Row],[Sodium]])<VALUE(b!B$3),VALUE(a[[#This Row],[Sodium]])>VALUE(b!B$4)),\"Sodium.  \",\"\"),\"\")&IF(a[[#This Row],[Potassium]]<>\"\",IF(OR(VALUE(a[[#This Row],[Potassium]])<VALUE(b!C$3),VALUE(a[[#This Row],[Potassium]])>VALUE(b!C$4)),\"Potassium.  \",\"\"),\"\")&IF(a[[#This Row],[Chloride]]<>\"\",IF(OR(VALUE(a[[#This Row],[Chloride]])<VALUE(b!D$3),VALUE(a[[#This Row],[Chloride]])>VALUE(b!D$4)),\"Chloride.  \",\"\"),\"\")&IF(a[[#This Row],[Bicarbonate]]<>\"\",IF(OR(VALUE(a[[#This Row],[Bicarbonate]])<VALUE(b!E$3),VALUE(a[[#This Row],[Bicarbonate]])>VALUE(b!E$4)),\"Bicarbonate.  \",\"\"),\"\")&IF(a[[#This Row],[BUN]]<>\"\",IF(OR(VALUE(a[[#This Row],[BUN]])<VALUE(b!F$3),VALUE(a[[#This Row],[BUN]])>VALUE(b!F$4)),\"BUN.  \",\"\"),\"\")&IF(a[[#This Row],[Creatinine]]<>\"\",IF(OR(VALUE(a[[#This Row],[Creatinine]])<VALUE(b!G$3),VALUE(a[[#This Row],[Creatinine]])>VALUE(b!G$4)),\"Creatinine.  \",\"\"),\"\")&IF(a[[#This Row],[Calcium]]<>\"\",IF(OR(VALUE(a[[#This Row],[Calcium]])<VALUE(b!H$3),VALUE(a[[#This Row],[Calcium]])>VALUE(b!H$4)),\"Calcium.  \",\"\"),\"\")&IF(a[[#This Row],[Glucose]]<>\"\",IF(OR(VALUE(a[[#This Row],[Glucose]])<VALUE(b!I$3),VALUE(a[[#This Row],[Glucose]])>VALUE(b!I$4)),\"Glucose.  \",\"\"),\"\")&IF(a[[#This Row],[Cystatin C]]<>\"\",IF(OR(VALUE(a[[#This Row],[Cystatin C]])<VALUE(b!AK$3),VALUE(a[[#This Row],[Cystatin C]])>VALUE(b!AK$4)),\"Cystatin C.  \",\"\"),\"\")&IF(a[[#This Row],[AST]]<>\"\",IF(OR(VALUE(a[[#This Row],[AST]])<VALUE(b!J$3),VALUE(a[[#This Row],[AST]])>VALUE(b!J$4)),\"AST.  \",\"\"),\"\")&IF(a[[#This Row],[ALT]]<>\"\",IF(OR(VALUE(a[[#This Row],[ALT]])<VALUE(b!K$3),VALUE(a[[#This Row],[ALT]])>VALUE(b!K$4)),\"ALT.  \",\"\"),\"\")&IF(a[[#This Row],[Alkaline Phosphatase]]<>\"\",IF(OR(VALUE(a[[#This Row],[Alkaline Phosphatase]])<VALUE(b!L$3),VALUE(a[[#This Row],[Alkaline Phosphatase]])>VALUE(b!L$4)),\"Alkaline Phosphatase.  \",\"\"),\"\")&IF(a[[#This Row],[Bilirubin, Total]]<>\"\",IF(OR(VALUE(a[[#This Row],[Bilirubin, Total]])<VALUE(b!M$3),VALUE(a[[#This Row],[Bilirubin, Total]])>VALUE(b!M$4)),\"Bilirubin, Total.  \",\"\"),\"\")&IF(a[[#This Row],[Total Protein]]<>\"\",IF(OR(VALUE(a[[#This Row],[Total Protein]])<VALUE(b!N$3),VALUE(a[[#This Row],[Total Protein]])>VALUE(b!N$4)),\"Total Protein.  \",\"\"),\"\")&IF(a[[#This Row],[Albumin]]<>\"\",IF(OR(VALUE(a[[#This Row],[Albumin]])<VALUE(b!O$3),VALUE(a[[#This Row],[Albumin]])>VALUE(b!O$4)),\"Albumin.  \",\"\"),\"\")&IF(a[[#This Row],[Globulin]]<>\"\",IF(OR(VALUE(a[[#This Row],[Globulin]])<VALUE(b!P$3),VALUE(a[[#This Row],[Globulin]])>VALUE(b!P$4)),\"Globulin.  \",\"\"),\"\")&IF(a[[#This Row],[Amylase]]<>\"\",IF(OR(VALUE(a[[#This Row],[Amylase]])<VALUE(b!AW$3),VALUE(a[[#This Row],[Amylase]])>VALUE(b!AW$4)),\"Amylase.  \",\"\"),\"\")&IF(a[[#This Row],[Lipase]]<>\"\",IF(OR(VALUE(a[[#This Row],[Lipase]])<VALUE(b!AX$3),VALUE(a[[#This Row],[Lipase]])>VALUE(b!AX$4)),\"Lipase.  \",\"\"),\"\")&IF(a[[#This Row],[Magnesium]]<>\"\",IF(OR(VALUE(a[[#This Row],[Magnesium]])<VALUE(b!AS$3),VALUE(a[[#This Row],[Magnesium]])>VALUE(b!AS$4)),\"Magnesium.  \",\"\"),\"\")&IF(a[[#This Row],[Phosphorus]]<>\"\",IF(OR(VALUE(a[[#This Row],[Phosphorus]])<VALUE(b!AT$3),VALUE(a[[#This Row],[Phosphorus]])>VALUE(b!AT$4)),\"Phosphorus.  \",\"\"),\"\")&IF(a[[#This Row],[Total Cholesterol]]<>\"\",IF(OR(VALUE(a[[#This Row],[Total Cholesterol]])<VALUE(b!V$3),VALUE(a[[#This Row],[Total Cholesterol]])>VALUE(b!V$4)),\"Total Cholesterol.  \",\"\"),\"\")&IF(a[[#This Row],[Triglycerides]]<>\"\",IF(OR(VALUE(a[[#This Row],[Triglycerides]])<VALUE(b!W$3),VALUE(a[[#This Row],[Triglycerides]])>VALUE(b!W$4)),\"Triglycerides.  \",\"\"),\"\")&IF(a[[#This Row],[HDL]]<>\"\",IF(OR(VALUE(a[[#This Row],[HDL]])<VALUE(b!X$3),VALUE(a[[#This Row],[HDL]])>VALUE(b!X$4)),\"HDL.  \",\"\"),\"\")&IF(a[[#This Row],[LDL]]<>\"\",IF(OR(VALUE(a[[#This Row],[LDL]])<VALUE(b!Y$3),VALUE(a[[#This Row],[LDL]])>VALUE(b!Y$4)),\"LDL.  \",\"\"),\"\")","v":""},{"$f":"IF(a[[#This Row],[LDH]]<>\"\",IF(OR(VALUE(a[[#This Row],[LDH]])<VALUE(b!BH$3),VALUE(a[[#This Row],[LDH]])>VALUE(b!BH$4)),\"LDH.  \",\"\"),\"\")&IF(a[[#This Row],[Uric Acid]]<>\"\",IF(OR(VALUE(a[[#This Row],[Uric Acid]])<VALUE(b!AV$3),VALUE(a[[#This Row],[Uric Acid]])>VALUE(b!AV$4)),\"Uric Acid.  \",\"\"),\"\")&IF(a[[#This Row],[PTH]]<>\"\",IF(OR(VALUE(a[[#This Row],[PTH]])<VALUE(b!AU$3),VALUE(a[[#This Row],[PTH]])>VALUE(b!AU$4)),\"PTH.  \",\"\"),\"\")&IF(a[[#This Row],[TSH]]<>\"\",IF(OR(VALUE(a[[#This Row],[TSH]])<VALUE(b!Z$3),VALUE(a[[#This Row],[TSH]])>VALUE(b!Z$4)),\"TSH.  \",\"\"),\"\")&IF(a[[#This Row],[Free T4]]<>\"\",IF(OR(VALUE(a[[#This Row],[Free T4]])<VALUE(b!AY$3),VALUE(a[[#This Row],[Free T4]])>VALUE(b!AY$4)),\"Free T4.  \",\"\"),\"\")&IF(a[[#This Row],[PSA level]]<>\"\",IF(OR(VALUE(a[[#This Row],[PSA level]])<VALUE(b!AA$3),VALUE(a[[#This Row],[PSA level]])>VALUE(b!AA$4)),\"PSA level.  \",\"\"),\"\")&IF(a[[#This Row],[Vitamin D, 25-Hydroxy level]]<>\"\",IF(OR(VALUE(a[[#This Row],[Vitamin D, 25-Hydroxy level]])<VALUE(b!AB$3),VALUE(a[[#This Row],[Vitamin D, 25-Hydroxy level]])>VALUE(b!AB$4)),\"Vitamin D, 25-Hydroxy level.  \",\"\"),\"\")&IF(a[[#This Row],[Iron]]<>\"\",IF(OR(VALUE(a[[#This Row],[Iron]])<VALUE(b!AO$3),VALUE(a[[#This Row],[Iron]])>VALUE(b!AO$4)),\"Iron.  \",\"\"),\"\")&IF(a[[#This Row],[TIBC]]<>\"\",IF(OR(VALUE(a[[#This Row],[TIBC]])<VALUE(b!AP$3),VALUE(a[[#This Row],[TIBC]])>VALUE(b!AP$4)),\"TIBC.  \",\"\"),\"\")&IF(a[[#This Row],[% Saturation]]<>\"\",IF(OR(VALUE(a[[#This Row],[% Saturation]])<VALUE(b!AQ$3),VALUE(a[[#This Row],[% Saturation]])>VALUE(b!AQ$4)),\"% Saturation.  \",\"\"),\"\")&IF(a[[#This Row],[Ferritin]]<>\"\",IF(OR(VALUE(a[[#This Row],[Ferritin]])<VALUE(b!AR$3),VALUE(a[[#This Row],[Ferritin]])>VALUE(b!AR$4)),\"Ferritin.  \",\"\"),\"\")&IF(a[[#This Row],[Vitamin B12 level]]<>\"\",IF(OR(VALUE(a[[#This Row],[Vitamin B12 level]])<VALUE(b!AC$3),VALUE(a[[#This Row],[Vitamin B12 level]])>VALUE(b!AC$4)),\"Vitamin B12 level.  \",\"\"),\"\")&IF(a[[#This Row],[Folate level]]<>\"\",IF(OR(VALUE(a[[#This Row],[Folate level]])<VALUE(b!AD$3),VALUE(a[[#This Row],[Folate level]])>VALUE(b!AD$4)),\"Folate level.  \",\"\"),\"\")&IF(a[[#This Row],[WBC]]<>\"\",IF(OR(VALUE(a[[#This Row],[WBC]])<VALUE(b!Q$3),VALUE(a[[#This Row],[WBC]])>VALUE(b!Q$4)),\"WBC.  \",\"\"),\"\")&IF(a[[#This Row],[Hemoglobin]]<>\"\",IF(OR(VALUE(a[[#This Row],[Hemoglobin]])<VALUE(b!R$3),VALUE(a[[#This Row],[Hemoglobin]])>VALUE(b!R$4)),\"Hemoglobin.  \",\"\"),\"\")&IF(a[[#This Row],[MCV]]<>\"\",IF(OR(VALUE(a[[#This Row],[MCV]])<VALUE(b!S$3),VALUE(a[[#This Row],[MCV]])>VALUE(b!S$4)),\"MCV.  \",\"\"),\"\")&IF(a[[#This Row],[Platelet]]<>\"\",IF(OR(VALUE(a[[#This Row],[Platelet]])<VALUE(b!T$3),VALUE(a[[#This Row],[Platelet]])>VALUE(b!T$4)),\"Platelet.  \",\"\"),\"\")&IF(a[[#This Row],[Erythrocyte Sedimentation Rate]]<>\"\",IF(OR(VALUE(a[[#This Row],[Erythrocyte Sedimentation Rate]])<VALUE(b!AM$3),VALUE(a[[#This Row],[Erythrocyte Sedimentation Rate]])>VALUE(b!AM$4)),\"Erythrocyte Sedimentation Rate.  \",\"\"),\"\")&IF(a[[#This Row],[C-Reactive Protein]]<>\"\",IF(OR(VALUE(a[[#This Row],[C-Reactive Protein]])<VALUE(b!AN$3),VALUE(a[[#This Row],[C-Reactive Protein]])>VALUE(b!AN$4)),\"C-Reactive Protein.  \",\"\"),\"\")&IF(a[[#This Row],[Hemoglobin A1c]]<>\"\",IF(OR(VALUE(a[[#This Row],[Hemoglobin A1c]])<VALUE(b!U$3),VALUE(a[[#This Row],[Hemoglobin A1c]])>VALUE(b!U$4)),\"Hemoglobin A1c.  \",\"\"),\"\")&IF(a[[#This Row],[Homocysteine]]<>\"\",IF(OR(VALUE(a[[#This Row],[Homocysteine]])<VALUE(b!AE$3),VALUE(a[[#This Row],[Homocysteine]])>VALUE(b!AE$4)),\"Homocysteine.  \",\"\"),\"\")&IF(a[[#This Row],[Methylmalonic Acid]]<>\"\",IF(OR(VALUE(a[[#This Row],[Methylmalonic Acid]])<VALUE(b!AF$3),VALUE(a[[#This Row],[Methylmalonic Acid]])>VALUE(b!AF$4)),\"Methylmalonic Acid.  \",\"\"),\"\")&IF(a[[#This Row],[AFP, Tumor Marker]]<>\"\",IF(OR(VALUE(a[[#This Row],[AFP, Tumor Marker]])<VALUE(b!BJ$3),VALUE(a[[#This Row],[AFP, Tumor Marker]])>VALUE(b!BJ$4)),\"AFP, Tumor Marker.  \",\"\"),\"\")&IF(a[[#This Row],[Thiamine]]<>\"\",IF(OR(VALUE(a[[#This Row],[Thiamine]])<VALUE(b!AG$3),VALUE(a[[#This Row],[Thiamine]])>VALUE(b!AG$4)),\"Thiamine.  \",\"\"),\"\")&IF(a[[#This Row],[Zinc]]<>\"\",IF(OR(VALUE(a[[#This Row],[Zinc]])<VALUE(b!AH$3),VALUE(a[[#This Row],[Zinc]])>VALUE(b!AH$4)),\"Zinc.  \",\"\"),\"\")&IF(a[[#This Row],[Copper]]<>\"\",IF(OR(VALUE(a[[#This Row],[Copper]])<VALUE(b!AI$3),VALUE(a[[#This Row],[Copper]])>VALUE(b!AI$4)),\"Copper.  \",\"\"),\"\")&IF(a[[#This Row],[Digoxin Level]]<>\"\",IF(OR(VALUE(a[[#This Row],[Digoxin Level]])<VALUE(b!BI$3),VALUE(a[[#This Row],[Digoxin Level]])>VALUE(b!BI$4)),\"Digoxin Level.  \",\"\"),\"\")&IF(a[[#This Row],[Total Valproic Acid Level]]<>\"\",IF(OR(VALUE(a[[#This Row],[Total Valproic Acid Level]])<VALUE(b!BE$3),VALUE(a[[#This Row],[Total Valproic Acid Level]])>VALUE(b!BE$4)),\"Total Valproic Acid Level.  \",\"\"),\"\")&IF(a[[#This Row],[Total Phenytoin Level]]<>\"\",IF(OR(VALUE(a[[#This Row],[Total Phenytoin Level]])<VALUE(b!BF$3),VALUE(a[[#This Row],[Total Phenytoin Level]])>VALUE(b!BF$4)),\"Total Phenytoin Level.  \",\"\"),\"\")&IF(a[[#This Row],[Tacrolimus Level]]<>\"\",IF(OR(VALUE(a[[#This Row],[Tacrolimus Level]])<VALUE(b!BG$3),VALUE(a[[#This Row],[Tacrolimus Level]])>VALUE(b!BG$4)),\"Tacrolimus Level.  \",\"\"),\"\")&IF(a[[#This Row],[CD4 Count]]<>\"\",IF(OR(VALUE(a[[#This Row],[CD4 Count]])<VALUE(b!AL$3),VALUE(a[[#This Row],[CD4 Count]])>VALUE(b!AL$4)),\"CD4 Count.  \",\"\"),\"\")&IF(a[[#This Row],[Urine Microalbumin/Creatinine]]<>\"\",IF(OR(VALUE(a[[#This Row],[Urine Microalbumin/Creatinine]])<VALUE(b!AJ$3),VALUE(a[[#This Row],[Urine Microalbumin/Creatinine]])>VALUE(b!AJ$4)),\"Urine Microalbumin/Creatinine.  \",\"\"),\"\")","v":""},{"$f":"a[[#This Row],[subAbLab A]]&a[[#This Row],[subAbLab B]]","v":""},null,null,null,null,null,null,null,null,null,null,null,null,null,null,null,null,null,null,null,null,null,null,null,null,null,null,null,null,null,null,null,null,null,null,null,null,null,null,null,null,null,null,null,null,null,null,null,null,null,null,null,null,null,null,null,null,null,null,null,null,null,null,null,null,null,null,null,null,null,null,null,null,null,null,null,null,null,null,null,null,null,null,null,null,null,null,null,null,null,null,null,null,null,null,null,null,null,null,null,null,null,null,null,null,null,{"$f":"a[[#Headers],[*]]","v":"*"},{"$f":"a[[#This Row],[Calcium]] + (0.8 * (4-a[[#This Row],[Albumin]]))","v":3.2},{"$f":"LIVERAPRI(a[[#This Row],[AST]],a[[#This Row],[Platelet]])","v":0},{"$f":"LIVERAPRIINTERPRETATION(\"[@APRI])\")","v":"Likely cirrhosis"},{"$f":"\"APRI liver fibrosis calculation using recent AST \" & a[[#This Row],[AST]] & \" and Platelet count of \" &a[[#This Row],[Platelet]]& \" was calculated to be \" & ROUND(a[[#This Row],[APRI]],2) & \", \" & a[[#This Row],[APRI interpretation]]&\".\"","v":"APRI liver fibrosis calculation using recent AST  and Platelet count of  was calculated to be 0, Likely cirrhosis."},{"$f":"LIVERANI(a[[#This Row],[Gender:]],a[[#This Row],[MCV]],a[[#This Row],[AST]],a[[#This Row],[ALT]],a[[#This Row],[Height:  ]],a[[#This Row],[Weight:  ]])","v":{"$error":"#VALUE!"}},{"$f":"LIVERANIPROBABILITY(a[[#This Row],[ANI]])","v":{"$error":"#VALUE!"}},{"$f":"\"Alcohol-associated liver disease to NAFLD Index (ANI) \" & TEXT(a[[#This Row],[ANI]],\"0.00\") & \" indicates \" & TEXT(a[[#This Row],[Probability of Alcoholic Liver Disease]],\"00%\") & \" probability of alcoholic liver disease (versus non-alcoholic liver disease).  \"","v":{"$error":"#VALUE!"}},{"$f":"IF(_xlfn.NUMBERVALUE(a[[#This Row],[Bilirubin, Total]])>3,3,IF(_xlfn.NUMBERVALUE(a[[#This Row],[Bilirubin, Total]])>=2,2,IF(_xlfn.NUMBERVALUE(a[[#This Row],[Bilirubin, Total]])>0,1,\"missing\")))","v":"missing"},{"$f":"IF(_xlfn.NUMBERVALUE(a[[#This Row],[Albumin]])>3.5,1,IF(_xlfn.NUMBERVALUE(a[[#This Row],[Albumin]])>=2.8,2,IF(_xlfn.NUMBERVALUE(a[[#This Row],[Albumin]])>0,3,\"missing\")))","v":"missing"},{"$f":"IF(_xlfn.NUMBERVALUE(a[[#This Row],[INR]])>2.2,3,IF(_xlfn.NUMBERVALUE(a[[#This Row],[INR]])>=1.7,2,IF(_xlfn.NUMBERVALUE(a[[#This Row],[INR]])>0,1,\"missing\")))","v":"missing"},null,null,{"$f":"SUM(a[[#This Row],[Bili Pts]:[Ence Pts]])","v":0},{"$f":"IF(_xlfn.NUMBERVALUE(a[[#This Row],[Child Pugh Score]])>9,\"C\",IF(_xlfn.NUMBERVALUE(a[[#This Row],[Child Pugh Score]])>=7,\"B\",IF(_xlfn.NUMBERVALUE(a[[#This Row],[Child Pugh Score]])>0,\"A\",\"missing\")))","v":"missing"},{"$f":"TENYEARASCVDRISK(a[[#This Row],[Gender:]],a[[#This Row],[Age: ]],a[[#This Row],[Race:]],a[[#This Row],[Current Smoker:]],a[[#This Row],[Diabetes:]],a[[#This Row],[Blood Pressure Treated:]],a[[#This Row],[Total Cholesterol]],a[[#This Row],[HDL]],a[[#This Row],[SBP:]])","v":0},{"$f":"LIFETIMEASCVDRISK(a[[#This Row],[Gender:]],a[[#This Row],[Age: ]],a[[#This Row],[Current Smoker:]],a[[#This Row],[Diabetes:]],a[[#This Row],[Total Cholesterol]],a[[#This Row],[SBP:]])","v":0},{"$f":"IF(OR(_xlfn.NUMBERVALUE(a[[#This Row],[LDL]])>190,a[[#This Row],[10-Year ASCVD]]>7.5%,a[[#This Row],[Lifetime ASCVD Risk]]>39%),\"YES\",\"NO\")","v":"NO"},{"$f":"IF(a[[#This Row],[Statin:]]=\"No\",IF(a[[#This Row],[Statin indicated (LDL>190,10 year ASCVD>7.5%, lifetime ASCVD>39%)]]=\"NO\",\"Statin DOES NOT need to be started because LDL at or below 190 mg/dL, 10 year ASCVD is at or below 7.5%, and lifetime ASCVD is at or below 39%\",\"Statin SHOULD be started because LDL is above 190 mg/dL, 10 year ASCVD is above 7.5%, or lifetime ASCVD is above 39%\"),IF(a[[#This Row],[Statin:]]=\"Yes\",\"Currently on Statin\",\"Error\"))","v":"Error"},{"$f":"a[[#Headers],[*]]","v":"*"},null,null,null,null,null,null,null,null,null,null,null,null,null,null,null,null,null,null,null,null,null,null,null,null,null,null,null,null,null,null,null,null,null,null,null,null,null,null,null,null,null,null,null,null,null,null,null,null,null,null,null,null,null,null,null,null,null,null,null,null,null,null,{"$f":"\"Noteworthy testing:  \"&CHAR(10)&IF(a[[#This Row],[EKG:  ]]<>\"\",a[[#Headers],[EKG:  ]]&a[[#This Row],[EKG:  ]]&\" (\"&TEXT(a[[#This Row],[EKG Date:  ]],\"mm/dd/yyyy\")&\")\"&CHAR(10),\"\")&IF(a[[#This Row],[Holter Monitor:  ]]<>\"\",a[[#Headers],[Holter Monitor:  ]]&a[[#This Row],[Holter Monitor:  ]]&\" (\"&TEXT(a[[#This Row],[Holter Date:  ]],\"mm/dd/yyyy\")&\")\"&CHAR(10),\"\")&IF(a[[#This Row],[Echocardiogram:  ]]<>\"\",a[[#Headers],[Echocardiogram:  ]]&a[[#This Row],[Echocardiogram:  ]]&\" (\"&TEXT(a[[#This Row],[Echocardiogram Date:  ]],\"mm/dd/yyyy\")&\")\"&CHAR(10),\"\")&IF(a[[#This Row],[Cardiac Stress Test:  ]]<>\"\",a[[#Headers],[Cardiac Stress Test:  ]]&a[[#This Row],[Cardiac Stress Test:  ]]&\" (\"&TEXT(a[[#This Row],[Cardiac Stress Test Date:  ]],\"mm/dd/yyyy\")&\")\"&CHAR(10),\"\")&IF(a[[#This Row],[Chest Xray:  ]]<>\"\",a[[#Headers],[Chest Xray:  ]]&a[[#This Row],[Chest Xray:  ]]&\" (\"&TEXT(a[[#This Row],[CXR Date:  ]],\"mm/dd/yyyy\")&\")\"&CHAR(10),\"\")&IF(a[[#This Row],[Xray:  ]]<>\"\",a[[#Headers],[Xray:  ]]&a[[#This Row],[Xray:  ]]&\" (\"&TEXT(a[[#This Row],[Xray Date]],\"mm/dd/yyyy\")&\")\"&CHAR(10),\"\")&IF(a[[#This Row],[CT:  ]]<>\"\",a[[#Headers],[CT:  ]]&a[[#This Row],[CT:  ]]&\" (\"&TEXT(a[[#This Row],[CT Date:  ]],\"mm/dd/yyyy\")&\")\"&CHAR(10),\"\")&IF(a[[#This Row],[MRI:  ]]<>\"\",a[[#Headers],[MRI:  ]]&a[[#This Row],[MRI:  ]]&\" (\"&TEXT(a[[#This Row],[MRI Date:  ]],\"mm/dd/yyyy\")&\")\"&CHAR(10),\"\")&IF(a[[#This Row],[EMG:  ]]<>\"\",a[[#Headers],[EMG:  ]]&a[[#This Row],[EMG:  ]]&\" (\"&TEXT(a[[#This Row],[EMG Date:  ]],\"mm/dd/yyyy\")&\")\"&CHAR(10),\"\")&IF(a[[#This Row],[EEG:  ]]<>\"\",a[[#Headers],[EEG:  ]]&a[[#This Row],[EEG:  ]]&\" (\"&TEXT(a[[#This Row],[EEG Date:  ]],\"mm/dd/yyyy\")&\")\"&CHAR(10),\"\")&IF(a[[#This Row],[Pulmonary Function Testing:  ]]<>\"\",a[[#Headers],[Pulmonary Function Testing:  ]]&a[[#This Row],[Pulmonary Function Testing:  ]]&\" (\"&TEXT(a[[#This Row],[Pulmonary Testing Date:  ]],\"mm/dd/yyyy\")&\")\"&CHAR(10),\"\")&IF(a[[#This Row],[Sleep Apnea Testing:  ]]<>\"\",a[[#Headers],[Sleep Apnea Testing:  ]]&a[[#This Row],[Sleep Apnea Testing:  ]]&\" (\"&TEXT(a[[#This Row],[Sleep Test Date:  ]],\"mm/dd/yyyy\")&\")\"&CHAR(10),\"\")&IF(a[[#This Row],[Ultrasound:  ]]<>\"\",a[[#Headers],[Ultrasound:  ]]&a[[#This Row],[Ultrasound:  ]]&\" (\"&TEXT(a[[#This Row],[Ultrasound Date:  ]],\"mm/dd/yyyy\")&\")\"&CHAR(10),\"\")&IF(a[[#This Row],[Renal Ultrasound:  ]]<>\"\",a[[#Headers],[Renal Ultrasound:  ]]&a[[#This Row],[Renal Ultrasound:  ]]&\" (\"&TEXT(a[[#This Row],[Renal Ultrasound Date:  ]],\"mm/dd/yyyy\")&\")\"&CHAR(10),\"\")&IF(a[[#This Row],[Liver Ultrasound:  ]]<>\"\",a[[#Headers],[Liver Ultrasound:  ]]&a[[#This Row],[Liver Ultrasound:  ]]&\" (\"&TEXT(a[[#This Row],[Liver Ultrasound Date:  ]],\"mm/dd/yyyy\")&\")\"&CHAR(10),\"\")&IF(a[[#This Row],[AAA screen (male smokers 65+):  ]]<>\"\",a[[#Headers],[AAA screen (male smokers 65+):  ]]&a[[#This Row],[AAA screen (male smokers 65+):  ]]&\" (\"&TEXT(a[[#This Row],[AAA Date:  ]],\"mm/dd/yyyy\")&\")\"&CHAR(10),\"\")&IF(a[[#This Row],[Colon cancer screening (45+):  ]]<>\"\",a[[#Headers],[Colon cancer screening (45+):  ]]&a[[#This Row],[Colon cancer screening (45+):  ]]&\" (\"&TEXT(a[[#This Row],[Colon cancer screening date:  ]],\"mm/dd/yyyy\")&\")\"&CHAR(10),\"\")&IF(a[[#This Row],[Lung cancer screening (55-79):  ]]<>\"\",a[[#Headers],[Lung cancer screening (55-79):  ]]&a[[#This Row],[Lung cancer screening (55-79):  ]]&\" (\"&TEXT(a[[#This Row],[Lung cancer screening date:  ]],\"mm/dd/yyyy\")&\")\"&CHAR(10),\"\")&IF(a[[#This Row],[Dental Exam Date:  ]]<>\"\",a[[#This Row],[Dental Exam Date:  ]]&TEXT(a[[#This Row],[Dental Exam Date:  ]],\"mm/dd/yyyy\")&\")\"&CHAR(10),\"\")&IF(a[[#This Row],[Foot Exam:  ]]<>\"\",a[[#Headers],[Foot Exam:  ]]&a[[#This Row],[Foot Exam:  ]]&\" (\"&TEXT(a[[#This Row],[Foot Exam Date:  ]],\"mm/dd/yyyy\")&\")\"&CHAR(10),\"\")&IF(a[[#This Row],[Fundoscopy:  ]]<>\"\",a[[#Headers],[Fundoscopy:  ]]&a[[#This Row],[Fundoscopy:  ]]&\" (\"&TEXT(a[[#This Row],[Fundoscopy Date:  ]],\"mm/dd/yyyy\")&\")\"&CHAR(10),\"\")&IF(a[[#This Row],[DEXA bone density:  ]]<>\"\",a[[#Headers],[DEXA bone density:  ]]&a[[#This Row],[DEXA bone density:  ]]&\" (\"&TEXT(a[[#This Row],[DEXA Date:  ]],\"mm/dd/yyyy\")&\")\"&CHAR(10),\"\")&IF(a[[#This Row],[PPD (mm):  ]]<>\"\",a[[#Headers],[PPD (mm):  ]]&a[[#This Row],[PPD (mm):  ]]&\" (\"&TEXT(a[[#This Row],[PPD Date:  ]],\"mm/dd/yyyy\")&\")\"&CHAR(10),\"\")&IF(a[[#This Row],[Hep B Serology:  ]]<>\"\",a[[#Headers],[Hep B Serology:  ]]&a[[#This Row],[Hep B Serology:  ]]&\" \"&b!BD193&\" (\"&TEXT(a[[#This Row],[Hep B serology Date:  ]],\"mm/dd/yyyy\")&\")\"&CHAR(10),\"\")&IF(a[[#This Row],[Hep C Serology:  ]]<>\"\",a[[#Headers],[Hep C Serology:  ]]&a[[#This Row],[Hep C Serology:  ]]&\" \"&b!AZ193&\" (\"&TEXT(a[[#This Row],[Hep C Serology Date:  ]],\"mm/dd/yyyy\")&\")\"&CHAR(10),\"\")&IF(a[[#This Row],[HIV:  ]]<>\"\",a[[#Headers],[HIV:  ]]&a[[#This Row],[HIV:  ]]&\" (\"&TEXT(a[[#This Row],[HIV Date:]],\"mm/dd/yyyy\")&\")\"&CHAR(10),\"\")&IF(a[[#This Row],[Meningococcal series completion date:  ]]<>\"\",a[[#Headers],[Meningococcal series completion date:  ]]&TEXT(a[[#This Row],[Meningococcal series completion date:  ]],\"mm/dd/yyyy\")&\")\"&CHAR(10),\"\")&IF(a[[#This Row],[Influenza (annual):  ]]<>\"\",a[[#Headers],[Influenza (annual):  ]]&TEXT(a[[#This Row],[Influenza (annual):  ]],\"mm/dd/yyyy\")&\")\"&CHAR(10),\"\")&IF(a[[#This Row],[Hepatitis B series completion date:  ]]<>\"\",a[[#Headers],[Hepatitis B series completion date:  ]]&TEXT(a[[#This Row],[Hepatitis B series completion date:  ]],\"mm/dd/yyyy\")&\")\"&CHAR(10),\"\")&IF(a[[#This Row],[MMR series completion date:  ]]<>\"\",a[[#Headers],[MMR series completion date:  ]]&TEXT(a[[#This Row],[MMR series completion date:  ]],\"mm/dd/yyyy\")&\")\"&CHAR(10),\"\")&IF(a[[#This Row],[Tdap (every 10 years):  ]]<>\"\",a[[#Headers],[Tdap (every 10 years):  ]]&TEXT(a[[#This Row],[Tdap (every 10 years):  ]],\"mm/dd/yyyy\")&\")\"&CHAR(10),\"\")&IF(a[[#This Row],[Pneumovax 13 (CKD or immune-suppressed):  ]]<>\"\",a[[#Headers],[Pneumovax 13 (CKD or immune-suppressed):  ]]&TEXT(a[[#This Row],[Pneumovax 13 (CKD or immune-suppressed):  ]],\"mm/dd/yyyy\")&\")\"&CHAR(10),\"\")&IF(a[[#This Row],[Pneumovax 23 (age 65, CHF, lung disease, DM, liver disease):  ]]<>\"\",a[[#Headers],[Pneumovax 23 (age 65, CHF, lung disease, DM, liver disease):  ]]&TEXT(a[[#This Row],[Pneumovax 23 (age 65, CHF, lung disease, DM, liver disease):  ]],\"mm/dd/yyyy\")&\")\"&CHAR(10),\"\")&IF(a[[#This Row],[Recombinant Zoster (age 50 or immune-suppressed):  ]]<>\"\",a[[#Headers],[Recombinant Zoster (age 50 or immune-suppressed):  ]]&TEXT(a[[#This Row],[Recombinant Zoster (age 50 or immune-suppressed):  ]],\"mm/dd/yyyy\")&\")\"&CHAR(10),\"\")&IF(a[[#This Row],[Other Procedure or Test:  ]]<>\"\",a[[#Headers],[Other Procedure or Test:  ]]&a[[#This Row],[Other Procedure or Test:  ]]&CHAR(10),\"\")","v":"Noteworthy testing:  \n"}]
[{"$f":"a[[#Headers],[*]]","v":"*"},null,null,null,{"$f":"INT(((TODAY())-a[[#This Row],[DOB:]])/365.25)","v":124},null,null,null,{"$f":"LEFT(a[[#This Row],[Blood Pressure: ]],FIND(\"/\",a[[#This Row],[Blood Pressure: ]])-1)","v":{"$error":"#VALUE!"}},{"$f":"RIGHT(a[[#This Row],[Blood Pressure: ]],LEN(a[[#This Row],[Blood Pressure: ]])-FIND(\"/\",a[[#This Row],[Blood Pressure: ]]))","v":{"$error":"#VALUE!"}},null,null,{"$f":"(a[[#This Row],[Weight:  ]]/(a[[#This Row],[Height:  ]]^2))*703","v":{"$error":"#DIV/0!"}},null,null,null,null,{"$f":"a[[#Headers],[*]]","v":"*"},null,null,null,null,null,null,null,null,null,null,null,null,null,null,null,null,null,null,null,null,null,null,null,{"$f":"IF(a[[#This Row],['# Co-managed:  ]]<>\"\",a[[#Headers],['# Co-managed:  ]]&a[[#This Row],['# Co-managed:  ]]&CHAR(10),\"\")&IF(a[[#This Row],['# Weight/Diet/Activity:  ]]<>\"\",a[[#Headers],['# Weight/Diet/Activity:  ]]&a[[#This Row],['# Weight/Diet/Activity:  ]]&CHAR(10),\"\")&IF(a[[#This Row],['# Cholesterol/ASCVD risk:  ]]<>\"\",a[[#Headers],['# Cholesterol/ASCVD risk:  ]]&a[[#This Row],['# Cholesterol/ASCVD risk:  ]]&CHAR(10),\"\")&IF(a[[#This Row],['# Blood pressure/Shortness of breath/Lower extremity swelling:  ]]<>\"\",a[[#Headers],['# Blood pressure/Shortness of breath/Lower extremity swelling:  ]]&a[[#This Row],['# Blood pressure/Shortness of breath/Lower extremity swelling:  ]]&CHAR(10),\"\")&IF(a[[#This Row],['# Dizziness/Lightheadedness/Vertigo/Falls:  ]]<>\"\",a[[#Headers],['# Dizziness/Lightheadedness/Vertigo/Falls:  ]]&a[[#This Row],['# Dizziness/Lightheadedness/Vertigo/Falls:  ]]&CHAR(10),\"\")&IF(a[[#This Row],['# COPD/Asthma:  ]]<>\"\",a[[#Headers],['# COPD/Asthma:  ]]&a[[#This Row],['# COPD/Asthma:  ]]&CHAR(10),\"\")&IF(a[[#This Row],['# Sleep apnea:  ]]<>\"\",a[[#Headers],['# Sleep apnea:  ]]&a[[#This Row],['# Sleep apnea:  ]]&CHAR(10),\"\")&IF(a[[#This Row],['# Chronic pain/Arthritis:  ]]<>\"\",a[[#Headers],['# Chronic pain/Arthritis:  ]]&a[[#This Row],['# Chronic pain/Arthritis:  ]]&CHAR(10),\"\")&IF(a[[#This Row],['# Gastroesophageal reflux/Constipation/Melena/Hematochezia:  ]]<>\"\",a[[#Headers],['# Gastroesophageal reflux/Constipation/Melena/Hematochezia:  ]]&a[[#This Row],['# Gastroesophageal reflux/Constipation/Melena/Hematochezia:  ]]&CHAR(10),\"\")&IF(a[[#This Row],['# Urinary symptoms:  ]]<>\"\",a[[#Headers],['# Urinary symptoms:  ]]&a[[#This Row],['# Urinary symptoms:  ]]&CHAR(10),\"\")&IF(a[[#This Row],['# Last menstrual period/Pregnancy:  ]]<>\"\",a[[#Headers],['# Last menstrual period/Pregnancy:  ]]&a[[#This Row],['# Last menstrual period/Pregnancy:  ]]&CHAR(10),\"\")&IF(a[[#This Row],['# Mood/Depression/Anxiety:  ]]<>\"\",a[[#Headers],['# Mood/Depression/Anxiety:  ]]&a[[#This Row],['# Mood/Depression/Anxiety:  ]]&CHAR(10),\"\")&IF(a[[#This Row],['# Vision:  ]]<>\"\",a[[#Headers],['# Vision:  ]]&a[[#This Row],['# Vision:  ]]&CHAR(10),\"\")&IF(a[[#This Row],['# Hearing:  ]]<>\"\",a[[#Headers],['# Hearing:  ]]&a[[#This Row],['# Hearing:  ]]&CHAR(10),\"\")&IF(a[[#This Row],['# Dental:  ]]<>\"\",a[[#Headers],['# Dental:  ]]&a[[#This Row],['# Dental:  ]]&CHAR(10),\"\")&IF(a[[#This Row],['# Surgeries/Procedures/Implants/Metal:  ]]<>\"\",a[[#Headers],['# Surgeries/Procedures/Implants/Metal:  ]]&a[[#This Row],['# Surgeries/Procedures/Implants/Metal:  ]]&CHAR(10),\"\")&IF(a[[#This Row],['# Alcohol:  ]]<>\"\",a[[#Headers],['# Alcohol:  ]]&a[[#This Row],['# Alcohol:  ]]&CHAR(10),\"\")&IF(a[[#This Row],['# Tobacco:  ]]<>\"\",a[[#Headers],['# Tobacco:  ]]&a[[#This Row],['# Tobacco:  ]]&CHAR(10),\"\")&IF(a[[#This Row],['# Recreational drugs:  ]]<>\"\",a[[#Headers],['# Recreational drugs:  ]]&a[[#This Row],['# Recreational drugs:  ]]&CHAR(10),\"\")&IF(a[[#This Row],['# Surgeries/Procedures/Implants/Metal:  ]]<>\"\",a[[#Headers],['# Surgeries/Procedures/Implants/Metal:  ]]&a[[#This Row],['# Surgeries/Procedures/Implants/Metal:  ]]&CHAR(10),\"\")&IF(a[[#This Row],['# Family history:  ]]<>\"\",a[[#Headers],['# Family history:  ]]&a[[#This Row],['# Family history:  ]]&CHAR(10),\"\")&IF(a[[#This Row],['# Tobacco:  ]]<>\"\",a[[#Headers],['# Tobacco:  ]]&a[[#This Row],['# Tobacco:  ]]&CHAR(10),\"\")&IF(a[[#This Row],['# ADLs/IADLs:  ]]<>\"\",a[[#Headers],['# ADLs/IADLs:  ]]&a[[#This Row],['# ADLs/IADLs:  ]]&CHAR(10),\"\")&IF(a[[#This Row],['# Other active issues:  ]]<>\"\",a[[#Headers],['# Other active issues:  ]]&a[[#This Row],['# Other active issues:  ]]&CHAR(10),\"\")&IF(a[[#This Row],['# Other chronic issues:  ]]<>\"\",a[[#Headers],['# Other chronic issues:  ]]&a[[#This Row],['# Other chronic issues:  ]]&CHAR(10),\"\")","v":""},{"$f":"a[[#Headers],[*]]","v":"*"},{"$f":"IF(AND(a[[#This Row],[Sodium]]<>\"\",a[[#This Row],[Potassium]]<>\"\",a[[#This Row],[Chloride]]<>\"\",a[[#This Row],[Bicarbonate]]<>\"\",a[[#This Row],[BUN]]<>\"\",a[[#This Row],[Creatinine]]<>\"\",a[[#This Row],[Calcium]]<>\"\",a[[#This Row],[Glucose]]<>\"\",a[[#This Row],[BMPD]]<>\"\"),\"Basic chemistry panel on \"&TEXT(a[[#This Row],[BMPD]],\"mmmm d, yyyy\")&\" showed \"&a[[#Headers],[Sodium]]&\" \"&a[[#This Row],[Sodium]]&\" \"&b!B$2&\", \"&a[[#Headers],[Potassium]]&\" \"&a[[#This Row],[Potassium]]&\" \"&b!C$2&\", \"&a[[#Headers],[Chloride]]&\" \"&a[[#This Row],[Chloride]]&\" \"&b!D$2&\", \"&a[[#Headers],[Bicarbonate]]&\" \"&a[[#This Row],[Bicarbonate]]&\" \"&b!E$2&\", \"&a[[#Headers],[BUN]]&\" \"&a[[#This Row],[BUN]]&\" \"&b!F$2&\", \"&a[[#Headers],[Creatinine]]&\" \"&a[[#This Row],[Creatinine]]&\" \"&b!G$2&\", \"&a[[#Headers],[Calcium]]&\" \"&a[[#This Row],[Calcium]]&\" \"&b!H$2&\", and \"&a[[#Headers],[Glucose]]&\" \"&a[[#This Row],[Glucose]]&\" \"&b!I$2,\"No BMP found\")&IF(AND(a[[#This Row],[Cystatin C]]<>\"\",a[[#This Row],[CysD]]<>\"\"),\". On \"&TEXT(a[[#This Row],[CysD]],\"mmmm d, yyyy\")&\" \"&a[[#Headers],[Cystatin C]]&\" was \"&a[[#This Row],[Cystatin C]]&\" \"&b!AK$2,\"\")&\".  On \"&TEXT(a[[#This Row],[CMPD]],\"mmmm d, yyyy\")&\" labs included \"&a[[#Headers],[AST]]&\" \"&a[[#This Row],[AST]]&\" \"&b!J$2&\", \"&a[[#Headers],[ALT]]&\" \"&a[[#This Row],[ALT]]&\" \"&b!K$2&\", \"&a[[#Headers],[Alkaline Phosphatase]]&\" \"&a[[#This Row],[Alkaline Phosphatase]]&\" \"&b!L$2&\", \"&a[[#Headers],[Bilirubin, Total]]&\" \"&a[[#This Row],[Bilirubin, Total]]&\" \"&b!M$2&\", \"&a[[#Headers],[Total Protein]]&\" \"&a[[#This Row],[Total Protein]]&\" \"&b!N$2&\", \"&a[[#Headers],[Albumin]]&\" \"&a[[#This Row],[Albumin]]&\" \"&b!O$2&\", and \"&a[[#Headers],[Globulin]]&\" \"&a[[#This Row],[Globulin]]&\" \"&b!P$2&IF(AND(a[[#This Row],[LDH]]<>\"\",a[[#This Row],[LDHD]]<>\"\"),\". On \"&TEXT(a[[#This Row],[LDHD]],\"mmmm d, yyyy\")&\" \"&a[[#Headers],[LDH]]&\" was \"&a[[#This Row],[LDH]]&\" \"&b!BH$2,\"\")&IF(AND(a[[#This Row],[Magnesium]]<>\"\",a[[#This Row],[MagD]]<>\"\"),\". On \"&TEXT(a[[#This Row],[MagD]],\"mmmm d, yyyy\")&\" \"&a[[#Headers],[Magnesium]]&\" was \"&a[[#This Row],[Magnesium]]&\" \"&b!AS$2,\"\")&IF(AND(a[[#This Row],[Phosphorus]]<>\"\",a[[#This Row],[PhosD]]<>\"\"),\". On \"&TEXT(a[[#This Row],[PhosD]],\"mmmm d, yyyy\")&\" \"&a[[#Headers],[Phosphorus]]&\" was \"&a[[#This Row],[Phosphorus]]&\" \"&b!AT$2,\"\")&IF(AND(a[[#This Row],[Vitamin D, 25-Hydroxy level]]<>\"\",a[[#This Row],[VitDD]]<>\"\"),\".  He had a \"&a[[#Headers],[Vitamin D, 25-Hydroxy level]]&\" of \"&a[[#This Row],[Vitamin D, 25-Hydroxy level]]&\" \"&b!AB$2&\" on \"&TEXT(a[[#This Row],[VitDD]],\"mmmm d, yyyy\"),\"\")&IF(AND(a[[#This Row],[PTH]]<>\"\",a[[#This Row],[PTHD]]<>\"\"),\". On \"&TEXT(a[[#This Row],[PTHD]],\"mmmm d, yyyy\")&\" \"&a[[#Headers],[PTH]]&\" was \"&a[[#This Row],[PTH]]&\" \"&b!AU$2,\"\")&IF(AND(a[[#This Row],[Uric Acid]]<>\"\",a[[#This Row],[UricD]]<>\"\"),\". On \"&TEXT(a[[#This Row],[UricD]],\"mmmm d, yyyy\")&\" \"&a[[#Headers],[Uric Acid]]&\" was \"&a[[#This Row],[Uric Acid]]&\" \"&b!AV$2,\"\")&IF(AND(a[[#This Row],[Amylase]]<>\"\",a[[#This Row],[AmyD]]<>\"\"),\". On \"&TEXT(a[[#This Row],[AmyD]],\"mmmm d, yyyy\")&\" \"&a[[#Headers],[Amylase]]&\" was \"&a[[#This Row],[Amylase]]&\" \"&b!AW$2,\"\")&IF(AND(a[[#This Row],[Lipase]]<>\"\",a[[#This Row],[LipaD]]<>\"\"),\". On \"&TEXT(a[[#This Row],[LipaD]],\"mmmm d, yyyy\")&\" \"&BQ$1&\" was \"&a[[#This Row],[Lipase]]&\" \"&b!AX$2,\"\")&IF(AND(a[[#This Row],[AFP, Tumor Marker]]<>\"\",a[[#This Row],[AFPD]]<>\"\"),\". On \"&TEXT(a[[#This Row],[AFPD]],\"mmmm d, yyyy\")&\" \"&a[[#Headers],[AFP, Tumor Marker]]&\" was \"&a[[#This Row],[AFP, Tumor Marker]]&\" \"&b!BJ$2,\"\")&IF(AND(a[[#This Row],[WBC]]<>\"\",a[[#This Row],[Hemoglobin]]<>\"\",a[[#This Row],[MCV]]<>\"\",a[[#This Row],[Platelet]]<>\"\",a[[#This Row],[CBCD]]<>\"\"),\".  On \"&TEXT(a[[#This Row],[CBCD]],\"mmmm d, yyyy\")&\" a complete blood count had \"&a[[#Headers],[WBC]]&\" \"&a[[#This Row],[WBC]]&\" \"&b!Q$2&\", \"&a[[#Headers],[Hemoglobin]]&\" \"&a[[#This Row],[Hemoglobin]]&\" \"&b!R$2&\", \"&a[[#Headers],[MCV]]&\" \"&a[[#This Row],[MCV]]&\" \"&b!S$2&\", \"&a[[#Headers],[Platelet]]&\" \"&a[[#This Row],[Platelet]]&\" \"&b!T$2,\".  No CBC found\")&IF(AND(a[[#This Row],[Erythrocyte Sedimentation Rate]]<>\"\",a[[#This Row],[ESRD]]<>\"\"),\". On \"&TEXT(a[[#This Row],[ESRD]],\"mmmm d, yyyy\")&\" \"&a[[#Headers],[Erythrocyte Sedimentation Rate]]&\" was \"&a[[#This Row],[Erythrocyte Sedimentation Rate]]&\" \"&b!AM$2,\"\")&IF(AND(a[[#This Row],[C-Reactive Protein]]<>\"\",a[[#This Row],[CRPD]]<>\"\"),\". On \"&TEXT(a[[#This Row],[CRPD]],\"mmmm d, yyyy\")&\" \"&a[[#Headers],[C-Reactive Protein]]&\" was \"&a[[#This Row],[C-Reactive Protein]]&\" \"&b!AN$2,\"\")&IF(AND(a[[#This Row],[Hepatitis B Viral Load]]<>\"\",a[[#This Row],[HBVD]]<>\"\"),\". On \"&TEXT(a[[#This Row],[HBVD]],\"mmmm d, yyyy\")&\" \"&a[[#Headers],[Hepatitis B Viral Load]]&\" was \"&a[[#This Row],[Hepatitis B Viral Load]]&\" \"&b!BB$2,\"\")&IF(AND(a[[#This Row],[Hepatitis C Viral Load]]<>\"\",a[[#This Row],[HCVD]]<>\"\"),\". On \"&TEXT(a[[#This Row],[HCVD]],\"mmmm d, yyyy\")&\" \"&a[[#Headers],[Hepatitis C Viral Load]]&\" was \"&a[[#This Row],[Hepatitis C Viral Load]]&\" \"&b!BA$2,\"\")&IF(AND(a[[#This Row],[HIV Viral Load]]<>\"\",a[[#This Row],[HIVD]]<>\"\"),\". On \"&TEXT(a[[#This Row],[HIVD]],\"mmmm d, yyyy\")&\" \"&a[[#Headers],[HIV Viral Load]]&\" was \"&a[[#This Row],[HIV Viral Load]]&\" \"&b!BC$2,\"\")&IF(AND(a[[#This Row],[CD4 Count]]<>\"\",a[[#This Row],[CD4D]]<>\"\"),\". On \"&TEXT(a[[#This Row],[CD4D]],\"mmmm d, yyyy\")&\" \"&a[[#Headers],[CD4 Count]]&\" was \"&a[[#This Row],[CD4 Count]]&\" \"&b!AL$2,\"\")&IF(AND(a[[#This Row],[Iron]]<>\"\",a[[#This Row],[TIBC]]<>\"\",a[[#This Row],[% Saturation]]<>\"\",a[[#This Row],[IronD]]<>\"\"),\". Iron Testing: On \"&TEXT(a[[#This Row],[IronD]],\"mmmm d, yyyy\")&\" \"&a[[#Headers],[Iron]]&\" was \"&a[[#This Row],[Iron]]&\" \"&b!AO$2&\", \"&a[[#Headers],[TIBC]]&\" was \"&a[[#This Row],[TIBC]]&\" \"&b!AP$2&\", \"&a[[#Headers],[% Saturation]]&\" was \"&a[[#This Row],[% Saturation]]&\" \"&b!AQ$2,\"\")&IF(AND(a[[#This Row],[Ferritin]]<>\"\",a[[#This Row],[FerrD]]<>\"\"),\". On \"&TEXT(a[[#This Row],[FerrD]],\"mmmm d, yyyy\")&\" \"&a[[#Headers],[Ferritin]]&\" was \"&a[[#This Row],[Ferritin]]&\" \"&b!AR$2,\"\")&IF(AND(a[[#This Row],[Vitamin B12 level]]<>\"\",a[[#This Row],[VitB12D]]<>\"\"),\". On \"&TEXT(a[[#This Row],[VitB12D]],\"mmmm d, yyyy\")&\" \"&a[[#Headers],[Vitamin B12 level]]&\" was \"&a[[#This Row],[Vitamin B12 level]]&\" \"&b!AC$2,\"\")&IF(AND(a[[#This Row],[Folate level]]<>\"\",a[[#This Row],[FolaD]]<>\"\"),\". On \"&TEXT(a[[#This Row],[FolaD]],\"mmmm d, yyyy\")&\" \"&a[[#Headers],[Folate level]]&\" was \"&a[[#This Row],[Folate level]]&\" \"&b!AD$2,\"\")&IF(AND(a[[#This Row],[Homocysteine]]<>\"\",a[[#This Row],[HomoD]]<>\"\"),\". On \"&TEXT(a[[#This Row],[HomoD]],\"mmmm d, yyyy\")&\" \"&a[[#Headers],[Homocysteine]]&\" was \"&a[[#This Row],[Homocysteine]]&\" \"&b!AE$2,\"\")&IF(AND(a[[#This Row],[Methylmalonic Acid]]<>\"\",a[[#This Row],[MethD]]<>\"\"),\". On \"&TEXT(a[[#This Row],[MethD]],\"mmmm d, yyyy\")&\" \"&a[[#Headers],[Methylmalonic Acid]]&\" was \"&a[[#This Row],[Methylmalonic Acid]]&\" \"&b!AF$2,\"\")&IF(AND(a[[#This Row],[Thiamine]]<>\"\",a[[#This Row],[ThiaD]]<>\"\"),\". On \"&TEXT(a[[#This Row],[ThiaD]],\"mmmm d, yyyy\")&\" \"&a[[#Headers],[Thiamine]]&\" was \"&a[[#This Row],[Thiamine]]&\" \"&b!AG$2,\"\")&IF(AND(a[[#This Row],[Zinc]]<>\"\",a[[#This Row],[ZincD]]<>\"\"),\". On \"&TEXT(a[[#This Row],[ZincD]],\"mmmm d, yyyy\")&\" \"&a[[#Headers],[Zinc]]&\" was \"&a[[#This Row],[Zinc]]&\" \"&b!AH$2,\"\")&IF(AND(a[[#This Row],[Copper]]<>\"\",a[[#This Row],[CopD]]<>\"\"),\". On \"&TEXT(a[[#This Row],[CopD]],\"mmmm d, yyyy\")&\" \"&a[[#Headers],[Copper]]&\" was \"&a[[#This Row],[Copper]]&\" \"&b!AI$2,\"\")&IF(AND(a[[#This Row],[LipiD]]<>\"\",a[[#This Row],[Total Cholesterol]]<>\"\",a[[#This Row],[Triglycerides]]<>\"\",a[[#This Row],[HDL]]<>\"\",a[[#This Row],[LDL]]<>\"\"),\".  On \"&TEXT(a[[#This Row],[LipiD]],\"mmmm d, yyyy\")&\" fasting lipids included \"&a[[#Headers],[Total Cholesterol]]&\" \"&a[[#This Row],[Total Cholesterol]]&\" \"&b!V$2&\", \"&a[[#Headers],[Triglycerides]]&\" \"&a[[#This Row],[Triglycerides]]&\" \"&b!W$2&\", \"&a[[#Headers],[HDL]]&\" \"&a[[#This Row],[HDL]]&\" \"&b!X$2&\", and \"&a[[#Headers],[LDL]]&\" \"&a[[#This Row],[LDL]]&\" \"&b!Y$2,\"\")","v":"No BMP found.  On January 0, 1900 labs included AST  (N<=34), ALT  (N<=55), Alkaline Phosphatase  (N 40-150), Bilirubin, Total  (N 0.2-1.2), Total Protein  (N 6.0-8.3), Albumin  (N 3.5-5.2), and Globulin  (N 2.0-3.7).  No CBC found"},{"$f":"IF(AND(a[[#This Row],[A1cD]]<>\"\",a[[#This Row],[Hemoglobin A1c]]<>\"\"),\".  On \"&TEXT(a[[#This Row],[A1cD]],\"mmmm d, yyyy\")&\" \"&a[[#Headers],[Hemoglobin A1c]]&\" was \"&a[[#This Row],[Hemoglobin A1c]]&\" \"&b!U$2,\"\")&IF(AND(a[[#This Row],[TSH]]<>\"\",a[[#This Row],[TSHD]]<>\"\"),\".  Thyroid testing:  \"&a[[#Headers],[TSH]]&\" was \"&a[[#This Row],[TSH]]&\" \"&b!Z$2&\" on \"&TEXT(a[[#This Row],[TSHD]],\"mmmm d, yyyy\"),\"\")&IF(AND(a[[#This Row],[Free T4]]<>\"\",a[[#This Row],[FT4D]]<>\"\"),\".  On \"&TEXT(a[[#This Row],[FT4D]],\"mmmm d, yyyy\")&\" \"&a[[#Headers],[Free T4]]&\" was \"&a[[#This Row],[Free T4]]&\" \"&b!AY$2,\"\")&IF(AND(a[[#This Row],[PSA level]]<>\"\",a[[#This Row],[PSAD]]<>\"\"),\". Prostate: On \"&TEXT(a[[#This Row],[PSAD]],\"mmmm d, yyyy\")&\" \"&a[[#Headers],[PSA level]]&\" was \"&a[[#This Row],[PSA level]]&\" \"&b!AA$2,\"\")&IF(AND(a[[#This Row],[Urine Microalbumin/Creatinine]]<>\"\",a[[#This Row],[MACD]]<>\"\"),\".  On \"&TEXT(a[[#This Row],[MACD]], \"mmmm d, yyyy\")&\" \"&a[[#Headers],[Urine Microalbumin/Creatinine]]&\" was \"&a[[#This Row],[Urine Microalbumin/Creatinine]]&\" \"&b!AJ$2,\"\")&IF(AND(a[[#This Row],[other urine testing]]<>\"\",a[[#This Row],[OthUD]]<>\"\"),\".  On \"&TEXT(a[[#This Row],[OthUD]], \"mmmm d, yyyy\")&\" \"&a[[#Headers],[other urine testing]]&\" was notable for \"&a[[#This Row],[other urine testing]],\"\")&IF(AND(a[[#This Row],[other lab testing]]<>\"\",a[[#This Row],[OthLD]]<>\"\"),\".  On \"&TEXT(a[[#This Row],[OthLD]], \"mmmm d, yyyy\")&\" \"&a[[#Headers],[other lab testing]]&\" was notable for \"&a[[#This Row],[other lab testing]],\"\")&IF(AND(a[[#This Row],[additional lab testing]]<>\"\",a[[#This Row],[AddLD]]<>\"\"),\".  On \"&TEXT(a[[#This Row],[AddLD]], \"mmmm d, yyyy\")&\" \"&a[[#Headers],[additional lab testing]]&\" was notable for \"&a[[#This Row],[additional lab testing]],\"\")&IF(AND(a[[#This Row],[Total Valproic Acid Level]]<>\"\",a[[#This Row],[ValpD]]<>\"\"),\".  On \"&TEXT(a[[#This Row],[ValpD]],\"mmmm d, yyyy\")&\" \"&a[[#Headers],[Total Valproic Acid Level]]&\" was \"&a[[#This Row],[Total Valproic Acid Level]]&\" \"&b!BE$2,\"\")&IF(AND(a[[#This Row],[Total Phenytoin Level]]<>\"\",a[[#This Row],[PhenD]]<>\"\"),\".  On \"&TEXT(a[[#This Row],[PhenD]],\"mmmm d, yyyy\")&\" \"&a[[#Headers],[Total Phenytoin Level]]&\" was \"&a[[#This Row],[Total Phenytoin Level]]&\" \"&b!BF$2,\"\")&IF(AND(a[[#This Row],[Tacrolimus Level]]<>\"\",a[[#This Row],[TacrD]]<>\"\"),\".  On \"&TEXT(a[[#This Row],[TacrD]],\"mmmm d, yyyy\")&\" \"&a[[#Headers],[Tacrolimus Level]]&\" was \"&a[[#This Row],[Tacrolimus Level]]&\" \"&b!BG$2,\"\")&IF(AND(a[[#This Row],[Digoxin Level]]<>\"\",a[[#This Row],[DigD]]<>\"\"),\".  On \"&TEXT(a[[#This Row],[DigD]],\"mmmm d, yyyy\")&\" \"&a[[#Headers],[Digoxin Level]]&\" was \"&a[[#This Row],[Digoxin Level]]&\" \"&b!BI$2,\"\")&\".\"","v":"."},{"$f":"a[[#This Row],[Lab subblurb A]]&a[[#This Row],[Lab subblurb B]]","v":"No BMP found.  On January 0, 1900 labs included AST  (N<=34), ALT  (N<=55), Alkaline Phosphatase  (N 40-150), Bilirubin, Total  (N 0.2-1.2), Total Protein  (N 6.0-8.3), Albumin  (N 3.5-5.2), and Globulin  (N 2.0-3.7).  No CBC found."},{"$f":"IF(a[[#This Row],[Sodium]]<>\"\",IF(OR(VALUE(a[[#This Row],[Sodium]])<VALUE(b!B$3),VALUE(a[[#This Row],[Sodium]])>VALUE(b!B$4)),\"Sodium.  \",\"\"),\"\")&IF(a[[#This Row],[Potassium]]<>\"\",IF(OR(VALUE(a[[#This Row],[Potassium]])<VALUE(b!C$3),VALUE(a[[#This Row],[Potassium]])>VALUE(b!C$4)),\"Potassium.  \",\"\"),\"\")&IF(a[[#This Row],[Chloride]]<>\"\",IF(OR(VALUE(a[[#This Row],[Chloride]])<VALUE(b!D$3),VALUE(a[[#This Row],[Chloride]])>VALUE(b!D$4)),\"Chloride.  \",\"\"),\"\")&IF(a[[#This Row],[Bicarbonate]]<>\"\",IF(OR(VALUE(a[[#This Row],[Bicarbonate]])<VALUE(b!E$3),VALUE(a[[#This Row],[Bicarbonate]])>VALUE(b!E$4)),\"Bicarbonate.  \",\"\"),\"\")&IF(a[[#This Row],[BUN]]<>\"\",IF(OR(VALUE(a[[#This Row],[BUN]])<VALUE(b!F$3),VALUE(a[[#This Row],[BUN]])>VALUE(b!F$4)),\"BUN.  \",\"\"),\"\")&IF(a[[#This Row],[Creatinine]]<>\"\",IF(OR(VALUE(a[[#This Row],[Creatinine]])<VALUE(b!G$3),VALUE(a[[#This Row],[Creatinine]])>VALUE(b!G$4)),\"Creatinine.  \",\"\"),\"\")&IF(a[[#This Row],[Calcium]]<>\"\",IF(OR(VALUE(a[[#This Row],[Calcium]])<VALUE(b!H$3),VALUE(a[[#This Row],[Calcium]])>VALUE(b!H$4)),\"Calcium.  \",\"\"),\"\")&IF(a[[#This Row],[Glucose]]<>\"\",IF(OR(VALUE(a[[#This Row],[Glucose]])<VALUE(b!I$3),VALUE(a[[#This Row],[Glucose]])>VALUE(b!I$4)),\"Glucose.  \",\"\"),\"\")&IF(a[[#This Row],[Cystatin C]]<>\"\",IF(OR(VALUE(a[[#This Row],[Cystatin C]])<VALUE(b!AK$3),VALUE(a[[#This Row],[Cystatin C]])>VALUE(b!AK$4)),\"Cystatin C.  \",\"\"),\"\")&IF(a[[#This Row],[AST]]<>\"\",IF(OR(VALUE(a[[#This Row],[AST]])<VALUE(b!J$3),VALUE(a[[#This Row],[AST]])>VALUE(b!J$4)),\"AST.  \",\"\"),\"\")&IF(a[[#This Row],[ALT]]<>\"\",IF(OR(VALUE(a[[#This Row],[ALT]])<VALUE(b!K$3),VALUE(a[[#This Row],[ALT]])>VALUE(b!K$4)),\"ALT.  \",\"\"),\"\")&IF(a[[#This Row],[Alkaline Phosphatase]]<>\"\",IF(OR(VALUE(a[[#This Row],[Alkaline Phosphatase]])<VALUE(b!L$3),VALUE(a[[#This Row],[Alkaline Phosphatase]])>VALUE(b!L$4)),\"Alkaline Phosphatase.  \",\"\"),\"\")&IF(a[[#This Row],[Bilirubin, Total]]<>\"\",IF(OR(VALUE(a[[#This Row],[Bilirubin, Total]])<VALUE(b!M$3),VALUE(a[[#This Row],[Bilirubin, Total]])>VALUE(b!M$4)),\"Bilirubin, Total.  \",\"\"),\"\")&IF(a[[#This Row],[Total Protein]]<>\"\",IF(OR(VALUE(a[[#This Row],[Total Protein]])<VALUE(b!N$3),VALUE(a[[#This Row],[Total Protein]])>VALUE(b!N$4)),\"Total Protein.  \",\"\"),\"\")&IF(a[[#This Row],[Albumin]]<>\"\",IF(OR(VALUE(a[[#This Row],[Albumin]])<VALUE(b!O$3),VALUE(a[[#This Row],[Albumin]])>VALUE(b!O$4)),\"Albumin.  \",\"\"),\"\")&IF(a[[#This Row],[Globulin]]<>\"\",IF(OR(VALUE(a[[#This Row],[Globulin]])<VALUE(b!P$3),VALUE(a[[#This Row],[Globulin]])>VALUE(b!P$4)),\"Globulin.  \",\"\"),\"\")&IF(a[[#This Row],[Amylase]]<>\"\",IF(OR(VALUE(a[[#This Row],[Amylase]])<VALUE(b!AW$3),VALUE(a[[#This Row],[Amylase]])>VALUE(b!AW$4)),\"Amylase.  \",\"\"),\"\")&IF(a[[#This Row],[Lipase]]<>\"\",IF(OR(VALUE(a[[#This Row],[Lipase]])<VALUE(b!AX$3),VALUE(a[[#This Row],[Lipase]])>VALUE(b!AX$4)),\"Lipase.  \",\"\"),\"\")&IF(a[[#This Row],[Magnesium]]<>\"\",IF(OR(VALUE(a[[#This Row],[Magnesium]])<VALUE(b!AS$3),VALUE(a[[#This Row],[Magnesium]])>VALUE(b!AS$4)),\"Magnesium.  \",\"\"),\"\")&IF(a[[#This Row],[Phosphorus]]<>\"\",IF(OR(VALUE(a[[#This Row],[Phosphorus]])<VALUE(b!AT$3),VALUE(a[[#This Row],[Phosphorus]])>VALUE(b!AT$4)),\"Phosphorus.  \",\"\"),\"\")&IF(a[[#This Row],[Total Cholesterol]]<>\"\",IF(OR(VALUE(a[[#This Row],[Total Cholesterol]])<VALUE(b!V$3),VALUE(a[[#This Row],[Total Cholesterol]])>VALUE(b!V$4)),\"Total Cholesterol.  \",\"\"),\"\")&IF(a[[#This Row],[Triglycerides]]<>\"\",IF(OR(VALUE(a[[#This Row],[Triglycerides]])<VALUE(b!W$3),VALUE(a[[#This Row],[Triglycerides]])>VALUE(b!W$4)),\"Triglycerides.  \",\"\"),\"\")&IF(a[[#This Row],[HDL]]<>\"\",IF(OR(VALUE(a[[#This Row],[HDL]])<VALUE(b!X$3),VALUE(a[[#This Row],[HDL]])>VALUE(b!X$4)),\"HDL.  \",\"\"),\"\")&IF(a[[#This Row],[LDL]]<>\"\",IF(OR(VALUE(a[[#This Row],[LDL]])<VALUE(b!Y$3),VALUE(a[[#This Row],[LDL]])>VALUE(b!Y$4)),\"LDL.  \",\"\"),\"\")","v":""},{"$f":"IF(a[[#This Row],[LDH]]<>\"\",IF(OR(VALUE(a[[#This Row],[LDH]])<VALUE(b!BH$3),VALUE(a[[#This Row],[LDH]])>VALUE(b!BH$4)),\"LDH.  \",\"\"),\"\")&IF(a[[#This Row],[Uric Acid]]<>\"\",IF(OR(VALUE(a[[#This Row],[Uric Acid]])<VALUE(b!AV$3),VALUE(a[[#This Row],[Uric Acid]])>VALUE(b!AV$4)),\"Uric Acid.  \",\"\"),\"\")&IF(a[[#This Row],[PTH]]<>\"\",IF(OR(VALUE(a[[#This Row],[PTH]])<VALUE(b!AU$3),VALUE(a[[#This Row],[PTH]])>VALUE(b!AU$4)),\"PTH.  \",\"\"),\"\")&IF(a[[#This Row],[TSH]]<>\"\",IF(OR(VALUE(a[[#This Row],[TSH]])<VALUE(b!Z$3),VALUE(a[[#This Row],[TSH]])>VALUE(b!Z$4)),\"TSH.  \",\"\"),\"\")&IF(a[[#This Row],[Free T4]]<>\"\",IF(OR(VALUE(a[[#This Row],[Free T4]])<VALUE(b!AY$3),VALUE(a[[#This Row],[Free T4]])>VALUE(b!AY$4)),\"Free T4.  \",\"\"),\"\")&IF(a[[#This Row],[PSA level]]<>\"\",IF(OR(VALUE(a[[#This Row],[PSA level]])<VALUE(b!AA$3),VALUE(a[[#This Row],[PSA level]])>VALUE(b!AA$4)),\"PSA level.  \",\"\"),\"\")&IF(a[[#This Row],[Vitamin D, 25-Hydroxy level]]<>\"\",IF(OR(VALUE(a[[#This Row],[Vitamin D, 25-Hydroxy level]])<VALUE(b!AB$3),VALUE(a[[#This Row],[Vitamin D, 25-Hydroxy level]])>VALUE(b!AB$4)),\"Vitamin D, 25-Hydroxy level.  \",\"\"),\"\")&IF(a[[#This Row],[Iron]]<>\"\",IF(OR(VALUE(a[[#This Row],[Iron]])<VALUE(b!AO$3),VALUE(a[[#This Row],[Iron]])>VALUE(b!AO$4)),\"Iron.  \",\"\"),\"\")&IF(a[[#This Row],[TIBC]]<>\"\",IF(OR(VALUE(a[[#This Row],[TIBC]])<VALUE(b!AP$3),VALUE(a[[#This Row],[TIBC]])>VALUE(b!AP$4)),\"TIBC.  \",\"\"),\"\")&IF(a[[#This Row],[% Saturation]]<>\"\",IF(OR(VALUE(a[[#This Row],[% Saturation]])<VALUE(b!AQ$3),VALUE(a[[#This Row],[% Saturation]])>VALUE(b!AQ$4)),\"% Saturation.  \",\"\"),\"\")&IF(a[[#This Row],[Ferritin]]<>\"\",IF(OR(VALUE(a[[#This Row],[Ferritin]])<VALUE(b!AR$3),VALUE(a[[#This Row],[Ferritin]])>VALUE(b!AR$4)),\"Ferritin.  \",\"\"),\"\")&IF(a[[#This Row],[Vitamin B12 level]]<>\"\",IF(OR(VALUE(a[[#This Row],[Vitamin B12 level]])<VALUE(b!AC$3),VALUE(a[[#This Row],[Vitamin B12 level]])>VALUE(b!AC$4)),\"Vitamin B12 level.  \",\"\"),\"\")&IF(a[[#This Row],[Folate level]]<>\"\",IF(OR(VALUE(a[[#This Row],[Folate level]])<VALUE(b!AD$3),VALUE(a[[#This Row],[Folate level]])>VALUE(b!AD$4)),\"Folate level.  \",\"\"),\"\")&IF(a[[#This Row],[WBC]]<>\"\",IF(OR(VALUE(a[[#This Row],[WBC]])<VALUE(b!Q$3),VALUE(a[[#This Row],[WBC]])>VALUE(b!Q$4)),\"WBC.  \",\"\"),\"\")&IF(a[[#This Row],[Hemoglobin]]<>\"\",IF(OR(VALUE(a[[#This Row],[Hemoglobin]])<VALUE(b!R$3),VALUE(a[[#This Row],[Hemoglobin]])>VALUE(b!R$4)),\"Hemoglobin.  \",\"\"),\"\")&IF(a[[#This Row],[MCV]]<>\"\",IF(OR(VALUE(a[[#This Row],[MCV]])<VALUE(b!S$3),VALUE(a[[#This Row],[MCV]])>VALUE(b!S$4)),\"MCV.  \",\"\"),\"\")&IF(a[[#This Row],[Platelet]]<>\"\",IF(OR(VALUE(a[[#This Row],[Platelet]])<VALUE(b!T$3),VALUE(a[[#This Row],[Platelet]])>VALUE(b!T$4)),\"Platelet.  \",\"\"),\"\")&IF(a[[#This Row],[Erythrocyte Sedimentation Rate]]<>\"\",IF(OR(VALUE(a[[#This Row],[Erythrocyte Sedimentation Rate]])<VALUE(b!AM$3),VALUE(a[[#This Row],[Erythrocyte Sedimentation Rate]])>VALUE(b!AM$4)),\"Erythrocyte Sedimentation Rate.  \",\"\"),\"\")&IF(a[[#This Row],[C-Reactive Protein]]<>\"\",IF(OR(VALUE(a[[#This Row],[C-Reactive Protein]])<VALUE(b!AN$3),VALUE(a[[#This Row],[C-Reactive Protein]])>VALUE(b!AN$4)),\"C-Reactive Protein.  \",\"\"),\"\")&IF(a[[#This Row],[Hemoglobin A1c]]<>\"\",IF(OR(VALUE(a[[#This Row],[Hemoglobin A1c]])<VALUE(b!U$3),VALUE(a[[#This Row],[Hemoglobin A1c]])>VALUE(b!U$4)),\"Hemoglobin A1c.  \",\"\"),\"\")&IF(a[[#This Row],[Homocysteine]]<>\"\",IF(OR(VALUE(a[[#This Row],[Homocysteine]])<VALUE(b!AE$3),VALUE(a[[#This Row],[Homocysteine]])>VALUE(b!AE$4)),\"Homocysteine.  \",\"\"),\"\")&IF(a[[#This Row],[Methylmalonic Acid]]<>\"\",IF(OR(VALUE(a[[#This Row],[Methylmalonic Acid]])<VALUE(b!AF$3),VALUE(a[[#This Row],[Methylmalonic Acid]])>VALUE(b!AF$4)),\"Methylmalonic Acid.  \",\"\"),\"\")&IF(a[[#This Row],[AFP, Tumor Marker]]<>\"\",IF(OR(VALUE(a[[#This Row],[AFP, Tumor Marker]])<VALUE(b!BJ$3),VALUE(a[[#This Row],[AFP, Tumor Marker]])>VALUE(b!BJ$4)),\"AFP, Tumor Marker.  \",\"\"),\"\")&IF(a[[#This Row],[Thiamine]]<>\"\",IF(OR(VALUE(a[[#This Row],[Thiamine]])<VALUE(b!AG$3),VALUE(a[[#This Row],[Thiamine]])>VALUE(b!AG$4)),\"Thiamine.  \",\"\"),\"\")&IF(a[[#This Row],[Zinc]]<>\"\",IF(OR(VALUE(a[[#This Row],[Zinc]])<VALUE(b!AH$3),VALUE(a[[#This Row],[Zinc]])>VALUE(b!AH$4)),\"Zinc.  \",\"\"),\"\")&IF(a[[#This Row],[Copper]]<>\"\",IF(OR(VALUE(a[[#This Row],[Copper]])<VALUE(b!AI$3),VALUE(a[[#This Row],[Copper]])>VALUE(b!AI$4)),\"Copper.  \",\"\"),\"\")&IF(a[[#This Row],[Digoxin Level]]<>\"\",IF(OR(VALUE(a[[#This Row],[Digoxin Level]])<VALUE(b!BI$3),VALUE(a[[#This Row],[Digoxin Level]])>VALUE(b!BI$4)),\"Digoxin Level.  \",\"\"),\"\")&IF(a[[#This Row],[Total Valproic Acid Level]]<>\"\",IF(OR(VALUE(a[[#This Row],[Total Valproic Acid Level]])<VALUE(b!BE$3),VALUE(a[[#This Row],[Total Valproic Acid Level]])>VALUE(b!BE$4)),\"Total Valproic Acid Level.  \",\"\"),\"\")&IF(a[[#This Row],[Total Phenytoin Level]]<>\"\",IF(OR(VALUE(a[[#This Row],[Total Phenytoin Level]])<VALUE(b!BF$3),VALUE(a[[#This Row],[Total Phenytoin Level]])>VALUE(b!BF$4)),\"Total Phenytoin Level.  \",\"\"),\"\")&IF(a[[#This Row],[Tacrolimus Level]]<>\"\",IF(OR(VALUE(a[[#This Row],[Tacrolimus Level]])<VALUE(b!BG$3),VALUE(a[[#This Row],[Tacrolimus Level]])>VALUE(b!BG$4)),\"Tacrolimus Level.  \",\"\"),\"\")&IF(a[[#This Row],[CD4 Count]]<>\"\",IF(OR(VALUE(a[[#This Row],[CD4 Count]])<VALUE(b!AL$3),VALUE(a[[#This Row],[CD4 Count]])>VALUE(b!AL$4)),\"CD4 Count.  \",\"\"),\"\")&IF(a[[#This Row],[Urine Microalbumin/Creatinine]]<>\"\",IF(OR(VALUE(a[[#This Row],[Urine Microalbumin/Creatinine]])<VALUE(b!AJ$3),VALUE(a[[#This Row],[Urine Microalbumin/Creatinine]])>VALUE(b!AJ$4)),\"Urine Microalbumin/Creatinine.  \",\"\"),\"\")","v":""},{"$f":"a[[#This Row],[subAbLab A]]&a[[#This Row],[subAbLab B]]","v":""},null,null,null,null,null,null,null,null,null,null,null,null,null,null,null,null,null,null,null,null,null,null,null,null,null,null,null,null,null,null,null,null,null,null,null,null,null,null,null,null,null,null,null,null,null,null,null,null,null,null,null,null,null,null,null,null,null,null,null,null,null,null,null,null,null,null,null,null,null,null,null,null,null,null,null,null,null,null,null,null,null,null,null,null,null,null,null,null,null,null,null,null,null,null,null,null,null,null,null,null,null,null,null,null,null,{"$f":"a[[#Headers],[*]]","v":"*"},{"$f":"a[[#This Row],[Calcium]] + (0.8 * (4-a[[#This Row],[Albumin]]))","v":3.2},{"$f":"LIVERAPRI(a[[#This Row],[AST]],a[[#This Row],[Platelet]])","v":0},{"$f":"LIVERAPRIINTERPRETATION(\"[@APRI])\")","v":"Likely cirrhosis"},{"$f":"\"APRI liver fibrosis calculation using recent AST \" & a[[#This Row],[AST]] & \" and Platelet count of \" &a[[#This Row],[Platelet]]& \" was calculated to be \" & ROUND(a[[#This Row],[APRI]],2) & \", \" & a[[#This Row],[APRI interpretation]]&\".\"","v":"APRI liver fibrosis calculation using recent AST  and Platelet count of  was calculated to be 0, Likely cirrhosis."},{"$f":"LIVERANI(a[[#This Row],[Gender:]],a[[#This Row],[MCV]],a[[#This Row],[AST]],a[[#This Row],[ALT]],a[[#This Row],[Height:  ]],a[[#This Row],[Weight:  ]])","v":{"$error":"#VALUE!"}},{"$f":"LIVERANIPROBABILITY(a[[#This Row],[ANI]])","v":{"$error":"#VALUE!"}},{"$f":"\"Alcohol-associated liver disease to NAFLD Index (ANI) \" & TEXT(a[[#This Row],[ANI]],\"0.00\") & \" indicates \" & TEXT(a[[#This Row],[Probability of Alcoholic Liver Disease]],\"00%\") & \" probability of alcoholic liver disease (versus non-alcoholic liver disease).  \"","v":{"$error":"#VALUE!"}},{"$f":"IF(_xlfn.NUMBERVALUE(a[[#This Row],[Bilirubin, Total]])>3,3,IF(_xlfn.NUMBERVALUE(a[[#This Row],[Bilirubin, Total]])>=2,2,IF(_xlfn.NUMBERVALUE(a[[#This Row],[Bilirubin, Total]])>0,1,\"missing\")))","v":"missing"},{"$f":"IF(_xlfn.NUMBERVALUE(a[[#This Row],[Albumin]])>3.5,1,IF(_xlfn.NUMBERVALUE(a[[#This Row],[Albumin]])>=2.8,2,IF(_xlfn.NUMBERVALUE(a[[#This Row],[Albumin]])>0,3,\"missing\")))","v":"missing"},{"$f":"IF(_xlfn.NUMBERVALUE(a[[#This Row],[INR]])>2.2,3,IF(_xlfn.NUMBERVALUE(a[[#This Row],[INR]])>=1.7,2,IF(_xlfn.NUMBERVALUE(a[[#This Row],[INR]])>0,1,\"missing\")))","v":"missing"},null,null,{"$f":"SUM(a[[#This Row],[Bili Pts]:[Ence Pts]])","v":0},{"$f":"IF(_xlfn.NUMBERVALUE(a[[#This Row],[Child Pugh Score]])>9,\"C\",IF(_xlfn.NUMBERVALUE(a[[#This Row],[Child Pugh Score]])>=7,\"B\",IF(_xlfn.NUMBERVALUE(a[[#This Row],[Child Pugh Score]])>0,\"A\",\"missing\")))","v":"missing"},{"$f":"TENYEARASCVDRISK(a[[#This Row],[Gender:]],a[[#This Row],[Age: ]],a[[#This Row],[Race:]],a[[#This Row],[Current Smoker:]],a[[#This Row],[Diabetes:]],a[[#This Row],[Blood Pressure Treated:]],a[[#This Row],[Total Cholesterol]],a[[#This Row],[HDL]],a[[#This Row],[SBP:]])","v":0},{"$f":"LIFETIMEASCVDRISK(a[[#This Row],[Gender:]],a[[#This Row],[Age: ]],a[[#This Row],[Current Smoker:]],a[[#This Row],[Diabetes:]],a[[#This Row],[Total Cholesterol]],a[[#This Row],[SBP:]])","v":0},{"$f":"IF(OR(_xlfn.NUMBERVALUE(a[[#This Row],[LDL]])>190,a[[#This Row],[10-Year ASCVD]]>7.5%,a[[#This Row],[Lifetime ASCVD Risk]]>39%),\"YES\",\"NO\")","v":"NO"},{"$f":"IF(a[[#This Row],[Statin:]]=\"No\",IF(a[[#This Row],[Statin indicated (LDL>190,10 year ASCVD>7.5%, lifetime ASCVD>39%)]]=\"NO\",\"Statin DOES NOT need to be started because LDL at or below 190 mg/dL, 10 year ASCVD is at or below 7.5%, and lifetime ASCVD is at or below 39%\",\"Statin SHOULD be started because LDL is above 190 mg/dL, 10 year ASCVD is above 7.5%, or lifetime ASCVD is above 39%\"),IF(a[[#This Row],[Statin:]]=\"Yes\",\"Currently on Statin\",\"Error\"))","v":"Error"},{"$f":"a[[#Headers],[*]]","v":"*"},null,null,null,null,null,null,null,null,null,null,null,null,null,null,null,null,null,null,null,null,null,null,null,null,null,null,null,null,null,null,null,null,null,null,null,null,null,null,null,null,null,null,null,null,null,null,null,null,null,null,null,null,null,null,null,null,null,null,null,null,null,null,{"$f":"\"Noteworthy testing:  \"&CHAR(10)&IF(a[[#This Row],[EKG:  ]]<>\"\",a[[#Headers],[EKG:  ]]&a[[#This Row],[EKG:  ]]&\" (\"&TEXT(a[[#This Row],[EKG Date:  ]],\"mm/dd/yyyy\")&\")\"&CHAR(10),\"\")&IF(a[[#This Row],[Holter Monitor:  ]]<>\"\",a[[#Headers],[Holter Monitor:  ]]&a[[#This Row],[Holter Monitor:  ]]&\" (\"&TEXT(a[[#This Row],[Holter Date:  ]],\"mm/dd/yyyy\")&\")\"&CHAR(10),\"\")&IF(a[[#This Row],[Echocardiogram:  ]]<>\"\",a[[#Headers],[Echocardiogram:  ]]&a[[#This Row],[Echocardiogram:  ]]&\" (\"&TEXT(a[[#This Row],[Echocardiogram Date:  ]],\"mm/dd/yyyy\")&\")\"&CHAR(10),\"\")&IF(a[[#This Row],[Cardiac Stress Test:  ]]<>\"\",a[[#Headers],[Cardiac Stress Test:  ]]&a[[#This Row],[Cardiac Stress Test:  ]]&\" (\"&TEXT(a[[#This Row],[Cardiac Stress Test Date:  ]],\"mm/dd/yyyy\")&\")\"&CHAR(10),\"\")&IF(a[[#This Row],[Chest Xray:  ]]<>\"\",a[[#Headers],[Chest Xray:  ]]&a[[#This Row],[Chest Xray:  ]]&\" (\"&TEXT(a[[#This Row],[CXR Date:  ]],\"mm/dd/yyyy\")&\")\"&CHAR(10),\"\")&IF(a[[#This Row],[Xray:  ]]<>\"\",a[[#Headers],[Xray:  ]]&a[[#This Row],[Xray:  ]]&\" (\"&TEXT(a[[#This Row],[Xray Date]],\"mm/dd/yyyy\")&\")\"&CHAR(10),\"\")&IF(a[[#This Row],[CT:  ]]<>\"\",a[[#Headers],[CT:  ]]&a[[#This Row],[CT:  ]]&\" (\"&TEXT(a[[#This Row],[CT Date:  ]],\"mm/dd/yyyy\")&\")\"&CHAR(10),\"\")&IF(a[[#This Row],[MRI:  ]]<>\"\",a[[#Headers],[MRI:  ]]&a[[#This Row],[MRI:  ]]&\" (\"&TEXT(a[[#This Row],[MRI Date:  ]],\"mm/dd/yyyy\")&\")\"&CHAR(10),\"\")&IF(a[[#This Row],[EMG:  ]]<>\"\",a[[#Headers],[EMG:  ]]&a[[#This Row],[EMG:  ]]&\" (\"&TEXT(a[[#This Row],[EMG Date:  ]],\"mm/dd/yyyy\")&\")\"&CHAR(10),\"\")&IF(a[[#This Row],[EEG:  ]]<>\"\",a[[#Headers],[EEG:  ]]&a[[#This Row],[EEG:  ]]&\" (\"&TEXT(a[[#This Row],[EEG Date:  ]],\"mm/dd/yyyy\")&\")\"&CHAR(10),\"\")&IF(a[[#This Row],[Pulmonary Function Testing:  ]]<>\"\",a[[#Headers],[Pulmonary Function Testing:  ]]&a[[#This Row],[Pulmonary Function Testing:  ]]&\" (\"&TEXT(a[[#This Row],[Pulmonary Testing Date:  ]],\"mm/dd/yyyy\")&\")\"&CHAR(10),\"\")&IF(a[[#This Row],[Sleep Apnea Testing:  ]]<>\"\",a[[#Headers],[Sleep Apnea Testing:  ]]&a[[#This Row],[Sleep Apnea Testing:  ]]&\" (\"&TEXT(a[[#This Row],[Sleep Test Date:  ]],\"mm/dd/yyyy\")&\")\"&CHAR(10),\"\")&IF(a[[#This Row],[Ultrasound:  ]]<>\"\",a[[#Headers],[Ultrasound:  ]]&a[[#This Row],[Ultrasound:  ]]&\" (\"&TEXT(a[[#This Row],[Ultrasound Date:  ]],\"mm/dd/yyyy\")&\")\"&CHAR(10),\"\")&IF(a[[#This Row],[Renal Ultrasound:  ]]<>\"\",a[[#Headers],[Renal Ultrasound:  ]]&a[[#This Row],[Renal Ultrasound:  ]]&\" (\"&TEXT(a[[#This Row],[Renal Ultrasound Date:  ]],\"mm/dd/yyyy\")&\")\"&CHAR(10),\"\")&IF(a[[#This Row],[Liver Ultrasound:  ]]<>\"\",a[[#Headers],[Liver Ultrasound:  ]]&a[[#This Row],[Liver Ultrasound:  ]]&\" (\"&TEXT(a[[#This Row],[Liver Ultrasound Date:  ]],\"mm/dd/yyyy\")&\")\"&CHAR(10),\"\")&IF(a[[#This Row],[AAA screen (male smokers 65+):  ]]<>\"\",a[[#Headers],[AAA screen (male smokers 65+):  ]]&a[[#This Row],[AAA screen (male smokers 65+):  ]]&\" (\"&TEXT(a[[#This Row],[AAA Date:  ]],\"mm/dd/yyyy\")&\")\"&CHAR(10),\"\")&IF(a[[#This Row],[Colon cancer screening (45+):  ]]<>\"\",a[[#Headers],[Colon cancer screening (45+):  ]]&a[[#This Row],[Colon cancer screening (45+):  ]]&\" (\"&TEXT(a[[#This Row],[Colon cancer screening date:  ]],\"mm/dd/yyyy\")&\")\"&CHAR(10),\"\")&IF(a[[#This Row],[Lung cancer screening (55-79):  ]]<>\"\",a[[#Headers],[Lung cancer screening (55-79):  ]]&a[[#This Row],[Lung cancer screening (55-79):  ]]&\" (\"&TEXT(a[[#This Row],[Lung cancer screening date:  ]],\"mm/dd/yyyy\")&\")\"&CHAR(10),\"\")&IF(a[[#This Row],[Dental Exam Date:  ]]<>\"\",a[[#This Row],[Dental Exam Date:  ]]&TEXT(a[[#This Row],[Dental Exam Date:  ]],\"mm/dd/yyyy\")&\")\"&CHAR(10),\"\")&IF(a[[#This Row],[Foot Exam:  ]]<>\"\",a[[#Headers],[Foot Exam:  ]]&a[[#This Row],[Foot Exam:  ]]&\" (\"&TEXT(a[[#This Row],[Foot Exam Date:  ]],\"mm/dd/yyyy\")&\")\"&CHAR(10),\"\")&IF(a[[#This Row],[Fundoscopy:  ]]<>\"\",a[[#Headers],[Fundoscopy:  ]]&a[[#This Row],[Fundoscopy:  ]]&\" (\"&TEXT(a[[#This Row],[Fundoscopy Date:  ]],\"mm/dd/yyyy\")&\")\"&CHAR(10),\"\")&IF(a[[#This Row],[DEXA bone density:  ]]<>\"\",a[[#Headers],[DEXA bone density:  ]]&a[[#This Row],[DEXA bone density:  ]]&\" (\"&TEXT(a[[#This Row],[DEXA Date:  ]],\"mm/dd/yyyy\")&\")\"&CHAR(10),\"\")&IF(a[[#This Row],[PPD (mm):  ]]<>\"\",a[[#Headers],[PPD (mm):  ]]&a[[#This Row],[PPD (mm):  ]]&\" (\"&TEXT(a[[#This Row],[PPD Date:  ]],\"mm/dd/yyyy\")&\")\"&CHAR(10),\"\")&IF(a[[#This Row],[Hep B Serology:  ]]<>\"\",a[[#Headers],[Hep B Serology:  ]]&a[[#This Row],[Hep B Serology:  ]]&\" \"&b!BD192&\" (\"&TEXT(a[[#This Row],[Hep B serology Date:  ]],\"mm/dd/yyyy\")&\")\"&CHAR(10),\"\")&IF(a[[#This Row],[Hep C Serology:  ]]<>\"\",a[[#Headers],[Hep C Serology:  ]]&a[[#This Row],[Hep C Serology:  ]]&\" \"&b!AZ192&\" (\"&TEXT(a[[#This Row],[Hep C Serology Date:  ]],\"mm/dd/yyyy\")&\")\"&CHAR(10),\"\")&IF(a[[#This Row],[HIV:  ]]<>\"\",a[[#Headers],[HIV:  ]]&a[[#This Row],[HIV:  ]]&\" (\"&TEXT(a[[#This Row],[HIV Date:]],\"mm/dd/yyyy\")&\")\"&CHAR(10),\"\")&IF(a[[#This Row],[Meningococcal series completion date:  ]]<>\"\",a[[#Headers],[Meningococcal series completion date:  ]]&TEXT(a[[#This Row],[Meningococcal series completion date:  ]],\"mm/dd/yyyy\")&\")\"&CHAR(10),\"\")&IF(a[[#This Row],[Influenza (annual):  ]]<>\"\",a[[#Headers],[Influenza (annual):  ]]&TEXT(a[[#This Row],[Influenza (annual):  ]],\"mm/dd/yyyy\")&\")\"&CHAR(10),\"\")&IF(a[[#This Row],[Hepatitis B series completion date:  ]]<>\"\",a[[#Headers],[Hepatitis B series completion date:  ]]&TEXT(a[[#This Row],[Hepatitis B series completion date:  ]],\"mm/dd/yyyy\")&\")\"&CHAR(10),\"\")&IF(a[[#This Row],[MMR series completion date:  ]]<>\"\",a[[#Headers],[MMR series completion date:  ]]&TEXT(a[[#This Row],[MMR series completion date:  ]],\"mm/dd/yyyy\")&\")\"&CHAR(10),\"\")&IF(a[[#This Row],[Tdap (every 10 years):  ]]<>\"\",a[[#Headers],[Tdap (every 10 years):  ]]&TEXT(a[[#This Row],[Tdap (every 10 years):  ]],\"mm/dd/yyyy\")&\")\"&CHAR(10),\"\")&IF(a[[#This Row],[Pneumovax 13 (CKD or immune-suppressed):  ]]<>\"\",a[[#Headers],[Pneumovax 13 (CKD or immune-suppressed):  ]]&TEXT(a[[#This Row],[Pneumovax 13 (CKD or immune-suppressed):  ]],\"mm/dd/yyyy\")&\")\"&CHAR(10),\"\")&IF(a[[#This Row],[Pneumovax 23 (age 65, CHF, lung disease, DM, liver disease):  ]]<>\"\",a[[#Headers],[Pneumovax 23 (age 65, CHF, lung disease, DM, liver disease):  ]]&TEXT(a[[#This Row],[Pneumovax 23 (age 65, CHF, lung disease, DM, liver disease):  ]],\"mm/dd/yyyy\")&\")\"&CHAR(10),\"\")&IF(a[[#This Row],[Recombinant Zoster (age 50 or immune-suppressed):  ]]<>\"\",a[[#Headers],[Recombinant Zoster (age 50 or immune-suppressed):  ]]&TEXT(a[[#This Row],[Recombinant Zoster (age 50 or immune-suppressed):  ]],\"mm/dd/yyyy\")&\")\"&CHAR(10),\"\")&IF(a[[#This Row],[Other Procedure or Test:  ]]<>\"\",a[[#Headers],[Other Procedure or Test:  ]]&a[[#This Row],[Other Procedure or Test:  ]]&CHAR(10),\"\")","v":"Noteworthy testing:  \n"}]
[{"$f":"a[[#Headers],[*]]","v":"*"},null,null,null,{"$f":"INT(((TODAY())-a[[#This Row],[DOB:]])/365.25)","v":124},null,null,null,{"$f":"LEFT(a[[#This Row],[Blood Pressure: ]],FIND(\"/\",a[[#This Row],[Blood Pressure: ]])-1)","v":{"$error":"#VALUE!"}},{"$f":"RIGHT(a[[#This Row],[Blood Pressure: ]],LEN(a[[#This Row],[Blood Pressure: ]])-FIND(\"/\",a[[#This Row],[Blood Pressure: ]]))","v":{"$error":"#VALUE!"}},null,null,{"$f":"(a[[#This Row],[Weight:  ]]/(a[[#This Row],[Height:  ]]^2))*703","v":{"$error":"#DIV/0!"}},null,null,null,null,{"$f":"a[[#Headers],[*]]","v":"*"},null,null,null,null,null,null,null,null,null,null,null,null,null,null,null,null,null,null,null,null,null,null,null,{"$f":"IF(a[[#This Row],['# Co-managed:  ]]<>\"\",a[[#Headers],['# Co-managed:  ]]&a[[#This Row],['# Co-managed:  ]]&CHAR(10),\"\")&IF(a[[#This Row],['# Weight/Diet/Activity:  ]]<>\"\",a[[#Headers],['# Weight/Diet/Activity:  ]]&a[[#This Row],['# Weight/Diet/Activity:  ]]&CHAR(10),\"\")&IF(a[[#This Row],['# Cholesterol/ASCVD risk:  ]]<>\"\",a[[#Headers],['# Cholesterol/ASCVD risk:  ]]&a[[#This Row],['# Cholesterol/ASCVD risk:  ]]&CHAR(10),\"\")&IF(a[[#This Row],['# Blood pressure/Shortness of breath/Lower extremity swelling:  ]]<>\"\",a[[#Headers],['# Blood pressure/Shortness of breath/Lower extremity swelling:  ]]&a[[#This Row],['# Blood pressure/Shortness of breath/Lower extremity swelling:  ]]&CHAR(10),\"\")&IF(a[[#This Row],['# Dizziness/Lightheadedness/Vertigo/Falls:  ]]<>\"\",a[[#Headers],['# Dizziness/Lightheadedness/Vertigo/Falls:  ]]&a[[#This Row],['# Dizziness/Lightheadedness/Vertigo/Falls:  ]]&CHAR(10),\"\")&IF(a[[#This Row],['# COPD/Asthma:  ]]<>\"\",a[[#Headers],['# COPD/Asthma:  ]]&a[[#This Row],['# COPD/Asthma:  ]]&CHAR(10),\"\")&IF(a[[#This Row],['# Sleep apnea:  ]]<>\"\",a[[#Headers],['# Sleep apnea:  ]]&a[[#This Row],['# Sleep apnea:  ]]&CHAR(10),\"\")&IF(a[[#This Row],['# Chronic pain/Arthritis:  ]]<>\"\",a[[#Headers],['# Chronic pain/Arthritis:  ]]&a[[#This Row],['# Chronic pain/Arthritis:  ]]&CHAR(10),\"\")&IF(a[[#This Row],['# Gastroesophageal reflux/Constipation/Melena/Hematochezia:  ]]<>\"\",a[[#Headers],['# Gastroesophageal reflux/Constipation/Melena/Hematochezia:  ]]&a[[#This Row],['# Gastroesophageal reflux/Constipation/Melena/Hematochezia:  ]]&CHAR(10),\"\")&IF(a[[#This Row],['# Urinary symptoms:  ]]<>\"\",a[[#Headers],['# Urinary symptoms:  ]]&a[[#This Row],['# Urinary symptoms:  ]]&CHAR(10),\"\")&IF(a[[#This Row],['# Last menstrual period/Pregnancy:  ]]<>\"\",a[[#Headers],['# Last menstrual period/Pregnancy:  ]]&a[[#This Row],['# Last menstrual period/Pregnancy:  ]]&CHAR(10),\"\")&IF(a[[#This Row],['# Mood/Depression/Anxiety:  ]]<>\"\",a[[#Headers],['# Mood/Depression/Anxiety:  ]]&a[[#This Row],['# Mood/Depression/Anxiety:  ]]&CHAR(10),\"\")&IF(a[[#This Row],['# Vision:  ]]<>\"\",a[[#Headers],['# Vision:  ]]&a[[#This Row],['# Vision:  ]]&CHAR(10),\"\")&IF(a[[#This Row],['# Hearing:  ]]<>\"\",a[[#Headers],['# Hearing:  ]]&a[[#This Row],['# Hearing:  ]]&CHAR(10),\"\")&IF(a[[#This Row],['# Dental:  ]]<>\"\",a[[#Headers],['# Dental:  ]]&a[[#This Row],['# Dental:  ]]&CHAR(10),\"\")&IF(a[[#This Row],['# Surgeries/Procedures/Implants/Metal:  ]]<>\"\",a[[#Headers],['# Surgeries/Procedures/Implants/Metal:  ]]&a[[#This Row],['# Surgeries/Procedures/Implants/Metal:  ]]&CHAR(10),\"\")&IF(a[[#This Row],['# Alcohol:  ]]<>\"\",a[[#Headers],['# Alcohol:  ]]&a[[#This Row],['# Alcohol:  ]]&CHAR(10),\"\")&IF(a[[#This Row],['# Tobacco:  ]]<>\"\",a[[#Headers],['# Tobacco:  ]]&a[[#This Row],['# Tobacco:  ]]&CHAR(10),\"\")&IF(a[[#This Row],['# Recreational drugs:  ]]<>\"\",a[[#Headers],['# Recreational drugs:  ]]&a[[#This Row],['# Recreational drugs:  ]]&CHAR(10),\"\")&IF(a[[#This Row],['# Surgeries/Procedures/Implants/Metal:  ]]<>\"\",a[[#Headers],['# Surgeries/Procedures/Implants/Metal:  ]]&a[[#This Row],['# Surgeries/Procedures/Implants/Metal:  ]]&CHAR(10),\"\")&IF(a[[#This Row],['# Family history:  ]]<>\"\",a[[#Headers],['# Family history:  ]]&a[[#This Row],['# Family history:  ]]&CHAR(10),\"\")&IF(a[[#This Row],['# Tobacco:  ]]<>\"\",a[[#Headers],['# Tobacco:  ]]&a[[#This Row],['# Tobacco:  ]]&CHAR(10),\"\")&IF(a[[#This Row],['# ADLs/IADLs:  ]]<>\"\",a[[#Headers],['# ADLs/IADLs:  ]]&a[[#This Row],['# ADLs/IADLs:  ]]&CHAR(10),\"\")&IF(a[[#This Row],['# Other active issues:  ]]<>\"\",a[[#Headers],['# Other active issues:  ]]&a[[#This Row],['# Other active issues:  ]]&CHAR(10),\"\")&IF(a[[#This Row],['# Other chronic issues:  ]]<>\"\",a[[#Headers],['# Other chronic issues:  ]]&a[[#This Row],['# Other chronic issues:  ]]&CHAR(10),\"\")","v":""},{"$f":"a[[#Headers],[*]]","v":"*"},{"$f":"IF(AND(a[[#This Row],[Sodium]]<>\"\",a[[#This Row],[Potassium]]<>\"\",a[[#This Row],[Chloride]]<>\"\",a[[#This Row],[Bicarbonate]]<>\"\",a[[#This Row],[BUN]]<>\"\",a[[#This Row],[Creatinine]]<>\"\",a[[#This Row],[Calcium]]<>\"\",a[[#This Row],[Glucose]]<>\"\",a[[#This Row],[BMPD]]<>\"\"),\"Basic chemistry panel on \"&TEXT(a[[#This Row],[BMPD]],\"mmmm d, yyyy\")&\" showed \"&a[[#Headers],[Sodium]]&\" \"&a[[#This Row],[Sodium]]&\" \"&b!B$2&\", \"&a[[#Headers],[Potassium]]&\" \"&a[[#This Row],[Potassium]]&\" \"&b!C$2&\", \"&a[[#Headers],[Chloride]]&\" \"&a[[#This Row],[Chloride]]&\" \"&b!D$2&\", \"&a[[#Headers],[Bicarbonate]]&\" \"&a[[#This Row],[Bicarbonate]]&\" \"&b!E$2&\", \"&a[[#Headers],[BUN]]&\" \"&a[[#This Row],[BUN]]&\" \"&b!F$2&\", \"&a[[#Headers],[Creatinine]]&\" \"&a[[#This Row],[Creatinine]]&\" \"&b!G$2&\", \"&a[[#Headers],[Calcium]]&\" \"&a[[#This Row],[Calcium]]&\" \"&b!H$2&\", and \"&a[[#Headers],[Glucose]]&\" \"&a[[#This Row],[Glucose]]&\" \"&b!I$2,\"No BMP found\")&IF(AND(a[[#This Row],[Cystatin C]]<>\"\",a[[#This Row],[CysD]]<>\"\"),\". On \"&TEXT(a[[#This Row],[CysD]],\"mmmm d, yyyy\")&\" \"&a[[#Headers],[Cystatin C]]&\" was \"&a[[#This Row],[Cystatin C]]&\" \"&b!AK$2,\"\")&\".  On \"&TEXT(a[[#This Row],[CMPD]],\"mmmm d, yyyy\")&\" labs included \"&a[[#Headers],[AST]]&\" \"&a[[#This Row],[AST]]&\" \"&b!J$2&\", \"&a[[#Headers],[ALT]]&\" \"&a[[#This Row],[ALT]]&\" \"&b!K$2&\", \"&a[[#Headers],[Alkaline Phosphatase]]&\" \"&a[[#This Row],[Alkaline Phosphatase]]&\" \"&b!L$2&\", \"&a[[#Headers],[Bilirubin, Total]]&\" \"&a[[#This Row],[Bilirubin, Total]]&\" \"&b!M$2&\", \"&a[[#Headers],[Total Protein]]&\" \"&a[[#This Row],[Total Protein]]&\" \"&b!N$2&\", \"&a[[#Headers],[Albumin]]&\" \"&a[[#This Row],[Albumin]]&\" \"&b!O$2&\", and \"&a[[#Headers],[Globulin]]&\" \"&a[[#This Row],[Globulin]]&\" \"&b!P$2&IF(AND(a[[#This Row],[LDH]]<>\"\",a[[#This Row],[LDHD]]<>\"\"),\". On \"&TEXT(a[[#This Row],[LDHD]],\"mmmm d, yyyy\")&\" \"&a[[#Headers],[LDH]]&\" was \"&a[[#This Row],[LDH]]&\" \"&b!BH$2,\"\")&IF(AND(a[[#This Row],[Magnesium]]<>\"\",a[[#This Row],[MagD]]<>\"\"),\". On \"&TEXT(a[[#This Row],[MagD]],\"mmmm d, yyyy\")&\" \"&a[[#Headers],[Magnesium]]&\" was \"&a[[#This Row],[Magnesium]]&\" \"&b!AS$2,\"\")&IF(AND(a[[#This Row],[Phosphorus]]<>\"\",a[[#This Row],[PhosD]]<>\"\"),\". On \"&TEXT(a[[#This Row],[PhosD]],\"mmmm d, yyyy\")&\" \"&a[[#Headers],[Phosphorus]]&\" was \"&a[[#This Row],[Phosphorus]]&\" \"&b!AT$2,\"\")&IF(AND(a[[#This Row],[Vitamin D, 25-Hydroxy level]]<>\"\",a[[#This Row],[VitDD]]<>\"\"),\".  He had a \"&a[[#Headers],[Vitamin D, 25-Hydroxy level]]&\" of \"&a[[#This Row],[Vitamin D, 25-Hydroxy level]]&\" \"&b!AB$2&\" on \"&TEXT(a[[#This Row],[VitDD]],\"mmmm d, yyyy\"),\"\")&IF(AND(a[[#This Row],[PTH]]<>\"\",a[[#This Row],[PTHD]]<>\"\"),\". On \"&TEXT(a[[#This Row],[PTHD]],\"mmmm d, yyyy\")&\" \"&a[[#Headers],[PTH]]&\" was \"&a[[#This Row],[PTH]]&\" \"&b!AU$2,\"\")&IF(AND(a[[#This Row],[Uric Acid]]<>\"\",a[[#This Row],[UricD]]<>\"\"),\". On \"&TEXT(a[[#This Row],[UricD]],\"mmmm d, yyyy\")&\" \"&a[[#Headers],[Uric Acid]]&\" was \"&a[[#This Row],[Uric Acid]]&\" \"&b!AV$2,\"\")&IF(AND(a[[#This Row],[Amylase]]<>\"\",a[[#This Row],[AmyD]]<>\"\"),\". On \"&TEXT(a[[#This Row],[AmyD]],\"mmmm d, yyyy\")&\" \"&a[[#Headers],[Amylase]]&\" was \"&a[[#This Row],[Amylase]]&\" \"&b!AW$2,\"\")&IF(AND(a[[#This Row],[Lipase]]<>\"\",a[[#This Row],[LipaD]]<>\"\"),\". On \"&TEXT(a[[#This Row],[LipaD]],\"mmmm d, yyyy\")&\" \"&BQ$1&\" was \"&a[[#This Row],[Lipase]]&\" \"&b!AX$2,\"\")&IF(AND(a[[#This Row],[AFP, Tumor Marker]]<>\"\",a[[#This Row],[AFPD]]<>\"\"),\". On \"&TEXT(a[[#This Row],[AFPD]],\"mmmm d, yyyy\")&\" \"&a[[#Headers],[AFP, Tumor Marker]]&\" was \"&a[[#This Row],[AFP, Tumor Marker]]&\" \"&b!BJ$2,\"\")&IF(AND(a[[#This Row],[WBC]]<>\"\",a[[#This Row],[Hemoglobin]]<>\"\",a[[#This Row],[MCV]]<>\"\",a[[#This Row],[Platelet]]<>\"\",a[[#This Row],[CBCD]]<>\"\"),\".  On \"&TEXT(a[[#This Row],[CBCD]],\"mmmm d, yyyy\")&\" a complete blood count had \"&a[[#Headers],[WBC]]&\" \"&a[[#This Row],[WBC]]&\" \"&b!Q$2&\", \"&a[[#Headers],[Hemoglobin]]&\" \"&a[[#This Row],[Hemoglobin]]&\" \"&b!R$2&\", \"&a[[#Headers],[MCV]]&\" \"&a[[#This Row],[MCV]]&\" \"&b!S$2&\", \"&a[[#Headers],[Platelet]]&\" \"&a[[#This Row],[Platelet]]&\" \"&b!T$2,\".  No CBC found\")&IF(AND(a[[#This Row],[Erythrocyte Sedimentation Rate]]<>\"\",a[[#This Row],[ESRD]]<>\"\"),\". On \"&TEXT(a[[#This Row],[ESRD]],\"mmmm d, yyyy\")&\" \"&a[[#Headers],[Erythrocyte Sedimentation Rate]]&\" was \"&a[[#This Row],[Erythrocyte Sedimentation Rate]]&\" \"&b!AM$2,\"\")&IF(AND(a[[#This Row],[C-Reactive Protein]]<>\"\",a[[#This Row],[CRPD]]<>\"\"),\". On \"&TEXT(a[[#This Row],[CRPD]],\"mmmm d, yyyy\")&\" \"&a[[#Headers],[C-Reactive Protein]]&\" was \"&a[[#This Row],[C-Reactive Protein]]&\" \"&b!AN$2,\"\")&IF(AND(a[[#This Row],[Hepatitis B Viral Load]]<>\"\",a[[#This Row],[HBVD]]<>\"\"),\". On \"&TEXT(a[[#This Row],[HBVD]],\"mmmm d, yyyy\")&\" \"&a[[#Headers],[Hepatitis B Viral Load]]&\" was \"&a[[#This Row],[Hepatitis B Viral Load]]&\" \"&b!BB$2,\"\")&IF(AND(a[[#This Row],[Hepatitis C Viral Load]]<>\"\",a[[#This Row],[HCVD]]<>\"\"),\". On \"&TEXT(a[[#This Row],[HCVD]],\"mmmm d, yyyy\")&\" \"&a[[#Headers],[Hepatitis C Viral Load]]&\" was \"&a[[#This Row],[Hepatitis C Viral Load]]&\" \"&b!BA$2,\"\")&IF(AND(a[[#This Row],[HIV Viral Load]]<>\"\",a[[#This Row],[HIVD]]<>\"\"),\". On \"&TEXT(a[[#This Row],[HIVD]],\"mmmm d, yyyy\")&\" \"&a[[#Headers],[HIV Viral Load]]&\" was \"&a[[#This Row],[HIV Viral Load]]&\" \"&b!BC$2,\"\")&IF(AND(a[[#This Row],[CD4 Count]]<>\"\",a[[#This Row],[CD4D]]<>\"\"),\". On \"&TEXT(a[[#This Row],[CD4D]],\"mmmm d, yyyy\")&\" \"&a[[#Headers],[CD4 Count]]&\" was \"&a[[#This Row],[CD4 Count]]&\" \"&b!AL$2,\"\")&IF(AND(a[[#This Row],[Iron]]<>\"\",a[[#This Row],[TIBC]]<>\"\",a[[#This Row],[% Saturation]]<>\"\",a[[#This Row],[IronD]]<>\"\"),\". Iron Testing: On \"&TEXT(a[[#This Row],[IronD]],\"mmmm d, yyyy\")&\" \"&a[[#Headers],[Iron]]&\" was \"&a[[#This Row],[Iron]]&\" \"&b!AO$2&\", \"&a[[#Headers],[TIBC]]&\" was \"&a[[#This Row],[TIBC]]&\" \"&b!AP$2&\", \"&a[[#Headers],[% Saturation]]&\" was \"&a[[#This Row],[% Saturation]]&\" \"&b!AQ$2,\"\")&IF(AND(a[[#This Row],[Ferritin]]<>\"\",a[[#This Row],[FerrD]]<>\"\"),\". On \"&TEXT(a[[#This Row],[FerrD]],\"mmmm d, yyyy\")&\" \"&a[[#Headers],[Ferritin]]&\" was \"&a[[#This Row],[Ferritin]]&\" \"&b!AR$2,\"\")&IF(AND(a[[#This Row],[Vitamin B12 level]]<>\"\",a[[#This Row],[VitB12D]]<>\"\"),\". On \"&TEXT(a[[#This Row],[VitB12D]],\"mmmm d, yyyy\")&\" \"&a[[#Headers],[Vitamin B12 level]]&\" was \"&a[[#This Row],[Vitamin B12 level]]&\" \"&b!AC$2,\"\")&IF(AND(a[[#This Row],[Folate level]]<>\"\",a[[#This Row],[FolaD]]<>\"\"),\". On \"&TEXT(a[[#This Row],[FolaD]],\"mmmm d, yyyy\")&\" \"&a[[#Headers],[Folate level]]&\" was \"&a[[#This Row],[Folate level]]&\" \"&b!AD$2,\"\")&IF(AND(a[[#This Row],[Homocysteine]]<>\"\",a[[#This Row],[HomoD]]<>\"\"),\". On \"&TEXT(a[[#This Row],[HomoD]],\"mmmm d, yyyy\")&\" \"&a[[#Headers],[Homocysteine]]&\" was \"&a[[#This Row],[Homocysteine]]&\" \"&b!AE$2,\"\")&IF(AND(a[[#This Row],[Methylmalonic Acid]]<>\"\",a[[#This Row],[MethD]]<>\"\"),\". On \"&TEXT(a[[#This Row],[MethD]],\"mmmm d, yyyy\")&\" \"&a[[#Headers],[Methylmalonic Acid]]&\" was \"&a[[#This Row],[Methylmalonic Acid]]&\" \"&b!AF$2,\"\")&IF(AND(a[[#This Row],[Thiamine]]<>\"\",a[[#This Row],[ThiaD]]<>\"\"),\". On \"&TEXT(a[[#This Row],[ThiaD]],\"mmmm d, yyyy\")&\" \"&a[[#Headers],[Thiamine]]&\" was \"&a[[#This Row],[Thiamine]]&\" \"&b!AG$2,\"\")&IF(AND(a[[#This Row],[Zinc]]<>\"\",a[[#This Row],[ZincD]]<>\"\"),\". On \"&TEXT(a[[#This Row],[ZincD]],\"mmmm d, yyyy\")&\" \"&a[[#Headers],[Zinc]]&\" was \"&a[[#This Row],[Zinc]]&\" \"&b!AH$2,\"\")&IF(AND(a[[#This Row],[Copper]]<>\"\",a[[#This Row],[CopD]]<>\"\"),\". On \"&TEXT(a[[#This Row],[CopD]],\"mmmm d, yyyy\")&\" \"&a[[#Headers],[Copper]]&\" was \"&a[[#This Row],[Copper]]&\" \"&b!AI$2,\"\")&IF(AND(a[[#This Row],[LipiD]]<>\"\",a[[#This Row],[Total Cholesterol]]<>\"\",a[[#This Row],[Triglycerides]]<>\"\",a[[#This Row],[HDL]]<>\"\",a[[#This Row],[LDL]]<>\"\"),\".  On \"&TEXT(a[[#This Row],[LipiD]],\"mmmm d, yyyy\")&\" fasting lipids included \"&a[[#Headers],[Total Cholesterol]]&\" \"&a[[#This Row],[Total Cholesterol]]&\" \"&b!V$2&\", \"&a[[#Headers],[Triglycerides]]&\" \"&a[[#This Row],[Triglycerides]]&\" \"&b!W$2&\", \"&a[[#Headers],[HDL]]&\" \"&a[[#This Row],[HDL]]&\" \"&b!X$2&\", and \"&a[[#Headers],[LDL]]&\" \"&a[[#This Row],[LDL]]&\" \"&b!Y$2,\"\")","v":"No BMP found.  On January 0, 1900 labs included AST  (N<=34), ALT  (N<=55), Alkaline Phosphatase  (N 40-150), Bilirubin, Total  (N 0.2-1.2), Total Protein  (N 6.0-8.3), Albumin  (N 3.5-5.2), and Globulin  (N 2.0-3.7).  No CBC found"},{"$f":"IF(AND(a[[#This Row],[A1cD]]<>\"\",a[[#This Row],[Hemoglobin A1c]]<>\"\"),\".  On \"&TEXT(a[[#This Row],[A1cD]],\"mmmm d, yyyy\")&\" \"&a[[#Headers],[Hemoglobin A1c]]&\" was \"&a[[#This Row],[Hemoglobin A1c]]&\" \"&b!U$2,\"\")&IF(AND(a[[#This Row],[TSH]]<>\"\",a[[#This Row],[TSHD]]<>\"\"),\".  Thyroid testing:  \"&a[[#Headers],[TSH]]&\" was \"&a[[#This Row],[TSH]]&\" \"&b!Z$2&\" on \"&TEXT(a[[#This Row],[TSHD]],\"mmmm d, yyyy\"),\"\")&IF(AND(a[[#This Row],[Free T4]]<>\"\",a[[#This Row],[FT4D]]<>\"\"),\".  On \"&TEXT(a[[#This Row],[FT4D]],\"mmmm d, yyyy\")&\" \"&a[[#Headers],[Free T4]]&\" was \"&a[[#This Row],[Free T4]]&\" \"&b!AY$2,\"\")&IF(AND(a[[#This Row],[PSA level]]<>\"\",a[[#This Row],[PSAD]]<>\"\"),\". Prostate: On \"&TEXT(a[[#This Row],[PSAD]],\"mmmm d, yyyy\")&\" \"&a[[#Headers],[PSA level]]&\" was \"&a[[#This Row],[PSA level]]&\" \"&b!AA$2,\"\")&IF(AND(a[[#This Row],[Urine Microalbumin/Creatinine]]<>\"\",a[[#This Row],[MACD]]<>\"\"),\".  On \"&TEXT(a[[#This Row],[MACD]], \"mmmm d, yyyy\")&\" \"&a[[#Headers],[Urine Microalbumin/Creatinine]]&\" was \"&a[[#This Row],[Urine Microalbumin/Creatinine]]&\" \"&b!AJ$2,\"\")&IF(AND(a[[#This Row],[other urine testing]]<>\"\",a[[#This Row],[OthUD]]<>\"\"),\".  On \"&TEXT(a[[#This Row],[OthUD]], \"mmmm d, yyyy\")&\" \"&a[[#Headers],[other urine testing]]&\" was notable for \"&a[[#This Row],[other urine testing]],\"\")&IF(AND(a[[#This Row],[other lab testing]]<>\"\",a[[#This Row],[OthLD]]<>\"\"),\".  On \"&TEXT(a[[#This Row],[OthLD]], \"mmmm d, yyyy\")&\" \"&a[[#Headers],[other lab testing]]&\" was notable for \"&a[[#This Row],[other lab testing]],\"\")&IF(AND(a[[#This Row],[additional lab testing]]<>\"\",a[[#This Row],[AddLD]]<>\"\"),\".  On \"&TEXT(a[[#This Row],[AddLD]], \"mmmm d, yyyy\")&\" \"&a[[#Headers],[additional lab testing]]&\" was notable for \"&a[[#This Row],[additional lab testing]],\"\")&IF(AND(a[[#This Row],[Total Valproic Acid Level]]<>\"\",a[[#This Row],[ValpD]]<>\"\"),\".  On \"&TEXT(a[[#This Row],[ValpD]],\"mmmm d, yyyy\")&\" \"&a[[#Headers],[Total Valproic Acid Level]]&\" was \"&a[[#This Row],[Total Valproic Acid Level]]&\" \"&b!BE$2,\"\")&IF(AND(a[[#This Row],[Total Phenytoin Level]]<>\"\",a[[#This Row],[PhenD]]<>\"\"),\".  On \"&TEXT(a[[#This Row],[PhenD]],\"mmmm d, yyyy\")&\" \"&a[[#Headers],[Total Phenytoin Level]]&\" was \"&a[[#This Row],[Total Phenytoin Level]]&\" \"&b!BF$2,\"\")&IF(AND(a[[#This Row],[Tacrolimus Level]]<>\"\",a[[#This Row],[TacrD]]<>\"\"),\".  On \"&TEXT(a[[#This Row],[TacrD]],\"mmmm d, yyyy\")&\" \"&a[[#Headers],[Tacrolimus Level]]&\" was \"&a[[#This Row],[Tacrolimus Level]]&\" \"&b!BG$2,\"\")&IF(AND(a[[#This Row],[Digoxin Level]]<>\"\",a[[#This Row],[DigD]]<>\"\"),\".  On \"&TEXT(a[[#This Row],[DigD]],\"mmmm d, yyyy\")&\" \"&a[[#Headers],[Digoxin Level]]&\" was \"&a[[#This Row],[Digoxin Level]]&\" \"&b!BI$2,\"\")&\".\"","v":"."},{"$f":"a[[#This Row],[Lab subblurb A]]&a[[#This Row],[Lab subblurb B]]","v":"No BMP found.  On January 0, 1900 labs included AST  (N<=34), ALT  (N<=55), Alkaline Phosphatase  (N 40-150), Bilirubin, Total  (N 0.2-1.2), Total Protein  (N 6.0-8.3), Albumin  (N 3.5-5.2), and Globulin  (N 2.0-3.7).  No CBC found."},{"$f":"IF(a[[#This Row],[Sodium]]<>\"\",IF(OR(VALUE(a[[#This Row],[Sodium]])<VALUE(b!B$3),VALUE(a[[#This Row],[Sodium]])>VALUE(b!B$4)),\"Sodium.  \",\"\"),\"\")&IF(a[[#This Row],[Potassium]]<>\"\",IF(OR(VALUE(a[[#This Row],[Potassium]])<VALUE(b!C$3),VALUE(a[[#This Row],[Potassium]])>VALUE(b!C$4)),\"Potassium.  \",\"\"),\"\")&IF(a[[#This Row],[Chloride]]<>\"\",IF(OR(VALUE(a[[#This Row],[Chloride]])<VALUE(b!D$3),VALUE(a[[#This Row],[Chloride]])>VALUE(b!D$4)),\"Chloride.  \",\"\"),\"\")&IF(a[[#This Row],[Bicarbonate]]<>\"\",IF(OR(VALUE(a[[#This Row],[Bicarbonate]])<VALUE(b!E$3),VALUE(a[[#This Row],[Bicarbonate]])>VALUE(b!E$4)),\"Bicarbonate.  \",\"\"),\"\")&IF(a[[#This Row],[BUN]]<>\"\",IF(OR(VALUE(a[[#This Row],[BUN]])<VALUE(b!F$3),VALUE(a[[#This Row],[BUN]])>VALUE(b!F$4)),\"BUN.  \",\"\"),\"\")&IF(a[[#This Row],[Creatinine]]<>\"\",IF(OR(VALUE(a[[#This Row],[Creatinine]])<VALUE(b!G$3),VALUE(a[[#This Row],[Creatinine]])>VALUE(b!G$4)),\"Creatinine.  \",\"\"),\"\")&IF(a[[#This Row],[Calcium]]<>\"\",IF(OR(VALUE(a[[#This Row],[Calcium]])<VALUE(b!H$3),VALUE(a[[#This Row],[Calcium]])>VALUE(b!H$4)),\"Calcium.  \",\"\"),\"\")&IF(a[[#This Row],[Glucose]]<>\"\",IF(OR(VALUE(a[[#This Row],[Glucose]])<VALUE(b!I$3),VALUE(a[[#This Row],[Glucose]])>VALUE(b!I$4)),\"Glucose.  \",\"\"),\"\")&IF(a[[#This Row],[Cystatin C]]<>\"\",IF(OR(VALUE(a[[#This Row],[Cystatin C]])<VALUE(b!AK$3),VALUE(a[[#This Row],[Cystatin C]])>VALUE(b!AK$4)),\"Cystatin C.  \",\"\"),\"\")&IF(a[[#This Row],[AST]]<>\"\",IF(OR(VALUE(a[[#This Row],[AST]])<VALUE(b!J$3),VALUE(a[[#This Row],[AST]])>VALUE(b!J$4)),\"AST.  \",\"\"),\"\")&IF(a[[#This Row],[ALT]]<>\"\",IF(OR(VALUE(a[[#This Row],[ALT]])<VALUE(b!K$3),VALUE(a[[#This Row],[ALT]])>VALUE(b!K$4)),\"ALT.  \",\"\"),\"\")&IF(a[[#This Row],[Alkaline Phosphatase]]<>\"\",IF(OR(VALUE(a[[#This Row],[Alkaline Phosphatase]])<VALUE(b!L$3),VALUE(a[[#This Row],[Alkaline Phosphatase]])>VALUE(b!L$4)),\"Alkaline Phosphatase.  \",\"\"),\"\")&IF(a[[#This Row],[Bilirubin, Total]]<>\"\",IF(OR(VALUE(a[[#This Row],[Bilirubin, Total]])<VALUE(b!M$3),VALUE(a[[#This Row],[Bilirubin, Total]])>VALUE(b!M$4)),\"Bilirubin, Total.  \",\"\"),\"\")&IF(a[[#This Row],[Total Protein]]<>\"\",IF(OR(VALUE(a[[#This Row],[Total Protein]])<VALUE(b!N$3),VALUE(a[[#This Row],[Total Protein]])>VALUE(b!N$4)),\"Total Protein.  \",\"\"),\"\")&IF(a[[#This Row],[Albumin]]<>\"\",IF(OR(VALUE(a[[#This Row],[Albumin]])<VALUE(b!O$3),VALUE(a[[#This Row],[Albumin]])>VALUE(b!O$4)),\"Albumin.  \",\"\"),\"\")&IF(a[[#This Row],[Globulin]]<>\"\",IF(OR(VALUE(a[[#This Row],[Globulin]])<VALUE(b!P$3),VALUE(a[[#This Row],[Globulin]])>VALUE(b!P$4)),\"Globulin.  \",\"\"),\"\")&IF(a[[#This Row],[Amylase]]<>\"\",IF(OR(VALUE(a[[#This Row],[Amylase]])<VALUE(b!AW$3),VALUE(a[[#This Row],[Amylase]])>VALUE(b!AW$4)),\"Amylase.  \",\"\"),\"\")&IF(a[[#This Row],[Lipase]]<>\"\",IF(OR(VALUE(a[[#This Row],[Lipase]])<VALUE(b!AX$3),VALUE(a[[#This Row],[Lipase]])>VALUE(b!AX$4)),\"Lipase.  \",\"\"),\"\")&IF(a[[#This Row],[Magnesium]]<>\"\",IF(OR(VALUE(a[[#This Row],[Magnesium]])<VALUE(b!AS$3),VALUE(a[[#This Row],[Magnesium]])>VALUE(b!AS$4)),\"Magnesium.  \",\"\"),\"\")&IF(a[[#This Row],[Phosphorus]]<>\"\",IF(OR(VALUE(a[[#This Row],[Phosphorus]])<VALUE(b!AT$3),VALUE(a[[#This Row],[Phosphorus]])>VALUE(b!AT$4)),\"Phosphorus.  \",\"\"),\"\")&IF(a[[#This Row],[Total Cholesterol]]<>\"\",IF(OR(VALUE(a[[#This Row],[Total Cholesterol]])<VALUE(b!V$3),VALUE(a[[#This Row],[Total Cholesterol]])>VALUE(b!V$4)),\"Total Cholesterol.  \",\"\"),\"\")&IF(a[[#This Row],[Triglycerides]]<>\"\",IF(OR(VALUE(a[[#This Row],[Triglycerides]])<VALUE(b!W$3),VALUE(a[[#This Row],[Triglycerides]])>VALUE(b!W$4)),\"Triglycerides.  \",\"\"),\"\")&IF(a[[#This Row],[HDL]]<>\"\",IF(OR(VALUE(a[[#This Row],[HDL]])<VALUE(b!X$3),VALUE(a[[#This Row],[HDL]])>VALUE(b!X$4)),\"HDL.  \",\"\"),\"\")&IF(a[[#This Row],[LDL]]<>\"\",IF(OR(VALUE(a[[#This Row],[LDL]])<VALUE(b!Y$3),VALUE(a[[#This Row],[LDL]])>VALUE(b!Y$4)),\"LDL.  \",\"\"),\"\")","v":""},{"$f":"IF(a[[#This Row],[LDH]]<>\"\",IF(OR(VALUE(a[[#This Row],[LDH]])<VALUE(b!BH$3),VALUE(a[[#This Row],[LDH]])>VALUE(b!BH$4)),\"LDH.  \",\"\"),\"\")&IF(a[[#This Row],[Uric Acid]]<>\"\",IF(OR(VALUE(a[[#This Row],[Uric Acid]])<VALUE(b!AV$3),VALUE(a[[#This Row],[Uric Acid]])>VALUE(b!AV$4)),\"Uric Acid.  \",\"\"),\"\")&IF(a[[#This Row],[PTH]]<>\"\",IF(OR(VALUE(a[[#This Row],[PTH]])<VALUE(b!AU$3),VALUE(a[[#This Row],[PTH]])>VALUE(b!AU$4)),\"PTH.  \",\"\"),\"\")&IF(a[[#This Row],[TSH]]<>\"\",IF(OR(VALUE(a[[#This Row],[TSH]])<VALUE(b!Z$3),VALUE(a[[#This Row],[TSH]])>VALUE(b!Z$4)),\"TSH.  \",\"\"),\"\")&IF(a[[#This Row],[Free T4]]<>\"\",IF(OR(VALUE(a[[#This Row],[Free T4]])<VALUE(b!AY$3),VALUE(a[[#This Row],[Free T4]])>VALUE(b!AY$4)),\"Free T4.  \",\"\"),\"\")&IF(a[[#This Row],[PSA level]]<>\"\",IF(OR(VALUE(a[[#This Row],[PSA level]])<VALUE(b!AA$3),VALUE(a[[#This Row],[PSA level]])>VALUE(b!AA$4)),\"PSA level.  \",\"\"),\"\")&IF(a[[#This Row],[Vitamin D, 25-Hydroxy level]]<>\"\",IF(OR(VALUE(a[[#This Row],[Vitamin D, 25-Hydroxy level]])<VALUE(b!AB$3),VALUE(a[[#This Row],[Vitamin D, 25-Hydroxy level]])>VALUE(b!AB$4)),\"Vitamin D, 25-Hydroxy level.  \",\"\"),\"\")&IF(a[[#This Row],[Iron]]<>\"\",IF(OR(VALUE(a[[#This Row],[Iron]])<VALUE(b!AO$3),VALUE(a[[#This Row],[Iron]])>VALUE(b!AO$4)),\"Iron.  \",\"\"),\"\")&IF(a[[#This Row],[TIBC]]<>\"\",IF(OR(VALUE(a[[#This Row],[TIBC]])<VALUE(b!AP$3),VALUE(a[[#This Row],[TIBC]])>VALUE(b!AP$4)),\"TIBC.  \",\"\"),\"\")&IF(a[[#This Row],[% Saturation]]<>\"\",IF(OR(VALUE(a[[#This Row],[% Saturation]])<VALUE(b!AQ$3),VALUE(a[[#This Row],[% Saturation]])>VALUE(b!AQ$4)),\"% Saturation.  \",\"\"),\"\")&IF(a[[#This Row],[Ferritin]]<>\"\",IF(OR(VALUE(a[[#This Row],[Ferritin]])<VALUE(b!AR$3),VALUE(a[[#This Row],[Ferritin]])>VALUE(b!AR$4)),\"Ferritin.  \",\"\"),\"\")&IF(a[[#This Row],[Vitamin B12 level]]<>\"\",IF(OR(VALUE(a[[#This Row],[Vitamin B12 level]])<VALUE(b!AC$3),VALUE(a[[#This Row],[Vitamin B12 level]])>VALUE(b!AC$4)),\"Vitamin B12 level.  \",\"\"),\"\")&IF(a[[#This Row],[Folate level]]<>\"\",IF(OR(VALUE(a[[#This Row],[Folate level]])<VALUE(b!AD$3),VALUE(a[[#This Row],[Folate level]])>VALUE(b!AD$4)),\"Folate level.  \",\"\"),\"\")&IF(a[[#This Row],[WBC]]<>\"\",IF(OR(VALUE(a[[#This Row],[WBC]])<VALUE(b!Q$3),VALUE(a[[#This Row],[WBC]])>VALUE(b!Q$4)),\"WBC.  \",\"\"),\"\")&IF(a[[#This Row],[Hemoglobin]]<>\"\",IF(OR(VALUE(a[[#This Row],[Hemoglobin]])<VALUE(b!R$3),VALUE(a[[#This Row],[Hemoglobin]])>VALUE(b!R$4)),\"Hemoglobin.  \",\"\"),\"\")&IF(a[[#This Row],[MCV]]<>\"\",IF(OR(VALUE(a[[#This Row],[MCV]])<VALUE(b!S$3),VALUE(a[[#This Row],[MCV]])>VALUE(b!S$4)),\"MCV.  \",\"\"),\"\")&IF(a[[#This Row],[Platelet]]<>\"\",IF(OR(VALUE(a[[#This Row],[Platelet]])<VALUE(b!T$3),VALUE(a[[#This Row],[Platelet]])>VALUE(b!T$4)),\"Platelet.  \",\"\"),\"\")&IF(a[[#This Row],[Erythrocyte Sedimentation Rate]]<>\"\",IF(OR(VALUE(a[[#This Row],[Erythrocyte Sedimentation Rate]])<VALUE(b!AM$3),VALUE(a[[#This Row],[Erythrocyte Sedimentation Rate]])>VALUE(b!AM$4)),\"Erythrocyte Sedimentation Rate.  \",\"\"),\"\")&IF(a[[#This Row],[C-Reactive Protein]]<>\"\",IF(OR(VALUE(a[[#This Row],[C-Reactive Protein]])<VALUE(b!AN$3),VALUE(a[[#This Row],[C-Reactive Protein]])>VALUE(b!AN$4)),\"C-Reactive Protein.  \",\"\"),\"\")&IF(a[[#This Row],[Hemoglobin A1c]]<>\"\",IF(OR(VALUE(a[[#This Row],[Hemoglobin A1c]])<VALUE(b!U$3),VALUE(a[[#This Row],[Hemoglobin A1c]])>VALUE(b!U$4)),\"Hemoglobin A1c.  \",\"\"),\"\")&IF(a[[#This Row],[Homocysteine]]<>\"\",IF(OR(VALUE(a[[#This Row],[Homocysteine]])<VALUE(b!AE$3),VALUE(a[[#This Row],[Homocysteine]])>VALUE(b!AE$4)),\"Homocysteine.  \",\"\"),\"\")&IF(a[[#This Row],[Methylmalonic Acid]]<>\"\",IF(OR(VALUE(a[[#This Row],[Methylmalonic Acid]])<VALUE(b!AF$3),VALUE(a[[#This Row],[Methylmalonic Acid]])>VALUE(b!AF$4)),\"Methylmalonic Acid.  \",\"\"),\"\")&IF(a[[#This Row],[AFP, Tumor Marker]]<>\"\",IF(OR(VALUE(a[[#This Row],[AFP, Tumor Marker]])<VALUE(b!BJ$3),VALUE(a[[#This Row],[AFP, Tumor Marker]])>VALUE(b!BJ$4)),\"AFP, Tumor Marker.  \",\"\"),\"\")&IF(a[[#This Row],[Thiamine]]<>\"\",IF(OR(VALUE(a[[#This Row],[Thiamine]])<VALUE(b!AG$3),VALUE(a[[#This Row],[Thiamine]])>VALUE(b!AG$4)),\"Thiamine.  \",\"\"),\"\")&IF(a[[#This Row],[Zinc]]<>\"\",IF(OR(VALUE(a[[#This Row],[Zinc]])<VALUE(b!AH$3),VALUE(a[[#This Row],[Zinc]])>VALUE(b!AH$4)),\"Zinc.  \",\"\"),\"\")&IF(a[[#This Row],[Copper]]<>\"\",IF(OR(VALUE(a[[#This Row],[Copper]])<VALUE(b!AI$3),VALUE(a[[#This Row],[Copper]])>VALUE(b!AI$4)),\"Copper.  \",\"\"),\"\")&IF(a[[#This Row],[Digoxin Level]]<>\"\",IF(OR(VALUE(a[[#This Row],[Digoxin Level]])<VALUE(b!BI$3),VALUE(a[[#This Row],[Digoxin Level]])>VALUE(b!BI$4)),\"Digoxin Level.  \",\"\"),\"\")&IF(a[[#This Row],[Total Valproic Acid Level]]<>\"\",IF(OR(VALUE(a[[#This Row],[Total Valproic Acid Level]])<VALUE(b!BE$3),VALUE(a[[#This Row],[Total Valproic Acid Level]])>VALUE(b!BE$4)),\"Total Valproic Acid Level.  \",\"\"),\"\")&IF(a[[#This Row],[Total Phenytoin Level]]<>\"\",IF(OR(VALUE(a[[#This Row],[Total Phenytoin Level]])<VALUE(b!BF$3),VALUE(a[[#This Row],[Total Phenytoin Level]])>VALUE(b!BF$4)),\"Total Phenytoin Level.  \",\"\"),\"\")&IF(a[[#This Row],[Tacrolimus Level]]<>\"\",IF(OR(VALUE(a[[#This Row],[Tacrolimus Level]])<VALUE(b!BG$3),VALUE(a[[#This Row],[Tacrolimus Level]])>VALUE(b!BG$4)),\"Tacrolimus Level.  \",\"\"),\"\")&IF(a[[#This Row],[CD4 Count]]<>\"\",IF(OR(VALUE(a[[#This Row],[CD4 Count]])<VALUE(b!AL$3),VALUE(a[[#This Row],[CD4 Count]])>VALUE(b!AL$4)),\"CD4 Count.  \",\"\"),\"\")&IF(a[[#This Row],[Urine Microalbumin/Creatinine]]<>\"\",IF(OR(VALUE(a[[#This Row],[Urine Microalbumin/Creatinine]])<VALUE(b!AJ$3),VALUE(a[[#This Row],[Urine Microalbumin/Creatinine]])>VALUE(b!AJ$4)),\"Urine Microalbumin/Creatinine.  \",\"\"),\"\")","v":""},{"$f":"a[[#This Row],[subAbLab A]]&a[[#This Row],[subAbLab B]]","v":""},null,null,null,null,null,null,null,null,null,null,null,null,null,null,null,null,null,null,null,null,null,null,null,null,null,null,null,null,null,null,null,null,null,null,null,null,null,null,null,null,null,null,null,null,null,null,null,null,null,null,null,null,null,null,null,null,null,null,null,null,null,null,null,null,null,null,null,null,null,null,null,null,null,null,null,null,null,null,null,null,null,null,null,null,null,null,null,null,null,null,null,null,null,null,null,null,null,null,null,null,null,null,null,null,null,{"$f":"a[[#Headers],[*]]","v":"*"},{"$f":"a[[#This Row],[Calcium]] + (0.8 * (4-a[[#This Row],[Albumin]]))","v":3.2},{"$f":"LIVERAPRI(a[[#This Row],[AST]],a[[#This Row],[Platelet]])","v":0},{"$f":"LIVERAPRIINTERPRETATION(\"[@APRI])\")","v":"Likely cirrhosis"},{"$f":"\"APRI liver fibrosis calculation using recent AST \" & a[[#This Row],[AST]] & \" and Platelet count of \" &a[[#This Row],[Platelet]]& \" was calculated to be \" & ROUND(a[[#This Row],[APRI]],2) & \", \" & a[[#This Row],[APRI interpretation]]&\".\"","v":"APRI liver fibrosis calculation using recent AST  and Platelet count of  was calculated to be 0, Likely cirrhosis."},{"$f":"LIVERANI(a[[#This Row],[Gender:]],a[[#This Row],[MCV]],a[[#This Row],[AST]],a[[#This Row],[ALT]],a[[#This Row],[Height:  ]],a[[#This Row],[Weight:  ]])","v":{"$error":"#VALUE!"}},{"$f":"LIVERANIPROBABILITY(a[[#This Row],[ANI]])","v":{"$error":"#VALUE!"}},{"$f":"\"Alcohol-associated liver disease to NAFLD Index (ANI) \" & TEXT(a[[#This Row],[ANI]],\"0.00\") & \" indicates \" & TEXT(a[[#This Row],[Probability of Alcoholic Liver Disease]],\"00%\") & \" probability of alcoholic liver disease (versus non-alcoholic liver disease).  \"","v":{"$error":"#VALUE!"}},{"$f":"IF(_xlfn.NUMBERVALUE(a[[#This Row],[Bilirubin, Total]])>3,3,IF(_xlfn.NUMBERVALUE(a[[#This Row],[Bilirubin, Total]])>=2,2,IF(_xlfn.NUMBERVALUE(a[[#This Row],[Bilirubin, Total]])>0,1,\"missing\")))","v":"missing"},{"$f":"IF(_xlfn.NUMBERVALUE(a[[#This Row],[Albumin]])>3.5,1,IF(_xlfn.NUMBERVALUE(a[[#This Row],[Albumin]])>=2.8,2,IF(_xlfn.NUMBERVALUE(a[[#This Row],[Albumin]])>0,3,\"missing\")))","v":"missing"},{"$f":"IF(_xlfn.NUMBERVALUE(a[[#This Row],[INR]])>2.2,3,IF(_xlfn.NUMBERVALUE(a[[#This Row],[INR]])>=1.7,2,IF(_xlfn.NUMBERVALUE(a[[#This Row],[INR]])>0,1,\"missing\")))","v":"missing"},null,null,{"$f":"SUM(a[[#This Row],[Bili Pts]:[Ence Pts]])","v":0},{"$f":"IF(_xlfn.NUMBERVALUE(a[[#This Row],[Child Pugh Score]])>9,\"C\",IF(_xlfn.NUMBERVALUE(a[[#This Row],[Child Pugh Score]])>=7,\"B\",IF(_xlfn.NUMBERVALUE(a[[#This Row],[Child Pugh Score]])>0,\"A\",\"missing\")))","v":"missing"},{"$f":"TENYEARASCVDRISK(a[[#This Row],[Gender:]],a[[#This Row],[Age: ]],a[[#This Row],[Race:]],a[[#This Row],[Current Smoker:]],a[[#This Row],[Diabetes:]],a[[#This Row],[Blood Pressure Treated:]],a[[#This Row],[Total Cholesterol]],a[[#This Row],[HDL]],a[[#This Row],[SBP:]])","v":0},{"$f":"LIFETIMEASCVDRISK(a[[#This Row],[Gender:]],a[[#This Row],[Age: ]],a[[#This Row],[Current Smoker:]],a[[#This Row],[Diabetes:]],a[[#This Row],[Total Cholesterol]],a[[#This Row],[SBP:]])","v":0},{"$f":"IF(OR(_xlfn.NUMBERVALUE(a[[#This Row],[LDL]])>190,a[[#This Row],[10-Year ASCVD]]>7.5%,a[[#This Row],[Lifetime ASCVD Risk]]>39%),\"YES\",\"NO\")","v":"NO"},{"$f":"IF(a[[#This Row],[Statin:]]=\"No\",IF(a[[#This Row],[Statin indicated (LDL>190,10 year ASCVD>7.5%, lifetime ASCVD>39%)]]=\"NO\",\"Statin DOES NOT need to be started because LDL at or below 190 mg/dL, 10 year ASCVD is at or below 7.5%, and lifetime ASCVD is at or below 39%\",\"Statin SHOULD be started because LDL is above 190 mg/dL, 10 year ASCVD is above 7.5%, or lifetime ASCVD is above 39%\"),IF(a[[#This Row],[Statin:]]=\"Yes\",\"Currently on Statin\",\"Error\"))","v":"Error"},{"$f":"a[[#Headers],[*]]","v":"*"},null,null,null,null,null,null,null,null,null,null,null,null,null,null,null,null,null,null,null,null,null,null,null,null,null,null,null,null,null,null,null,null,null,null,null,null,null,null,null,null,null,null,null,null,null,null,null,null,null,null,null,null,null,null,null,null,null,null,null,null,null,null,{"$f":"\"Noteworthy testing:  \"&CHAR(10)&IF(a[[#This Row],[EKG:  ]]<>\"\",a[[#Headers],[EKG:  ]]&a[[#This Row],[EKG:  ]]&\" (\"&TEXT(a[[#This Row],[EKG Date:  ]],\"mm/dd/yyyy\")&\")\"&CHAR(10),\"\")&IF(a[[#This Row],[Holter Monitor:  ]]<>\"\",a[[#Headers],[Holter Monitor:  ]]&a[[#This Row],[Holter Monitor:  ]]&\" (\"&TEXT(a[[#This Row],[Holter Date:  ]],\"mm/dd/yyyy\")&\")\"&CHAR(10),\"\")&IF(a[[#This Row],[Echocardiogram:  ]]<>\"\",a[[#Headers],[Echocardiogram:  ]]&a[[#This Row],[Echocardiogram:  ]]&\" (\"&TEXT(a[[#This Row],[Echocardiogram Date:  ]],\"mm/dd/yyyy\")&\")\"&CHAR(10),\"\")&IF(a[[#This Row],[Cardiac Stress Test:  ]]<>\"\",a[[#Headers],[Cardiac Stress Test:  ]]&a[[#This Row],[Cardiac Stress Test:  ]]&\" (\"&TEXT(a[[#This Row],[Cardiac Stress Test Date:  ]],\"mm/dd/yyyy\")&\")\"&CHAR(10),\"\")&IF(a[[#This Row],[Chest Xray:  ]]<>\"\",a[[#Headers],[Chest Xray:  ]]&a[[#This Row],[Chest Xray:  ]]&\" (\"&TEXT(a[[#This Row],[CXR Date:  ]],\"mm/dd/yyyy\")&\")\"&CHAR(10),\"\")&IF(a[[#This Row],[Xray:  ]]<>\"\",a[[#Headers],[Xray:  ]]&a[[#This Row],[Xray:  ]]&\" (\"&TEXT(a[[#This Row],[Xray Date]],\"mm/dd/yyyy\")&\")\"&CHAR(10),\"\")&IF(a[[#This Row],[CT:  ]]<>\"\",a[[#Headers],[CT:  ]]&a[[#This Row],[CT:  ]]&\" (\"&TEXT(a[[#This Row],[CT Date:  ]],\"mm/dd/yyyy\")&\")\"&CHAR(10),\"\")&IF(a[[#This Row],[MRI:  ]]<>\"\",a[[#Headers],[MRI:  ]]&a[[#This Row],[MRI:  ]]&\" (\"&TEXT(a[[#This Row],[MRI Date:  ]],\"mm/dd/yyyy\")&\")\"&CHAR(10),\"\")&IF(a[[#This Row],[EMG:  ]]<>\"\",a[[#Headers],[EMG:  ]]&a[[#This Row],[EMG:  ]]&\" (\"&TEXT(a[[#This Row],[EMG Date:  ]],\"mm/dd/yyyy\")&\")\"&CHAR(10),\"\")&IF(a[[#This Row],[EEG:  ]]<>\"\",a[[#Headers],[EEG:  ]]&a[[#This Row],[EEG:  ]]&\" (\"&TEXT(a[[#This Row],[EEG Date:  ]],\"mm/dd/yyyy\")&\")\"&CHAR(10),\"\")&IF(a[[#This Row],[Pulmonary Function Testing:  ]]<>\"\",a[[#Headers],[Pulmonary Function Testing:  ]]&a[[#This Row],[Pulmonary Function Testing:  ]]&\" (\"&TEXT(a[[#This Row],[Pulmonary Testing Date:  ]],\"mm/dd/yyyy\")&\")\"&CHAR(10),\"\")&IF(a[[#This Row],[Sleep Apnea Testing:  ]]<>\"\",a[[#Headers],[Sleep Apnea Testing:  ]]&a[[#This Row],[Sleep Apnea Testing:  ]]&\" (\"&TEXT(a[[#This Row],[Sleep Test Date:  ]],\"mm/dd/yyyy\")&\")\"&CHAR(10),\"\")&IF(a[[#This Row],[Ultrasound:  ]]<>\"\",a[[#Headers],[Ultrasound:  ]]&a[[#This Row],[Ultrasound:  ]]&\" (\"&TEXT(a[[#This Row],[Ultrasound Date:  ]],\"mm/dd/yyyy\")&\")\"&CHAR(10),\"\")&IF(a[[#This Row],[Renal Ultrasound:  ]]<>\"\",a[[#Headers],[Renal Ultrasound:  ]]&a[[#This Row],[Renal Ultrasound:  ]]&\" (\"&TEXT(a[[#This Row],[Renal Ultrasound Date:  ]],\"mm/dd/yyyy\")&\")\"&CHAR(10),\"\")&IF(a[[#This Row],[Liver Ultrasound:  ]]<>\"\",a[[#Headers],[Liver Ultrasound:  ]]&a[[#This Row],[Liver Ultrasound:  ]]&\" (\"&TEXT(a[[#This Row],[Liver Ultrasound Date:  ]],\"mm/dd/yyyy\")&\")\"&CHAR(10),\"\")&IF(a[[#This Row],[AAA screen (male smokers 65+):  ]]<>\"\",a[[#Headers],[AAA screen (male smokers 65+):  ]]&a[[#This Row],[AAA screen (male smokers 65+):  ]]&\" (\"&TEXT(a[[#This Row],[AAA Date:  ]],\"mm/dd/yyyy\")&\")\"&CHAR(10),\"\")&IF(a[[#This Row],[Colon cancer screening (45+):  ]]<>\"\",a[[#Headers],[Colon cancer screening (45+):  ]]&a[[#This Row],[Colon cancer screening (45+):  ]]&\" (\"&TEXT(a[[#This Row],[Colon cancer screening date:  ]],\"mm/dd/yyyy\")&\")\"&CHAR(10),\"\")&IF(a[[#This Row],[Lung cancer screening (55-79):  ]]<>\"\",a[[#Headers],[Lung cancer screening (55-79):  ]]&a[[#This Row],[Lung cancer screening (55-79):  ]]&\" (\"&TEXT(a[[#This Row],[Lung cancer screening date:  ]],\"mm/dd/yyyy\")&\")\"&CHAR(10),\"\")&IF(a[[#This Row],[Dental Exam Date:  ]]<>\"\",a[[#This Row],[Dental Exam Date:  ]]&TEXT(a[[#This Row],[Dental Exam Date:  ]],\"mm/dd/yyyy\")&\")\"&CHAR(10),\"\")&IF(a[[#This Row],[Foot Exam:  ]]<>\"\",a[[#Headers],[Foot Exam:  ]]&a[[#This Row],[Foot Exam:  ]]&\" (\"&TEXT(a[[#This Row],[Foot Exam Date:  ]],\"mm/dd/yyyy\")&\")\"&CHAR(10),\"\")&IF(a[[#This Row],[Fundoscopy:  ]]<>\"\",a[[#Headers],[Fundoscopy:  ]]&a[[#This Row],[Fundoscopy:  ]]&\" (\"&TEXT(a[[#This Row],[Fundoscopy Date:  ]],\"mm/dd/yyyy\")&\")\"&CHAR(10),\"\")&IF(a[[#This Row],[DEXA bone density:  ]]<>\"\",a[[#Headers],[DEXA bone density:  ]]&a[[#This Row],[DEXA bone density:  ]]&\" (\"&TEXT(a[[#This Row],[DEXA Date:  ]],\"mm/dd/yyyy\")&\")\"&CHAR(10),\"\")&IF(a[[#This Row],[PPD (mm):  ]]<>\"\",a[[#Headers],[PPD (mm):  ]]&a[[#This Row],[PPD (mm):  ]]&\" (\"&TEXT(a[[#This Row],[PPD Date:  ]],\"mm/dd/yyyy\")&\")\"&CHAR(10),\"\")&IF(a[[#This Row],[Hep B Serology:  ]]<>\"\",a[[#Headers],[Hep B Serology:  ]]&a[[#This Row],[Hep B Serology:  ]]&\" \"&b!BD192&\" (\"&TEXT(a[[#This Row],[Hep B serology Date:  ]],\"mm/dd/yyyy\")&\")\"&CHAR(10),\"\")&IF(a[[#This Row],[Hep C Serology:  ]]<>\"\",a[[#Headers],[Hep C Serology:  ]]&a[[#This Row],[Hep C Serology:  ]]&\" \"&b!AZ192&\" (\"&TEXT(a[[#This Row],[Hep C Serology Date:  ]],\"mm/dd/yyyy\")&\")\"&CHAR(10),\"\")&IF(a[[#This Row],[HIV:  ]]<>\"\",a[[#Headers],[HIV:  ]]&a[[#This Row],[HIV:  ]]&\" (\"&TEXT(a[[#This Row],[HIV Date:]],\"mm/dd/yyyy\")&\")\"&CHAR(10),\"\")&IF(a[[#This Row],[Meningococcal series completion date:  ]]<>\"\",a[[#Headers],[Meningococcal series completion date:  ]]&TEXT(a[[#This Row],[Meningococcal series completion date:  ]],\"mm/dd/yyyy\")&\")\"&CHAR(10),\"\")&IF(a[[#This Row],[Influenza (annual):  ]]<>\"\",a[[#Headers],[Influenza (annual):  ]]&TEXT(a[[#This Row],[Influenza (annual):  ]],\"mm/dd/yyyy\")&\")\"&CHAR(10),\"\")&IF(a[[#This Row],[Hepatitis B series completion date:  ]]<>\"\",a[[#Headers],[Hepatitis B series completion date:  ]]&TEXT(a[[#This Row],[Hepatitis B series completion date:  ]],\"mm/dd/yyyy\")&\")\"&CHAR(10),\"\")&IF(a[[#This Row],[MMR series completion date:  ]]<>\"\",a[[#Headers],[MMR series completion date:  ]]&TEXT(a[[#This Row],[MMR series completion date:  ]],\"mm/dd/yyyy\")&\")\"&CHAR(10),\"\")&IF(a[[#This Row],[Tdap (every 10 years):  ]]<>\"\",a[[#Headers],[Tdap (every 10 years):  ]]&TEXT(a[[#This Row],[Tdap (every 10 years):  ]],\"mm/dd/yyyy\")&\")\"&CHAR(10),\"\")&IF(a[[#This Row],[Pneumovax 13 (CKD or immune-suppressed):  ]]<>\"\",a[[#Headers],[Pneumovax 13 (CKD or immune-suppressed):  ]]&TEXT(a[[#This Row],[Pneumovax 13 (CKD or immune-suppressed):  ]],\"mm/dd/yyyy\")&\")\"&CHAR(10),\"\")&IF(a[[#This Row],[Pneumovax 23 (age 65, CHF, lung disease, DM, liver disease):  ]]<>\"\",a[[#Headers],[Pneumovax 23 (age 65, CHF, lung disease, DM, liver disease):  ]]&TEXT(a[[#This Row],[Pneumovax 23 (age 65, CHF, lung disease, DM, liver disease):  ]],\"mm/dd/yyyy\")&\")\"&CHAR(10),\"\")&IF(a[[#This Row],[Recombinant Zoster (age 50 or immune-suppressed):  ]]<>\"\",a[[#Headers],[Recombinant Zoster (age 50 or immune-suppressed):  ]]&TEXT(a[[#This Row],[Recombinant Zoster (age 50 or immune-suppressed):  ]],\"mm/dd/yyyy\")&\")\"&CHAR(10),\"\")&IF(a[[#This Row],[Other Procedure or Test:  ]]<>\"\",a[[#Headers],[Other Procedure or Test:  ]]&a[[#This Row],[Other Procedure or Test:  ]]&CHAR(10),\"\")","v":"Noteworthy testing:  \n"}]
[{"$f":"a[[#Headers],[*]]","v":"*"},null,null,null,{"$f":"INT(((TODAY())-a[[#This Row],[DOB:]])/365.25)","v":124},null,null,null,{"$f":"LEFT(a[[#This Row],[Blood Pressure: ]],FIND(\"/\",a[[#This Row],[Blood Pressure: ]])-1)","v":{"$error":"#VALUE!"}},{"$f":"RIGHT(a[[#This Row],[Blood Pressure: ]],LEN(a[[#This Row],[Blood Pressure: ]])-FIND(\"/\",a[[#This Row],[Blood Pressure: ]]))","v":{"$error":"#VALUE!"}},null,null,{"$f":"(a[[#This Row],[Weight:  ]]/(a[[#This Row],[Height:  ]]^2))*703","v":{"$error":"#DIV/0!"}},null,null,null,null,{"$f":"a[[#Headers],[*]]","v":"*"},null,null,null,null,null,null,null,null,null,null,null,null,null,null,null,null,null,null,null,null,null,null,null,{"$f":"IF(a[[#This Row],['# Co-managed:  ]]<>\"\",a[[#Headers],['# Co-managed:  ]]&a[[#This Row],['# Co-managed:  ]]&CHAR(10),\"\")&IF(a[[#This Row],['# Weight/Diet/Activity:  ]]<>\"\",a[[#Headers],['# Weight/Diet/Activity:  ]]&a[[#This Row],['# Weight/Diet/Activity:  ]]&CHAR(10),\"\")&IF(a[[#This Row],['# Cholesterol/ASCVD risk:  ]]<>\"\",a[[#Headers],['# Cholesterol/ASCVD risk:  ]]&a[[#This Row],['# Cholesterol/ASCVD risk:  ]]&CHAR(10),\"\")&IF(a[[#This Row],['# Blood pressure/Shortness of breath/Lower extremity swelling:  ]]<>\"\",a[[#Headers],['# Blood pressure/Shortness of breath/Lower extremity swelling:  ]]&a[[#This Row],['# Blood pressure/Shortness of breath/Lower extremity swelling:  ]]&CHAR(10),\"\")&IF(a[[#This Row],['# Dizziness/Lightheadedness/Vertigo/Falls:  ]]<>\"\",a[[#Headers],['# Dizziness/Lightheadedness/Vertigo/Falls:  ]]&a[[#This Row],['# Dizziness/Lightheadedness/Vertigo/Falls:  ]]&CHAR(10),\"\")&IF(a[[#This Row],['# COPD/Asthma:  ]]<>\"\",a[[#Headers],['# COPD/Asthma:  ]]&a[[#This Row],['# COPD/Asthma:  ]]&CHAR(10),\"\")&IF(a[[#This Row],['# Sleep apnea:  ]]<>\"\",a[[#Headers],['# Sleep apnea:  ]]&a[[#This Row],['# Sleep apnea:  ]]&CHAR(10),\"\")&IF(a[[#This Row],['# Chronic pain/Arthritis:  ]]<>\"\",a[[#Headers],['# Chronic pain/Arthritis:  ]]&a[[#This Row],['# Chronic pain/Arthritis:  ]]&CHAR(10),\"\")&IF(a[[#This Row],['# Gastroesophageal reflux/Constipation/Melena/Hematochezia:  ]]<>\"\",a[[#Headers],['# Gastroesophageal reflux/Constipation/Melena/Hematochezia:  ]]&a[[#This Row],['# Gastroesophageal reflux/Constipation/Melena/Hematochezia:  ]]&CHAR(10),\"\")&IF(a[[#This Row],['# Urinary symptoms:  ]]<>\"\",a[[#Headers],['# Urinary symptoms:  ]]&a[[#This Row],['# Urinary symptoms:  ]]&CHAR(10),\"\")&IF(a[[#This Row],['# Last menstrual period/Pregnancy:  ]]<>\"\",a[[#Headers],['# Last menstrual period/Pregnancy:  ]]&a[[#This Row],['# Last menstrual period/Pregnancy:  ]]&CHAR(10),\"\")&IF(a[[#This Row],['# Mood/Depression/Anxiety:  ]]<>\"\",a[[#Headers],['# Mood/Depression/Anxiety:  ]]&a[[#This Row],['# Mood/Depression/Anxiety:  ]]&CHAR(10),\"\")&IF(a[[#This Row],['# Vision:  ]]<>\"\",a[[#Headers],['# Vision:  ]]&a[[#This Row],['# Vision:  ]]&CHAR(10),\"\")&IF(a[[#This Row],['# Hearing:  ]]<>\"\",a[[#Headers],['# Hearing:  ]]&a[[#This Row],['# Hearing:  ]]&CHAR(10),\"\")&IF(a[[#This Row],['# Dental:  ]]<>\"\",a[[#Headers],['# Dental:  ]]&a[[#This Row],['# Dental:  ]]&CHAR(10),\"\")&IF(a[[#This Row],['# Surgeries/Procedures/Implants/Metal:  ]]<>\"\",a[[#Headers],['# Surgeries/Procedures/Implants/Metal:  ]]&a[[#This Row],['# Surgeries/Procedures/Implants/Metal:  ]]&CHAR(10),\"\")&IF(a[[#This Row],['# Alcohol:  ]]<>\"\",a[[#Headers],['# Alcohol:  ]]&a[[#This Row],['# Alcohol:  ]]&CHAR(10),\"\")&IF(a[[#This Row],['# Tobacco:  ]]<>\"\",a[[#Headers],['# Tobacco:  ]]&a[[#This Row],['# Tobacco:  ]]&CHAR(10),\"\")&IF(a[[#This Row],['# Recreational drugs:  ]]<>\"\",a[[#Headers],['# Recreational drugs:  ]]&a[[#This Row],['# Recreational drugs:  ]]&CHAR(10),\"\")&IF(a[[#This Row],['# Surgeries/Procedures/Implants/Metal:  ]]<>\"\",a[[#Headers],['# Surgeries/Procedures/Implants/Metal:  ]]&a[[#This Row],['# Surgeries/Procedures/Implants/Metal:  ]]&CHAR(10),\"\")&IF(a[[#This Row],['# Family history:  ]]<>\"\",a[[#Headers],['# Family history:  ]]&a[[#This Row],['# Family history:  ]]&CHAR(10),\"\")&IF(a[[#This Row],['# Tobacco:  ]]<>\"\",a[[#Headers],['# Tobacco:  ]]&a[[#This Row],['# Tobacco:  ]]&CHAR(10),\"\")&IF(a[[#This Row],['# ADLs/IADLs:  ]]<>\"\",a[[#Headers],['# ADLs/IADLs:  ]]&a[[#This Row],['# ADLs/IADLs:  ]]&CHAR(10),\"\")&IF(a[[#This Row],['# Other active issues:  ]]<>\"\",a[[#Headers],['# Other active issues:  ]]&a[[#This Row],['# Other active issues:  ]]&CHAR(10),\"\")&IF(a[[#This Row],['# Other chronic issues:  ]]<>\"\",a[[#Headers],['# Other chronic issues:  ]]&a[[#This Row],['# Other chronic issues:  ]]&CHAR(10),\"\")","v":""},{"$f":"a[[#Headers],[*]]","v":"*"},{"$f":"IF(AND(a[[#This Row],[Sodium]]<>\"\",a[[#This Row],[Potassium]]<>\"\",a[[#This Row],[Chloride]]<>\"\",a[[#This Row],[Bicarbonate]]<>\"\",a[[#This Row],[BUN]]<>\"\",a[[#This Row],[Creatinine]]<>\"\",a[[#This Row],[Calcium]]<>\"\",a[[#This Row],[Glucose]]<>\"\",a[[#This Row],[BMPD]]<>\"\"),\"Basic chemistry panel on \"&TEXT(a[[#This Row],[BMPD]],\"mmmm d, yyyy\")&\" showed \"&a[[#Headers],[Sodium]]&\" \"&a[[#This Row],[Sodium]]&\" \"&b!B$2&\", \"&a[[#Headers],[Potassium]]&\" \"&a[[#This Row],[Potassium]]&\" \"&b!C$2&\", \"&a[[#Headers],[Chloride]]&\" \"&a[[#This Row],[Chloride]]&\" \"&b!D$2&\", \"&a[[#Headers],[Bicarbonate]]&\" \"&a[[#This Row],[Bicarbonate]]&\" \"&b!E$2&\", \"&a[[#Headers],[BUN]]&\" \"&a[[#This Row],[BUN]]&\" \"&b!F$2&\", \"&a[[#Headers],[Creatinine]]&\" \"&a[[#This Row],[Creatinine]]&\" \"&b!G$2&\", \"&a[[#Headers],[Calcium]]&\" \"&a[[#This Row],[Calcium]]&\" \"&b!H$2&\", and \"&a[[#Headers],[Glucose]]&\" \"&a[[#This Row],[Glucose]]&\" \"&b!I$2,\"No BMP found\")&IF(AND(a[[#This Row],[Cystatin C]]<>\"\",a[[#This Row],[CysD]]<>\"\"),\". On \"&TEXT(a[[#This Row],[CysD]],\"mmmm d, yyyy\")&\" \"&a[[#Headers],[Cystatin C]]&\" was \"&a[[#This Row],[Cystatin C]]&\" \"&b!AK$2,\"\")&\".  On \"&TEXT(a[[#This Row],[CMPD]],\"mmmm d, yyyy\")&\" labs included \"&a[[#Headers],[AST]]&\" \"&a[[#This Row],[AST]]&\" \"&b!J$2&\", \"&a[[#Headers],[ALT]]&\" \"&a[[#This Row],[ALT]]&\" \"&b!K$2&\", \"&a[[#Headers],[Alkaline Phosphatase]]&\" \"&a[[#This Row],[Alkaline Phosphatase]]&\" \"&b!L$2&\", \"&a[[#Headers],[Bilirubin, Total]]&\" \"&a[[#This Row],[Bilirubin, Total]]&\" \"&b!M$2&\", \"&a[[#Headers],[Total Protein]]&\" \"&a[[#This Row],[Total Protein]]&\" \"&b!N$2&\", \"&a[[#Headers],[Albumin]]&\" \"&a[[#This Row],[Albumin]]&\" \"&b!O$2&\", and \"&a[[#Headers],[Globulin]]&\" \"&a[[#This Row],[Globulin]]&\" \"&b!P$2&IF(AND(a[[#This Row],[LDH]]<>\"\",a[[#This Row],[LDHD]]<>\"\"),\". On \"&TEXT(a[[#This Row],[LDHD]],\"mmmm d, yyyy\")&\" \"&a[[#Headers],[LDH]]&\" was \"&a[[#This Row],[LDH]]&\" \"&b!BH$2,\"\")&IF(AND(a[[#This Row],[Magnesium]]<>\"\",a[[#This Row],[MagD]]<>\"\"),\". On \"&TEXT(a[[#This Row],[MagD]],\"mmmm d, yyyy\")&\" \"&a[[#Headers],[Magnesium]]&\" was \"&a[[#This Row],[Magnesium]]&\" \"&b!AS$2,\"\")&IF(AND(a[[#This Row],[Phosphorus]]<>\"\",a[[#This Row],[PhosD]]<>\"\"),\". On \"&TEXT(a[[#This Row],[PhosD]],\"mmmm d, yyyy\")&\" \"&a[[#Headers],[Phosphorus]]&\" was \"&a[[#This Row],[Phosphorus]]&\" \"&b!AT$2,\"\")&IF(AND(a[[#This Row],[Vitamin D, 25-Hydroxy level]]<>\"\",a[[#This Row],[VitDD]]<>\"\"),\".  He had a \"&a[[#Headers],[Vitamin D, 25-Hydroxy level]]&\" of \"&a[[#This Row],[Vitamin D, 25-Hydroxy level]]&\" \"&b!AB$2&\" on \"&TEXT(a[[#This Row],[VitDD]],\"mmmm d, yyyy\"),\"\")&IF(AND(a[[#This Row],[PTH]]<>\"\",a[[#This Row],[PTHD]]<>\"\"),\". On \"&TEXT(a[[#This Row],[PTHD]],\"mmmm d, yyyy\")&\" \"&a[[#Headers],[PTH]]&\" was \"&a[[#This Row],[PTH]]&\" \"&b!AU$2,\"\")&IF(AND(a[[#This Row],[Uric Acid]]<>\"\",a[[#This Row],[UricD]]<>\"\"),\". On \"&TEXT(a[[#This Row],[UricD]],\"mmmm d, yyyy\")&\" \"&a[[#Headers],[Uric Acid]]&\" was \"&a[[#This Row],[Uric Acid]]&\" \"&b!AV$2,\"\")&IF(AND(a[[#This Row],[Amylase]]<>\"\",a[[#This Row],[AmyD]]<>\"\"),\". On \"&TEXT(a[[#This Row],[AmyD]],\"mmmm d, yyyy\")&\" \"&a[[#Headers],[Amylase]]&\" was \"&a[[#This Row],[Amylase]]&\" \"&b!AW$2,\"\")&IF(AND(a[[#This Row],[Lipase]]<>\"\",a[[#This Row],[LipaD]]<>\"\"),\". On \"&TEXT(a[[#This Row],[LipaD]],\"mmmm d, yyyy\")&\" \"&BQ$1&\" was \"&a[[#This Row],[Lipase]]&\" \"&b!AX$2,\"\")&IF(AND(a[[#This Row],[AFP, Tumor Marker]]<>\"\",a[[#This Row],[AFPD]]<>\"\"),\". On \"&TEXT(a[[#This Row],[AFPD]],\"mmmm d, yyyy\")&\" \"&a[[#Headers],[AFP, Tumor Marker]]&\" was \"&a[[#This Row],[AFP, Tumor Marker]]&\" \"&b!BJ$2,\"\")&IF(AND(a[[#This Row],[WBC]]<>\"\",a[[#This Row],[Hemoglobin]]<>\"\",a[[#This Row],[MCV]]<>\"\",a[[#This Row],[Platelet]]<>\"\",a[[#This Row],[CBCD]]<>\"\"),\".  On \"&TEXT(a[[#This Row],[CBCD]],\"mmmm d, yyyy\")&\" a complete blood count had \"&a[[#Headers],[WBC]]&\" \"&a[[#This Row],[WBC]]&\" \"&b!Q$2&\", \"&a[[#Headers],[Hemoglobin]]&\" \"&a[[#This Row],[Hemoglobin]]&\" \"&b!R$2&\", \"&a[[#Headers],[MCV]]&\" \"&a[[#This Row],[MCV]]&\" \"&b!S$2&\", \"&a[[#Headers],[Platelet]]&\" \"&a[[#This Row],[Platelet]]&\" \"&b!T$2,\".  No CBC found\")&IF(AND(a[[#This Row],[Erythrocyte Sedimentation Rate]]<>\"\",a[[#This Row],[ESRD]]<>\"\"),\". On \"&TEXT(a[[#This Row],[ESRD]],\"mmmm d, yyyy\")&\" \"&a[[#Headers],[Erythrocyte Sedimentation Rate]]&\" was \"&a[[#This Row],[Erythrocyte Sedimentation Rate]]&\" \"&b!AM$2,\"\")&IF(AND(a[[#This Row],[C-Reactive Protein]]<>\"\",a[[#This Row],[CRPD]]<>\"\"),\". On \"&TEXT(a[[#This Row],[CRPD]],\"mmmm d, yyyy\")&\" \"&a[[#Headers],[C-Reactive Protein]]&\" was \"&a[[#This Row],[C-Reactive Protein]]&\" \"&b!AN$2,\"\")&IF(AND(a[[#This Row],[Hepatitis B Viral Load]]<>\"\",a[[#This Row],[HBVD]]<>\"\"),\". On \"&TEXT(a[[#This Row],[HBVD]],\"mmmm d, yyyy\")&\" \"&a[[#Headers],[Hepatitis B Viral Load]]&\" was \"&a[[#This Row],[Hepatitis B Viral Load]]&\" \"&b!BB$2,\"\")&IF(AND(a[[#This Row],[Hepatitis C Viral Load]]<>\"\",a[[#This Row],[HCVD]]<>\"\"),\". On \"&TEXT(a[[#This Row],[HCVD]],\"mmmm d, yyyy\")&\" \"&a[[#Headers],[Hepatitis C Viral Load]]&\" was \"&a[[#This Row],[Hepatitis C Viral Load]]&\" \"&b!BA$2,\"\")&IF(AND(a[[#This Row],[HIV Viral Load]]<>\"\",a[[#This Row],[HIVD]]<>\"\"),\". On \"&TEXT(a[[#This Row],[HIVD]],\"mmmm d, yyyy\")&\" \"&a[[#Headers],[HIV Viral Load]]&\" was \"&a[[#This Row],[HIV Viral Load]]&\" \"&b!BC$2,\"\")&IF(AND(a[[#This Row],[CD4 Count]]<>\"\",a[[#This Row],[CD4D]]<>\"\"),\". On \"&TEXT(a[[#This Row],[CD4D]],\"mmmm d, yyyy\")&\" \"&a[[#Headers],[CD4 Count]]&\" was \"&a[[#This Row],[CD4 Count]]&\" \"&b!AL$2,\"\")&IF(AND(a[[#This Row],[Iron]]<>\"\",a[[#This Row],[TIBC]]<>\"\",a[[#This Row],[% Saturation]]<>\"\",a[[#This Row],[IronD]]<>\"\"),\". Iron Testing: On \"&TEXT(a[[#This Row],[IronD]],\"mmmm d, yyyy\")&\" \"&a[[#Headers],[Iron]]&\" was \"&a[[#This Row],[Iron]]&\" \"&b!AO$2&\", \"&a[[#Headers],[TIBC]]&\" was \"&a[[#This Row],[TIBC]]&\" \"&b!AP$2&\", \"&a[[#Headers],[% Saturation]]&\" was \"&a[[#This Row],[% Saturation]]&\" \"&b!AQ$2,\"\")&IF(AND(a[[#This Row],[Ferritin]]<>\"\",a[[#This Row],[FerrD]]<>\"\"),\". On \"&TEXT(a[[#This Row],[FerrD]],\"mmmm d, yyyy\")&\" \"&a[[#Headers],[Ferritin]]&\" was \"&a[[#This Row],[Ferritin]]&\" \"&b!AR$2,\"\")&IF(AND(a[[#This Row],[Vitamin B12 level]]<>\"\",a[[#This Row],[VitB12D]]<>\"\"),\". On \"&TEXT(a[[#This Row],[VitB12D]],\"mmmm d, yyyy\")&\" \"&a[[#Headers],[Vitamin B12 level]]&\" was \"&a[[#This Row],[Vitamin B12 level]]&\" \"&b!AC$2,\"\")&IF(AND(a[[#This Row],[Folate level]]<>\"\",a[[#This Row],[FolaD]]<>\"\"),\". On \"&TEXT(a[[#This Row],[FolaD]],\"mmmm d, yyyy\")&\" \"&a[[#Headers],[Folate level]]&\" was \"&a[[#This Row],[Folate level]]&\" \"&b!AD$2,\"\")&IF(AND(a[[#This Row],[Homocysteine]]<>\"\",a[[#This Row],[HomoD]]<>\"\"),\". On \"&TEXT(a[[#This Row],[HomoD]],\"mmmm d, yyyy\")&\" \"&a[[#Headers],[Homocysteine]]&\" was \"&a[[#This Row],[Homocysteine]]&\" \"&b!AE$2,\"\")&IF(AND(a[[#This Row],[Methylmalonic Acid]]<>\"\",a[[#This Row],[MethD]]<>\"\"),\". On \"&TEXT(a[[#This Row],[MethD]],\"mmmm d, yyyy\")&\" \"&a[[#Headers],[Methylmalonic Acid]]&\" was \"&a[[#This Row],[Methylmalonic Acid]]&\" \"&b!AF$2,\"\")&IF(AND(a[[#This Row],[Thiamine]]<>\"\",a[[#This Row],[ThiaD]]<>\"\"),\". On \"&TEXT(a[[#This Row],[ThiaD]],\"mmmm d, yyyy\")&\" \"&a[[#Headers],[Thiamine]]&\" was \"&a[[#This Row],[Thiamine]]&\" \"&b!AG$2,\"\")&IF(AND(a[[#This Row],[Zinc]]<>\"\",a[[#This Row],[ZincD]]<>\"\"),\". On \"&TEXT(a[[#This Row],[ZincD]],\"mmmm d, yyyy\")&\" \"&a[[#Headers],[Zinc]]&\" was \"&a[[#This Row],[Zinc]]&\" \"&b!AH$2,\"\")&IF(AND(a[[#This Row],[Copper]]<>\"\",a[[#This Row],[CopD]]<>\"\"),\". On \"&TEXT(a[[#This Row],[CopD]],\"mmmm d, yyyy\")&\" \"&a[[#Headers],[Copper]]&\" was \"&a[[#This Row],[Copper]]&\" \"&b!AI$2,\"\")&IF(AND(a[[#This Row],[LipiD]]<>\"\",a[[#This Row],[Total Cholesterol]]<>\"\",a[[#This Row],[Triglycerides]]<>\"\",a[[#This Row],[HDL]]<>\"\",a[[#This Row],[LDL]]<>\"\"),\".  On \"&TEXT(a[[#This Row],[LipiD]],\"mmmm d, yyyy\")&\" fasting lipids included \"&a[[#Headers],[Total Cholesterol]]&\" \"&a[[#This Row],[Total Cholesterol]]&\" \"&b!V$2&\", \"&a[[#Headers],[Triglycerides]]&\" \"&a[[#This Row],[Triglycerides]]&\" \"&b!W$2&\", \"&a[[#Headers],[HDL]]&\" \"&a[[#This Row],[HDL]]&\" \"&b!X$2&\", and \"&a[[#Headers],[LDL]]&\" \"&a[[#This Row],[LDL]]&\" \"&b!Y$2,\"\")","v":"No BMP found.  On January 0, 1900 labs included AST  (N<=34), ALT  (N<=55), Alkaline Phosphatase  (N 40-150), Bilirubin, Total  (N 0.2-1.2), Total Protein  (N 6.0-8.3), Albumin  (N 3.5-5.2), and Globulin  (N 2.0-3.7).  No CBC found"},{"$f":"IF(AND(a[[#This Row],[A1cD]]<>\"\",a[[#This Row],[Hemoglobin A1c]]<>\"\"),\".  On \"&TEXT(a[[#This Row],[A1cD]],\"mmmm d, yyyy\")&\" \"&a[[#Headers],[Hemoglobin A1c]]&\" was \"&a[[#This Row],[Hemoglobin A1c]]&\" \"&b!U$2,\"\")&IF(AND(a[[#This Row],[TSH]]<>\"\",a[[#This Row],[TSHD]]<>\"\"),\".  Thyroid testing:  \"&a[[#Headers],[TSH]]&\" was \"&a[[#This Row],[TSH]]&\" \"&b!Z$2&\" on \"&TEXT(a[[#This Row],[TSHD]],\"mmmm d, yyyy\"),\"\")&IF(AND(a[[#This Row],[Free T4]]<>\"\",a[[#This Row],[FT4D]]<>\"\"),\".  On \"&TEXT(a[[#This Row],[FT4D]],\"mmmm d, yyyy\")&\" \"&a[[#Headers],[Free T4]]&\" was \"&a[[#This Row],[Free T4]]&\" \"&b!AY$2,\"\")&IF(AND(a[[#This Row],[PSA level]]<>\"\",a[[#This Row],[PSAD]]<>\"\"),\". Prostate: On \"&TEXT(a[[#This Row],[PSAD]],\"mmmm d, yyyy\")&\" \"&a[[#Headers],[PSA level]]&\" was \"&a[[#This Row],[PSA level]]&\" \"&b!AA$2,\"\")&IF(AND(a[[#This Row],[Urine Microalbumin/Creatinine]]<>\"\",a[[#This Row],[MACD]]<>\"\"),\".  On \"&TEXT(a[[#This Row],[MACD]], \"mmmm d, yyyy\")&\" \"&a[[#Headers],[Urine Microalbumin/Creatinine]]&\" was \"&a[[#This Row],[Urine Microalbumin/Creatinine]]&\" \"&b!AJ$2,\"\")&IF(AND(a[[#This Row],[other urine testing]]<>\"\",a[[#This Row],[OthUD]]<>\"\"),\".  On \"&TEXT(a[[#This Row],[OthUD]], \"mmmm d, yyyy\")&\" \"&a[[#Headers],[other urine testing]]&\" was notable for \"&a[[#This Row],[other urine testing]],\"\")&IF(AND(a[[#This Row],[other lab testing]]<>\"\",a[[#This Row],[OthLD]]<>\"\"),\".  On \"&TEXT(a[[#This Row],[OthLD]], \"mmmm d, yyyy\")&\" \"&a[[#Headers],[other lab testing]]&\" was notable for \"&a[[#This Row],[other lab testing]],\"\")&IF(AND(a[[#This Row],[additional lab testing]]<>\"\",a[[#This Row],[AddLD]]<>\"\"),\".  On \"&TEXT(a[[#This Row],[AddLD]], \"mmmm d, yyyy\")&\" \"&a[[#Headers],[additional lab testing]]&\" was notable for \"&a[[#This Row],[additional lab testing]],\"\")&IF(AND(a[[#This Row],[Total Valproic Acid Level]]<>\"\",a[[#This Row],[ValpD]]<>\"\"),\".  On \"&TEXT(a[[#This Row],[ValpD]],\"mmmm d, yyyy\")&\" \"&a[[#Headers],[Total Valproic Acid Level]]&\" was \"&a[[#This Row],[Total Valproic Acid Level]]&\" \"&b!BE$2,\"\")&IF(AND(a[[#This Row],[Total Phenytoin Level]]<>\"\",a[[#This Row],[PhenD]]<>\"\"),\".  On \"&TEXT(a[[#This Row],[PhenD]],\"mmmm d, yyyy\")&\" \"&a[[#Headers],[Total Phenytoin Level]]&\" was \"&a[[#This Row],[Total Phenytoin Level]]&\" \"&b!BF$2,\"\")&IF(AND(a[[#This Row],[Tacrolimus Level]]<>\"\",a[[#This Row],[TacrD]]<>\"\"),\".  On \"&TEXT(a[[#This Row],[TacrD]],\"mmmm d, yyyy\")&\" \"&a[[#Headers],[Tacrolimus Level]]&\" was \"&a[[#This Row],[Tacrolimus Level]]&\" \"&b!BG$2,\"\")&IF(AND(a[[#This Row],[Digoxin Level]]<>\"\",a[[#This Row],[DigD]]<>\"\"),\".  On \"&TEXT(a[[#This Row],[DigD]],\"mmmm d, yyyy\")&\" \"&a[[#Headers],[Digoxin Level]]&\" was \"&a[[#This Row],[Digoxin Level]]&\" \"&b!BI$2,\"\")&\".\"","v":"."},{"$f":"a[[#This Row],[Lab subblurb A]]&a[[#This Row],[Lab subblurb B]]","v":"No BMP found.  On January 0, 1900 labs included AST  (N<=34), ALT  (N<=55), Alkaline Phosphatase  (N 40-150), Bilirubin, Total  (N 0.2-1.2), Total Protein  (N 6.0-8.3), Albumin  (N 3.5-5.2), and Globulin  (N 2.0-3.7).  No CBC found."},{"$f":"IF(a[[#This Row],[Sodium]]<>\"\",IF(OR(VALUE(a[[#This Row],[Sodium]])<VALUE(b!B$3),VALUE(a[[#This Row],[Sodium]])>VALUE(b!B$4)),\"Sodium.  \",\"\"),\"\")&IF(a[[#This Row],[Potassium]]<>\"\",IF(OR(VALUE(a[[#This Row],[Potassium]])<VALUE(b!C$3),VALUE(a[[#This Row],[Potassium]])>VALUE(b!C$4)),\"Potassium.  \",\"\"),\"\")&IF(a[[#This Row],[Chloride]]<>\"\",IF(OR(VALUE(a[[#This Row],[Chloride]])<VALUE(b!D$3),VALUE(a[[#This Row],[Chloride]])>VALUE(b!D$4)),\"Chloride.  \",\"\"),\"\")&IF(a[[#This Row],[Bicarbonate]]<>\"\",IF(OR(VALUE(a[[#This Row],[Bicarbonate]])<VALUE(b!E$3),VALUE(a[[#This Row],[Bicarbonate]])>VALUE(b!E$4)),\"Bicarbonate.  \",\"\"),\"\")&IF(a[[#This Row],[BUN]]<>\"\",IF(OR(VALUE(a[[#This Row],[BUN]])<VALUE(b!F$3),VALUE(a[[#This Row],[BUN]])>VALUE(b!F$4)),\"BUN.  \",\"\"),\"\")&IF(a[[#This Row],[Creatinine]]<>\"\",IF(OR(VALUE(a[[#This Row],[Creatinine]])<VALUE(b!G$3),VALUE(a[[#This Row],[Creatinine]])>VALUE(b!G$4)),\"Creatinine.  \",\"\"),\"\")&IF(a[[#This Row],[Calcium]]<>\"\",IF(OR(VALUE(a[[#This Row],[Calcium]])<VALUE(b!H$3),VALUE(a[[#This Row],[Calcium]])>VALUE(b!H$4)),\"Calcium.  \",\"\"),\"\")&IF(a[[#This Row],[Glucose]]<>\"\",IF(OR(VALUE(a[[#This Row],[Glucose]])<VALUE(b!I$3),VALUE(a[[#This Row],[Glucose]])>VALUE(b!I$4)),\"Glucose.  \",\"\"),\"\")&IF(a[[#This Row],[Cystatin C]]<>\"\",IF(OR(VALUE(a[[#This Row],[Cystatin C]])<VALUE(b!AK$3),VALUE(a[[#This Row],[Cystatin C]])>VALUE(b!AK$4)),\"Cystatin C.  \",\"\"),\"\")&IF(a[[#This Row],[AST]]<>\"\",IF(OR(VALUE(a[[#This Row],[AST]])<VALUE(b!J$3),VALUE(a[[#This Row],[AST]])>VALUE(b!J$4)),\"AST.  \",\"\"),\"\")&IF(a[[#This Row],[ALT]]<>\"\",IF(OR(VALUE(a[[#This Row],[ALT]])<VALUE(b!K$3),VALUE(a[[#This Row],[ALT]])>VALUE(b!K$4)),\"ALT.  \",\"\"),\"\")&IF(a[[#This Row],[Alkaline Phosphatase]]<>\"\",IF(OR(VALUE(a[[#This Row],[Alkaline Phosphatase]])<VALUE(b!L$3),VALUE(a[[#This Row],[Alkaline Phosphatase]])>VALUE(b!L$4)),\"Alkaline Phosphatase.  \",\"\"),\"\")&IF(a[[#This Row],[Bilirubin, Total]]<>\"\",IF(OR(VALUE(a[[#This Row],[Bilirubin, Total]])<VALUE(b!M$3),VALUE(a[[#This Row],[Bilirubin, Total]])>VALUE(b!M$4)),\"Bilirubin, Total.  \",\"\"),\"\")&IF(a[[#This Row],[Total Protein]]<>\"\",IF(OR(VALUE(a[[#This Row],[Total Protein]])<VALUE(b!N$3),VALUE(a[[#This Row],[Total Protein]])>VALUE(b!N$4)),\"Total Protein.  \",\"\"),\"\")&IF(a[[#This Row],[Albumin]]<>\"\",IF(OR(VALUE(a[[#This Row],[Albumin]])<VALUE(b!O$3),VALUE(a[[#This Row],[Albumin]])>VALUE(b!O$4)),\"Albumin.  \",\"\"),\"\")&IF(a[[#This Row],[Globulin]]<>\"\",IF(OR(VALUE(a[[#This Row],[Globulin]])<VALUE(b!P$3),VALUE(a[[#This Row],[Globulin]])>VALUE(b!P$4)),\"Globulin.  \",\"\"),\"\")&IF(a[[#This Row],[Amylase]]<>\"\",IF(OR(VALUE(a[[#This Row],[Amylase]])<VALUE(b!AW$3),VALUE(a[[#This Row],[Amylase]])>VALUE(b!AW$4)),\"Amylase.  \",\"\"),\"\")&IF(a[[#This Row],[Lipase]]<>\"\",IF(OR(VALUE(a[[#This Row],[Lipase]])<VALUE(b!AX$3),VALUE(a[[#This Row],[Lipase]])>VALUE(b!AX$4)),\"Lipase.  \",\"\"),\"\")&IF(a[[#This Row],[Magnesium]]<>\"\",IF(OR(VALUE(a[[#This Row],[Magnesium]])<VALUE(b!AS$3),VALUE(a[[#This Row],[Magnesium]])>VALUE(b!AS$4)),\"Magnesium.  \",\"\"),\"\")&IF(a[[#This Row],[Phosphorus]]<>\"\",IF(OR(VALUE(a[[#This Row],[Phosphorus]])<VALUE(b!AT$3),VALUE(a[[#This Row],[Phosphorus]])>VALUE(b!AT$4)),\"Phosphorus.  \",\"\"),\"\")&IF(a[[#This Row],[Total Cholesterol]]<>\"\",IF(OR(VALUE(a[[#This Row],[Total Cholesterol]])<VALUE(b!V$3),VALUE(a[[#This Row],[Total Cholesterol]])>VALUE(b!V$4)),\"Total Cholesterol.  \",\"\"),\"\")&IF(a[[#This Row],[Triglycerides]]<>\"\",IF(OR(VALUE(a[[#This Row],[Triglycerides]])<VALUE(b!W$3),VALUE(a[[#This Row],[Triglycerides]])>VALUE(b!W$4)),\"Triglycerides.  \",\"\"),\"\")&IF(a[[#This Row],[HDL]]<>\"\",IF(OR(VALUE(a[[#This Row],[HDL]])<VALUE(b!X$3),VALUE(a[[#This Row],[HDL]])>VALUE(b!X$4)),\"HDL.  \",\"\"),\"\")&IF(a[[#This Row],[LDL]]<>\"\",IF(OR(VALUE(a[[#This Row],[LDL]])<VALUE(b!Y$3),VALUE(a[[#This Row],[LDL]])>VALUE(b!Y$4)),\"LDL.  \",\"\"),\"\")","v":""},{"$f":"IF(a[[#This Row],[LDH]]<>\"\",IF(OR(VALUE(a[[#This Row],[LDH]])<VALUE(b!BH$3),VALUE(a[[#This Row],[LDH]])>VALUE(b!BH$4)),\"LDH.  \",\"\"),\"\")&IF(a[[#This Row],[Uric Acid]]<>\"\",IF(OR(VALUE(a[[#This Row],[Uric Acid]])<VALUE(b!AV$3),VALUE(a[[#This Row],[Uric Acid]])>VALUE(b!AV$4)),\"Uric Acid.  \",\"\"),\"\")&IF(a[[#This Row],[PTH]]<>\"\",IF(OR(VALUE(a[[#This Row],[PTH]])<VALUE(b!AU$3),VALUE(a[[#This Row],[PTH]])>VALUE(b!AU$4)),\"PTH.  \",\"\"),\"\")&IF(a[[#This Row],[TSH]]<>\"\",IF(OR(VALUE(a[[#This Row],[TSH]])<VALUE(b!Z$3),VALUE(a[[#This Row],[TSH]])>VALUE(b!Z$4)),\"TSH.  \",\"\"),\"\")&IF(a[[#This Row],[Free T4]]<>\"\",IF(OR(VALUE(a[[#This Row],[Free T4]])<VALUE(b!AY$3),VALUE(a[[#This Row],[Free T4]])>VALUE(b!AY$4)),\"Free T4.  \",\"\"),\"\")&IF(a[[#This Row],[PSA level]]<>\"\",IF(OR(VALUE(a[[#This Row],[PSA level]])<VALUE(b!AA$3),VALUE(a[[#This Row],[PSA level]])>VALUE(b!AA$4)),\"PSA level.  \",\"\"),\"\")&IF(a[[#This Row],[Vitamin D, 25-Hydroxy level]]<>\"\",IF(OR(VALUE(a[[#This Row],[Vitamin D, 25-Hydroxy level]])<VALUE(b!AB$3),VALUE(a[[#This Row],[Vitamin D, 25-Hydroxy level]])>VALUE(b!AB$4)),\"Vitamin D, 25-Hydroxy level.  \",\"\"),\"\")&IF(a[[#This Row],[Iron]]<>\"\",IF(OR(VALUE(a[[#This Row],[Iron]])<VALUE(b!AO$3),VALUE(a[[#This Row],[Iron]])>VALUE(b!AO$4)),\"Iron.  \",\"\"),\"\")&IF(a[[#This Row],[TIBC]]<>\"\",IF(OR(VALUE(a[[#This Row],[TIBC]])<VALUE(b!AP$3),VALUE(a[[#This Row],[TIBC]])>VALUE(b!AP$4)),\"TIBC.  \",\"\"),\"\")&IF(a[[#This Row],[% Saturation]]<>\"\",IF(OR(VALUE(a[[#This Row],[% Saturation]])<VALUE(b!AQ$3),VALUE(a[[#This Row],[% Saturation]])>VALUE(b!AQ$4)),\"% Saturation.  \",\"\"),\"\")&IF(a[[#This Row],[Ferritin]]<>\"\",IF(OR(VALUE(a[[#This Row],[Ferritin]])<VALUE(b!AR$3),VALUE(a[[#This Row],[Ferritin]])>VALUE(b!AR$4)),\"Ferritin.  \",\"\"),\"\")&IF(a[[#This Row],[Vitamin B12 level]]<>\"\",IF(OR(VALUE(a[[#This Row],[Vitamin B12 level]])<VALUE(b!AC$3),VALUE(a[[#This Row],[Vitamin B12 level]])>VALUE(b!AC$4)),\"Vitamin B12 level.  \",\"\"),\"\")&IF(a[[#This Row],[Folate level]]<>\"\",IF(OR(VALUE(a[[#This Row],[Folate level]])<VALUE(b!AD$3),VALUE(a[[#This Row],[Folate level]])>VALUE(b!AD$4)),\"Folate level.  \",\"\"),\"\")&IF(a[[#This Row],[WBC]]<>\"\",IF(OR(VALUE(a[[#This Row],[WBC]])<VALUE(b!Q$3),VALUE(a[[#This Row],[WBC]])>VALUE(b!Q$4)),\"WBC.  \",\"\"),\"\")&IF(a[[#This Row],[Hemoglobin]]<>\"\",IF(OR(VALUE(a[[#This Row],[Hemoglobin]])<VALUE(b!R$3),VALUE(a[[#This Row],[Hemoglobin]])>VALUE(b!R$4)),\"Hemoglobin.  \",\"\"),\"\")&IF(a[[#This Row],[MCV]]<>\"\",IF(OR(VALUE(a[[#This Row],[MCV]])<VALUE(b!S$3),VALUE(a[[#This Row],[MCV]])>VALUE(b!S$4)),\"MCV.  \",\"\"),\"\")&IF(a[[#This Row],[Platelet]]<>\"\",IF(OR(VALUE(a[[#This Row],[Platelet]])<VALUE(b!T$3),VALUE(a[[#This Row],[Platelet]])>VALUE(b!T$4)),\"Platelet.  \",\"\"),\"\")&IF(a[[#This Row],[Erythrocyte Sedimentation Rate]]<>\"\",IF(OR(VALUE(a[[#This Row],[Erythrocyte Sedimentation Rate]])<VALUE(b!AM$3),VALUE(a[[#This Row],[Erythrocyte Sedimentation Rate]])>VALUE(b!AM$4)),\"Erythrocyte Sedimentation Rate.  \",\"\"),\"\")&IF(a[[#This Row],[C-Reactive Protein]]<>\"\",IF(OR(VALUE(a[[#This Row],[C-Reactive Protein]])<VALUE(b!AN$3),VALUE(a[[#This Row],[C-Reactive Protein]])>VALUE(b!AN$4)),\"C-Reactive Protein.  \",\"\"),\"\")&IF(a[[#This Row],[Hemoglobin A1c]]<>\"\",IF(OR(VALUE(a[[#This Row],[Hemoglobin A1c]])<VALUE(b!U$3),VALUE(a[[#This Row],[Hemoglobin A1c]])>VALUE(b!U$4)),\"Hemoglobin A1c.  \",\"\"),\"\")&IF(a[[#This Row],[Homocysteine]]<>\"\",IF(OR(VALUE(a[[#This Row],[Homocysteine]])<VALUE(b!AE$3),VALUE(a[[#This Row],[Homocysteine]])>VALUE(b!AE$4)),\"Homocysteine.  \",\"\"),\"\")&IF(a[[#This Row],[Methylmalonic Acid]]<>\"\",IF(OR(VALUE(a[[#This Row],[Methylmalonic Acid]])<VALUE(b!AF$3),VALUE(a[[#This Row],[Methylmalonic Acid]])>VALUE(b!AF$4)),\"Methylmalonic Acid.  \",\"\"),\"\")&IF(a[[#This Row],[AFP, Tumor Marker]]<>\"\",IF(OR(VALUE(a[[#This Row],[AFP, Tumor Marker]])<VALUE(b!BJ$3),VALUE(a[[#This Row],[AFP, Tumor Marker]])>VALUE(b!BJ$4)),\"AFP, Tumor Marker.  \",\"\"),\"\")&IF(a[[#This Row],[Thiamine]]<>\"\",IF(OR(VALUE(a[[#This Row],[Thiamine]])<VALUE(b!AG$3),VALUE(a[[#This Row],[Thiamine]])>VALUE(b!AG$4)),\"Thiamine.  \",\"\"),\"\")&IF(a[[#This Row],[Zinc]]<>\"\",IF(OR(VALUE(a[[#This Row],[Zinc]])<VALUE(b!AH$3),VALUE(a[[#This Row],[Zinc]])>VALUE(b!AH$4)),\"Zinc.  \",\"\"),\"\")&IF(a[[#This Row],[Copper]]<>\"\",IF(OR(VALUE(a[[#This Row],[Copper]])<VALUE(b!AI$3),VALUE(a[[#This Row],[Copper]])>VALUE(b!AI$4)),\"Copper.  \",\"\"),\"\")&IF(a[[#This Row],[Digoxin Level]]<>\"\",IF(OR(VALUE(a[[#This Row],[Digoxin Level]])<VALUE(b!BI$3),VALUE(a[[#This Row],[Digoxin Level]])>VALUE(b!BI$4)),\"Digoxin Level.  \",\"\"),\"\")&IF(a[[#This Row],[Total Valproic Acid Level]]<>\"\",IF(OR(VALUE(a[[#This Row],[Total Valproic Acid Level]])<VALUE(b!BE$3),VALUE(a[[#This Row],[Total Valproic Acid Level]])>VALUE(b!BE$4)),\"Total Valproic Acid Level.  \",\"\"),\"\")&IF(a[[#This Row],[Total Phenytoin Level]]<>\"\",IF(OR(VALUE(a[[#This Row],[Total Phenytoin Level]])<VALUE(b!BF$3),VALUE(a[[#This Row],[Total Phenytoin Level]])>VALUE(b!BF$4)),\"Total Phenytoin Level.  \",\"\"),\"\")&IF(a[[#This Row],[Tacrolimus Level]]<>\"\",IF(OR(VALUE(a[[#This Row],[Tacrolimus Level]])<VALUE(b!BG$3),VALUE(a[[#This Row],[Tacrolimus Level]])>VALUE(b!BG$4)),\"Tacrolimus Level.  \",\"\"),\"\")&IF(a[[#This Row],[CD4 Count]]<>\"\",IF(OR(VALUE(a[[#This Row],[CD4 Count]])<VALUE(b!AL$3),VALUE(a[[#This Row],[CD4 Count]])>VALUE(b!AL$4)),\"CD4 Count.  \",\"\"),\"\")&IF(a[[#This Row],[Urine Microalbumin/Creatinine]]<>\"\",IF(OR(VALUE(a[[#This Row],[Urine Microalbumin/Creatinine]])<VALUE(b!AJ$3),VALUE(a[[#This Row],[Urine Microalbumin/Creatinine]])>VALUE(b!AJ$4)),\"Urine Microalbumin/Creatinine.  \",\"\"),\"\")","v":""},{"$f":"a[[#This Row],[subAbLab A]]&a[[#This Row],[subAbLab B]]","v":""},null,null,null,null,null,null,null,null,null,null,null,null,null,null,null,null,null,null,null,null,null,null,null,null,null,null,null,null,null,null,null,null,null,null,null,null,null,null,null,null,null,null,null,null,null,null,null,null,null,null,null,null,null,null,null,null,null,null,null,null,null,null,null,null,null,null,null,null,null,null,null,null,null,null,null,null,null,null,null,null,null,null,null,null,null,null,null,null,null,null,null,null,null,null,null,null,null,null,null,null,null,null,null,null,null,{"$f":"a[[#Headers],[*]]","v":"*"},{"$f":"a[[#This Row],[Calcium]] + (0.8 * (4-a[[#This Row],[Albumin]]))","v":3.2},{"$f":"LIVERAPRI(a[[#This Row],[AST]],a[[#This Row],[Platelet]])","v":0},{"$f":"LIVERAPRIINTERPRETATION(\"[@APRI])\")","v":"Likely cirrhosis"},{"$f":"\"APRI liver fibrosis calculation using recent AST \" & a[[#This Row],[AST]] & \" and Platelet count of \" &a[[#This Row],[Platelet]]& \" was calculated to be \" & ROUND(a[[#This Row],[APRI]],2) & \", \" & a[[#This Row],[APRI interpretation]]&\".\"","v":"APRI liver fibrosis calculation using recent AST  and Platelet count of  was calculated to be 0, Likely cirrhosis."},{"$f":"LIVERANI(a[[#This Row],[Gender:]],a[[#This Row],[MCV]],a[[#This Row],[AST]],a[[#This Row],[ALT]],a[[#This Row],[Height:  ]],a[[#This Row],[Weight:  ]])","v":{"$error":"#VALUE!"}},{"$f":"LIVERANIPROBABILITY(a[[#This Row],[ANI]])","v":{"$error":"#VALUE!"}},{"$f":"\"Alcohol-associated liver disease to NAFLD Index (ANI) \" & TEXT(a[[#This Row],[ANI]],\"0.00\") & \" indicates \" & TEXT(a[[#This Row],[Probability of Alcoholic Liver Disease]],\"00%\") & \" probability of alcoholic liver disease (versus non-alcoholic liver disease).  \"","v":{"$error":"#VALUE!"}},{"$f":"IF(_xlfn.NUMBERVALUE(a[[#This Row],[Bilirubin, Total]])>3,3,IF(_xlfn.NUMBERVALUE(a[[#This Row],[Bilirubin, Total]])>=2,2,IF(_xlfn.NUMBERVALUE(a[[#This Row],[Bilirubin, Total]])>0,1,\"missing\")))","v":"missing"},{"$f":"IF(_xlfn.NUMBERVALUE(a[[#This Row],[Albumin]])>3.5,1,IF(_xlfn.NUMBERVALUE(a[[#This Row],[Albumin]])>=2.8,2,IF(_xlfn.NUMBERVALUE(a[[#This Row],[Albumin]])>0,3,\"missing\")))","v":"missing"},{"$f":"IF(_xlfn.NUMBERVALUE(a[[#This Row],[INR]])>2.2,3,IF(_xlfn.NUMBERVALUE(a[[#This Row],[INR]])>=1.7,2,IF(_xlfn.NUMBERVALUE(a[[#This Row],[INR]])>0,1,\"missing\")))","v":"missing"},null,null,{"$f":"SUM(a[[#This Row],[Bili Pts]:[Ence Pts]])","v":0},{"$f":"IF(_xlfn.NUMBERVALUE(a[[#This Row],[Child Pugh Score]])>9,\"C\",IF(_xlfn.NUMBERVALUE(a[[#This Row],[Child Pugh Score]])>=7,\"B\",IF(_xlfn.NUMBERVALUE(a[[#This Row],[Child Pugh Score]])>0,\"A\",\"missing\")))","v":"missing"},{"$f":"TENYEARASCVDRISK(a[[#This Row],[Gender:]],a[[#This Row],[Age: ]],a[[#This Row],[Race:]],a[[#This Row],[Current Smoker:]],a[[#This Row],[Diabetes:]],a[[#This Row],[Blood Pressure Treated:]],a[[#This Row],[Total Cholesterol]],a[[#This Row],[HDL]],a[[#This Row],[SBP:]])","v":0},{"$f":"LIFETIMEASCVDRISK(a[[#This Row],[Gender:]],a[[#This Row],[Age: ]],a[[#This Row],[Current Smoker:]],a[[#This Row],[Diabetes:]],a[[#This Row],[Total Cholesterol]],a[[#This Row],[SBP:]])","v":0},{"$f":"IF(OR(_xlfn.NUMBERVALUE(a[[#This Row],[LDL]])>190,a[[#This Row],[10-Year ASCVD]]>7.5%,a[[#This Row],[Lifetime ASCVD Risk]]>39%),\"YES\",\"NO\")","v":"NO"},{"$f":"IF(a[[#This Row],[Statin:]]=\"No\",IF(a[[#This Row],[Statin indicated (LDL>190,10 year ASCVD>7.5%, lifetime ASCVD>39%)]]=\"NO\",\"Statin DOES NOT need to be started because LDL at or below 190 mg/dL, 10 year ASCVD is at or below 7.5%, and lifetime ASCVD is at or below 39%\",\"Statin SHOULD be started because LDL is above 190 mg/dL, 10 year ASCVD is above 7.5%, or lifetime ASCVD is above 39%\"),IF(a[[#This Row],[Statin:]]=\"Yes\",\"Currently on Statin\",\"Error\"))","v":"Error"},{"$f":"a[[#Headers],[*]]","v":"*"},null,null,null,null,null,null,null,null,null,null,null,null,null,null,null,null,null,null,null,null,null,null,null,null,null,null,null,null,null,null,null,null,null,null,null,null,null,null,null,null,null,null,null,null,null,null,null,null,null,null,null,null,null,null,null,null,null,null,null,null,null,null,{"$f":"\"Noteworthy testing:  \"&CHAR(10)&IF(a[[#This Row],[EKG:  ]]<>\"\",a[[#Headers],[EKG:  ]]&a[[#This Row],[EKG:  ]]&\" (\"&TEXT(a[[#This Row],[EKG Date:  ]],\"mm/dd/yyyy\")&\")\"&CHAR(10),\"\")&IF(a[[#This Row],[Holter Monitor:  ]]<>\"\",a[[#Headers],[Holter Monitor:  ]]&a[[#This Row],[Holter Monitor:  ]]&\" (\"&TEXT(a[[#This Row],[Holter Date:  ]],\"mm/dd/yyyy\")&\")\"&CHAR(10),\"\")&IF(a[[#This Row],[Echocardiogram:  ]]<>\"\",a[[#Headers],[Echocardiogram:  ]]&a[[#This Row],[Echocardiogram:  ]]&\" (\"&TEXT(a[[#This Row],[Echocardiogram Date:  ]],\"mm/dd/yyyy\")&\")\"&CHAR(10),\"\")&IF(a[[#This Row],[Cardiac Stress Test:  ]]<>\"\",a[[#Headers],[Cardiac Stress Test:  ]]&a[[#This Row],[Cardiac Stress Test:  ]]&\" (\"&TEXT(a[[#This Row],[Cardiac Stress Test Date:  ]],\"mm/dd/yyyy\")&\")\"&CHAR(10),\"\")&IF(a[[#This Row],[Chest Xray:  ]]<>\"\",a[[#Headers],[Chest Xray:  ]]&a[[#This Row],[Chest Xray:  ]]&\" (\"&TEXT(a[[#This Row],[CXR Date:  ]],\"mm/dd/yyyy\")&\")\"&CHAR(10),\"\")&IF(a[[#This Row],[Xray:  ]]<>\"\",a[[#Headers],[Xray:  ]]&a[[#This Row],[Xray:  ]]&\" (\"&TEXT(a[[#This Row],[Xray Date]],\"mm/dd/yyyy\")&\")\"&CHAR(10),\"\")&IF(a[[#This Row],[CT:  ]]<>\"\",a[[#Headers],[CT:  ]]&a[[#This Row],[CT:  ]]&\" (\"&TEXT(a[[#This Row],[CT Date:  ]],\"mm/dd/yyyy\")&\")\"&CHAR(10),\"\")&IF(a[[#This Row],[MRI:  ]]<>\"\",a[[#Headers],[MRI:  ]]&a[[#This Row],[MRI:  ]]&\" (\"&TEXT(a[[#This Row],[MRI Date:  ]],\"mm/dd/yyyy\")&\")\"&CHAR(10),\"\")&IF(a[[#This Row],[EMG:  ]]<>\"\",a[[#Headers],[EMG:  ]]&a[[#This Row],[EMG:  ]]&\" (\"&TEXT(a[[#This Row],[EMG Date:  ]],\"mm/dd/yyyy\")&\")\"&CHAR(10),\"\")&IF(a[[#This Row],[EEG:  ]]<>\"\",a[[#Headers],[EEG:  ]]&a[[#This Row],[EEG:  ]]&\" (\"&TEXT(a[[#This Row],[EEG Date:  ]],\"mm/dd/yyyy\")&\")\"&CHAR(10),\"\")&IF(a[[#This Row],[Pulmonary Function Testing:  ]]<>\"\",a[[#Headers],[Pulmonary Function Testing:  ]]&a[[#This Row],[Pulmonary Function Testing:  ]]&\" (\"&TEXT(a[[#This Row],[Pulmonary Testing Date:  ]],\"mm/dd/yyyy\")&\")\"&CHAR(10),\"\")&IF(a[[#This Row],[Sleep Apnea Testing:  ]]<>\"\",a[[#Headers],[Sleep Apnea Testing:  ]]&a[[#This Row],[Sleep Apnea Testing:  ]]&\" (\"&TEXT(a[[#This Row],[Sleep Test Date:  ]],\"mm/dd/yyyy\")&\")\"&CHAR(10),\"\")&IF(a[[#This Row],[Ultrasound:  ]]<>\"\",a[[#Headers],[Ultrasound:  ]]&a[[#This Row],[Ultrasound:  ]]&\" (\"&TEXT(a[[#This Row],[Ultrasound Date:  ]],\"mm/dd/yyyy\")&\")\"&CHAR(10),\"\")&IF(a[[#This Row],[Renal Ultrasound:  ]]<>\"\",a[[#Headers],[Renal Ultrasound:  ]]&a[[#This Row],[Renal Ultrasound:  ]]&\" (\"&TEXT(a[[#This Row],[Renal Ultrasound Date:  ]],\"mm/dd/yyyy\")&\")\"&CHAR(10),\"\")&IF(a[[#This Row],[Liver Ultrasound:  ]]<>\"\",a[[#Headers],[Liver Ultrasound:  ]]&a[[#This Row],[Liver Ultrasound:  ]]&\" (\"&TEXT(a[[#This Row],[Liver Ultrasound Date:  ]],\"mm/dd/yyyy\")&\")\"&CHAR(10),\"\")&IF(a[[#This Row],[AAA screen (male smokers 65+):  ]]<>\"\",a[[#Headers],[AAA screen (male smokers 65+):  ]]&a[[#This Row],[AAA screen (male smokers 65+):  ]]&\" (\"&TEXT(a[[#This Row],[AAA Date:  ]],\"mm/dd/yyyy\")&\")\"&CHAR(10),\"\")&IF(a[[#This Row],[Colon cancer screening (45+):  ]]<>\"\",a[[#Headers],[Colon cancer screening (45+):  ]]&a[[#This Row],[Colon cancer screening (45+):  ]]&\" (\"&TEXT(a[[#This Row],[Colon cancer screening date:  ]],\"mm/dd/yyyy\")&\")\"&CHAR(10),\"\")&IF(a[[#This Row],[Lung cancer screening (55-79):  ]]<>\"\",a[[#Headers],[Lung cancer screening (55-79):  ]]&a[[#This Row],[Lung cancer screening (55-79):  ]]&\" (\"&TEXT(a[[#This Row],[Lung cancer screening date:  ]],\"mm/dd/yyyy\")&\")\"&CHAR(10),\"\")&IF(a[[#This Row],[Dental Exam Date:  ]]<>\"\",a[[#This Row],[Dental Exam Date:  ]]&TEXT(a[[#This Row],[Dental Exam Date:  ]],\"mm/dd/yyyy\")&\")\"&CHAR(10),\"\")&IF(a[[#This Row],[Foot Exam:  ]]<>\"\",a[[#Headers],[Foot Exam:  ]]&a[[#This Row],[Foot Exam:  ]]&\" (\"&TEXT(a[[#This Row],[Foot Exam Date:  ]],\"mm/dd/yyyy\")&\")\"&CHAR(10),\"\")&IF(a[[#This Row],[Fundoscopy:  ]]<>\"\",a[[#Headers],[Fundoscopy:  ]]&a[[#This Row],[Fundoscopy:  ]]&\" (\"&TEXT(a[[#This Row],[Fundoscopy Date:  ]],\"mm/dd/yyyy\")&\")\"&CHAR(10),\"\")&IF(a[[#This Row],[DEXA bone density:  ]]<>\"\",a[[#Headers],[DEXA bone density:  ]]&a[[#This Row],[DEXA bone density:  ]]&\" (\"&TEXT(a[[#This Row],[DEXA Date:  ]],\"mm/dd/yyyy\")&\")\"&CHAR(10),\"\")&IF(a[[#This Row],[PPD (mm):  ]]<>\"\",a[[#Headers],[PPD (mm):  ]]&a[[#This Row],[PPD (mm):  ]]&\" (\"&TEXT(a[[#This Row],[PPD Date:  ]],\"mm/dd/yyyy\")&\")\"&CHAR(10),\"\")&IF(a[[#This Row],[Hep B Serology:  ]]<>\"\",a[[#Headers],[Hep B Serology:  ]]&a[[#This Row],[Hep B Serology:  ]]&\" \"&b!BD553&\" (\"&TEXT(a[[#This Row],[Hep B serology Date:  ]],\"mm/dd/yyyy\")&\")\"&CHAR(10),\"\")&IF(a[[#This Row],[Hep C Serology:  ]]<>\"\",a[[#Headers],[Hep C Serology:  ]]&a[[#This Row],[Hep C Serology:  ]]&\" \"&b!AZ553&\" (\"&TEXT(a[[#This Row],[Hep C Serology Date:  ]],\"mm/dd/yyyy\")&\")\"&CHAR(10),\"\")&IF(a[[#This Row],[HIV:  ]]<>\"\",a[[#Headers],[HIV:  ]]&a[[#This Row],[HIV:  ]]&\" (\"&TEXT(a[[#This Row],[HIV Date:]],\"mm/dd/yyyy\")&\")\"&CHAR(10),\"\")&IF(a[[#This Row],[Meningococcal series completion date:  ]]<>\"\",a[[#Headers],[Meningococcal series completion date:  ]]&TEXT(a[[#This Row],[Meningococcal series completion date:  ]],\"mm/dd/yyyy\")&\")\"&CHAR(10),\"\")&IF(a[[#This Row],[Influenza (annual):  ]]<>\"\",a[[#Headers],[Influenza (annual):  ]]&TEXT(a[[#This Row],[Influenza (annual):  ]],\"mm/dd/yyyy\")&\")\"&CHAR(10),\"\")&IF(a[[#This Row],[Hepatitis B series completion date:  ]]<>\"\",a[[#Headers],[Hepatitis B series completion date:  ]]&TEXT(a[[#This Row],[Hepatitis B series completion date:  ]],\"mm/dd/yyyy\")&\")\"&CHAR(10),\"\")&IF(a[[#This Row],[MMR series completion date:  ]]<>\"\",a[[#Headers],[MMR series completion date:  ]]&TEXT(a[[#This Row],[MMR series completion date:  ]],\"mm/dd/yyyy\")&\")\"&CHAR(10),\"\")&IF(a[[#This Row],[Tdap (every 10 years):  ]]<>\"\",a[[#Headers],[Tdap (every 10 years):  ]]&TEXT(a[[#This Row],[Tdap (every 10 years):  ]],\"mm/dd/yyyy\")&\")\"&CHAR(10),\"\")&IF(a[[#This Row],[Pneumovax 13 (CKD or immune-suppressed):  ]]<>\"\",a[[#Headers],[Pneumovax 13 (CKD or immune-suppressed):  ]]&TEXT(a[[#This Row],[Pneumovax 13 (CKD or immune-suppressed):  ]],\"mm/dd/yyyy\")&\")\"&CHAR(10),\"\")&IF(a[[#This Row],[Pneumovax 23 (age 65, CHF, lung disease, DM, liver disease):  ]]<>\"\",a[[#Headers],[Pneumovax 23 (age 65, CHF, lung disease, DM, liver disease):  ]]&TEXT(a[[#This Row],[Pneumovax 23 (age 65, CHF, lung disease, DM, liver disease):  ]],\"mm/dd/yyyy\")&\")\"&CHAR(10),\"\")&IF(a[[#This Row],[Recombinant Zoster (age 50 or immune-suppressed):  ]]<>\"\",a[[#Headers],[Recombinant Zoster (age 50 or immune-suppressed):  ]]&TEXT(a[[#This Row],[Recombinant Zoster (age 50 or immune-suppressed):  ]],\"mm/dd/yyyy\")&\")\"&CHAR(10),\"\")&IF(a[[#This Row],[Other Procedure or Test:  ]]<>\"\",a[[#Headers],[Other Procedure or Test:  ]]&a[[#This Row],[Other Procedure or Test:  ]]&CHAR(10),\"\")","v":"Noteworthy testing:  \n"}]

{"sheet":"b","index":2,"n_rows":6,"n_cols":62,"rows_kept":6,"cut":false,"hidden":false,"merged":[]}
[null,"Sodium","Potassium","Chloride","Bicarbonate","BUN","Creatinine","Calcium","Glucose","AST","ALT","Alkaline Phosphatase","Bilirubin, Total","Total Protein","Albumin","Globulin","WBC","Hemoglobin","MCV","Platelet","Hemoglobin A1c","Total Cholesterol","Triglycerides","HDL","LDL","TSH","PSA","Vitamin D, 25-Hydroxy","Vitamin B12","Folate","Homocysteine","Methylmalonic Acid","Thiamine","Zinc","Copper","Urine Microalbumin/Creatinine","Cystatin C","CD4 Count","Erythrocyte Sedimentation Rate","C-Reactive Protein","Iron","TIBC","% Saturation","Ferritin","Magnesium","Phosphorus","Parathyroid Hormone","Uric Acid","Amylase","Lipase","Free T4","Hepatitis C","HCV Viral Load","HBV Viral Load","HIV Viral Load","Hepatitis B","Valproic Acid, Total","Phenytoin, Total","Tacrolimus","LDH","Digoxin","AFP, Tumor Marker"]
[null,"(N 136-145)","(N 3.5-5.1)","(N 98-107)","(N 22-29)","(N 5-15)","(N 0.7-1.2)","(N 8.4-10.2)","(N 70-100)","(N<=34)","(N<=55)","(N 40-150)","(N 0.2-1.2)","(N 6.0-8.3)","(N 3.5-5.2)","(N 2.0-3.7)","(N 4.0-11.0)","(N 12.0-17.9)","(N 80.0-100.0)","(N 150-450)","(N <5.7)","(N <200)","(N <150)","(N>39)","(N <99)","(N 0.35-4.94)","(N <=4.00)","(N 30.0-80.0)","(N 232-1245)","(N≥4.0)","(N 6.5-13.4)","(N≤0.40)","(N 70-80)","(N 0.66-1.10)","(N 0.75-1.45)","(N 0-29)","(N 0.72-1.32)","(N 490-1740)","(N 0-22)","(N<=5.0)","(N 65-175)","(N 250-425)","(N 20-50)","(N 21.8-274.7)","(N 1.6-2.6)","(N 2.3-4.7)","(N 8.7-77.1)","(N 2.6-7.2)","(N 25-125)","(N<=60)","(N 0.7-1.48)","(N=Nonreactive)","(N=Not Detected)","(N=Not Detected)","(N=Not Detected)","(N=sAb negative or positive, sAg negative, cAb negative)","(N 50.0-100.0)","(N 10.0-20.0)","(N 5.0-15.0)","(N 135-225)","(N 0.6-1.2)","(N < 8.4)"]
["Low",136,3.5,98,22,5,0.7,8.4,70,0,0,40,0.2,6,3.5,2,4,12,80,150,0,0,0,40,0,0.35,0,30,232,4,6.5,0,70,0.66,0.75,0,0.68,490,0,0,65,250,20,21.8,1.6,2.2999999999999998,8.6999999999999993,2.6,25,0,0.7,null,null,null,null,null,50,10,5,135,0.6,0]
["High",145,5.0999999999999996,107,29,15,1.2,10.199999999999999,100,34,55,150,1.2,8.3000000000000007,5.2,3.7,11,17.899999999999999,100,450,5.7,200,150,1000,99,4.9400000000000004,4,80,1245,32.700000000000003,13.4,0.4,80,1.1000000000000001,1.45,29,1.22,1740,22,5,175,425,50,274.7,2.6,4.7,77.099999999999994,7.2,125,60,1.48,null,null,null,null,null,100,20,15,225,1.2,8.4]
["Binary",null,null,null,null,null,null,null,null,null,null,null,null,null,null,null,null,null,null,null,null,null,null,null,null,null,null,null,null,null,null,null,null,null,null,null,null,null,null,null,null,null,null,null,null,null,null,null,null,null,null,"Nonreactive","Not Detected","Not Detected","Not Detected","Negative"]
[null,"x","x","x","x","x","x","x","x","x","x","x","x","x","x","no","x","x","x","x","~x","x","x","x","x","x","x",null,null,null,null,null,null,null,null,null,null,null,null,null,"x","x","x","x","x","x","x","x","x","x","x"]

{"sheet":"studies","index":3,"n_rows":7,"n_cols":1,"rows_kept":7,"cut":false,"hidden":false,"merged":[]}
["Influenza Vaccine"]
["Hepatitis B Series Completion Date"]
["Tdap (every 10 years)"]
["Meningococcal Series Completion Date"]
["Pneumovax 13 (CKD or immune suppressed)"]
["Pneumovax 23 (age 65, CHF, lung disease, DM, liver disease)"]
["Recombinant Zoster (age 50 or immune-suppressed)"]